Workbook

Sheet Point of Entry
C3: Welcome to the Road Restraint Risk Assessment Process (RRRAP)
C5: RRRAP version number | D5: Issue 1.3a | G5: Issue date | H5: 2011-12-05
B8: Notes
B9: 1. | C9: Designers must download and use a fresh copy of the RRRAP spreadsheet for each Section of each road for which they are determining the
C10: Vehicle Restraint provision. The data input into the RRRAP and the outcome from it must be retained by the Design Organisation as a record.
B12: 2. | C12: Designers must read TD 19/06 in conjunction with this RRRAP to ensure that mandatory requirements and relevant Guidance contained in the
C13: written Standard are complied with or followed as appropriate.
C14: I confirm that I have read TD 19/06 (name) | J14: Date read:
B16: 3. | C16: TD 19/06 requires that Designers visit the site during design prior to use of the RRRAP and during construction to ensure that assumptions made
C17: during the design are and remain valid and that appropriate Vehicle Restraint Provision is made. TD 19/06 Paragraphs 1.23, 3.17 and 3.111 refer.
C19: I confirm that site visit was undertaken during design (name) | K19: Date of visit
B21: 4. | C21: This worksheet can be used to quickly navigate around the other worksheets within the RRRAP, by clicking on the coloured boxes below

Sheet Key to Basic Features
B3: Basic Features of the RRRAP Spreadsheet and their significance
B5: Basic Feature of Spreadsheet | G5: Significance, and comment
B8: Border around worksheet | G8: Marks out the lateral and vertical limit of the Worksheet
B12: Asterisk | D12: * | G12: Data items with an asterisk (*) MUST be completed for the programme to run
B15: Cell colouring | E15: (Light green) | G15: Requires data entry by the Designer
E17: (Light yellow) | G17: Requires data entry by the Designer (gives drop down listing)
E19: (Black) | G19: Cell blacked out to aid reading, not containing information or requiring data entry
E21: (Grey) | G21: Auto fill based on a calculation and or copying information already entered elsewhere
E23: (White) | G23: Cell usually contains a heading, a question, or a statement
D25: 20 | E25: (Red) | G25: Risk is in Unacceptable region
D27: 25 | E27: (Amber) | G27: Risk is in the Tolerable region
D29: 35 | E29: (Green) | G29: Risk is in the Broadly acceptable region
G31: Question cells where information is required, but in the current version, it is not contributing to the risk / benefit cost calculation, but will provide useful background information. Future (refined) versions may well use this type of information in the calculation process.
B34: Cell protection | G34: Note that many cells are write protected, these are generally cells containing formulae or other information that the Designer is not allowed to alter.
B36: Help buttons | G36: These help menus can be retained on the screen and moved to a convenient place whilst data is input. They are closed by clicking on the x in the top right hand corner of the help menu.
B43: "Action" buttons | G43: Note: 1. Action buttons that take the Designer to another part of the worksheet can be 'undone' by clicking on the return button. 2. Action buttons that perform a calculation or a macro cannot be undone. Care must therefore be taken to ensure that inputs are complete and checked prior to use of this type of button.

Sheet Overview RRRAP and interface HA

Sheet Outline flowchart
D3: Worksheet | F3: Basic (Common Details) | H3: Hazards Listing | J3: 300 Fencing, 500 Drainage, 600 Earthworks, H-S & Verge Widths, etc Worksheets | L3: OH's worksheets (OH's = Others Hazards) | N3: Collation of Data on Hazards | P3: Detailed Results | R3: Temporary Hazards
D5: What Worksheet is for | F5: This worksheet records key details about the Project being designed and reasons why the Vehicle Restraint Provision is being assessed. | H5: This worksheet is to identify for the Section of the Project being looked at, whether there are any hazards of the particular category present. | J5: These worksheets are for inputting particulars relating to each hazard in each category present. | L5: These worksheets are for inputting particulars relating to each hazard where Others might be affected by an errant vehicle or by another hazard that is hit by an errant vehicle. | N5: This worksheet collates all the information entered on the individual Hazard and Other Hazard worksheets, and puts them into ascending chainage order on the one worksheet. The RRRAP also calculates the length of need of VRS in advance of and beyond each hazard, based on a default N2 Containment Level and W2 working width. It identifies whether the provision is 'Broadly acceptable', 'Tolerable' or 'Unacceptable' (ref TD 19 Fig 2-1). | P5: This worksheet is to advise the Designer of the respective levels of the Risk and the Cost Benefit ratios of each option. It allows direct comparison of differing options and enables the Designer to ascertain the level of risk and cost benefit accruing from any proposed provision. | R5: To assist the Designer in considering and documenting the process of determining what VRS provision, if any, is required to protect temporary hazards.
D7: Examples of information req'd | F7: Basic Details e.g. • Designer and Design Organisation names • Project Name, PIN No. and Project type Restraint provision associated with e.g. • New section of road or upgrading to existing Details of Section of Road being assessed e.g. • Road name and number • Location: junction / marker post / chainage • Which side of road e.g. n/s verge Traffic Information e.g. • AADT • % large goods vehicles. | H7: A 'Yes' or a 'No' response is required (i.e. 'Yes', there are hazards of that category present or 'No', there are not). Help buttons can be pressed to help identify the type of hazard that is included under each heading, e.g. If a 'Yes' is entered, the programme indicates that further information is required. The appropriate worksheet for entering this is accessed by clicking on the adjacent button, e.g. | J7: Nature of hazard (from a drop down list). Start chainage, length and width of hazard. Offset of hazard from Psb (point from which set-back is measured). Other information relating to the local alignment and location. | L7: Information required is broadly similar to that for the hazards in the column adjacent and to the left of this one, but will include items that will allow an assessment to be undertaken of the number of Others that might be affected. | N7: The worksheet allows the Designer to decide whether, for each hazard, the safety barrier provision based on default values is satisfactory or not. The Designer can decide to investigate further, and can change one or more of the following parameters and recalculate the risk level based on the revised choice, e.g. • Cost of Vehicle Restraint System1; • Length, width, aggressiveness of hazard2; • Barrier containment, and or Working Width Class3; • Offset of hazard from Psb. Help menus give guidance where appropriate. 1,2,3 - See Notes below | P7: The Designer is required to produce a design that results in the risk being in the green 'Broadly acceptable' region. The 'Calculate Risk' button will automatically colour code the cells as follows: green denoting a 'Broadly acceptable' provision and risk level, amber a 'Tolerable' risk level and red with white text, an 'Unacceptable' risk level.
D9: Notes | F9: 1. The Designer is required to split the Project into Sections. Assessment of nearside verge, offside verge and central reserve will always be in different Sections. | H9: 1. If the 'To collate data on Hazards press here' button is pressed, and it is subsequently realised that the information relating to the Hazards is incomplete, the requisite information can be added on the appropriate worksheet(s) and the button re-pressed. This action will over-write the previous collated data. | J9: 1. The type of information requested is broadly similar for each type of hazard. | N9: 1. Cost of Option is based on a default value. The Designer is able to override the default cost if he has better information available about the whole life costing of particular VRS. The basis for the revised costings must be documented and justified up by the Designer. The factors to be included in the costings are shown on the Barrier and Option Costings worksheet. | P9: 1. Further guidance on Assessing the Risk, mitigating the Risk and the Benefit / Cost ratio for Options that involve provision of VRS is given in TD 19 Chapter 2. | R9: 1. The methodology for determining whether or not temporary safety barrier is to be provided is different to that for assessing permanent safety barrier provision. This is mainly due to the transient nature, variety, and often complexity of the factors that need to be considered and their interaction.
F10: 2. At least one assessment will need to be carried out for each Section. Also, the nearside verge, offside verge and central reserve will need to be subdivided into further Sections where either AADT, % Large Goods and or Medium Vehicles, or speed limit differ significantly along the length. | H10: 2. Information on '600 Earthworks', '1100 Kerbs and Edge of Pavement Details', and 'Hardshoulder / hardstrip width & verge width details' are always required for the full length of the Section, as these factors are used to calculate key information at intermediate points. | J10: 2. Help menus will assist the Designer with the format for some of the information and in determining e.g. from and to where measurements are taken. | N10: 2. The Designer can assess the effect of changing the size, offset and the aggressiveness of the hazard (e.g. using passively safe sign posts rather than standard, or changing a retaining wall having wide deep profiles to be smooth faced). | P10: 2. The Detailed Risk spreadsheet indicates in tabular form the Estimated Risk to the Vehicle Occupant, Estimated Risk to Others and, hence, Estimated Total Risk that arise given incremental increases in safety barrier length from zero to 100 m. These figures are colour coded according to whether the risk levels fall in the 'Unacceptable' , 'Tolerable', or 'Broadly acceptable' regions. The estimated Benefit Cost ratio is also given, | R10: 2. The process is on the lines of posing a series of questions that the Designer should consider and respond to. Many of these are issues that historically the Designer (or Contractor) would have potentially looked at, but may not have been documented in any formal or consistent way.
J11: 3. Each hazard is automatically allocated a unique reference number and assigned an aggressiveness value based on its nature. | N11: 3. Safety barrier Containment Level and Working Width Class are initially based on a default of N2 and W2. The Designer can assess the effect of changing these parameters. Remember, if considering changing the Working Width Class, to check that the requirements of the various Figures in TD 19 (e.g. Figures 3-1 and 3-2) are complied with. | P11: 3. The Designer is able to re-calculate the level of risk and cost benefit consequent on changing one or more of the parameters. The programme appends the output into the Detailed Results worksheet enabling direct comparison of each Option investigated on the same sheet.
D12: The Process
F13: Basic (Common Details) | H13: Hazards Listing | J13: 300 Fencing, 500 Drainage, 600 Earthworks, H-S & Verge Widths, etc Worksheets | L13: OH's worksheets (OH's = Others Hazards) | N13: Collation of Data on Hazards | P13: Detailed Results | R13: Temporary Hazards
R29: Temporary Hazards
R33: Outputs
F49: Basic (Common Details) | H49: Hazards Listing | J49: 300 Fencing, 500 Drainage, 600 Earthworks, H-S & Verge Widths, etc Worksheets | L49: OH's worksheets (OH's = Others Hazards) | N49: Collation of Data on Hazards | P49: Detailed Results | R49: Outputs

Sheet Basic (Common Details)
B2: Basic Details
B3: Project Name | E3: NOTE
B4: Project Reference (e.g. Naris Number) | E4: Data items highlighted with an asterix (*) MUST be completed for the program to run.
B5: Agent / Designer Company Name
B6: Agent's Ref
B7: Contract Type
B8: Contract sub-type
B9: Region
B11: Restraint Provision is associated with
B12: New section of Road
B13: Widening existing carriageway
B14: Upgrade / improvement to existing carriageway
B15: Downgrade existing carriageway
B16: Replacement of existing restraint
B17: New restraint on existing road
B18: Temporary works | L18: If yes thisis part of process
B20: Details Relating to Particular Section Covered by Assessment
B21: Class and Standard
B22: Road Classification *
B23: Road Number
B24: Road name
B25: Road sub-type eg. D2 *
B26: Investigate Nearside or Median?
B27: Road Location eg. Urban
B28: To current geometric standards?
B29: Location | C29: From | D29: To
B30: Junction Name
B31: Junction No.
B32: Marker Post
B33: Section Label
B34: Chainage of Section (m) *
B35: Section / Direction being assessed
B36: Nearside or Offside Verge being assessed?*
B37: Does road have near side hardshoulder or hardstrip? *
B38: Are Environmental considerations likely to influence provision?
B40: Traffic Information
B41: Permanent Speed Limit (mph) *
B42: AADT (2-way unless motorway link or slip) *
B43: % Large Vehicles *
B44: % Medium Vehicles *
B45: Model accident frequency (Nearside) | C45: =IF(AND($C$36="O/S Verge",OR($C$25="Slip",$C$25="Link")),VLOOKUP($C$25,AccidentPredictions,3,FALSE),IF(OR($C$25="Single",$C$36="N/S Verge"),VLOOKUP($C$25,AccidentPredictions,2,FALSE),"")) -> 
B46: Model accident frequency (Offside) | C46: =IF(OR($C$25="Single",$C$36="O/S Verge"),VLOOKUP($C$25,AccidentPredictions,3,FALSE),"") -> 
B48: Scheme duration * | F48: When all fields are complete, click on button below
B50: Check List
B51: Are all required fields with yellow or green boxes on this sheet complete?
B53: Date of design / submission
B54: Date of TD 19/06 Standard used in assessment

Sheet Hazards listing
E4: Yes / No | F4: Further Data Required | G4: If 'Further Data Required' click on button below to go to appropriate worksheet
D5: Are any of these hazards present inside or within X m beyond the Highway Boundary along the length of carriageway under Consideration? The value of X is 5m where the road is in cutting deeper than 3m on side under consideration, and 15m in all other situations
D6: 300 Fencing | F6: =IF(E6="No","",IF(E6="Yes","Further Data Required","")) -> 
D7: 500 Drainage Features
D8: 600 Earthworks | E8: Yes | F8: =IF(E8="No","",IF(E8="Yes","Further Data Required","")) -> Further Data Required
D9: 1100 Kerbs and Edge of Pavement Details | E9: Yes | F9: Further Data Required
D10: 1200 Traffic Signs or Signals
D11: 1300 Road Lighting Columns
D12: 1500 Motorway Communications (above ground)
D13: 1600 Piles and Retaining Walls
D14: 1700 1800 Structural Concrete and Steel
D15: 400 Parapets
D16: 2500 Special Structures
D17: Telegraph poles / Pylons
D18: Trees
D19: Water
D20: Hardshoulder / hardstrip width & Verge width details | E20: Yes | F20: Further Data Required
D21: Are other hazards present that could potentially be reached by errant vehicle or falling object that is hit? Hazards up to 100m from the carriageway should be considered.
D22: Railway | F22: =IF(E22="No","",IF(E22="Yes","Further Data Required","")) ->  | I22: If all fields in worksheets where Further Data Required have been completed, click on button below
D23: Road | F23: =IF(E23="No","",IF(E23="Yes","Further Data Required","")) -> 
D24: Public building, sports or playground, or other place where significant numbers of people congregate | F24: =IF(E24="No","",IF(E24="Yes","Further Data Required","")) -> 
D25: Chemical or fuel installation | F25: =IF(E25="No","",IF(E25="Yes","Further Data Required","")) -> 

Sheet Collation of Data on Hazards
B2: Description of Feature | J2: Description of Barrier
B3: CalcRisk Nature of Hazard | C3: Collation Data Start chainage of hazard | D3: CalcRisk End Chainage of Feature | E3: CalcRisk ObjectOffsetFromPSB | F3: CalcRisk: Barrier Required | G3: CalcRisk: Barrier Mitigate Risk | H3: CalcRisk: Min Barrier Length Advance | I3: CalcRisk: Min Barrier Length Beyond | J3: CalcRisk Barrier Containment | K3: CalcRisk Barrier Working Width Class | L3: CalcRisk Barrier Max Working Width | M3: CalcRisk Offset of Barrier from PSb | N3: CalcRisk Contiguous Barrier | O3: CalcRisk: Parapet Containment | Q3: CalcRisk CostOfOption | R3: CalcRisk Object Length | S3: CalcRisk Object Width | T3: CalcRisk Aggressiveness Factor | U3: CalcRisk Third Party Risk | V3: CalcRisk NoOtherPeople | Z3: CalcRisk: Collision Load | AA3: CalcRisk Carriagewaywidth | AB3: CalcRisk Hardshoulder Width | AC3: CalcRisk Verge Width | AD3: CalcRisk Slope Width | AE3: CalcRisk Slope Height | AF3: CalcRisk Multiplicative factor for runoff rate | AG3: CalcRisk Topography Factor | AH3: CalcRisk Other Consequences Multiplicative factor | AI3: CalcRisk ObjectAngleFromPSB
A4: ID Number | B4: Nature of Hazard | C4: Start chainage of hazard | D4: End chainage of hazard | E4: Offset of hazard from PSb | F4: Is risk without VRS acceptable? | G4: What is level of risk with optimum length VRS? | H4: Minimum Length of Barrier in advance of object (m) | I4: Minimum Length of Barrier beyond object (m) | J4: Barrier Containment | K4: Barrier working width class | L4: Barrier working width (m) | M4: Offset of Barrier from PSb | N4: Is parapet/structure to be placed contiguously with barrier? | O4: Parapet Containment | P4: Output detailed results? | Q4: Cost of Option (average per year, £) | R4: Length of hazard | S4: Width of hazard | T4: Aggressiveness | U4: Other Risk Type | V4: Total Number of people at risk | W4: Substandard headroom over any part paved carriageway? | X4: Substandard headroom over Verge or C/res? | Y4: Structure Carries / Parapet protecting | Z4: Designed for collision loading? | AA4: Carriageway width from Psb nearside to Psb offside | AB4: Width of adjacent Hardshoulder or Hardstrip | AC4: Width verge / Central Reserve | AD4: Overall width slope | AE4: Overall Height slope | AF4: Multiplicative factor for runoff rate | AG4: Topography Factor | AH4: Other Consequences Multiplicative factor | AI4: Angle of hazard to PSb (Degrees)

Sheet Detailed Results

Sheet VRS summary output
B1: Road Restraint Risk Assessment Process (RRRAP) VRS Summary
B3: RRRAP version number | C3: =IF('Point of Entry'!D5="","",'Point of Entry'!D5) -> Issue 1.3a | F3: Verge assessed | G3: =IF('Basic (Common Details)'!C36="","",'Basic (Common Details)'!C36) ->  | J3: Date of Design/ Submission | K3: ='Basic (Common Details)'!C53 -> 00:00:00
B4: Issue date | C4: =IF('Point of Entry'!H5="","",'Point of Entry'!H5) -> 2011-12-05 | F4: Section / Direction assessed | G4: =IF('Basic (Common Details)'!C35="","",'Basic (Common Details)'!C35) -> 
F6: Location | G6: From | H6: To | J6: Were any of the results unexpected? | K6: No
B7: Road Number | C7: =IF('Basic (Common Details)'!C23="","",'Basic (Common Details)'!C23) ->  | F7: Junction Name | G7: =IF('Basic (Common Details)'!C30="","",'Basic (Common Details)'!C30) ->  | H7: =IF('Basic (Common Details)'!D30="","",'Basic (Common Details)'!D30) -> 
B8: Road name | C8: =IF('Basic (Common Details)'!C24="","",'Basic (Common Details)'!C24) ->  | F8: Junction No. | G8: =IF('Basic (Common Details)'!C31="","",'Basic (Common Details)'!C31) ->  | H8: =IF('Basic (Common Details)'!D31="","",'Basic (Common Details)'!D31) -> 
F9: Marker Post | G9: =IF('Basic (Common Details)'!C32="","",'Basic (Common Details)'!C32) ->  | H9: =IF('Basic (Common Details)'!D32="","",'Basic (Common Details)'!D32) -> 
F10: Section Label | G10: =IF('Basic (Common Details)'!C33="","",'Basic (Common Details)'!C33) ->  | H10: =IF('Basic (Common Details)'!D33="","",'Basic (Common Details)'!D33) -> 
B12: ID Number | C12: Nature of Hazard | D12: Start chainage of hazard | E12: End chainage of hazard | F12: Offset of hazard from PSb | G12: Minimum Length of Barrier in advance of object (m) | H12: Minimum Length of Barrier beyond object (m) | I12: Barrier Containment | J12: Barrier working width class | K12: Parapet Containment | L12: Barrier working width (m) | M12: Offset of Barrier from PSb | N12: Comments

Sheet User Comments

Sheet App 4-1 Restraint Summary
A1: Restraint Summary
B2: Schedule of Road Restraint Systems (Vehicle and Pedestrian)
A3: This is based on the requirements of Specification Appendix 4/1
A4: [Note to Compiler: Complete the schedule below and include in Appendix 4/1. Incorporate in the schedule all the Road Restraint Systems (i.e. safety barriers, terminals, transitions, vehicle parapets, crash cushions, pedestrian parapets and pedestrian guardrails) and any associated anti-glare screens required. Cross-reference should be made to the Drawings where appropriate. The Road Restraint Systems should be listed in order of occurrence, irrespective of type, and the respective start and end chainages of the proposed systems listed. All the Performance Class requirements appropriate for the Road Restraint System and other details such as parapet height should be included. The difference between the End and Start Chainages should be at least the Length of Need of the Road Restraint System as defined in TD 19.
A7: Location & Start Chainage * (m) | B7: Finish Chainage (m) | C7: Position on Cross-Section + | D7: Type of Road Restraint System** (Safety barriers, vehicle parapets, transitions, terminals, crash cushions, pedestrian parapets, pedestrian guardrails) | E7: Set-back (m) | F7: Containment Level ** (Safety barriers, vehicle parapets, transitions) Performance Class (P) ** | G7: Impact Severity Level (ISL) ** (Safety barriers, vehicle parapets, transitions, terminals, crash cushions) | H7: Working Width Class** (Safety barriers, vehicle parapets, transitions) | I7: Performance Level and whether Redirective (R) or Non-redirective (NR) (Crash Cushions) | J7: Permanent Lateral Displacement Zone (PLDZ) characterisic ** (Terminals) Permanent Lateral Displacement Zone Class (D) (Crash Cushions) | K7: Exit Box Class ** (Terminals) Redirection Zone Class (Z) (Crash Cushions) | L7: Other Requirements / Comments ** ++ +++
A19: NOTE:
A20: * | B20: e.g. Road name, verge, central reserve, slip road etc.
A21: ** | B21: Enter temporary safety barrier where required.
A22: + | B22: e.g. LH verge; central reserve, RH hand verge etc.
A23: ++ | B23: Height requirements etc.
A24: +++ | B24: Anti-glare screens, etc

Sheet Calculation Temp Worksheet (hidden)
B4: Calculation Output ID0600.0001: Falling 1:2 or steeper
B5: Calculation Output ID0600.0001: Falling 1:2 or steeper
B6: Calculation Output ID0600.0001: Falling 1:2 or steeper
B7: Calculation Output ID0600.0001: Falling 1:2 or steeper
B8: Calculation Output ID0600.0001: Falling 1:2 or steeper
B9: Calculation Output ID0600.0001: Falling 1:2 or steeper
B10: Calculation Output ID0600.0001: Falling 1:2 or steeper
B11: Calculation Output ID0600.0001: Falling 1:2 or steeper
B12: Calculation Output ID0600.0001: Falling 1:2 or steeper
AJ13: Length - Risk - BC Output: 0600.0001: Falling 1:2 or steeper Nearside
AG14: Min length giving risk below threshold (m) | AH14: 0 | AJ14: Barrier length | AK14: 0 | AL14: 10 | AM14: 20 | AN14: 30 | AO14: 40 | AP14: 50 | AQ14: 60 | AR14: 70 | AS14: 80 | AT14: 90 | AU14: 100 | AV14: 110
AG15: Corresponding risk | AH15: 0.03560842126 | AJ15: Est risk: Vehicle occupant | AK15: 0.01957630463 | AL15: 0.01457643108 | AM15: 0.01247808135 | AN15: 0.01318272312 | AO15: 0.01430232796 | AP15: 0.01548336514 | AQ15: 0.01667349694 | AR15: 0.01786497514 | AS15: 0.01905665266 | AT15: 0.02024835969 | AU15: 0.02144007109 | AV15: 0.02263178314
AG16: C/B opt length (m) | AH16: 36.78068625 | AJ16: Est risk: Other | AK16: 0
AG17: Corresponding risk | AH17: 0.03560842126 | AJ17: Estimated B/C | AK17: 0 | AL17: 1.814444042 | AM17: 1.458363182 | AN17: 1.102282322 | AO17: 0.7462014628 | AP17: 0.3901206031 | AQ17: 0.03403974337 | AR17: 0 | AS17: 0 | AT17: 0 | AU17: 0 | AV17: 0
B25: Calculation Output ID0300.0001: Wooden fence e.g. post and rail
B26: Calculation Output ID0300.0001: Wooden fence e.g. post and rail
B27: Calculation Output ID0300.0001: Wooden fence e.g. post and rail
B28: Calculation Output ID0300.0001: Wooden fence e.g. post and rail
B29: Calculation Output ID0300.0001: Wooden fence e.g. post and rail
B30: Calculation Output ID0300.0001: Wooden fence e.g. post and rail
B31: Calculation Output ID0300.0001: Wooden fence e.g. post and rail
B32: Calculation Output ID0300.0001: Wooden fence e.g. post and rail
B33: Calculation Output ID0300.0001: Wooden fence e.g. post and rail
AJ34: Length - Risk - BC Output: 0300.0001: Wooden fence e.g. post and rail Nearside
AG35: Min length giving risk below threshold (m) | AH35: 0 | AJ35: Barrier length | AK35: 0 | AL35: 10 | AM35: 20 | AN35: 30 | AO35: 40 | AP35: 50 | AQ35: 60 | AR35: 70 | AS35: 80 | AT35: 90 | AU35: 100 | AV35: 110
AG36: Corresponding risk | AH36: 0.03243531463 | AJ36: Est risk: Vehicle occupant | AK36: 0.01440083793 | AL36: 0.02155252967 | AM36: 0.01709332148 | AN36: 0.01565509864 | AO36: 0.0156376345 | AP36: 0.01628834813 | AQ36: 0.01725330339 | AR36: 0.01836604538 | AS36: 0.01954829094 | AT36: 0.02076322378 | AU36: 0.02199352934 | AV36: 0.02323106462
AG37: C/B opt length (m) | AH37: 141.5353474 | AJ37: Est risk: Other | AK37: 0
AG38: Corresponding risk | AH38: 0.03243531463 | AJ38: Estimated B/C | AK38: 0 | AL38: 0.1034366592 | AM38: 0.2068733185 | AN38: 0.3103099777 | AO38: 0.3439014784 | AP38: 0.3036623266 | AQ38: 0.2634231748 | AR38: 0.223184023 | AS38: 0.1829448712 | AT38: 0.1427057194 | AU38: 0.1024665676 | AV38: 0.06222741575
B46: Calculation Output ID0600.0002: Falling 1:2 or steeper
B47: Calculation Output ID0600.0002: Falling 1:2 or steeper
B48: Calculation Output ID0600.0002: Falling 1:2 or steeper
B49: Calculation Output ID0600.0002: Falling 1:2 or steeper
B50: Calculation Output ID0600.0002: Falling 1:2 or steeper
B51: Calculation Output ID0600.0002: Falling 1:2 or steeper
B52: Calculation Output ID0600.0002: Falling 1:2 or steeper
B53: Calculation Output ID0600.0002: Falling 1:2 or steeper
B54: Calculation Output ID0600.0002: Falling 1:2 or steeper
AJ55: Length - Risk - BC Output: 0600.0002: Falling 1:2 or steeper Nearside
AG56: Min length giving risk below threshold (m) | AH56: 9 | AJ56: Barrier length | AK56: 0 | AL56: 10 | AM56: 20 | AN56: 30 | AO56: 40 | AP56: 50 | AQ56: 60 | AR56: 70 | AS56: 80 | AT56: 90 | AU56: 100 | AV56: 110
AG57: Corresponding risk | AH57: 0.03114137397 | AJ57: Est risk: Vehicle occupant | AK57: 0.07830521852 | AL57: 0.02810504271 | AM57: 0.01709604973 | AN57: 0.01729902277 | AO57: 0.01916184806 | AP57: 0.02127040272 | AQ57: 0.02341533588 | AR57: 0.02556565462 | AS57: 0.02771677066 | AT57: 0.02986800473 | AU57: 0.03201925628 | AV57: 0.03417051041
AG58: C/B opt length (m) | AH58: 36.78068625 | AJ58: Est risk: Other | AK58: 0
AG59: Corresponding risk | AH59: 0.03114137397 | AJ59: Estimated B/C | AK59: 0 | AL59: 8.752228652 | AM59: 7.001865112 | AN59: 5.251501572 | AO59: 3.501138032 | AP59: 1.750774492 | AQ59: 0.0004109515232 | AR59: 0 | AS59: 0 | AT59: 0 | AU59: 0 | AV59: 0
B67: Calculation Output ID1300.0001: Row of lighting columns < 40m apart
B68: Calculation Output ID1300.0001: Row of lighting columns < 40m apart
B69: Calculation Output ID1300.0001: Row of lighting columns < 40m apart
B70: Calculation Output ID1300.0001: Row of lighting columns < 40m apart
B71: Calculation Output ID1300.0001: Row of lighting columns < 40m apart
B72: Calculation Output ID1300.0001: Row of lighting columns < 40m apart
B73: Calculation Output ID1300.0001: Row of lighting columns < 40m apart
B74: Calculation Output ID1300.0001: Row of lighting columns < 40m apart
B75: Calculation Output ID1300.0001: Row of lighting columns < 40m apart
AJ76: Length - Risk - BC Output: 1300.0001: Row of lighting columns < 40m apart Nearside
AG77: Min length giving risk below threshold (m) | AH77: 13 | AJ77: Barrier length | AK77: 0 | AL77: 10 | AM77: 20 | AN77: 30 | AO77: 40 | AP77: 50 | AQ77: 60 | AR77: 70 | AS77: 80 | AT77: 90 | AU77: 100 | AV77: 110
AG78: Corresponding risk | AH78: 0.03171623916 | AJ78: Est risk: Vehicle occupant | AK78: 0.05983604099 | AL78: 0.0384275448 | AM78: 0.02299744552 | AN78: 0.0190807767 | AO78: 0.0190456788 | AP78: 0.02031919112 | AQ78: 0.02203388067 | AR78: 0.02389730614 | AS78: 0.02581087557 | AT78: 0.02774135025 | AU78: 0.02967752426 | AV78: 0.03161561971
AG79: C/B opt length (m) | AH79: 64.00644207 | AJ79: Est risk: Other | AK79: 0
AG80: Corresponding risk | AH80: 0.03171623916 | AJ80: Estimated B/C | AK80: 0 | AL80: 3.042943732 | AM80: 4.573357108 | AN80: 3.92158744 | AO80: 3.269817772 | AP80: 2.618048104 | AQ80: 1.966278436 | AR80: 1.314508768 | AS80: 0.6627390996 | AT80: 0.01096943157 | AU80: 0 | AV80: 0
B88: Calculation Output ID0300.0002: Wooden fence e.g. post and rail
B89: Calculation Output ID0300.0002: Wooden fence e.g. post and rail
B90: Calculation Output ID0300.0002: Wooden fence e.g. post and rail
B91: Calculation Output ID0300.0002: Wooden fence e.g. post and rail
B92: Calculation Output ID0300.0002: Wooden fence e.g. post and rail
B93: Calculation Output ID0300.0002: Wooden fence e.g. post and rail
B94: Calculation Output ID0300.0002: Wooden fence e.g. post and rail
B95: Calculation Output ID0300.0002: Wooden fence e.g. post and rail
B96: Calculation Output ID0300.0002: Wooden fence e.g. post and rail
AJ97: Length - Risk - BC Output: 0300.0002: Wooden fence e.g. post and rail Nearside
AG98: Min length giving risk below threshold (m) | AH98: 0 | AJ98: Barrier length | AK98: 0 | AL98: 10 | AM98: 20 | AN98: 30 | AO98: 40 | AP98: 50 | AQ98: 60 | AR98: 70 | AS98: 80 | AT98: 90 | AU98: 100 | AV98: 110
AG99: Corresponding risk | AH99: 0.01041973567 | AJ99: Est risk: Vehicle occupant | AK99: 0.0005555401649 | AL99: 0.01092547581 | AM99: 0.01160630532 | AN99: 0.01239391716 | AO99: 0.01324665266 | AP99: 0.01413910535 | AQ99: 0.01505578049 | AR99: 0.01598722824 | AS99: 0.01692768542 | AT99: 0.0178736372 | AU99: 0.01882294 | AV99: 0.01977428649
AG100: C/B opt length (m) | AH100: 327.2520114 | AJ100: Est risk: Other | AK100: 0
AG101: Corresponding risk | AH101: 0.01041973567 | AJ101: Estimated B/C | AK101: 0 | AL101: 0 | AM101: 0 | AN101: 0 | AO101: 0 | AP101: 0 | AQ101: 0 | AR101: 0 | AS101: 0 | AT101: 0 | AU101: 0 | AV101: 0
B109: Calculation Output ID0600.0003: Falling 1:3 or steeper
B110: Calculation Output ID0600.0003: Falling 1:3 or steeper
B111: Calculation Output ID0600.0003: Falling 1:3 or steeper
B112: Calculation Output ID0600.0003: Falling 1:3 or steeper
B113: Calculation Output ID0600.0003: Falling 1:3 or steeper
B114: Calculation Output ID0600.0003: Falling 1:3 or steeper
B115: Calculation Output ID0600.0003: Falling 1:3 or steeper
B116: Calculation Output ID0600.0003: Falling 1:3 or steeper
B117: Calculation Output ID0600.0003: Falling 1:3 or steeper
AJ118: Length - Risk - BC Output: 0600.0003: Falling 1:3 or steeper Nearside
AG119: Min length giving risk below threshold (m) | AH119: 0 | AJ119: Barrier length | AK119: 0 | AL119: 10 | AM119: 20 | AN119: 30 | AO119: 40 | AP119: 50 | AQ119: 60 | AR119: 70 | AS119: 80 | AT119: 90 | AU119: 100 | AV119: 110
AG120: Corresponding risk | AH120: 0.03560842126 | AJ120: Est risk: Vehicle occupant | AK120: 0.01957630463 | AL120: 0.01457643108 | AM120: 0.01247808135 | AN120: 0.01318272312 | AO120: 0.01430232796 | AP120: 0.01548336514 | AQ120: 0.01667349694 | AR120: 0.01786497514 | AS120: 0.01905665266 | AT120: 0.02024835969 | AU120: 0.02144007109 | AV120: 0.02263178314
AG121: C/B opt length (m) | AH121: 36.78068625 | AJ121: Est risk: Other | AK121: 0
AG122: Corresponding risk | AH122: 0.03560842126 | AJ122: Estimated B/C | AK122: 0 | AL122: 1.814444042 | AM122: 1.458363182 | AN122: 1.102282322 | AO122: 0.7462014628 | AP122: 0.3901206031 | AQ122: 0.03403974337 | AR122: 0 | AS122: 0 | AT122: 0 | AU122: 0 | AV122: 0
B130: Calculation Output ID0500.0001: Culvert
B131: Calculation Output ID0500.0001: Culvert
B132: Calculation Output ID0500.0001: Culvert
B133: Calculation Output ID0500.0001: Culvert
B134: Calculation Output ID0500.0001: Culvert
B135: Calculation Output ID0500.0001: Culvert
B136: Calculation Output ID0500.0001: Culvert
B137: Calculation Output ID0500.0001: Culvert
B138: Calculation Output ID0500.0001: Culvert
AJ139: Length - Risk - BC Output: 0500.0001: Culvert Nearside
AG140: Min length giving risk below threshold (m) | AH140: 0 | AJ140: Barrier length | AK140: 0 | AL140: 10 | AM140: 20 | AN140: 30 | AO140: 40 | AP140: 50 | AQ140: 60 | AR140: 70 | AS140: 80 | AT140: 90 | AU140: 100 | AV140: 110
AG141: Corresponding risk | AH141: 0.01383288639 | AJ141: Est risk: Vehicle occupant | AK141: 0.002485477834 | AL141: 0.01342705234 | AM141: 0.01354305521 | AN141: 0.01400163529 | AO141: 0.01468511155 | AP141: 0.01551622841 | AQ141: 0.01644426883 | AR141: 0.01743593795 | AS141: 0.01846937825 | AT141: 0.01953024063 | AU141: 0.02060910514 | AV141: 0.02169978775
AG142: C/B opt length (m) | AH142: 317.0348377 | AJ142: Est risk: Other | AK142: 0
AG143: Corresponding risk | AH143: 0.01383288639 | AJ143: Estimated B/C | AK143: 0 | AL143: 0 | AM143: 0 | AN143: 0 | AO143: 0 | AP143: 0 | AQ143: 0 | AR143: 0 | AS143: 0 | AT143: 0 | AU143: 0 | AV143: 0
B151: Calculation Output ID0600.0004: Falling 1:3 or steeper
B152: Calculation Output ID0600.0004: Falling 1:3 or steeper
B153: Calculation Output ID0600.0004: Falling 1:3 or steeper
B154: Calculation Output ID0600.0004: Falling 1:3 or steeper
B155: Calculation Output ID0600.0004: Falling 1:3 or steeper
B156: Calculation Output ID0600.0004: Falling 1:3 or steeper
B157: Calculation Output ID0600.0004: Falling 1:3 or steeper
B158: Calculation Output ID0600.0004: Falling 1:3 or steeper
B159: Calculation Output ID0600.0004: Falling 1:3 or steeper
AJ160: Length - Risk - BC Output: 0600.0004: Falling 1:3 or steeper Nearside
AG161: Min length giving risk below threshold (m) | AH161: 0 | AJ161: Barrier length | AK161: 0 | AL161: 10 | AM161: 20 | AN161: 30 | AO161: 40 | AP161: 50 | AQ161: 60 | AR161: 70 | AS161: 80 | AT161: 90 | AU161: 100 | AV161: 110
AG162: Corresponding risk | AH162: 0.03560842126 | AJ162: Est risk: Vehicle occupant | AK162: 0.01957630463 | AL162: 0.01457643108 | AM162: 0.01247808135 | AN162: 0.01318272312 | AO162: 0.01430232796 | AP162: 0.01548336514 | AQ162: 0.01667349694 | AR162: 0.01786497514 | AS162: 0.01905665266 | AT162: 0.02024835969 | AU162: 0.02144007109 | AV162: 0.02263178314
AG163: C/B opt length (m) | AH163: 36.78068625 | AJ163: Est risk: Other | AK163: 0
AG164: Corresponding risk | AH164: 0.03560842126 | AJ164: Estimated B/C | AK164: 0 | AL164: 1.814444042 | AM164: 1.458363182 | AN164: 1.102282322 | AO164: 0.7462014628 | AP164: 0.3901206031 | AQ164: 0.03403974337 | AR164: 0 | AS164: 0 | AT164: 0 | AU164: 0 | AV164: 0
B172: Calculation Output ID0600.0005: Falling 1:2 or steeper
B173: Calculation Output ID0600.0005: Falling 1:2 or steeper
B174: Calculation Output ID0600.0005: Falling 1:2 or steeper
B175: Calculation Output ID0600.0005: Falling 1:2 or steeper
B176: Calculation Output ID0600.0005: Falling 1:2 or steeper
B177: Calculation Output ID0600.0005: Falling 1:2 or steeper
B178: Calculation Output ID0600.0005: Falling 1:2 or steeper
B179: Calculation Output ID0600.0005: Falling 1:2 or steeper
B180: Calculation Output ID0600.0005: Falling 1:2 or steeper
AJ181: Length - Risk - BC Output: 0600.0005: Falling 1:2 or steeper Nearside
AG182: Min length giving risk below threshold (m) | AH182: 9 | AJ182: Barrier length | AK182: 0 | AL182: 10 | AM182: 20 | AN182: 30 | AO182: 40 | AP182: 50 | AQ182: 60 | AR182: 70 | AS182: 80 | AT182: 90 | AU182: 100 | AV182: 110
AG183: Corresponding risk | AH183: 0.03114137397 | AJ183: Est risk: Vehicle occupant | AK183: 0.07830521852 | AL183: 0.02810504271 | AM183: 0.01709604973 | AN183: 0.01729902277 | AO183: 0.01916184806 | AP183: 0.02127040272 | AQ183: 0.02341533588 | AR183: 0.02556565462 | AS183: 0.02771677066 | AT183: 0.02986800473 | AU183: 0.03201925628 | AV183: 0.03417051041
AG184: C/B opt length (m) | AH184: 36.78068625 | AJ184: Est risk: Other | AK184: 0
AG185: Corresponding risk | AH185: 0.03114137397 | AJ185: Estimated B/C | AK185: 0 | AL185: 8.752228652 | AM185: 7.001865112 | AN185: 5.251501572 | AO185: 3.501138032 | AP185: 1.750774492 | AQ185: 0.0004109515232 | AR185: 0 | AS185: 0 | AT185: 0 | AU185: 0 | AV185: 0
B193: Calculation Output ID1200.0001: Signal on p.s.post(s)
B194: Calculation Output ID1200.0001: Signal on p.s.post(s)
B195: Calculation Output ID1200.0001: Signal on p.s.post(s)
B196: Calculation Output ID1200.0001: Signal on p.s.post(s)
B197: Calculation Output ID1200.0001: Signal on p.s.post(s)
B198: Calculation Output ID1200.0001: Signal on p.s.post(s)
B199: Calculation Output ID1200.0001: Signal on p.s.post(s)
B200: Calculation Output ID1200.0001: Signal on p.s.post(s)
B201: Calculation Output ID1200.0001: Signal on p.s.post(s)
AJ202: Length - Risk - BC Output: 1200.0001: Signal on p.s.post(s) Nearside
AG203: Min length giving risk below threshold (m) | AH203: 0 | AJ203: Barrier length | AK203: 0 | AL203: 10 | AM203: 20 | AN203: 30 | AO203: 40 | AP203: 50 | AQ203: 60 | AR203: 70 | AS203: 80 | AT203: 90 | AU203: 100 | AV203: 110
AG204: Corresponding risk | AH204: 0.02374414283 | AJ204: Est risk: Vehicle occupant | AK204: 0.01113370834 | AL204: 0.01724932236 | AM204: 0.01464703735 | AN204: 0.01391495079 | AO204: 0.01408141539 | AP204: 0.01467959576 | AQ204: 0.01548519728 | AR204: 0.01639045588 | AS204: 0.01734359549 | AT204: 0.01831973989 | AU204: 0.01930693712 | AV204: 0.02029944477
AG205: C/B opt length (m) | AH205: 94.61833204 | AJ205: Est risk: Other | AK205: 0
AG206: Corresponding risk | AH206: 0.02374414283 | AJ206: Estimated B/C | AK206: 0 | AL206: 0.1567249186 | AM206: 0.3134498373 | AN206: 0.3377504247 | AO206: 0.2906488122 | AP206: 0.2435471997 | AQ206: 0.1964455872 | AR206: 0.1493439747 | AS206: 0.1022423622 | AT206: 0.05514074965 | AU206: 0.00803913713 | AV206: 0
B214: Calculation Output ID0600.0006: Falling 1:2 or steeper
B215: Calculation Output ID0600.0006: Falling 1:2 or steeper
B216: Calculation Output ID0600.0006: Falling 1:2 or steeper
B217: Calculation Output ID0600.0006: Falling 1:2 or steeper
B218: Calculation Output ID0600.0006: Falling 1:2 or steeper
B219: Calculation Output ID0600.0006: Falling 1:2 or steeper
B220: Calculation Output ID0600.0006: Falling 1:2 or steeper
B221: Calculation Output ID0600.0006: Falling 1:2 or steeper
B222: Calculation Output ID0600.0006: Falling 1:2 or steeper
AJ223: Length - Risk - BC Output: 0600.0006: Falling 1:2 or steeper Nearside
AG224: Min length giving risk below threshold (m) | AH224: 9 | AJ224: Barrier length | AK224: 0 | AL224: 10 | AM224: 20 | AN224: 30 | AO224: 40 | AP224: 50 | AQ224: 60 | AR224: 70 | AS224: 80 | AT224: 90 | AU224: 100 | AV224: 110
AG225: Corresponding risk | AH225: 0.03114137397 | AJ225: Est risk: Vehicle occupant | AK225: 0.07830521852 | AL225: 0.02810504271 | AM225: 0.01709604973 | AN225: 0.01729902277 | AO225: 0.01916184806 | AP225: 0.02127040272 | AQ225: 0.02341533588 | AR225: 0.02556565462 | AS225: 0.02771677066 | AT225: 0.02986800473 | AU225: 0.03201925628 | AV225: 0.03417051041
AG226: C/B opt length (m) | AH226: 36.78068625 | AJ226: Est risk: Other | AK226: 0
AG227: Corresponding risk | AH227: 0.03114137397 | AJ227: Estimated B/C | AK227: 0 | AL227: 8.752228652 | AM227: 7.001865112 | AN227: 5.251501572 | AO227: 3.501138032 | AP227: 1.750774492 | AQ227: 0.0004109515232 | AR227: 0 | AS227: 0 | AT227: 0 | AU227: 0 | AV227: 0
B235: Calculation Output ID0600.0007: Falling 1:2 or steeper
B236: Calculation Output ID0600.0007: Falling 1:2 or steeper
B237: Calculation Output ID0600.0007: Falling 1:2 or steeper
B238: Calculation Output ID0600.0007: Falling 1:2 or steeper
B239: Calculation Output ID0600.0007: Falling 1:2 or steeper
B240: Calculation Output ID0600.0007: Falling 1:2 or steeper
B241: Calculation Output ID0600.0007: Falling 1:2 or steeper
B242: Calculation Output ID0600.0007: Falling 1:2 or steeper
B243: Calculation Output ID0600.0007: Falling 1:2 or steeper
AJ244: Length - Risk - BC Output: 0600.0007: Falling 1:2 or steeper Nearside
AG245: Min length giving risk below threshold (m) | AH245: 9 | AJ245: Barrier length | AK245: 0 | AL245: 10 | AM245: 20 | AN245: 30 | AO245: 40 | AP245: 50 | AQ245: 60 | AR245: 70 | AS245: 80 | AT245: 90 | AU245: 100 | AV245: 110
AG246: Corresponding risk | AH246: 0.03114137397 | AJ246: Est risk: Vehicle occupant | AK246: 0.07830521852 | AL246: 0.02810504271 | AM246: 0.01709604973 | AN246: 0.01729902277 | AO246: 0.01916184806 | AP246: 0.02127040272 | AQ246: 0.02341533588 | AR246: 0.02556565462 | AS246: 0.02771677066 | AT246: 0.02986800473 | AU246: 0.03201925628 | AV246: 0.03417051041
AG247: C/B opt length (m) | AH247: 36.78068625 | AJ247: Est risk: Other | AK247: 0
AG248: Corresponding risk | AH248: 0.03114137397 | AJ248: Estimated B/C | AK248: 0 | AL248: 8.752228652 | AM248: 7.001865112 | AN248: 5.251501572 | AO248: 3.501138032 | AP248: 1.750774492 | AQ248: 0.0004109515232 | AR248: 0 | AS248: 0 | AT248: 0 | AU248: 0 | AV248: 0
B256: Calculation Output ID8300.0001: Public building
B257: Calculation Output ID8300.0001: Public building
B258: Calculation Output ID8300.0001: Public building
B259: Calculation Output ID8300.0001: Public building
B260: Calculation Output ID8300.0001: Public building
B261: Calculation Output ID8300.0001: Public building
B262: Calculation Output ID8300.0001: Public building
B263: Calculation Output ID8300.0001: Public building
B264: Calculation Output ID8300.0001: Public building
AJ265: Length - Risk - BC Output: 8300.0001: Public building Nearside
AG266: Min length giving risk below threshold (m) | AH266: 45 | AJ266: Barrier length | AK266: 0 | AL266: 10 | AM266: 20 | AN266: 30 | AO266: 40 | AP266: 50 | AQ266: 60 | AR266: 70 | AS266: 80 | AT266: 90 | AU266: 100 | AV266: 110
AG267: Corresponding risk | AH267: 0.03316872258 | AJ267: Est risk: Vehicle occupant | AK267: 0.001463640696 | AL267: 0.01237610904 | AM267: 0.01275883112 | AN267: 0.01331260943 | AO267: 0.01398862886 | AP267: 0.0147520049 | AQ267: 0.01557780818 | AR267: 0.01644822355 | AS267: 0.01735051985 | AT267: 0.01827559908 | AU267: 0.01921695955 | AV267: 0.02016995503
AG268: C/B opt length (m) | AH268: 470.8893772 | AJ268: Est risk: Other | AK268: 0.0424284185 | AL268: 0.0424284185 | AM268: 0.0424284185 | AN268: 0.04068409707 | AO268: 0.03500688114 | AP268: 0.03186198243 | AQ268: 0.0305267418 | AR268: 0.03048472871 | AS268: 0.03048472871 | AT268: 0.03048472871 | AU268: 0.03048472871 | AV268: 0.03048472871
AG269: Corresponding risk | AH269: 0.03316872258 | AJ269: Estimated B/C | AK269: 0 | AL269: 0.05228718518 | AM269: 0.1045743704 | AN269: 0.1568615555 | AO269: 0.2091487407 | AP269: 0.2614359259 | AQ269: 0.3137231111 | AR269: 0.3660102962 | AS269: 0.4182974814 | AT269: 0.4705846666 | AU269: 0.5228718518 | AV269: 0.5751590369
B277: Calculation Output ID0600.0008: Falling 1:2 or steeper
B278: Calculation Output ID0600.0008: Falling 1:2 or steeper
B279: Calculation Output ID0600.0008: Falling 1:2 or steeper
B280: Calculation Output ID0600.0008: Falling 1:2 or steeper
B281: Calculation Output ID0600.0008: Falling 1:2 or steeper
B282: Calculation Output ID0600.0008: Falling 1:2 or steeper
B283: Calculation Output ID0600.0008: Falling 1:2 or steeper
B284: Calculation Output ID0600.0008: Falling 1:2 or steeper
B285: Calculation Output ID0600.0008: Falling 1:2 or steeper
AJ286: Length - Risk - BC Output: 0600.0008: Falling 1:2 or steeper Nearside
AG287: Min length giving risk below threshold (m) | AH287: 9 | AJ287: Barrier length | AK287: 0 | AL287: 10 | AM287: 20 | AN287: 30 | AO287: 40 | AP287: 50 | AQ287: 60 | AR287: 70 | AS287: 80 | AT287: 90 | AU287: 100 | AV287: 110
AG288: Corresponding risk | AH288: 0.03114137397 | AJ288: Est risk: Vehicle occupant | AK288: 0.07830521852 | AL288: 0.02810504271 | AM288: 0.01709604973 | AN288: 0.01729902277 | AO288: 0.01916184806 | AP288: 0.02127040272 | AQ288: 0.02341533588 | AR288: 0.02556565462 | AS288: 0.02771677066 | AT288: 0.02986800473 | AU288: 0.03201925628 | AV288: 0.03417051041
AG289: C/B opt length (m) | AH289: 36.78068625 | AJ289: Est risk: Other | AK289: 0
AG290: Corresponding risk | AH290: 0.03114137397 | AJ290: Estimated B/C | AK290: 0 | AL290: 8.752228652 | AM290: 7.001865112 | AN290: 5.251501572 | AO290: 3.501138032 | AP290: 1.750774492 | AQ290: 0.0004109515232 | AR290: 0 | AS290: 0 | AT290: 0 | AU290: 0 | AV290: 0
B298: Calculation Output ID0500.0002: Ditch lined
B299: Calculation Output ID0500.0002: Ditch lined
B300: Calculation Output ID0500.0002: Ditch lined
B301: Calculation Output ID0500.0002: Ditch lined
... 864 more rows

Sheet Temporary Hazards
C3: Project:
B4: Ref | C4: During works | D4: Y / N | E4: Brief Details | F4: Likely exposure duration (days) | G4: Temporary Alignment likely to add to Risk? | H4: Can other measures be adopted to mitigate risk to Vehicle Occupants / Others to an Acceptable level and so avoid using VRS? | J4: Is Risk level with other measures, but without VRS, still considered unacceptable? | K4: Typical No of workers exposed to hazard of errant vehicle | M4: Risk level due to Hazard (no temp VRS) | N4: If a temporary VRS were to be deployed could it be installed, operated and removed to meet / achieve the following without Departures From Standard: | AA4: Recommend use VRS? | AB4: Details of VRS required | AC4: Details of Departures from Standard required
N5: Without disproportionate time and cost relative to rest of works? | O5: Safely within available space? | P5: Acceptable disruption to motorists? | Q5: TD 19 Set-back? | S5: TD 27 Lane width? | U5: Ch 8 TSM Safety Zone requirements? | W5: Works access / egress ? | X5: Emergency Access requirements | Y5: TD 19 Working Width?
G6: Yes / No | H6: Yes / No | I6: Brief details (or reference to where these can be found). | J6: Yes / No | K6: Ave No. man hours / day | L6: Max No of workers | N6: Yes / No | O6: Yes / No | P6: Yes / No | Q6: Yes / No | R6: If no, Set-back achievable | S6: Yes / No | T6: If no, Lane widths achievable | U6: Yes / No | V6: If no, Safety Zone achievable | W6: Yes / No | X6: Yes / No | Y6: Yes / No | Z6: Max Working Width Class | AA6: Yes / No
B7: 1 | C7: Will there be temporary or permanent bridge supports or other vulnerable structures which have a low resistance to impact and where the consequences of such an impact may be severe?
B8: 2 | C8: Will traffic run adjacent to scaffolding or temporary access works where workers or non-motorised road users would be unable to take evasive action?
B9: 3 | C9: Will works to overhead power cables be undertaken and Skycradles and deployed within or adjacent to the Highway Boundary?
B10: 4 | C10: Will there be other temporary hazards that could result in a high risk of injury to travelling public if they run into the work zone (such as excavations more than 300 mm deep adjacent to the traffic lane)?
B11: 5 | C11: Will existing VRS be removed temporarily leaving a hazard unprotected?
B12: 6 | C12: Will contraflow be used?
B13: 7 | C13: Will the work zone be adjacent to a carriageway open to traffic?
B14: 8 | C14: Other situation posing temporary hazard to road users?
B15: 9 | C15: Other situation posing temporary hazard to workers?
B16: 10 | C16: Other situation posing temporary hazard to Others?
C17: List below details for second and subsequent instances of above where these are expected

Sheet Data
B1: KEY TO WHAT IS ON THIS SHEET
C2: cell ref
B3: Ave value of prevention per accident | C3: F15
B4: Accident predictions for 1 km and two-way AADT for 1 carriageway of motorway or dual (1 direction of single-carriageway road) | C4: P21
B5: Aggressiveness Factors | C5: A17
B6: Average value of Prevention per Accident by Severity and Element of Cost as at | C6: O7
B7: Casualties and Equivalent fatalities | C7: F5
B8: Deceleration factors | C8: F21
B9: Friction factor for hard shoulder and verge | C9: J46
B10: Multiplicative factor to convert accidents to run-offs | C10: L21
B11: Multiplicative factors for alignment etc | C11: F46
B12: Scores for topography for 3rd Party | C12: F34
B15: CalcRisk: Average value for prevention of casualties | F15: Notes
B16: Casualty Severity | C16: Total | D16: Equivalent fatalities | F16: Average value of Prevention per Casualty by Severity | G16: From Highways Economic Note 1 (2004) | H16: this is picked up in calcs for accident costs on worksheets
B17: Fatal | C17: 1384440 | D17: 1
B18: Serious | C18: 155569 | D18: =C$17/C18 -> 8.899202283
B19: Slight | C19: 11990 | D19: =C$17/C19 -> 115.4662219
B20: All Injury | C20: 43650 | D20: =C$17/C20 -> 31.71683849
B22: Average value of Prevention per Accident by Severity and Element of Cost as at | H22: Notes
B23: Accident Severity | C23: Non motorway < 40mph | D23: Non motorway > 40mph | E23: Motorway | F23: Total | H23: From Highways Economic note No: 1 Date: 2002
B24: Fatal | C24: 1357240 | D24: 1492360 | E24: 1698940 | F24: 1447490
B25: Serious | C25: 159880 | D25: 184040 | E25: 190740 | F25: 168260
B26: Slight | C26: 15850 | D26: 18840 | E26: 21990 | F26: 16750
B27: All Injury | C27: 44760 | D27: 95700 | E27: 73440 | F27: 57760
B28: Damage Only | C28: 1400 | D28: 2060 | E28: 1990 | F28: 1490
B29: Ave cost / injury accident incl an allowance for damage only accidents | C29: 69480 | D29: 111790 | E29: 88520 | F29: 80090
B32: CalcRisk: Deceleration factors
C33: Low | D33: Med | E33: High
B34: Deceleration factors (m/s2) | C34: =0.1*9.81 -> 0.981 | D34: =0.3*9.81 -> 2.943 | E34: =0.7*9.81 -> 6.867
B35: Prop decel | C35: 0.01 | D35: 0.19 | E35: 0.8
B37: CalcRisk: Breach Deceleration factors
C38: Low | D38: Med | E38: High
B39: Deceleration factors | C39: =0.1*9.81 -> 0.981 | D39: =0.3*9.81 -> 2.943 | E39: =0.7*9.81 -> 6.867
B40: Prop decel | C40: 0.01 | D40: 0.09 | E40: 0.9
B42: CalcRisk: Conversion Factors
B43: CalcRisk: mph to m/s | C43: 0.44704
B45: CalcRisk: KSI Factors Convert to Casualties
C46: Fatal cas | D46: Ser cas | E46: Sli cas
B47: Fatal acc | C47: =1913/1743 -> 1.097532989 | D47: =846/1743 -> 0.4853700516 | E47: =1207/1743 -> 0.6924842226
B48: Ser acc | D48: =10887/9063 -> 1.201257862 | E48: =5432/9063 -> 0.5993600353
B49: Sli acc | E49: =56794/39483 -> 1.438441861
B50: Total | C50: =SUM(C47:C49) -> 1.097532989 | D50: =SUM(D47:D49) -> 1.686627913 | E50: =SUM(E47:E49) -> 2.730286119
B52: CalcRisk: Cost of Restraints | G52: CalcRisk: Cost of Parapets
B53: Barrier Type | C53: N2 | D53: H1 | E53: H4A | G53: H1 | H53: H4A
B54: Rate/m | C54: =IF('Barrier and Option Costs'!$D$11="Yes",'Barrier and Option Costs'!K16,'Barrier and Option Costs'!D16) -> 0 | D54: =IF('Barrier and Option Costs'!$D$11="Yes",'Barrier and Option Costs'!L16,'Barrier and Option Costs'!E16) -> 0 | E54: =IF('Barrier and Option Costs'!$D$11="Yes",'Barrier and Option Costs'!M16,'Barrier and Option Costs'!F16) -> 0 | G54: =IF('Barrier and Option Costs'!$D$11="Yes",'Barrier and Option Costs'!N16,'Barrier and Option Costs'!G16) -> 0 | H54: =IF('Barrier and Option Costs'!$D$11="Yes",'Barrier and Option Costs'!O16,'Barrier and Option Costs'!H16) -> 0 | V54: Thresholds are based on a 1m square object at 4.5m from Psb with aggressiveness 2 (upper limit) and 2.5 protected with H4A (lower limit)
B55: PVC | C55: =IF('Barrier and Option Costs'!$D$11="Yes",'Barrier and Option Costs'!K17,'Barrier and Option Costs'!D17) ->  | D55: =IF('Barrier and Option Costs'!$D$11="Yes",'Barrier and Option Costs'!L17,'Barrier and Option Costs'!E17) ->  | E55: =IF('Barrier and Option Costs'!$D$11="Yes",'Barrier and Option Costs'!M17,'Barrier and Option Costs'!F17) ->  | G55: =IF('Barrier and Option Costs'!$D$11="Yes",'Barrier and Option Costs'!N17,'Barrier and Option Costs'!G17) ->  | H55: =IF('Barrier and Option Costs'!$D$11="Yes",'Barrier and Option Costs'!O17,'Barrier and Option Costs'!H17) -> 
B56: Maintenance | C56: =IF('Barrier and Option Costs'!$D$11="Yes",'Barrier and Option Costs'!K18,'Barrier and Option Costs'!D18) -> 0 | D56: =IF('Barrier and Option Costs'!$D$11="Yes",'Barrier and Option Costs'!L18,'Barrier and Option Costs'!E18) -> 0 | E56: =IF('Barrier and Option Costs'!$D$11="Yes",'Barrier and Option Costs'!M18,'Barrier and Option Costs'!F18) -> 0 | G56: =IF('Barrier and Option Costs'!$D$11="Yes",'Barrier and Option Costs'!N18,'Barrier and Option Costs'!G18) -> 0 | H56: =IF('Barrier and Option Costs'!$D$11="Yes",'Barrier and Option Costs'!O18,'Barrier and Option Costs'!H18) -> 0 | V56: The formula is based on 2-way AADT divided by 1000
B57: Terminal | C57: =IF('Barrier and Option Costs'!$D$11="Yes",'Barrier and Option Costs'!K19,'Barrier and Option Costs'!D19) -> 0 | D57: =IF('Barrier and Option Costs'!$D$11="Yes",'Barrier and Option Costs'!L19,'Barrier and Option Costs'!E19) -> 0 | E57: =IF('Barrier and Option Costs'!$D$11="Yes",'Barrier and Option Costs'!M19,'Barrier and Option Costs'!F19) -> 0 | G57: =IF('Barrier and Option Costs'!$D$11="Yes",'Barrier and Option Costs'!N19,'Barrier and Option Costs'!G19) -> 0 | H57: =IF('Barrier and Option Costs'!$D$11="Yes",'Barrier and Option Costs'!O19,'Barrier and Option Costs'!H19) -> 0
B60: CalcRisk: Risk Model Thresholds | C60: Lookup Value (a) | D60: Lookup Value (b) | E60: D2AP | F60: D2AP - b | G60: D3M | H60: D3M - b | I60: D3AP | J60: D3AP - b | K60: Single | L60: Single - b | M60: D2M | N60: D2M - b | O60: D4M | P60: D4M - b | Q60: Slip | R60: Slip - b | S60: Link | T60: Link - b | U60: D2 | V60: D2 - b | W60: D3 | X60: D3 - b
B61: Upper limit of threshold | C61: =HLOOKUP('Basic (Common Details)'!$C$25,Data!$E$60:$X$62,2,FALSE) ->  | D61: =HLOOKUP('Basic (Common Details)'!$C$25 & " - b",Data!$E$60:$X$62,2,FALSE) ->  | E61: 1.3452 | F61: -0.5555 | G61: 0.344 | H61: -0.362 | I61: =E61 -> 1.3452 | J61: =F61 -> -0.5555 | K61: 0.0434 | L61: -0.244 | M61: 0.0847 | N61: -0.018 | O61: =G61 -> 0.344 | P61: =H61 -> -0.362 | Q61: =E61 -> 1.3452 | R61: =F61 -> -0.5555 | S61: =E61 -> 1.3452 | T61: =F61 -> -0.5555 | U61: =E61 -> 1.3452 | V61: =F61 -> -0.5555 | W61: =E61 -> 1.3452 | X61: =F61 -> -0.5555
B62: Lower limit of threshold | C62: =HLOOKUP('Basic (Common Details)'!$C$25,Data!$E$60:$X$62,3,FALSE) ->  | D62: =HLOOKUP('Basic (Common Details)'!$C$25 & " - b",Data!$E$60:$X$62,3,FALSE) ->  | E62: 0.7541 | F62: -0.5679 | G62: 0.1622 | H62: -0.362 | I62: =E62 -> 0.7541 | J62: =F62 -> -0.5679 | K62: 0.0247 | L62: -0.244 | M62: 0.0365 | N62: -0.018 | O62: =G62 -> 0.1622 | P62: =H62 -> -0.362 | Q62: =E62 -> 0.7541 | R62: =F62 -> -0.5679 | S62: =E62 -> 0.7541 | T62: =F62 -> -0.5679 | U62: =E62 -> 0.7541 | V62: =F62 -> -0.5679 | W62: =E62 -> 0.7541 | X62: =F62 -> -0.5679
B64: CalcRisk: Max Travel Length
B65: Maximum distance (m) beyond which no errant vehicle will travel | C65: 250
B68: CalcRisk: Road Classification
C69: ='Basic (Common Details)'!C22 -> 0
B71: CalcRisk: Road Speed
C72: ='Basic (Common Details)'!C41 -> 0
B74: CalcRisk: Input Angle and Speeds
B75: Speed (mph) | C75: 70 | D75: 70 | E75: 70 | F75: 60 | G75: 60 | H75: 60 | I75: 60 high | J75: 60 high | K75: 60 high | L75: 50 | M75: 50 | N75: 50
C76: Light Vehicle | D76: Medium Vehicle | E76: Heavy Vehicle | F76: Light Vehicle | G76: Medium Vehicle | H76: Heavy Vehicle | I76: Light Vehicle | J76: Medium Vehicle | K76: Heavy Vehicle | L76: Light Vehicle | M76: Medium Vehicle | N76: Heavy Vehicle
B77: Angle | C77: Speed (mph) | D77: Speed (mph) | E77: Speed (mph) | F77: Speed (mph) | G77: Speed (mph) | H77: Speed (mph) | I77: Speed (mph) | J77: Speed (mph) | K77: Speed (mph) | L77: Speed (mph) | M77: Speed (mph) | N77: Speed (mph)
B78: 2.5 | C78: 75 | D78: =C78 -> 75 | E78: =C78-10 -> 65 | F78: =C78-10 -> 65 | G78: =F78 -> 65 | H78: =F78-10 -> 55 | I78: =C78-5 -> 70 | J78: =I78 -> 70 | K78: =I78-10 -> 60 | L78: =I78-10 -> 60 | M78: =L78 -> 60 | N78: =L78-10 -> 50
B79: 5 | C79: 70 | D79: =C79 -> 70 | E79: =C79-10 -> 60 | F79: 60 | G79: =F79 -> 60 | H79: =F79-10 -> 50 | I79: 65 | J79: =I79 -> 65 | K79: =I79-10 -> 55 | L79: =I79-10 -> 55 | M79: =L79 -> 55 | N79: =L79-10 -> 45
B80: 10 | C80: 65 | D80: 65 | E80: 55 | F80: 55 | G80: 55 | H80: 45 | I80: 60 | J80: 60 | K80: 50 | L80: 50 | M80: 50 | N80: 40
B81: 15 | C81: 60 | D81: 60 | E81: 50 | F81: 50 | G81: 50 | H81: 40 | I81: 55 | J81: 55 | K81: 45 | L81: 45 | M81: 45 | N81: 35
B82: 20 | C82: 50 | D82: 50 | E82: 40 | F82: 40 | G82: 40 | H82: 30 | I82: 45 | J82: 45 | K82: 35 | L82: 35 | M82: 35 | N82: 25
B83: 30 | C83: 40 | D83: 40 | E83: 30 | F83: 30 | G83: 30 | H83: 20 | I83: 35 | J83: 35 | K83: 25 | L83: 25 | M83: 25 | N83: 15
B84: 65 | C84: 30 | D84: 30 | E84: 20 | F84: 20 | G84: 20 | H84: 10 | I84: 25 | J84: 25 | K84: 15 | L84: 15 | M84: 15 | N84: 5
B86: CalcRisk: Output Barrier Lengths
B87: 0
B88: 10
B89: 20
B90: 30
B91: 40
B92: 50
B93: 60
B94: 70
B95: 80
B96: 90
B97: 100
B98: 110
B100: CalcRisk: Proportion of run offs Nearside
B101: Proportion of run offs - Angles (degrees) | C101: 0 | D101: 5 | E101: 15 | F101: 25 | G101: 35 | H101: 45 | I101: 90 | K101: Notes | L101: ="<5" -> <5 | M101: ="5-15" -> 5-15 | N101: ="15-25" -> 15-25 | O101: ="25-35" -> 25-35 | P101: ="35-45" -> 35-45 | Q101: =">45" -> >45
B102: Proportion of run offs | C102: 0 | D102: 0.104 | E102: 0.449 | F102: 0.281 | G102: 0.112 | H102: 0.0379 | I102: 0.016 | K102: Original Data from Sicking and Ross (TRR1065) 1986 | L102: 0.104 | M102: 0.449 | N102: 0.281 | O102: 0.112 | P102: 0.0379 | Q102: 0.016
B104: CalcRisk: Proportion of run offs Offside
B105: Proportion of run offs - Angles (degrees) | C105: 0 | D105: 5 | E105: 15 | F105: 25 | G105: 35 | H105: 45 | I105: 90 | K105: Notes | L105: ="<5" -> <5 | M105: ="5-15" -> 5-15 | N105: ="15-25" -> 15-25 | O105: ="25-35" -> 25-35 | P105: ="35-45" -> 35-45 | Q105: =">45" -> >45
B106: Proportion of run offs | C106: 0 | D106: =0.026 -> 0.026 | E106: =0.449 -> 0.449 | F106: =0.301 -> 0.301 | G106: =0.132 -> 0.132 | H106: 0.057 | I106: 0.036 | K106: Original Data from Sicking and Ross (TRR1065) 1986 | L106: 0.104 | M106: 0.449 | N106: 0.281 | O106: 0.112 | P106: 0.0379 | Q106: 0.016
B108: CalcRisk: Single CW Proportion of run offs Nearside
B109: Proportion of run offs - Angles (degrees) | C109: 0 | D109: 5 | E109: 15 | F109: 25 | G109: 35 | H109: 45 | I109: 90
B110: Proportion of run offs | C110: 0 | D110: 0.052 | E110: 0.449 | F110: 0.294 | G110: 0.125 | H110: 0.051 | I110: 0.29
B113: CalcRisk: Multiplicative factor to convert accidents to run-offs
B114: Factor | C114: 2.5
B116: CalcRisk: Terminal Standard Width
B117: Terminal Standard Width (m) | C117: 0.25
B119: CalcRisk: Terminal Standard Length
B120: Terminal Standard Length (m) | C120: 5
B122: CalcRisk: Aggressiveness Factor Terminal
B123: Aggressiveness Factor Terminal | C123: 0.2
B125: CalcRisk: Vehicle Width (m)
B126: Vehicle Width | C126: 2
B128: CalcRisk: Breach Percentage Vehicles (%)
C129: N2 | D129: H1 | E129: H4A
B130: Light Vehicle | C130: 0 | D130: 0 | E130: 0
B131: Medium Vehicle | C131: 2 | D131: 0 | E131: 0
B132: Heavy Vehicle | C132: 7 | D132: 4 | E132: 0
B135: AccidentPredictions | C135: Nearside | D135: Offside | F135: Notes
B136: D2AP | C136: =EXP(-7.342)*POWER('Basic (Common Details)'!$C$42,0.519)*POWER(1,0.785)+EXP(-4.44)*POWER('Basic (Common Details)'!$C$42,0.024)*POWER(1,0.65) -> 0 | D136: =EXP(-8.45)*POWER('Basic (Common Details)'!$C$42,0.573)*POWER(1,0.829)+EXP(-12.74)*POWER('Basic (Common Details)'!$C$42,0.852)*POWER(1,0.596) -> 0 | F136: Accident predictions for 1 km and two-way AADT for 1 carriageway of motorway or dual (1 direction of single-carriageway road)
B137: D2M | C137: =(2.472/100000)*POWER('Basic (Common Details)'!$C$42,0.982)*1*0.49/2 -> 0 | D137: =(2.472/100000)*POWER('Basic (Common Details)'!$C$42,0.982)*1*0.32/2 -> 0
B138: D3AP | C138: =EXP(-7.342)*POWER('Basic (Common Details)'!$C$42,0.519)*POWER(1,0.785)+EXP(-4.44)*POWER('Basic (Common Details)'!$C$42,0.024)*POWER(1,0.65) -> 0 | D138: =EXP(-8.45)*POWER('Basic (Common Details)'!$C$42,0.573)*POWER(1,0.829)+EXP(-12.74)*POWER('Basic (Common Details)'!$C$42,0.852)*POWER(1,0.596) -> 0
B139: D3M | C139: =(7.693/10000)*POWER('Basic (Common Details)'!$C$42,0.638)*1*0.53/2 -> 0 | D139: =(7.693/10000)*POWER('Basic (Common Details)'!$C$42,0.638)*1*0.29/2 -> 0
B140: D4M | C140: =C139 -> 0 | D140: =D139 -> 0
B141: D2 | C141: =C136 -> 0 | D141: =D136 -> 0
B142: D3 | C142: =C136 -> 0 | D142: =D136 -> 0
B143: Link | C143: =EXP(-7.342)*POWER(2*'Basic (Common Details)'!$C$42,0.519)*POWER(1,0.785)+EXP(-4.44)*POWER(2*'Basic (Common Details)'!$C$42,0.024)*POWER(1,0.65) -> 0 | D143: =EXP(-8.45)*POWER(2*'Basic (Common Details)'!$C$42,0.573)*POWER(1,0.829)+EXP(-12.74)*POWER(2*'Basic (Common Details)'!$C$42,0.852)*POWER(1,0.596) -> 0 | E143: As D2AP model but uses 1-way AADT
B144: Single | C144: =EXP(-10.71)*POWER('Basic (Common Details)'!$C$42,0.756)*POWER(1,0.944) -> 0 | D144: =EXP(-9.62)*POWER('Basic (Common Details)'!$C$42,0.592)*POWER(1,0.655) -> 0 | E144: =EXP(-10.71)*POWER('Basic (Common Details)'!$C$42,0.756)*POWER(1,0.944)+EXP(-9.62)*POWER('Basic (Common Details)'!$C$42,0.592)*POWER(1,0.655) -> 0
B145: Slip | C145: =EXP(-7.342)*POWER(2*'Basic (Common Details)'!$C$42,0.519)*POWER(1,0.785)+EXP(-4.44)*POWER(2*'Basic (Common Details)'!$C$42,0.024)*POWER(1,0.65) -> 0 | D145: =EXP(-8.45)*POWER(2*'Basic (Common Details)'!$C$42,0.573)*POWER(1,0.829)+EXP(-12.74)*POWER(2*'Basic (Common Details)'!$C$42,0.852)*POWER(1,0.596) -> 0 | E145: As D2AP model but uses 1-way AADT
B148: CalcRisk: Fatal: Serious: Slight Speed Light Vehicles | C148: (m/s)
B149: ` | C149: Speed | D149: % f | E149: %ser | F149: %sli | G149: %pdo
B150: 0 | C150: 0 | D150: 0 | E150: 0 | F150: 0 | G150: 0
B151: <5 | C151: 5 | D151: =D152*C151*C151/(C152*C152) -> 0.00125 | E151: =E152*C151*C151/(C152*C152) -> 0.00875 | F151: 0.14 | G151: =1-SUM(D151:F151) -> 0.85
B152: 5-15 | C152: 10 | D152: 0.005 | E152: 0.035 | F152: 0.28 | G152: =1-SUM(D152:F152) -> 0.68
B153: 15-25 | C153: 20 | D153: =(D152*C153*C153)/(C152*C152) -> 0.02 | E153: =(E152*C153*C153)/(C152*C152) -> 0.14 | F153: 0.35 | G153: =1-SUM(D153:F153) -> 0.49
B154: >25 | C154: 30 | D154: =(D153*C154*C154)/(C153*C153) -> 0.045 | E154: =(E153*C154*C154)/(C153*C153) -> 0.315 | F154: 0.4 | G154: =1-SUM(D154:F154) -> 0.24
B156: CalcRisk: Fatal: Serious: Slight Speed Medium Vehicles | C156: (m/s)
C157: Speed | D157: % f | E157: %ser | F157: %sli | G157: %pdo
B158: 0 | C158: 0 | D158: 0 | E158: 0 | F158: 0 | G158: 0
B159: <5 | C159: 5 | D159: =D160*C159*C159/(C160*C160) -> 0.00125 | E159: =E160*C159*C159/(C160*C160) -> 0.00875 | F159: 0.14 | G159: =1-SUM(D159:F159) -> 0.85
B160: 5-15 | C160: 10 | D160: 0.005 | E160: 0.035 | F160: 0.28 | G160: =1-SUM(D160:F160) -> 0.68
B161: 15-25 | C161: 20 | D161: =(D160*C161*C161)/(C160*C160) -> 0.02 | E161: =(E160*C161*C161)/(C160*C160) -> 0.14 | F161: 0.35 | G161: =1-SUM(D161:F161) -> 0.49
B162: >25 | C162: 30 | D162: =(D161*C162*C162)/(C161*C161) -> 0.045 | E162: =(E161*C162*C162)/(C161*C161) -> 0.315 | F162: 0.4 | G162: =1-SUM(D162:F162) -> 0.24
B164: CalcRisk: Fatal: Serious: Slight Speed Heavy Vehicles | C164: (m/s) | I164: =AVERAGE(D159:D162) -> 0.0178125 | J164: =AVERAGE(E159:E162) -> 0.1246875 | K164: =AVERAGE(F159:F162) -> 0.2925 | L164: =AVERAGE(G159:G162) -> 0.565
C165: Speed | D165: % f | E165: %ser | F165: %sli | G165: %pdo
B166: 0 | C166: 0 | D166: 0 | E166: 0 | F166: 0 | G166: 0
B167: <5 | C167: 5 | D167: =D168*C167*C167/(C168*C168) -> 0.00125 | E167: =E168*C167*C167/(C168*C168) -> 0.00875 | F167: 0.14 | G167: =1-SUM(D167:F167) -> 0.85
B168: 5-15 | C168: 10 | D168: 0.005 | E168: 0.035 | F168: 0.28 | G168: =1-SUM(D168:F168) -> 0.68
B169: 15-25 | C169: 20 | D169: =(D168*C169*C169)/(C168*C168) -> 0.02 | E169: =(E168*C169*C169)/(C168*C168) -> 0.14 | F169: 0.35 | G169: =1-SUM(D169:F169) -> 0.49
B170: >25 | C170: 30 | D170: =(D169*C170*C170)/(C169*C169) -> 0.045 | E170: =(E169*C170*C170)/(C169*C169) -> 0.315 | F170: 0.4 | G170: =1-SUM(D170:F170) -> 0.24
B172: CalcRisk: Fatal: Serious: Slight Speed Light Vehicles Unprotected Person | C172: (m/s) | H172: * These matrices are for the % fatal serious or slight casualties from car hitting unprotected person
C173: Speed | D173: % f | E173: %ser | F173: %sli | G173: %pdo
B174: 0 | C174: 0 | D174: 0 | E174: 0 | F174: 0 | G174: 0
B175: <5 | C175: 5 | D175: 0.09 | E175: 0.31 | F175: 0.5 | G175: =1-SUM(D175:F175) -> 0.1
B176: 5-15 | C176: 10 | D176: 0.19 | E176: 0.38 | F176: 0.38 | G176: =1-SUM(D176:F176) -> 0.05
B177: 15-25 | C177: 20 | D177: 0.25 | E177: 0.45 | F177: 0.3 | G177: =1-SUM(D177:F177) -> 0
B178: >25 | C178: 30 | D178: 0.35 | E178: 0.55 | F178: 0.1 | G178: =1-SUM(D178:F178) -> 0
B180: CalcRisk: Fatal: Serious: Slight Speed Medium Vehicles Unprotected Person | C180: (m/s) | H180: * These matrices are for the % fatal serious or slight casualties from car hitting unprotected person
C181: Speed | D181: % f | E181: %ser | F181: %sli | G181: %pdo
B182: 0 | C182: 0 | D182: 0 | E182: 0 | F182: 0 | G182: 0
B183: <5 | C183: 5 | D183: 0.09 | E183: 0.31 | F183: 0.5 | G183: =1-SUM(D183:F183) -> 0.1
B184: 5-15 | C184: 10 | D184: 0.19 | E184: 0.38 | F184: 0.38 | G184: =1-SUM(D184:F184) -> 0.05
B185: 15-25 | C185: 20 | D185: 0.25 | E185: 0.45 | F185: 0.3 | G185: =1-SUM(D185:F185) -> 0
B186: >25 | C186: 30 | D186: 0.35 | E186: 0.55 | F186: 0.1 | G186: =1-SUM(D186:F186) -> 0
B188: CalcRisk: Fatal: Serious: Slight Speed Heavy Vehicles Unprotected Person | C188: (m/s) | H188: * These matrices are for the % fatal serious or slight casualties from car hitting unprotected person | I188: =AVERAGE(D183:D186) -> 0.22 | J188: =AVERAGE(E183:E186) -> 0.4225 | K188: =AVERAGE(F183:F186) -> 0.32 | L188: =AVERAGE(G183:G186) -> 0.0375
C189: Speed | D189: % f | E189: %ser | F189: %sli | G189: %pdo
B190: 0 | C190: 0 | D190: 0 | E190: 0 | F190: 0 | G190: 0
B191: <5 | C191: 5 | D191: 0.09 | E191: 0.31 | F191: 0.5 | G191: =1-SUM(D191:F191) -> 0.1
B192: 5-15 | C192: 10 | D192: 0.19 | E192: 0.38 | F192: 0.38 | G192: =1-SUM(D192:F192) -> 0.05
B193: 15-25 | C193: 20 | D193: 0.25 | E193: 0.45 | F193: 0.3 | G193: =1-SUM(D193:F193) -> 0
B194: >25 | C194: 30 | D194: 0.35 | E194: 0.55 | F194: 0.1 | G194: =1-SUM(D194:F194) -> 0
B196: CalcRisk: Average lifetime of barrier
B197: Lifetime of Barrier | C197: ='Barrier and Option Costs'!D17 -> 
B199: CalcRisk: Barrier Containment and Aggressiveness
B200: Containement | C200: N2 | D200: H1 | E200: H4A
B201: Aggressiveness | C201: 0.02 | D201: 0.025 | E201: 0.03
B205: CalcRisk: Third Party Costs
C206: Third party Fatal per casulty | D206: Third party Serious per casualty | E206: Third party Slight per casualty | F206: Third Party convert accident to casualty (fatality)* | G206: Errant Vehicle convert accident to casualty (fatality) | H206: * This would be 0.1 on average for Rail and Road but this is calculated as part of the consequence factof (CF)
B207: OH's - Railways | C207: 1 | D207: 10 | E207: =C207*100 -> 100 | F207: 1 | G207: 0.4
B208: OH's - Roads | C208: 1 | D208: 10 | E208: =C208*100 -> 100 | F208: 1 | G208: 0.4
B209: OH's - Buildings | C209: 1 | D209: 1 | E209: 1 | F209: 1 | G209: 1 | H209: ** These are all one because they are dealt with using the speed- severity index for an unprotected person
B210: OH's - Chemical or Fuel | C210: 1 | D210: 1 | E210: 1 | F210: 1 | G210: 1 | H210: ** These are all one because they are dealt with using the speed- severity index for an unprotected person
B211: OH's - Maintenance Workers | C211: 1 | D211: 1 | E211: 1 | F211: 1 | G211: 1 | H211: ** These are all one because they are dealt with using the speed- severity index for an unprotected person
B213: CalcRisk: Third Party Average value for prevention of casualties
C214: Fatal | D214: Serious | E214: Slight
B215: OH's - Railways | C215: 1384440 | D215: 155569 | E215: 11990
B216: OH's - Roads | C216: 1384440 | D216: 155569 | E216: 11990
B217: OH's - Buildings | C217: 1384440 | D217: 155569 | E217: 11990
B218: OH's - Chemical or Fuel | C218: 1384440 | D218: 155569 | E218: 11990
B219: OH's - Maintenance Workers | C219: 1384440 | D219: 155569 | E219: 11990
B221: CalcRisk: Probability of 3rd Party Accident Per Incursion
B222: OH's - Railways | C222: =0.029 -> 0.029 | D222: The number of accidents (rail) per year that involve a vehicle on the line
B223: OH's - Roads | C223: =0.029 -> 0.029
B224: OH's - Buildings | C224: 1 | D224: *This is not used in the methodology for buildings
B225: OH's - Chemical or Fuel | C225: 1 | D225: *This is not used in the methodology for Chemical or Fuel
B226: OH's - Maintenance Workers | C226: 1 | D226: *This is not used in the methodology for Maintenance Workers
B228: CalcRisk: Default WW
B229: ='Lookup Data'!U55 -> W1 | C229: ='Lookup Data'!V55 -> <=0.6 | D229: ='Lookup Data'!W55 -> 0.6
B230: ='Lookup Data'!U56 -> W2 | C230: ='Lookup Data'!V56 -> <=0.8 | D230: ='Lookup Data'!W56 -> 0.8
B231: ='Lookup Data'!U57 -> W3 | C231: ='Lookup Data'!V57 -> <=1.0 | D231: ='Lookup Data'!W57 -> 1
B232: ='Lookup Data'!U58 -> W4 | C232: ='Lookup Data'!V58 -> <=1.3 | D232: ='Lookup Data'!W58 -> 1.3
B233: ='Lookup Data'!U59 -> W5 | C233: ='Lookup Data'!V59 -> <=1.7 | D233: ='Lookup Data'!W59 -> 1.7
B234: ='Lookup Data'!U60 -> W6 | C234: ='Lookup Data'!V60 -> <=2.1 | D234: ='Lookup Data'!W60 -> 2.1
B235: ='Lookup Data'!U61 -> W7 | C235: ='Lookup Data'!V61 -> <=2.5 | D235: ='Lookup Data'!W61 -> 2.5
B236: ='Lookup Data'!U62 -> W8 | C236: ='Lookup Data'!V62 -> <=3.5 | D236: ='Lookup Data'!W62 -> 3.5
B238: CalcRisk: Minimum Barrier Lengths (m) | C238: Minimum Length in Advance of Feature | D238: Minimum length Beyond Feature
B239: N2 | C239: 30 | D239: 7.5
B240: H4A | C240: 45 | D240: 10.5
B241: H1 | C241: 45 | D241: 18
B243: CalcRisk - Lookup: Types of Barrier
B244: N2
B245: H4A
B246: H1
... 213 more rows

Sheet Lookup Data (hidden)
C1: Contract Type | E1: Road class criteria | G1: Speed and HGV criteria | I1: Design criteria | K1: Cross section Criteria | M1: Number, spacing and alignment | O1: Type of Feature | Q1: Other features | S1: Other features | U1: Setback, WW, Containment, Priority
C2: Contract Type | E2: RoadClass | G2: Speed Limit | I2: Design Standard Issues | K2: Slope type | M2: Filter Criteria List | O2: S300Fencing | Q2: ChemicalFuel | S2: PassivelySafe | U2: WorkingWidthClasses
C3: Contract Sub-type | E3: MotorwaySubType | G3: Temporary Speed Limit | I3: Uphill or downhill | K3: Cross Section data | M3: Present? Yes or No | O3: S300FencingHt | Q3: NatureChemicalFuel | S3: BushesHedge 1 | U3: Setback
C4: BasicYesNo | E4: TrunkRdSubType | G4: Nature of Speed Limit | I4: Climbing lane? | K4: Slope Grade | M4: NumberInSection | O4: S400SafetyFence | Q4: ChemicalFuelLocation | S4: BushesHedge 2 | U4: Set-backMeasuredFrom
C5: Enter Info | E5: Track | G5: Type of Temporary Limit | I5: Junction types | K5: Verge or C/Res | M5: Spacing | O5: S500Drainage | Q5: RailwayAboveBelow | S5: Width | U5: PriorityForProvision
E6: RoadSubType | G6: 85 Percentile speed | I6: Lighting Design Standard | K6: SurfaceVergeorSlope | M6: SpacingIsolated | O6: S1100Kerbs | Q6: Railway | S6: OnEmbCut | U6: DataEntryRecommendSheet
E7: Road location | G7: AADTMWay2way | I7: Lighting Location | M7: AlignmentRelCarriageway | O7: S1200SignsSignals | Q7: NoTracks | S7: 3rd Party road type
E8: Location of Highway Boundary | G8: AADTDual2way | I8: GantryCollisionLoading | M8: Cluster | O8: SignMountingHeight | Q8: RailFlow | S8: ThirdPartyNoLanes / c'way
E9: Contraflow possible | O9: S1200NoPosts | Q9: Electrified | S9: Dual or Single
E10: Fog prone? | M10: LengthFeatureCrossingBoundary | O10: S1200SignHeight | Q10: RoadAboveBelow | S10: Vol of traffic
E11: In AONB? | M11: WidthFenceWall | O11: S1300LightingCols | Q11: TrafficFlow | S11: PercentHGVSideRd
M12: LengthGeneral | O12: S1500MwayComms | Q12: ResidentialSportsPlay | S12: High level of buses / coaches
O13: S1500Height | Q13: ResidAboveBelow | S13: Usage
O14: S1600RetainingWalls | Q14: GoodLocalProtection | S14: FootpathBridleway
O15: S1600Height | Q15: WaterStandingRunning | S15: Protection
O16: S1700Structure | Q16: PolesPylons | S16: LikelihoodReaching
O17: S1700StructureCarrying
O18: S1700HeadroomCway
O19: S1700HeadroomVerge
O20: S1700CollisionLoading
O21: S2200ParapetsProtecting
O22: S2200ParapetType
O23: S2200ParapetContainment
O24: S2200ParapetWidth
O25: S2500SpecialStructures
O26: Depth
G28: AADT
M29: Filter Criteria List
G30: Speed Limit | M30: Present? Yes or No | O30: S300Fencing | Q30: OF's Chemical or Fuel | S30: PassivelySafe
C31: Contract Type | E31: RoadClass | G31: 70 | I31: Design Standard Issues | M31: Yes | O31: Wooden fence e.g. post and rail | S31: Passively safe
C32: Term Maintenance | E32: Motorway | G32: 60 | I32: yes | K32: Slope type | O32: Hurdle, strained wire fence | Q32: ChemicalFuel | S32: Not passively safe
C33: Framework | E33: All Purpose Road | G33: 50 | I33: no | K33: simple ie. 1 grade | M33: NumberInSection | O33: Chain link / welded mesh / palisade | Q33: Chemical
C34: Design and Build | E34: Other Classified Road | I34: not sure | K34: compound | M34: None | O34: Close boarded fence - timber / concrete | Q34: Fuel
C35: DBFO | M35: 1 | O35: Brick / block wall
C36: Tendered | K36: Cross Section data | M36: 2 | O36: Concrete panel wall
C37: PFI | E37: MotorwaySubType | K37: Cut | M37: 3 | O37: Masonry wall | Q37: NatureChemicalFuel
C38: PPP | E38: D2M | I38: Uphill or downhill | K38: Fill | M38: >3 | O38: Dry stone wall | Q38: Inert
C39: other | E39: D3M | G39: Temporary Speed Limit | I39: Uphill | K39: At Grade | Q39: Explosive
E40: D4M | G40: 50 | I40: Downhill | K40: Transition - cut to fill | Q40: Corrosive
E41: Slip | G41: 40 | K41: Transition - cut to at-grade | Q41: Flammable
E42: Link | G42: 30 | I42: Climbing lane? | K42: Transition - fill to cut | Q42: Toxic | U42: WorkingWidths
G43: 20 | I43: yes | K43: Transition - fill to at-grade | Q43: > one category i.e. highly dangerous | U43: W1
E44: TrunkRdSubType | G44: 10 | I44: no | K44: Transition - at-grade to cut | O44: S300FencingHt | U44: W2
E45: D2AP | K45: Transition - at-grade to fill | O45: <1.8m height | U45: W3
C46: Contract Sub-type | E46: D3AP | G46: Nature of Speed Limit | M46: Spacing | O46: >1.8m height | Q46: ChemicalFuelLocation | U46: W4
C47: MA / TMC | E47: Single | G47: Permanent | I47: Junction types | K47: Slope Grade | M47: N/A | Q47: Above ground storage tanks | U47: W5
C48: MAC | G48: Temporary Advisory | I48: Grade separated | K48: Equal or steeper 1:1 | M48: Cluster | Q48: Below ground storage tanks | S48: Type of structure | U48: W6
C49: EMAC | G49: Temporary Mandatory | I49: Major interchange | K49: Between 1:1 and Shallower 1:1.25 | M49: < 30m spacing | O49: S400SafetyFence | Q49: Petrol Filling Station | S49: Footbridge abutment | U49: W7
C50: N/A | E50: OtherRdSubType | I50: Roundabout | K50: Between 1:1.25 and shallower 1:1.67 | M50: 30m to 75m spacing | O50: Metal Road Restraint N1 | Q50: Factory / plant making | S50: Footbridge pier | U50: W8
E51: D3 | G51: Type of Temporary Limit | I51: Signal controlled junction | K51: Between 1:1.67 and shallower 1:2.5 | M51: >75m spacing | O51: Metal Road Restraint N2 | S51: Road bridge abutment
E52: D2 | G52: Advisory | I52: Signal controlled roundabout | K52: Between 1:2.5 and shallower 1:3 | M52: Continuous | O52: Metal Road Restraint H1 or H2 | S52: Road bridge pier
E53: Single | G53: Mandatory | I53: Major/Minor Priority Junctions | K53: Equal or shallower 1:3 | O53: Metal Road Restraint H4a | Q53: OF's Railway | S53: Rail bridge abutment | U53: WorkingWidthClasses
I54: Vehicular Access to All-Purpose Trunk Roads | M54: SpacingIsolated | O54: Concrete Road Restraint N1 | S54: Rail bridge pier | U54: CalcRisk: Default WW | V54: WW
I55: Layby | K55: Verge or C/Res | M55: N/A | O55: Concrete Road Restraint N2 | Q55: RailwayAboveBelow | S55: other | U55: W1 | V55: <=0.6 | W55: =0.6 -> 0.6
C56: BasicYesNo | E56: Track | G56: 85 Percentile speed | K56: N/S Verge | M56: < 30m | O56: Concrete Road Restraint H1 or H2 | Q56: Railway above road level | U56: W2 | V56: <=0.8 | W56: 0.8
C57: Yes | E57: A | G57: 80 | I57: Lighting Design Standard | K57: O/S Verge | M57: 30m to 75m | O57: Concrete Road Restraint H4a | Q57: Railway is at similar level | S57: Column, mast sign etc | U57: W3 | V57: <=1.0 | W57: 1
C58: No | E58: B | G58: 75 | I58: Yes | M58: >75m | O58: Pedestrian Guardrail | Q58: Railway below road level | S58: Lighting column / mast | U58: W4 | V58: <=1.3 | W58: 1.3
G59: 70 | I59: No | K59: VergeNonSingle | M59: Varies | S59: CCTV column / mast | U59: W5 | V59: <=1.7 | W59: 1.7
C60: BasicNo | G60: 65 | I60: N/A | K60: N/S Verge | S60: Comms column / mast | U60: W6 | V60: <=2.1 | W60: 2.1
C61: No | E61: RoadSubType | G61: 60 | M61: AlignmentRelCarriageway | O61: S500Drainage | S61: Signal pole / mast | U61: W7 | V61: <=2.5 | W61: 2.5
C62: BasicYes | E62: D2 | G62: 55 | I62: Lighting | M62: Parallel (broadly 0-15 degs) | O62: Culvert | S62: Sign | U62: W8 | V62: <=3.5 | W62: 3.5
C63: Yes | E63: D3 | G63: 50 | I63: yes | K63: SurfaceVergeorSlope | M63: Converging (broadly 15-65degs) | O63: Ditch lined | S63: Large tree
C64: Blank | E64: Wide single | G64: 45 | I64: no | K64: Hardened | M64: Perpendicular (broadly 65-115degs) | O64: Ditch unlined | S64: Telegraph pole
E65: 3 lane single | G65: 40 | K65: Short grass | M65: Diverging (broadly 115-165degs) | O65: Lagoon | Q65: Railway | S65: Pylon | U65: ContainmentLevels
E66: Single 2 way | G66: 35 | K66: Long grass / scrub | M66: Parallel (broadly 165-180 degs) | O66: Oil interceptor open ditch type | Q66: Railway | S66: Electricity pole | T66: Barrier Type | U66: Speed limit | V66: Normal | W66: Higher | X66: Very High
E67: Single 1 way | G67: 30 | I67: Lighting Location | K67: Small bushes / trees | S67: Other | T67: Permanent | U67: >= 50mph | V67: N2 | W67: H1 or H2 | X67: H4a
G68: 25 | I68: Verge | T68: Temporary | U68: not > 50mph | V68: N1 | X68: H4a
I69: Central reserve | M69: Cluster | Q69: NoTracks | T69: Temporary | U69: > 50 mph | V69: N2 | X69: H4a
E70: Road location | I70: Verge and Central reserve | M70: Cluster of hazards | Q70: Single Track | S70: Comms or electrical | T70: Vehicle Parapets | U70: not > 50 mph | V70: N1 or N2 | X70: H4a
C71: Enter Info | E71: Urban | I71: Catenary | M71: Individual hazard | O71: S1100Kerbs | Q71: Two Track | S71: Cabinet | T71: Vehicle Parapets | U71: > 50 mph | V71: N2 | X71: H4a
C72: Enter information | E72: Rural | I72: High mast | O72: No kerb or channel | Q72: Multiple Track | S72: Building | T72: Max WW for parapets | V72: W4 <= 1.3 | W72: W4 <=1.3 | X72: W5 <=1.7
E73: Mix | O73: Channel lined
K74: Cluster of hazards | O74: Channel unlined | S74: Drainage feature
E75: Section Side | K75: Individual hazard | M75: LengthFeatureCrossingBoundary | O75: Kerb 100mm high or less | S75: Lagoon | U75: Setback
E76: Nearside | G76: PercentageHGV | M76: If road is in cutting >3m deep on side being assessed, take length within and up to 5m beyond highway boundary. In all other cases, take length within and up to 15m beyond highway boundary. Length measured parallel to carriageway. | O76: Kerb >100mm up to 250mm | S76: Open ditch type oil trap | U76: Refer below & TD 27/05 | V76: Desirable min setback (m) | W76: Available Relaxations
C77: YesNoNA | E77: Median | G77: <5% HGV | I77: DepartureNecessary? | O77: Kerb > 250mm high | U77: In verges with no adj h/s | V77: 1.2 | W77: Note (i), (ii)
C78: Yes | G78: 5% - 7.5% HGV | I78: No Departure from Standard is considered necessary | M78: WidthFenceWall | U78: In verges with an adj h/s | V78: 0.6 | W78: (iii)
C79: No | E79: Contraflow possible | G79: 7.5% - 10% HGV | I79: In this instance, it is considered that a Departure from Standard is required and an application will be submitted | M79: Enter 0.15 for fences, the nominal width of wall for walls. | S79: Line of columns, poles | U79: C/res | V79: 1.2 | W79: Note (i), (ii)
C80: N/A | E80: Yes | G80: >10% HGV | S80: Line of Columns
E81: No | S81: Line of Poles
S82: Line of Trees
E83: Fog prone? | G83: AADTMWay2way | M83: LengthGeneral | U83: Set-backMeasuredFrom | X83: NotesReTypicalSurfaceSlope
E84: yes | G84: 10000 | I84: GantryCollisionLoading | M84: Length is length parallel with carriageway | O84: S1200SignsSignals | U84: (i) Nearside: the back of nearside h/s | X84: Notes on terms used in Typical Surface of Slope dropdowns.
E85: no | G85: 20000 | I85: Yes | O85: Sign on post(s) | U85: (ii) Nearside - the kerb face for roads without a nearside h/s | X85: 1. The data entered in this column is intended to enable the RA Tool to ascribe
G86: 30000 | I86: No | O86: Sign on small post | Q86: OF's Roads | S86: Retained or strengthened | U86: (iii) Offside: the trafficked edge of edge line or kerb face | X86: a 'friction' factor to the ground over which an errant vehicle might travel.
E87: In AONB? | G87: 40000 | I87: Don't know | M87: CalcRisk Object Type | O87: Sign on p.s. post(s) | S87: Profiled concrete wall | U87: Set-backRelaxations | X87: 2. The rougher the ground or more thickly vegetated it is, the more rapidly a vehicle will slow.
E88: yes | G88: 50000 | M88: Single | O88: Sign on gantry | S88: Smooth concrete wall | U88: Notes: | X88: 3. The factors given relate to an average for the length.
E89: no | G89: 60000 | M89: Merged | O89: Sign on p.s. gantry | Q89: RoadAboveBelow | S89: Steel sheet piled | U89: (i) Relaxation to 600mm for roads of speed limit 50mph or less | X89: 4. Consideration should be given to seasonal and time related nature,
G90: 70000 | M90: Adjacent | O90: Signal on post(s) | Q90: Other road is above this one | S90: Brick or stone faced | U90: (ii) Relaxation to 1.0m at existing roads with physical constraints | X90: e.g. bushes will grow with time, but may be cut down or thinned out periodically.
G91: 80000 | M91: Linear | O91: Signal on p.s.post(s) | Q91: Other road is at similar level | S91: Gabion | U91: (iii) Relaxation to 0.450m .…to position VRS away from existing embankment | X91: The worst case factor i.e. that giving rise to the least slowing should be entered if there
G92: 90000 | O92: Signal on gantry | Q92: Other road is below this one | S92: Geogrid reinforced | X92: is an element of doubt.
G93: 100000 | O93: Signal on p.s. gantry | S93: Crib wall
E94: In Hilly Terrain? | G94: 120000 | O94: Sign store | Q94: Traffic Flow (Vehicles per day) (F14) | S94: other
E95: yes | G95: 140000 | Q95: <20,000 | U95: PriorityForProvision
E96: no | Q96: 20,000-40,000 | U96: Priority for testing for road restraint provision.
G97: 80000 = approx ave flow over network | O97: SignMountingHeight | Q97: 41,000-60,000 | S97: EnvBarrier
E98: Location of Highway Boundary | O98: 1.5m or less mounting ht | Q98: 61,000-120,000 | S98: Concrete barrier | U98: Assess in order of likely risk, i.e.
E99: At back of verge | G99: AADTDual2way | O99: >1.5m mounting ht | Q99: Over 120,000 | S99: Timber barrier | U99: · Risk generally diminishes with distance from the carriageway
E100: Within width of slope | G100: 10000 | S100: Earth bund | U100: · Features on / beyond embankment more likely to be reached than those on / beyond cutting
E101: Beyond width of slope | G101: 15000 | O101: S1200NoPosts | Q101: Other features (adjacent road) (F13) | S101: Crib wall | U101: · Aggressive features will have higher risk than less aggressive ones
G102: 20000 | O102: 1 No post | Q102: No specific hazards on adjacent road | S102: other | U102: · Road restraint required for close or linear features may also protect the other features
G103: 25000 | O103: 2 No posts | Q103: 1-way adjacent road with a single site specific hazard | U103: · Third Party Features that could potentially be reached may have a high risk rating
G104: 30000 | O104: >2 No posts | Q104: 2-way adjacent road with a single site specific hazard
G105: 35000 | Q105: 1-way adjacent road with a two site specific hazard | S105: BushesHedge 1
G106: 40000 | O106: S1200SignHeight | Q106: 2-way adjacent road with a two site specific hazard | S106: Sparse, narrow
G107: 45000 | O107: <1m | Q107: 1-way adjacent road with queuing or with 3 or more site specific hazards | S107: Sparse, wide
G108: 50000 | O108: 1m to 3m | Q108: 2-way adjacent road with queuing or with 3 or more site specific hazards | S108: Thick, narrow | W108: (though a check must be done to ensure containment level is adequate)
G109: 55000 | O109: >3m | S109: Thick, wide | U109: DataEntryRecommendSheet
G110: 60000 | Q110: Actual Speed of Traffic on Adjacent Road (F12) | U110: 2. Enter the Feature Ref No in D18
G111: 65000 | O111: S1300LightingCols | Q111: < 30 mph | S111: BushesHedge 2 | U111: If Feature is a linear line of objects go to step ##, otherwise go to step 3
O112: Single catenary lighting column | Q112: 30 ≤ speed < 40 mph | S112: Mature | U112: 3. Check associated Aggressiveness Factor and enter in D19
G113: 80000 = approx ave flow over network | O113: Row of catenary lighting columns < 40m apart | Q113: 40 ≤ speed < 60 mph | S113: Quick growing | U113: 4. Enter Offset of Object (proposed / actual) in F19
O114: Single catenary lighting column (passively safe) | Q114: 60 ≤ speed < 70 mph | S114: Slow growing | U114: 5. Enter Barrier aggressiveness of zero in E19
O115: Row of catenary lighting columns (passively safe) < 40m apart | Q115: ≥ 70 mph | U115: 6. If K18 is green, no restraint required, go to next Feature
O116: Single lighting column | S116: Drain Feature | U116: 7. If K18 is amber or red, enter proposed restraint setback in I19
O117: Row of lighting columns < 40m apart | Q117: Adjacent Road Class | S117: Open unlined ditch | U117: 8. Enter proposed offset of barrier in D19
O118: Single lighting column (passively safe) | Q118: Adjacent Road D2M | S118: Open lined ditch | U118: 9. Enter proposed barrier type in E18
O119: Row of lighting columns (passively safe) | Q119: Adjacent Road D3M | S119: Unlined channel | U119: 10. Enter barrier aggressiveness in E19 and WW in H19
O120: Single high mast lighting column | Q120: Adjacent Road D4M | S120: Lined channel | U120: 11. Check required length of restraint by ref to cells K18 to V150
O121: Row of high mast lighting columns < 40m apart | Q121: Adjacent Road Motorway Slip | S121: other | U121: (Min length is 30m for normal containment, 45 for high)
O122: Electricity supply cabinet | Q122: Adjacent Road Motorway Link | U122: Acceptable risk is length where green shading commences
Q123: Adjacent Road D2AP | U123: 12. If moving the feature is practicable try at increased offset
Q124: Adjacent Road D3AP | U124: Note new required length of restraint
O125: S1300ColumnHt | Q125: Adjacent Road Single | U125: If not practicable to move feature, try moving / changing barrier
O126: <10m high | U126: 13. Compare length restraint req'd and cost benefit each options tested
O127: 10m to 15m high | U127: 14. Select most favourable option
O128: >15m high | U128: If next feature is within 100m of A go to step 15, otherwise to 2.
Q129: OF's - Public Building | U129: 15. Check requirement for restraint at Feature B by following step 2 to 11
O130: S1500MwayComms | U130: 16. Check results for combined barrier to protect both features
O131: Comms or CCTV Mast | Q131: ResidentialSportsPlay | U131: 17. Select most favourable option
O132: Comms or Power Cabinet | Q132: Public building | S132: Width | U132: 18. Adopt overall most favourable option
O133: Emergency Telephone | Q133: Place of congregating | S133: <1m | U133: 19. Enter details in Restraint summary.
O134: Gantry | Q134: Office block/Work place | S134: 1m to 3m | U134: 20. Move to next feature and repeat exercise
O135: Gantry (passively safe) | Q135: Large block flats | S135: >3m
O136: Posts | Q136: Playground/Open sports area
O137: Posts (passively safe)
O138: Steps | Q138: ResidAboveBelow
O139: Transmission Station | Q139: Feature is above road level | U139: Drawing of Set-back & WW
Q140: Feature is at similar level
O141: OH's - Trees | Q141: Feature is below road level
O142: Tree less than 250 mm girth expected in lifetime | U142: Local alignment (F2)
O143: Tree >= 250 mm girth expected in lifetime | Q143: Description of vulnerable wall | U143: Good alignment | W143: Full standard sight stopping distance (SSD), full width lanes, straight and constant grade
Q144: None | U144: Average alignment | W144: Full standard sight stopping distance (SSD), some curves and undulations but standard horiszontal and vertical alignments
Q145: Building Wall | U145: Poor alignment | W145: Sub-standard SSD or narrow vertical and horizontal alignments
O146: S1500Height | Q146: Building Facade
O147: <2m high | Q147: Fence | U147: Sleep - related Site (F3)
O148: 2m to 5m high | Q148: Brick Wall | U148: A | W148: No obvious risk factor
O149: >5m high | U149: B | W149: Site of featureless rural road with the minimal services and/or minimal distractions for drivers at the side of the roads
U150: C | W150: Sweeping right hand bend, sweeping left hand bend with no cetral reserve safety barriers
U151: D | W151: site at the end of a long route
U152: E | W152: An combination of the above factors
O153: S1600RetainingWalls
O154: Smooth faced wall | U154: Speed (F4)
O155: Profiled wall (shallow features) | U155: Mean speed < speed limit
O156: Profiled wall (deep features) | U156: Mean speed approximately equal to speed limit
O157: Sheet Piled wall | S157: OnEmbCut | U157: Mean speed exceeds speed limit
O158: Concrete Piled wall | Q158: GoodLocalProtection | S158: on embankment
O159: Rough faced wall | Q159: Probably sufficient local protection | S159: in cutting | U159: Other features (upper road) (F6)
O160: Gabion wall | Q160: Probably insufficient local protection | S160: at similar level | U160: W
O161: Crib wall | Q161: No local protection | U161: X
U162: Y
Q163: OH's Water | U163: Z
O164: S1600Height
O165: <1m height | Q165: WaterStandingRunning
O166: >1m height | Q166: Water <= 1m depth
Q167: Water > 1m Depth
O169: S1700Structure
O170: Bridge abutment
O171: Bridge pier
O172: Other supporting structure
O175: S1700StructureCarrying | Q175: OF's Poles Pylons
O176: Bridleway or Farm Track carried
O177: Footpath carried | Q177: PolesPylons
O178: Railway carried | Q178: Telegraph pole | S178: 3rd Party road type
O179: Road carried | Q179: Pylon | S179: Motorway
O180: Services pipe carried | Q180: Electricity pole | S180: Slip road
O181: Waterway carried | Q181: Post e.g. TrafficMaster | S181: Link road
O182: Carrying other feature | Q182: Post e.g. TrafficMaster (Passively safe) | S182: AP trunk road
S183: other
O184: S1700HeadroomCway
O185: Headroom adequate over all C'way | S185: ThirdPartyNoLanes / c'way
O186: Restricted Headroom over part c/way | S186: 1
S187: 2
S188: 3
O189: S1700HeadroomVerge | S189: 4
O190: Headroom adequate over all verge
O191: Restricted Headroom over part verge | S191: Dual or Single
S192: Dual
S193: Single
O194: S1700CollisionLoading | S194: One-way
O195: Designed for Collision Loading
O196: Not designed for Collision Loading
O197: N1 (Formerly P2{80} Type) Containment | S197: Vol of traffic
O198: N2 (Formerly P1, P2{113}, P5 Type) Containment | S198: <150
O199: H2 | S199: <300
O200: H4a (Formerly P6 Type) Containment | S200: <600
O201: Containment level Not known | S201: >600
O202: Don't know if designed for Collision Loading
S203: PercentHGVSideRd
S204: <5%
... 66 more rows

Sheet Barrier and Option Costs
C3: Input Barrier Costs (Average per year)
C4: Based on 20 year lifetime
C6: Costs should be input based on an average costs of barrier per metre per year normally based on a 20 year lifetime.
C8: Start Year * | E8: =D9-D8 -> 0
C9: End Year * | E9: 0.0175
C10: Discount Rate * | E10: 0.0182
C11: Use Default Values * | E11: =(POWER(1+E9,E8+1)*POWER(1+E10,E8+1)-POWER(1+D10,E8+1))/(POWER(1+D10,E8)*((1+E9)*(1+E10)-(1+D10))) -> 1
J14: Default Values
D15: N2 | E15: H1 | F15: H4A | G15: N2 to H1 parapet upgrade | H15: N2 to H4A parapet upgrade | K15: N2 | L15: H1 | M15: H4A | N15: N2 to H1 parapet upgrade | O15: N2 to H4A parapet upgrade
C16: Average Cost Per m (Current Year) | J16: Average Cost Per M (Current Year) | K16: =K57 -> 54.69333333 | L16: =K58 -> 101.6633333 | M16: =K59 -> 370 | N16: 1000 | O16: 2000
C17: PVC | D17: =(1-(1+$D$10)^(-1*($D$9-$D$8)))/$D$10 ->  | E17: =(1-(1+$D$10)^(-1*($D$9-$D$8)))/$D$10 ->  | F17: =(1-(1+$D$10)^(-1*($D$9-$D$8)))/$D$10 ->  | G17: =(1-(1+$D$10)^(-1*($D$9-$D$8)))/$D$10 ->  | H17: =(1-(1+$D$10)^(-1*($D$9-$D$8)))/$D$10 ->  | J17: PVC | K17: =(1-(1+$E$62)^(-1*($N$57)))/$E$62 -> 14.87747486 | L17: =(1-(1+$E$62)^(-1*($N$58)))/$E$62 -> 14.87747486 | M17: =(1-(1+$E$62)^(-1*($N$59)))/$E$62 -> 25.72976401 | N17: 0 | O17: 0
C18: Average cost per year of maintenance | G18: 0 | H18: 0 | J18: Average cost per year of maintenance | K18: =L57 -> 4.19 | L18: =L58 -> 4.19 | M18: =L59 -> 0 | N18: 0 | O18: 0
C19: Cost of Terminal | G19: 0 | H19: 0 | J19: Cost of Terminal | K19: =M57 -> 510.17 | L19: =M58 -> 510.17 | M19: =M59 -> 481.72 | N19: 0 | O19: 0
C23: Cost of Option
C24: ID Number | D24: Cost of Option (average per year, £) | E24: Details of Calculation and references
L41: Notes on how this was determined.
E42: The lifetime cost of installing a road restraint system is:
C43: Net present Value (NPV) = PVB / PVC
E44: PVC = C + M (1-(1+D)-n)/D) + Q
C45: PVB is the present value of benefits
C46: PVC is the present value of costs. | E46: C is the installation cost (default £580 for the terminal and £5 per m for the restraint)
E47: M is the annual maintenance cost (default £4.2 per m)
E48: D is the discount rate (default 0.03)
E49: N is the life of the restraint system (default 20 years)
E50: Q is the installation delays (default 0)
D54: Costs taken from Spon 2006; maintenance values from MouchelParkman (M25); traffic mgt costs (not currently used) for installation taken from 25 costs supplied from MouchelParkman to Gavin Williams
D55: Single sided | E55: Cost of beam/m | F55: Length | G55: Cost/post | H55: Post spacing | I55: No. of posts | J55: Total | K55: Cost/m | L55: Maint/yr/m | M55: Terminal | N55: Lifetime | O55: Traffic mgt costs per m during installation | P55: Additional costs (e.g. re-surfacing / drainage work) | Q55: Total cost per m
C56: N2 | D56: TCB | E56: 24.29 | F56: 1000 | G56: 41.6 | H56: 3.2 | I56: =F56/H56 -> 312.5 | J56: =E56*F56+G56*I56 -> 37290 | K56: =J56/F56 -> 37.29 | L56: 4.19 | M56: 355.15 | N56: 20 | O56: 176 | Q56: =(J56+2*M56)/1000+O56+P56 -> 214.0003
C57: N2 | D57: OBB | E57: 37.36 | F57: 1000 | G57: 41.6 | H57: 2.4 | I57: =F57/H57 -> 416.6666667 | J57: =E57*F57+G57*I57 -> 54693.33333 | K57: =J57/F57 -> 54.69333333 | L57: 4.19 | M57: 510.17 | N57: 20 | O57: 176 | Q57: =(J57+2*M57)/1000+O57+P57 -> 231.7136733
C58: H1 | D58: DROBB | E58: 84.33 | F58: 1000 | G58: 41.6 | H58: 2.4 | I58: =F58/H58 -> 416.6666667 | J58: =E58*F58+G58*I58 -> 101663.3333 | K58: =J58/F58 -> 101.6633333 | L58: 4.19 | M58: 510.17 | N58: 20 | O58: 176 | Q58: =(J58+2*M58)/1000+O58+P58 -> 278.6836733
C59: H4A | D59: Concrete | E59: 370 | F59: 1000 | G59: 0 | H59: 0 | I59: 0 | J59: =E59*F59+G59*I59 -> 370000 | K59: =J59/F59 -> 370 | L59: 0 | M59: 481.72 | N59: 50 | O59: 189 | Q59: =(J59+2*M59)/1000+O59+P59 -> 559.96344
D62: Default discount rate | E62: 0.03
I63: NB | J63: Traffic management costs for installation notcurrently included
J64: Repairs costs subsumed in maiintenance costs
J65: Removal costs not included

Sheet H-S & Verge Widths
B1: Enter details of hard shoulder and verge widths
C2: Verge assessed | D2: ='Basic (Common Details)'!C36 -> 0 | E2: Start Chainage of Section | F2: ='Basic (Common Details)'!C34 -> 0 | G2: End Chainage of Section | H2: ='Basic (Common Details)'!D34 -> 0
B3: Chainage | C3: Width of verge | D3: =IF('Basic (Common Details)'!C37="Yes","Width of adjacent Hardshoulder or Hardstrip","") ->  | E3: Carriageway width from Psb nearside to Psb offside | F3: Total offside runoff distance
F4: =IF(B4="","",E4) -> 
F5: =IF(B5="","",E5) -> 

Sheet 300 Fencing
A1: These fencing hazards have been identified as being present in Section.
C2: Verge assessed | D2: ='Basic (Common Details)'!C36 -> 0 | E2: Start Chainage of Section | F2: ='Basic (Common Details)'!C34 -> 0 | G2: End Chainage of Section | H2: ='Basic (Common Details)'!D34 -> 0
A3: Local Site Features
A4: ID Number | B4: Nature of Hazard | C4: Start chainage of hazard | D4: Length of hazard | E4: Width of hazard | F4: Offset of hazard from PSb | G4: Offset of hazard from Psb (End of Hazard) | H4: Angle of hazard to PSb (Degrees) | I4: Height / Depth of hazard | J4: Aggressiveness | K4: Local alignment (F2) | L4: Sleep - related Site (F3) | M4: Speed (F4) | N4: Other features (F6) | O4: Multiplicative factor for runoff rate | P4: Topography Factor
A5: 0300.0001 | H5: =IF(B5="","",IF(G5>F5,ATAN((G5-F5)/D5),IF(G5<F5,PI()-ATAN((F5-G5)/D5),0))*180/PI()) ->  | J5: =IF($B5="","",VLOOKUP($B5,Data!$B$318:$C$438,2,FALSE)) ->  | O5: =IF(B5="","",0.9*2^((IF(K5<>"",INDEX(Data!$C$256:$C$258,MATCH(K5,Data!$B$256:$B$258,FALSE)),1)+IF(L5<>"",INDEX(Data!$E$256:$E$260,MATCH(L5,Data!$D$256:$D$260,FALSE)),1)+IF(M5<>"",INDEX(Data!$G$256:$G$258,MATCH(M5,Data!$F$256:$F$258,FALSE)),1)+IF(N5<>"",INDEX(Data!$I$256:$I$259,MATCH(N5,Data!$H$256:$H$259,FALSE)),1)-4)*0.2895/27)) ->  | P5: =IF(B5="","",1) -> 
A6: 0300.0002 | H6: =IF(B6="","",IF(G6>F6,ATAN((G6-F6)/D6),IF(G6<F6,PI()-ATAN((F6-G6)/D6),0))*180/PI()) ->  | J6: =IF($B6="","",VLOOKUP($B6,Data!$B$318:$C$438,2,FALSE)) ->  | O6: =IF(B6="","",0.9*2^((IF(K6<>"",INDEX(Data!$C$256:$C$258,MATCH(K6,Data!$B$256:$B$258,FALSE)),1)+IF(L6<>"",INDEX(Data!$E$256:$E$260,MATCH(L6,Data!$D$256:$D$260,FALSE)),1)+IF(M6<>"",INDEX(Data!$G$256:$G$258,MATCH(M6,Data!$F$256:$F$258,FALSE)),1)+IF(N6<>"",INDEX(Data!$I$256:$I$259,MATCH(N6,Data!$H$256:$H$259,FALSE)),1)-4)*0.2895/27)) ->  | P6: =IF(B6="","",1) -> 
A7: 0300.0003 | J7: =IF($B7="","",VLOOKUP($B7,Data!$B$318:$C$438,2,FALSE)) ->  | O7: =IF(B7="","",0.9*2^((IF(K7<>"",INDEX(Data!$C$256:$C$258,MATCH(K7,Data!$B$256:$B$258,FALSE)),1)+IF(L7<>"",INDEX(Data!$E$256:$E$260,MATCH(L7,Data!$D$256:$D$260,FALSE)),1)+IF(M7<>"",INDEX(Data!$G$256:$G$258,MATCH(M7,Data!$F$256:$F$258,FALSE)),1)+IF(N7<>"",INDEX(Data!$I$256:$I$259,MATCH(N7,Data!$H$256:$H$259,FALSE)),1)-4)*0.2895/27)) -> 
A8: 0300.0004 | J8: =IF($B8="","",VLOOKUP($B8,Data!$B$318:$C$438,2,FALSE)) ->  | O8: =IF(B8="","",0.9*2^((IF(K8<>"",INDEX(Data!$C$256:$C$258,MATCH(K8,Data!$B$256:$B$258,FALSE)),1)+IF(L8<>"",INDEX(Data!$E$256:$E$260,MATCH(L8,Data!$D$256:$D$260,FALSE)),1)+IF(M8<>"",INDEX(Data!$G$256:$G$258,MATCH(M8,Data!$F$256:$F$258,FALSE)),1)+IF(N8<>"",INDEX(Data!$I$256:$I$259,MATCH(N8,Data!$H$256:$H$259,FALSE)),1)-4)*0.2895/27)) -> 
A9: 0300.0005 | J9: =IF($B9="","",VLOOKUP($B9,Data!$B$318:$C$438,2,FALSE)) ->  | O9: =IF(B9="","",0.9*2^((IF(K9<>"",INDEX(Data!$C$256:$C$258,MATCH(K9,Data!$B$256:$B$258,FALSE)),1)+IF(L9<>"",INDEX(Data!$E$256:$E$260,MATCH(L9,Data!$D$256:$D$260,FALSE)),1)+IF(M9<>"",INDEX(Data!$G$256:$G$258,MATCH(M9,Data!$F$256:$F$258,FALSE)),1)+IF(N9<>"",INDEX(Data!$I$256:$I$259,MATCH(N9,Data!$H$256:$H$259,FALSE)),1)-4)*0.2895/27)) -> 
A10: 0300.0006 | J10: =IF($B10="","",VLOOKUP($B10,Data!$B$318:$C$438,2,FALSE)) ->  | O10: =IF(B10="","",0.9*2^((IF(K10<>"",INDEX(Data!$C$256:$C$258,MATCH(K10,Data!$B$256:$B$258,FALSE)),1)+IF(L10<>"",INDEX(Data!$E$256:$E$260,MATCH(L10,Data!$D$256:$D$260,FALSE)),1)+IF(M10<>"",INDEX(Data!$G$256:$G$258,MATCH(M10,Data!$F$256:$F$258,FALSE)),1)+IF(N10<>"",INDEX(Data!$I$256:$I$259,MATCH(N10,Data!$H$256:$H$259,FALSE)),1)-4)*0.2895/27)) -> 
A11: 0300.0007 | J11: =IF($B11="","",VLOOKUP($B11,Data!$B$318:$C$438,2,FALSE)) ->  | O11: =IF(B11="","",0.9*2^((IF(K11<>"",INDEX(Data!$C$256:$C$258,MATCH(K11,Data!$B$256:$B$258,FALSE)),1)+IF(L11<>"",INDEX(Data!$E$256:$E$260,MATCH(L11,Data!$D$256:$D$260,FALSE)),1)+IF(M11<>"",INDEX(Data!$G$256:$G$258,MATCH(M11,Data!$F$256:$F$258,FALSE)),1)+IF(N11<>"",INDEX(Data!$I$256:$I$259,MATCH(N11,Data!$H$256:$H$259,FALSE)),1)-4)*0.2895/27)) -> 
A12: 0300.0008 | J12: =IF($B12="","",VLOOKUP($B12,Data!$B$318:$C$438,2,FALSE)) ->  | O12: =IF(B12="","",0.9*2^((IF(K12<>"",INDEX(Data!$C$256:$C$258,MATCH(K12,Data!$B$256:$B$258,FALSE)),1)+IF(L12<>"",INDEX(Data!$E$256:$E$260,MATCH(L12,Data!$D$256:$D$260,FALSE)),1)+IF(M12<>"",INDEX(Data!$G$256:$G$258,MATCH(M12,Data!$F$256:$F$258,FALSE)),1)+IF(N12<>"",INDEX(Data!$I$256:$I$259,MATCH(N12,Data!$H$256:$H$259,FALSE)),1)-4)*0.2895/27)) -> 
A13: 0300.0009 | J13: =IF($B13="","",VLOOKUP($B13,Data!$B$318:$C$438,2,FALSE)) ->  | O13: =IF(B13="","",0.9*2^((IF(K13<>"",INDEX(Data!$C$256:$C$258,MATCH(K13,Data!$B$256:$B$258,FALSE)),1)+IF(L13<>"",INDEX(Data!$E$256:$E$260,MATCH(L13,Data!$D$256:$D$260,FALSE)),1)+IF(M13<>"",INDEX(Data!$G$256:$G$258,MATCH(M13,Data!$F$256:$F$258,FALSE)),1)+IF(N13<>"",INDEX(Data!$I$256:$I$259,MATCH(N13,Data!$H$256:$H$259,FALSE)),1)-4)*0.2895/27)) -> 
A14: 0300.0010 | J14: =IF($B14="","",VLOOKUP($B14,Data!$B$318:$C$438,2,FALSE)) ->  | O14: =IF(B14="","",0.9*2^((IF(K14<>"",INDEX(Data!$C$256:$C$258,MATCH(K14,Data!$B$256:$B$258,FALSE)),1)+IF(L14<>"",INDEX(Data!$E$256:$E$260,MATCH(L14,Data!$D$256:$D$260,FALSE)),1)+IF(M14<>"",INDEX(Data!$G$256:$G$258,MATCH(M14,Data!$F$256:$F$258,FALSE)),1)+IF(N14<>"",INDEX(Data!$I$256:$I$259,MATCH(N14,Data!$H$256:$H$259,FALSE)),1)-4)*0.2895/27)) -> 
A15: 0300.0011 | J15: =IF($B15="","",VLOOKUP($B15,Data!$B$318:$C$438,2,FALSE)) ->  | O15: =IF(B15="","",0.9*2^((IF(K15<>"",INDEX(Data!$C$256:$C$258,MATCH(K15,Data!$B$256:$B$258,FALSE)),1)+IF(L15<>"",INDEX(Data!$E$256:$E$260,MATCH(L15,Data!$D$256:$D$260,FALSE)),1)+IF(M15<>"",INDEX(Data!$G$256:$G$258,MATCH(M15,Data!$F$256:$F$258,FALSE)),1)+IF(N15<>"",INDEX(Data!$I$256:$I$259,MATCH(N15,Data!$H$256:$H$259,FALSE)),1)-4)*0.2895/27)) -> 
A16: 0300.0012 | J16: =IF($B16="","",VLOOKUP($B16,Data!$B$318:$C$438,2,FALSE)) ->  | O16: =IF(B16="","",0.9*2^((IF(K16<>"",INDEX(Data!$C$256:$C$258,MATCH(K16,Data!$B$256:$B$258,FALSE)),1)+IF(L16<>"",INDEX(Data!$E$256:$E$260,MATCH(L16,Data!$D$256:$D$260,FALSE)),1)+IF(M16<>"",INDEX(Data!$G$256:$G$258,MATCH(M16,Data!$F$256:$F$258,FALSE)),1)+IF(N16<>"",INDEX(Data!$I$256:$I$259,MATCH(N16,Data!$H$256:$H$259,FALSE)),1)-4)*0.2895/27)) -> 
A17: 0300.0013 | J17: =IF($B17="","",VLOOKUP($B17,Data!$B$318:$C$438,2,FALSE)) ->  | O17: =IF(B17="","",0.9*2^((IF(K17<>"",INDEX(Data!$C$256:$C$258,MATCH(K17,Data!$B$256:$B$258,FALSE)),1)+IF(L17<>"",INDEX(Data!$E$256:$E$260,MATCH(L17,Data!$D$256:$D$260,FALSE)),1)+IF(M17<>"",INDEX(Data!$G$256:$G$258,MATCH(M17,Data!$F$256:$F$258,FALSE)),1)+IF(N17<>"",INDEX(Data!$I$256:$I$259,MATCH(N17,Data!$H$256:$H$259,FALSE)),1)-4)*0.2895/27)) -> 
A18: 0300.0014 | J18: =IF($B18="","",VLOOKUP($B18,Data!$B$318:$C$438,2,FALSE)) ->  | O18: =IF(B18="","",0.9*2^((IF(K18<>"",INDEX(Data!$C$256:$C$258,MATCH(K18,Data!$B$256:$B$258,FALSE)),1)+IF(L18<>"",INDEX(Data!$E$256:$E$260,MATCH(L18,Data!$D$256:$D$260,FALSE)),1)+IF(M18<>"",INDEX(Data!$G$256:$G$258,MATCH(M18,Data!$F$256:$F$258,FALSE)),1)+IF(N18<>"",INDEX(Data!$I$256:$I$259,MATCH(N18,Data!$H$256:$H$259,FALSE)),1)-4)*0.2895/27)) -> 
A19: 0300.0015 | J19: =IF($B19="","",VLOOKUP($B19,Data!$B$318:$C$438,2,FALSE)) ->  | O19: =IF(B19="","",0.9*2^((IF(K19<>"",INDEX(Data!$C$256:$C$258,MATCH(K19,Data!$B$256:$B$258,FALSE)),1)+IF(L19<>"",INDEX(Data!$E$256:$E$260,MATCH(L19,Data!$D$256:$D$260,FALSE)),1)+IF(M19<>"",INDEX(Data!$G$256:$G$258,MATCH(M19,Data!$F$256:$F$258,FALSE)),1)+IF(N19<>"",INDEX(Data!$I$256:$I$259,MATCH(N19,Data!$H$256:$H$259,FALSE)),1)-4)*0.2895/27)) -> 
A20: 0300.0016 | J20: =IF($B20="","",VLOOKUP($B20,Data!$B$318:$C$438,2,FALSE)) ->  | O20: =IF(B20="","",0.9*2^((IF(K20<>"",INDEX(Data!$C$256:$C$258,MATCH(K20,Data!$B$256:$B$258,FALSE)),1)+IF(L20<>"",INDEX(Data!$E$256:$E$260,MATCH(L20,Data!$D$256:$D$260,FALSE)),1)+IF(M20<>"",INDEX(Data!$G$256:$G$258,MATCH(M20,Data!$F$256:$F$258,FALSE)),1)+IF(N20<>"",INDEX(Data!$I$256:$I$259,MATCH(N20,Data!$H$256:$H$259,FALSE)),1)-4)*0.2895/27)) -> 
A21: 0300.0017 | J21: =IF($B21="","",VLOOKUP($B21,Data!$B$318:$C$438,2,FALSE)) ->  | O21: =IF(B21="","",0.9*2^((IF(K21<>"",INDEX(Data!$C$256:$C$258,MATCH(K21,Data!$B$256:$B$258,FALSE)),1)+IF(L21<>"",INDEX(Data!$E$256:$E$260,MATCH(L21,Data!$D$256:$D$260,FALSE)),1)+IF(M21<>"",INDEX(Data!$G$256:$G$258,MATCH(M21,Data!$F$256:$F$258,FALSE)),1)+IF(N21<>"",INDEX(Data!$I$256:$I$259,MATCH(N21,Data!$H$256:$H$259,FALSE)),1)-4)*0.2895/27)) -> 
A22: 0300.0018 | J22: =IF($B22="","",VLOOKUP($B22,Data!$B$318:$C$438,2,FALSE)) ->  | O22: =IF(B22="","",0.9*2^((IF(K22<>"",INDEX(Data!$C$256:$C$258,MATCH(K22,Data!$B$256:$B$258,FALSE)),1)+IF(L22<>"",INDEX(Data!$E$256:$E$260,MATCH(L22,Data!$D$256:$D$260,FALSE)),1)+IF(M22<>"",INDEX(Data!$G$256:$G$258,MATCH(M22,Data!$F$256:$F$258,FALSE)),1)+IF(N22<>"",INDEX(Data!$I$256:$I$259,MATCH(N22,Data!$H$256:$H$259,FALSE)),1)-4)*0.2895/27)) -> 
A23: 0300.0019 | J23: =IF($B23="","",VLOOKUP($B23,Data!$B$318:$C$438,2,FALSE)) ->  | O23: =IF(B23="","",0.9*2^((IF(K23<>"",INDEX(Data!$C$256:$C$258,MATCH(K23,Data!$B$256:$B$258,FALSE)),1)+IF(L23<>"",INDEX(Data!$E$256:$E$260,MATCH(L23,Data!$D$256:$D$260,FALSE)),1)+IF(M23<>"",INDEX(Data!$G$256:$G$258,MATCH(M23,Data!$F$256:$F$258,FALSE)),1)+IF(N23<>"",INDEX(Data!$I$256:$I$259,MATCH(N23,Data!$H$256:$H$259,FALSE)),1)-4)*0.2895/27)) -> 
A24: 0300.0020 | J24: =IF($B24="","",VLOOKUP($B24,Data!$B$318:$C$438,2,FALSE)) ->  | O24: =IF(B24="","",0.9*2^((IF(K24<>"",INDEX(Data!$C$256:$C$258,MATCH(K24,Data!$B$256:$B$258,FALSE)),1)+IF(L24<>"",INDEX(Data!$E$256:$E$260,MATCH(L24,Data!$D$256:$D$260,FALSE)),1)+IF(M24<>"",INDEX(Data!$G$256:$G$258,MATCH(M24,Data!$F$256:$F$258,FALSE)),1)+IF(N24<>"",INDEX(Data!$I$256:$I$259,MATCH(N24,Data!$H$256:$H$259,FALSE)),1)-4)*0.2895/27)) -> 
A25: 0300.0021 | J25: =IF($B25="","",VLOOKUP($B25,Data!$B$318:$C$438,2,FALSE)) ->  | O25: =IF(B25="","",0.9*2^((IF(K25<>"",INDEX(Data!$C$256:$C$258,MATCH(K25,Data!$B$256:$B$258,FALSE)),1)+IF(L25<>"",INDEX(Data!$E$256:$E$260,MATCH(L25,Data!$D$256:$D$260,FALSE)),1)+IF(M25<>"",INDEX(Data!$G$256:$G$258,MATCH(M25,Data!$F$256:$F$258,FALSE)),1)+IF(N25<>"",INDEX(Data!$I$256:$I$259,MATCH(N25,Data!$H$256:$H$259,FALSE)),1)-4)*0.2895/27)) -> 
A26: 0300.0022 | J26: =IF($B26="","",VLOOKUP($B26,Data!$B$318:$C$438,2,FALSE)) ->  | O26: =IF(B26="","",0.9*2^((IF(K26<>"",INDEX(Data!$C$256:$C$258,MATCH(K26,Data!$B$256:$B$258,FALSE)),1)+IF(L26<>"",INDEX(Data!$E$256:$E$260,MATCH(L26,Data!$D$256:$D$260,FALSE)),1)+IF(M26<>"",INDEX(Data!$G$256:$G$258,MATCH(M26,Data!$F$256:$F$258,FALSE)),1)+IF(N26<>"",INDEX(Data!$I$256:$I$259,MATCH(N26,Data!$H$256:$H$259,FALSE)),1)-4)*0.2895/27)) -> 
A27: 0300.0023 | J27: =IF($B27="","",VLOOKUP($B27,Data!$B$318:$C$438,2,FALSE)) ->  | O27: =IF(B27="","",0.9*2^((IF(K27<>"",INDEX(Data!$C$256:$C$258,MATCH(K27,Data!$B$256:$B$258,FALSE)),1)+IF(L27<>"",INDEX(Data!$E$256:$E$260,MATCH(L27,Data!$D$256:$D$260,FALSE)),1)+IF(M27<>"",INDEX(Data!$G$256:$G$258,MATCH(M27,Data!$F$256:$F$258,FALSE)),1)+IF(N27<>"",INDEX(Data!$I$256:$I$259,MATCH(N27,Data!$H$256:$H$259,FALSE)),1)-4)*0.2895/27)) -> 
A28: 0300.0024 | J28: =IF($B28="","",VLOOKUP($B28,Data!$B$318:$C$438,2,FALSE)) ->  | O28: =IF(B28="","",0.9*2^((IF(K28<>"",INDEX(Data!$C$256:$C$258,MATCH(K28,Data!$B$256:$B$258,FALSE)),1)+IF(L28<>"",INDEX(Data!$E$256:$E$260,MATCH(L28,Data!$D$256:$D$260,FALSE)),1)+IF(M28<>"",INDEX(Data!$G$256:$G$258,MATCH(M28,Data!$F$256:$F$258,FALSE)),1)+IF(N28<>"",INDEX(Data!$I$256:$I$259,MATCH(N28,Data!$H$256:$H$259,FALSE)),1)-4)*0.2895/27)) -> 
A29: 0300.0025 | J29: =IF($B29="","",VLOOKUP($B29,Data!$B$318:$C$438,2,FALSE)) ->  | O29: =IF(B29="","",0.9*2^((IF(K29<>"",INDEX(Data!$C$256:$C$258,MATCH(K29,Data!$B$256:$B$258,FALSE)),1)+IF(L29<>"",INDEX(Data!$E$256:$E$260,MATCH(L29,Data!$D$256:$D$260,FALSE)),1)+IF(M29<>"",INDEX(Data!$G$256:$G$258,MATCH(M29,Data!$F$256:$F$258,FALSE)),1)+IF(N29<>"",INDEX(Data!$I$256:$I$259,MATCH(N29,Data!$H$256:$H$259,FALSE)),1)-4)*0.2895/27)) -> 
A30: 0300.0026 | J30: =IF($B30="","",VLOOKUP($B30,Data!$B$318:$C$438,2,FALSE)) ->  | O30: =IF(B30="","",0.9*2^((IF(K30<>"",INDEX(Data!$C$256:$C$258,MATCH(K30,Data!$B$256:$B$258,FALSE)),1)+IF(L30<>"",INDEX(Data!$E$256:$E$260,MATCH(L30,Data!$D$256:$D$260,FALSE)),1)+IF(M30<>"",INDEX(Data!$G$256:$G$258,MATCH(M30,Data!$F$256:$F$258,FALSE)),1)+IF(N30<>"",INDEX(Data!$I$256:$I$259,MATCH(N30,Data!$H$256:$H$259,FALSE)),1)-4)*0.2895/27)) -> 
A31: 0300.0027 | J31: =IF($B31="","",VLOOKUP($B31,Data!$B$318:$C$438,2,FALSE)) ->  | O31: =IF(B31="","",0.9*2^((IF(K31<>"",INDEX(Data!$C$256:$C$258,MATCH(K31,Data!$B$256:$B$258,FALSE)),1)+IF(L31<>"",INDEX(Data!$E$256:$E$260,MATCH(L31,Data!$D$256:$D$260,FALSE)),1)+IF(M31<>"",INDEX(Data!$G$256:$G$258,MATCH(M31,Data!$F$256:$F$258,FALSE)),1)+IF(N31<>"",INDEX(Data!$I$256:$I$259,MATCH(N31,Data!$H$256:$H$259,FALSE)),1)-4)*0.2895/27)) -> 
A32: 0300.0028 | J32: =IF($B32="","",VLOOKUP($B32,Data!$B$318:$C$438,2,FALSE)) ->  | O32: =IF(B32="","",0.9*2^((IF(K32<>"",INDEX(Data!$C$256:$C$258,MATCH(K32,Data!$B$256:$B$258,FALSE)),1)+IF(L32<>"",INDEX(Data!$E$256:$E$260,MATCH(L32,Data!$D$256:$D$260,FALSE)),1)+IF(M32<>"",INDEX(Data!$G$256:$G$258,MATCH(M32,Data!$F$256:$F$258,FALSE)),1)+IF(N32<>"",INDEX(Data!$I$256:$I$259,MATCH(N32,Data!$H$256:$H$259,FALSE)),1)-4)*0.2895/27)) -> 
A33: 0300.0029 | J33: =IF($B33="","",VLOOKUP($B33,Data!$B$318:$C$438,2,FALSE)) ->  | O33: =IF(B33="","",0.9*2^((IF(K33<>"",INDEX(Data!$C$256:$C$258,MATCH(K33,Data!$B$256:$B$258,FALSE)),1)+IF(L33<>"",INDEX(Data!$E$256:$E$260,MATCH(L33,Data!$D$256:$D$260,FALSE)),1)+IF(M33<>"",INDEX(Data!$G$256:$G$258,MATCH(M33,Data!$F$256:$F$258,FALSE)),1)+IF(N33<>"",INDEX(Data!$I$256:$I$259,MATCH(N33,Data!$H$256:$H$259,FALSE)),1)-4)*0.2895/27)) -> 
A34: 0300.0030 | J34: =IF($B34="","",VLOOKUP($B34,Data!$B$318:$C$438,2,FALSE)) ->  | O34: =IF(B34="","",0.9*2^((IF(K34<>"",INDEX(Data!$C$256:$C$258,MATCH(K34,Data!$B$256:$B$258,FALSE)),1)+IF(L34<>"",INDEX(Data!$E$256:$E$260,MATCH(L34,Data!$D$256:$D$260,FALSE)),1)+IF(M34<>"",INDEX(Data!$G$256:$G$258,MATCH(M34,Data!$F$256:$F$258,FALSE)),1)+IF(N34<>"",INDEX(Data!$I$256:$I$259,MATCH(N34,Data!$H$256:$H$259,FALSE)),1)-4)*0.2895/27)) -> 
A35: 0300.0031 | J35: =IF($B35="","",VLOOKUP($B35,Data!$B$318:$C$438,2,FALSE)) ->  | O35: =IF(B35="","",0.9*2^((IF(K35<>"",INDEX(Data!$C$256:$C$258,MATCH(K35,Data!$B$256:$B$258,FALSE)),1)+IF(L35<>"",INDEX(Data!$E$256:$E$260,MATCH(L35,Data!$D$256:$D$260,FALSE)),1)+IF(M35<>"",INDEX(Data!$G$256:$G$258,MATCH(M35,Data!$F$256:$F$258,FALSE)),1)+IF(N35<>"",INDEX(Data!$I$256:$I$259,MATCH(N35,Data!$H$256:$H$259,FALSE)),1)-4)*0.2895/27)) -> 
A36: 0300.0032 | J36: =IF($B36="","",VLOOKUP($B36,Data!$B$318:$C$438,2,FALSE)) ->  | O36: =IF(B36="","",0.9*2^((IF(K36<>"",INDEX(Data!$C$256:$C$258,MATCH(K36,Data!$B$256:$B$258,FALSE)),1)+IF(L36<>"",INDEX(Data!$E$256:$E$260,MATCH(L36,Data!$D$256:$D$260,FALSE)),1)+IF(M36<>"",INDEX(Data!$G$256:$G$258,MATCH(M36,Data!$F$256:$F$258,FALSE)),1)+IF(N36<>"",INDEX(Data!$I$256:$I$259,MATCH(N36,Data!$H$256:$H$259,FALSE)),1)-4)*0.2895/27)) -> 
A37: 0300.0033 | J37: =IF($B37="","",VLOOKUP($B37,Data!$B$318:$C$438,2,FALSE)) ->  | O37: =IF(B37="","",0.9*2^((IF(K37<>"",INDEX(Data!$C$256:$C$258,MATCH(K37,Data!$B$256:$B$258,FALSE)),1)+IF(L37<>"",INDEX(Data!$E$256:$E$260,MATCH(L37,Data!$D$256:$D$260,FALSE)),1)+IF(M37<>"",INDEX(Data!$G$256:$G$258,MATCH(M37,Data!$F$256:$F$258,FALSE)),1)+IF(N37<>"",INDEX(Data!$I$256:$I$259,MATCH(N37,Data!$H$256:$H$259,FALSE)),1)-4)*0.2895/27)) -> 
A38: 0300.0034 | J38: =IF($B38="","",VLOOKUP($B38,Data!$B$318:$C$438,2,FALSE)) ->  | O38: =IF(B38="","",0.9*2^((IF(K38<>"",INDEX(Data!$C$256:$C$258,MATCH(K38,Data!$B$256:$B$258,FALSE)),1)+IF(L38<>"",INDEX(Data!$E$256:$E$260,MATCH(L38,Data!$D$256:$D$260,FALSE)),1)+IF(M38<>"",INDEX(Data!$G$256:$G$258,MATCH(M38,Data!$F$256:$F$258,FALSE)),1)+IF(N38<>"",INDEX(Data!$I$256:$I$259,MATCH(N38,Data!$H$256:$H$259,FALSE)),1)-4)*0.2895/27)) -> 
A39: 0300.0035 | J39: =IF($B39="","",VLOOKUP($B39,Data!$B$318:$C$438,2,FALSE)) ->  | O39: =IF(B39="","",0.9*2^((IF(K39<>"",INDEX(Data!$C$256:$C$258,MATCH(K39,Data!$B$256:$B$258,FALSE)),1)+IF(L39<>"",INDEX(Data!$E$256:$E$260,MATCH(L39,Data!$D$256:$D$260,FALSE)),1)+IF(M39<>"",INDEX(Data!$G$256:$G$258,MATCH(M39,Data!$F$256:$F$258,FALSE)),1)+IF(N39<>"",INDEX(Data!$I$256:$I$259,MATCH(N39,Data!$H$256:$H$259,FALSE)),1)-4)*0.2895/27)) -> 
A40: 0300.0036 | J40: =IF($B40="","",VLOOKUP($B40,Data!$B$318:$C$438,2,FALSE)) ->  | O40: =IF(B40="","",0.9*2^((IF(K40<>"",INDEX(Data!$C$256:$C$258,MATCH(K40,Data!$B$256:$B$258,FALSE)),1)+IF(L40<>"",INDEX(Data!$E$256:$E$260,MATCH(L40,Data!$D$256:$D$260,FALSE)),1)+IF(M40<>"",INDEX(Data!$G$256:$G$258,MATCH(M40,Data!$F$256:$F$258,FALSE)),1)+IF(N40<>"",INDEX(Data!$I$256:$I$259,MATCH(N40,Data!$H$256:$H$259,FALSE)),1)-4)*0.2895/27)) -> 
A41: 0300.0037 | J41: =IF($B41="","",VLOOKUP($B41,Data!$B$318:$C$438,2,FALSE)) ->  | O41: =IF(B41="","",0.9*2^((IF(K41<>"",INDEX(Data!$C$256:$C$258,MATCH(K41,Data!$B$256:$B$258,FALSE)),1)+IF(L41<>"",INDEX(Data!$E$256:$E$260,MATCH(L41,Data!$D$256:$D$260,FALSE)),1)+IF(M41<>"",INDEX(Data!$G$256:$G$258,MATCH(M41,Data!$F$256:$F$258,FALSE)),1)+IF(N41<>"",INDEX(Data!$I$256:$I$259,MATCH(N41,Data!$H$256:$H$259,FALSE)),1)-4)*0.2895/27)) -> 
A42: 0300.0038 | J42: =IF($B42="","",VLOOKUP($B42,Data!$B$318:$C$438,2,FALSE)) ->  | O42: =IF(B42="","",0.9*2^((IF(K42<>"",INDEX(Data!$C$256:$C$258,MATCH(K42,Data!$B$256:$B$258,FALSE)),1)+IF(L42<>"",INDEX(Data!$E$256:$E$260,MATCH(L42,Data!$D$256:$D$260,FALSE)),1)+IF(M42<>"",INDEX(Data!$G$256:$G$258,MATCH(M42,Data!$F$256:$F$258,FALSE)),1)+IF(N42<>"",INDEX(Data!$I$256:$I$259,MATCH(N42,Data!$H$256:$H$259,FALSE)),1)-4)*0.2895/27)) -> 
A43: 0300.0039 | J43: =IF($B43="","",VLOOKUP($B43,Data!$B$318:$C$438,2,FALSE)) ->  | O43: =IF(B43="","",0.9*2^((IF(K43<>"",INDEX(Data!$C$256:$C$258,MATCH(K43,Data!$B$256:$B$258,FALSE)),1)+IF(L43<>"",INDEX(Data!$E$256:$E$260,MATCH(L43,Data!$D$256:$D$260,FALSE)),1)+IF(M43<>"",INDEX(Data!$G$256:$G$258,MATCH(M43,Data!$F$256:$F$258,FALSE)),1)+IF(N43<>"",INDEX(Data!$I$256:$I$259,MATCH(N43,Data!$H$256:$H$259,FALSE)),1)-4)*0.2895/27)) -> 
A44: 0300.0040 | J44: =IF($B44="","",VLOOKUP($B44,Data!$B$318:$C$438,2,FALSE)) ->  | O44: =IF(B44="","",0.9*2^((IF(K44<>"",INDEX(Data!$C$256:$C$258,MATCH(K44,Data!$B$256:$B$258,FALSE)),1)+IF(L44<>"",INDEX(Data!$E$256:$E$260,MATCH(L44,Data!$D$256:$D$260,FALSE)),1)+IF(M44<>"",INDEX(Data!$G$256:$G$258,MATCH(M44,Data!$F$256:$F$258,FALSE)),1)+IF(N44<>"",INDEX(Data!$I$256:$I$259,MATCH(N44,Data!$H$256:$H$259,FALSE)),1)-4)*0.2895/27)) -> 
A45: 0300.0041 | J45: =IF($B45="","",VLOOKUP($B45,Data!$B$318:$C$438,2,FALSE)) ->  | O45: =IF(B45="","",0.9*2^((IF(K45<>"",INDEX(Data!$C$256:$C$258,MATCH(K45,Data!$B$256:$B$258,FALSE)),1)+IF(L45<>"",INDEX(Data!$E$256:$E$260,MATCH(L45,Data!$D$256:$D$260,FALSE)),1)+IF(M45<>"",INDEX(Data!$G$256:$G$258,MATCH(M45,Data!$F$256:$F$258,FALSE)),1)+IF(N45<>"",INDEX(Data!$I$256:$I$259,MATCH(N45,Data!$H$256:$H$259,FALSE)),1)-4)*0.2895/27)) -> 
A46: 0300.0042 | J46: =IF($B46="","",VLOOKUP($B46,Data!$B$318:$C$438,2,FALSE)) ->  | O46: =IF(B46="","",0.9*2^((IF(K46<>"",INDEX(Data!$C$256:$C$258,MATCH(K46,Data!$B$256:$B$258,FALSE)),1)+IF(L46<>"",INDEX(Data!$E$256:$E$260,MATCH(L46,Data!$D$256:$D$260,FALSE)),1)+IF(M46<>"",INDEX(Data!$G$256:$G$258,MATCH(M46,Data!$F$256:$F$258,FALSE)),1)+IF(N46<>"",INDEX(Data!$I$256:$I$259,MATCH(N46,Data!$H$256:$H$259,FALSE)),1)-4)*0.2895/27)) -> 
A47: 0300.0043 | J47: =IF($B47="","",VLOOKUP($B47,Data!$B$318:$C$438,2,FALSE)) ->  | O47: =IF(B47="","",0.9*2^((IF(K47<>"",INDEX(Data!$C$256:$C$258,MATCH(K47,Data!$B$256:$B$258,FALSE)),1)+IF(L47<>"",INDEX(Data!$E$256:$E$260,MATCH(L47,Data!$D$256:$D$260,FALSE)),1)+IF(M47<>"",INDEX(Data!$G$256:$G$258,MATCH(M47,Data!$F$256:$F$258,FALSE)),1)+IF(N47<>"",INDEX(Data!$I$256:$I$259,MATCH(N47,Data!$H$256:$H$259,FALSE)),1)-4)*0.2895/27)) -> 
A48: 0300.0044 | J48: =IF($B48="","",VLOOKUP($B48,Data!$B$318:$C$438,2,FALSE)) ->  | O48: =IF(B48="","",0.9*2^((IF(K48<>"",INDEX(Data!$C$256:$C$258,MATCH(K48,Data!$B$256:$B$258,FALSE)),1)+IF(L48<>"",INDEX(Data!$E$256:$E$260,MATCH(L48,Data!$D$256:$D$260,FALSE)),1)+IF(M48<>"",INDEX(Data!$G$256:$G$258,MATCH(M48,Data!$F$256:$F$258,FALSE)),1)+IF(N48<>"",INDEX(Data!$I$256:$I$259,MATCH(N48,Data!$H$256:$H$259,FALSE)),1)-4)*0.2895/27)) -> 
A49: 0300.0045 | J49: =IF($B49="","",VLOOKUP($B49,Data!$B$318:$C$438,2,FALSE)) ->  | O49: =IF(B49="","",0.9*2^((IF(K49<>"",INDEX(Data!$C$256:$C$258,MATCH(K49,Data!$B$256:$B$258,FALSE)),1)+IF(L49<>"",INDEX(Data!$E$256:$E$260,MATCH(L49,Data!$D$256:$D$260,FALSE)),1)+IF(M49<>"",INDEX(Data!$G$256:$G$258,MATCH(M49,Data!$F$256:$F$258,FALSE)),1)+IF(N49<>"",INDEX(Data!$I$256:$I$259,MATCH(N49,Data!$H$256:$H$259,FALSE)),1)-4)*0.2895/27)) -> 
A50: 0300.0046 | J50: =IF($B50="","",VLOOKUP($B50,Data!$B$318:$C$438,2,FALSE)) ->  | O50: =IF(B50="","",0.9*2^((IF(K50<>"",INDEX(Data!$C$256:$C$258,MATCH(K50,Data!$B$256:$B$258,FALSE)),1)+IF(L50<>"",INDEX(Data!$E$256:$E$260,MATCH(L50,Data!$D$256:$D$260,FALSE)),1)+IF(M50<>"",INDEX(Data!$G$256:$G$258,MATCH(M50,Data!$F$256:$F$258,FALSE)),1)+IF(N50<>"",INDEX(Data!$I$256:$I$259,MATCH(N50,Data!$H$256:$H$259,FALSE)),1)-4)*0.2895/27)) -> 
A51: 0300.0047 | J51: =IF($B51="","",VLOOKUP($B51,Data!$B$318:$C$438,2,FALSE)) ->  | O51: =IF(B51="","",0.9*2^((IF(K51<>"",INDEX(Data!$C$256:$C$258,MATCH(K51,Data!$B$256:$B$258,FALSE)),1)+IF(L51<>"",INDEX(Data!$E$256:$E$260,MATCH(L51,Data!$D$256:$D$260,FALSE)),1)+IF(M51<>"",INDEX(Data!$G$256:$G$258,MATCH(M51,Data!$F$256:$F$258,FALSE)),1)+IF(N51<>"",INDEX(Data!$I$256:$I$259,MATCH(N51,Data!$H$256:$H$259,FALSE)),1)-4)*0.2895/27)) -> 
A52: 0300.0048 | J52: =IF($B52="","",VLOOKUP($B52,Data!$B$318:$C$438,2,FALSE)) ->  | O52: =IF(B52="","",0.9*2^((IF(K52<>"",INDEX(Data!$C$256:$C$258,MATCH(K52,Data!$B$256:$B$258,FALSE)),1)+IF(L52<>"",INDEX(Data!$E$256:$E$260,MATCH(L52,Data!$D$256:$D$260,FALSE)),1)+IF(M52<>"",INDEX(Data!$G$256:$G$258,MATCH(M52,Data!$F$256:$F$258,FALSE)),1)+IF(N52<>"",INDEX(Data!$I$256:$I$259,MATCH(N52,Data!$H$256:$H$259,FALSE)),1)-4)*0.2895/27)) -> 
A53: 0300.0049 | J53: =IF($B53="","",VLOOKUP($B53,Data!$B$318:$C$438,2,FALSE)) ->  | O53: =IF(B53="","",0.9*2^((IF(K53<>"",INDEX(Data!$C$256:$C$258,MATCH(K53,Data!$B$256:$B$258,FALSE)),1)+IF(L53<>"",INDEX(Data!$E$256:$E$260,MATCH(L53,Data!$D$256:$D$260,FALSE)),1)+IF(M53<>"",INDEX(Data!$G$256:$G$258,MATCH(M53,Data!$F$256:$F$258,FALSE)),1)+IF(N53<>"",INDEX(Data!$I$256:$I$259,MATCH(N53,Data!$H$256:$H$259,FALSE)),1)-4)*0.2895/27)) -> 
A54: 0300.0050 | J54: =IF($B54="","",VLOOKUP($B54,Data!$B$318:$C$438,2,FALSE)) ->  | O54: =IF(B54="","",0.9*2^((IF(K54<>"",INDEX(Data!$C$256:$C$258,MATCH(K54,Data!$B$256:$B$258,FALSE)),1)+IF(L54<>"",INDEX(Data!$E$256:$E$260,MATCH(L54,Data!$D$256:$D$260,FALSE)),1)+IF(M54<>"",INDEX(Data!$G$256:$G$258,MATCH(M54,Data!$F$256:$F$258,FALSE)),1)+IF(N54<>"",INDEX(Data!$I$256:$I$259,MATCH(N54,Data!$H$256:$H$259,FALSE)),1)-4)*0.2895/27)) -> 
A55: 0300.0051 | J55: =IF($B55="","",VLOOKUP($B55,Data!$B$318:$C$438,2,FALSE)) ->  | O55: =IF(B55="","",0.9*2^((IF(K55<>"",INDEX(Data!$C$256:$C$258,MATCH(K55,Data!$B$256:$B$258,FALSE)),1)+IF(L55<>"",INDEX(Data!$E$256:$E$260,MATCH(L55,Data!$D$256:$D$260,FALSE)),1)+IF(M55<>"",INDEX(Data!$G$256:$G$258,MATCH(M55,Data!$F$256:$F$258,FALSE)),1)+IF(N55<>"",INDEX(Data!$I$256:$I$259,MATCH(N55,Data!$H$256:$H$259,FALSE)),1)-4)*0.2895/27)) -> 
A56: 0300.0052 | J56: =IF($B56="","",VLOOKUP($B56,Data!$B$318:$C$438,2,FALSE)) ->  | O56: =IF(B56="","",0.9*2^((IF(K56<>"",INDEX(Data!$C$256:$C$258,MATCH(K56,Data!$B$256:$B$258,FALSE)),1)+IF(L56<>"",INDEX(Data!$E$256:$E$260,MATCH(L56,Data!$D$256:$D$260,FALSE)),1)+IF(M56<>"",INDEX(Data!$G$256:$G$258,MATCH(M56,Data!$F$256:$F$258,FALSE)),1)+IF(N56<>"",INDEX(Data!$I$256:$I$259,MATCH(N56,Data!$H$256:$H$259,FALSE)),1)-4)*0.2895/27)) -> 
A57: 0300.0053 | J57: =IF($B57="","",VLOOKUP($B57,Data!$B$318:$C$438,2,FALSE)) ->  | O57: =IF(B57="","",0.9*2^((IF(K57<>"",INDEX(Data!$C$256:$C$258,MATCH(K57,Data!$B$256:$B$258,FALSE)),1)+IF(L57<>"",INDEX(Data!$E$256:$E$260,MATCH(L57,Data!$D$256:$D$260,FALSE)),1)+IF(M57<>"",INDEX(Data!$G$256:$G$258,MATCH(M57,Data!$F$256:$F$258,FALSE)),1)+IF(N57<>"",INDEX(Data!$I$256:$I$259,MATCH(N57,Data!$H$256:$H$259,FALSE)),1)-4)*0.2895/27)) -> 
A58: 0300.0054 | J58: =IF($B58="","",VLOOKUP($B58,Data!$B$318:$C$438,2,FALSE)) ->  | O58: =IF(B58="","",0.9*2^((IF(K58<>"",INDEX(Data!$C$256:$C$258,MATCH(K58,Data!$B$256:$B$258,FALSE)),1)+IF(L58<>"",INDEX(Data!$E$256:$E$260,MATCH(L58,Data!$D$256:$D$260,FALSE)),1)+IF(M58<>"",INDEX(Data!$G$256:$G$258,MATCH(M58,Data!$F$256:$F$258,FALSE)),1)+IF(N58<>"",INDEX(Data!$I$256:$I$259,MATCH(N58,Data!$H$256:$H$259,FALSE)),1)-4)*0.2895/27)) -> 
A59: 0300.0055 | J59: =IF($B59="","",VLOOKUP($B59,Data!$B$318:$C$438,2,FALSE)) ->  | O59: =IF(B59="","",0.9*2^((IF(K59<>"",INDEX(Data!$C$256:$C$258,MATCH(K59,Data!$B$256:$B$258,FALSE)),1)+IF(L59<>"",INDEX(Data!$E$256:$E$260,MATCH(L59,Data!$D$256:$D$260,FALSE)),1)+IF(M59<>"",INDEX(Data!$G$256:$G$258,MATCH(M59,Data!$F$256:$F$258,FALSE)),1)+IF(N59<>"",INDEX(Data!$I$256:$I$259,MATCH(N59,Data!$H$256:$H$259,FALSE)),1)-4)*0.2895/27)) -> 
A60: 0300.0056 | J60: =IF($B60="","",VLOOKUP($B60,Data!$B$318:$C$438,2,FALSE)) ->  | O60: =IF(B60="","",0.9*2^((IF(K60<>"",INDEX(Data!$C$256:$C$258,MATCH(K60,Data!$B$256:$B$258,FALSE)),1)+IF(L60<>"",INDEX(Data!$E$256:$E$260,MATCH(L60,Data!$D$256:$D$260,FALSE)),1)+IF(M60<>"",INDEX(Data!$G$256:$G$258,MATCH(M60,Data!$F$256:$F$258,FALSE)),1)+IF(N60<>"",INDEX(Data!$I$256:$I$259,MATCH(N60,Data!$H$256:$H$259,FALSE)),1)-4)*0.2895/27)) -> 
A61: 0300.0057 | J61: =IF($B61="","",VLOOKUP($B61,Data!$B$318:$C$438,2,FALSE)) ->  | O61: =IF(B61="","",0.9*2^((IF(K61<>"",INDEX(Data!$C$256:$C$258,MATCH(K61,Data!$B$256:$B$258,FALSE)),1)+IF(L61<>"",INDEX(Data!$E$256:$E$260,MATCH(L61,Data!$D$256:$D$260,FALSE)),1)+IF(M61<>"",INDEX(Data!$G$256:$G$258,MATCH(M61,Data!$F$256:$F$258,FALSE)),1)+IF(N61<>"",INDEX(Data!$I$256:$I$259,MATCH(N61,Data!$H$256:$H$259,FALSE)),1)-4)*0.2895/27)) -> 
A62: 0300.0058 | J62: =IF($B62="","",VLOOKUP($B62,Data!$B$318:$C$438,2,FALSE)) ->  | O62: =IF(B62="","",0.9*2^((IF(K62<>"",INDEX(Data!$C$256:$C$258,MATCH(K62,Data!$B$256:$B$258,FALSE)),1)+IF(L62<>"",INDEX(Data!$E$256:$E$260,MATCH(L62,Data!$D$256:$D$260,FALSE)),1)+IF(M62<>"",INDEX(Data!$G$256:$G$258,MATCH(M62,Data!$F$256:$F$258,FALSE)),1)+IF(N62<>"",INDEX(Data!$I$256:$I$259,MATCH(N62,Data!$H$256:$H$259,FALSE)),1)-4)*0.2895/27)) -> 
A63: 0300.0059 | J63: =IF($B63="","",VLOOKUP($B63,Data!$B$318:$C$438,2,FALSE)) ->  | O63: =IF(B63="","",0.9*2^((IF(K63<>"",INDEX(Data!$C$256:$C$258,MATCH(K63,Data!$B$256:$B$258,FALSE)),1)+IF(L63<>"",INDEX(Data!$E$256:$E$260,MATCH(L63,Data!$D$256:$D$260,FALSE)),1)+IF(M63<>"",INDEX(Data!$G$256:$G$258,MATCH(M63,Data!$F$256:$F$258,FALSE)),1)+IF(N63<>"",INDEX(Data!$I$256:$I$259,MATCH(N63,Data!$H$256:$H$259,FALSE)),1)-4)*0.2895/27)) -> 
A64: 0300.0060 | J64: =IF($B64="","",VLOOKUP($B64,Data!$B$318:$C$438,2,FALSE)) ->  | O64: =IF(B64="","",0.9*2^((IF(K64<>"",INDEX(Data!$C$256:$C$258,MATCH(K64,Data!$B$256:$B$258,FALSE)),1)+IF(L64<>"",INDEX(Data!$E$256:$E$260,MATCH(L64,Data!$D$256:$D$260,FALSE)),1)+IF(M64<>"",INDEX(Data!$G$256:$G$258,MATCH(M64,Data!$F$256:$F$258,FALSE)),1)+IF(N64<>"",INDEX(Data!$I$256:$I$259,MATCH(N64,Data!$H$256:$H$259,FALSE)),1)-4)*0.2895/27)) -> 
A65: 0300.0061 | J65: =IF($B65="","",VLOOKUP($B65,Data!$B$318:$C$438,2,FALSE)) ->  | O65: =IF(B65="","",0.9*2^((IF(K65<>"",INDEX(Data!$C$256:$C$258,MATCH(K65,Data!$B$256:$B$258,FALSE)),1)+IF(L65<>"",INDEX(Data!$E$256:$E$260,MATCH(L65,Data!$D$256:$D$260,FALSE)),1)+IF(M65<>"",INDEX(Data!$G$256:$G$258,MATCH(M65,Data!$F$256:$F$258,FALSE)),1)+IF(N65<>"",INDEX(Data!$I$256:$I$259,MATCH(N65,Data!$H$256:$H$259,FALSE)),1)-4)*0.2895/27)) -> 
A66: 0300.0062 | J66: =IF($B66="","",VLOOKUP($B66,Data!$B$318:$C$438,2,FALSE)) ->  | O66: =IF(B66="","",0.9*2^((IF(K66<>"",INDEX(Data!$C$256:$C$258,MATCH(K66,Data!$B$256:$B$258,FALSE)),1)+IF(L66<>"",INDEX(Data!$E$256:$E$260,MATCH(L66,Data!$D$256:$D$260,FALSE)),1)+IF(M66<>"",INDEX(Data!$G$256:$G$258,MATCH(M66,Data!$F$256:$F$258,FALSE)),1)+IF(N66<>"",INDEX(Data!$I$256:$I$259,MATCH(N66,Data!$H$256:$H$259,FALSE)),1)-4)*0.2895/27)) -> 
A67: 0300.0063 | J67: =IF($B67="","",VLOOKUP($B67,Data!$B$318:$C$438,2,FALSE)) ->  | O67: =IF(B67="","",0.9*2^((IF(K67<>"",INDEX(Data!$C$256:$C$258,MATCH(K67,Data!$B$256:$B$258,FALSE)),1)+IF(L67<>"",INDEX(Data!$E$256:$E$260,MATCH(L67,Data!$D$256:$D$260,FALSE)),1)+IF(M67<>"",INDEX(Data!$G$256:$G$258,MATCH(M67,Data!$F$256:$F$258,FALSE)),1)+IF(N67<>"",INDEX(Data!$I$256:$I$259,MATCH(N67,Data!$H$256:$H$259,FALSE)),1)-4)*0.2895/27)) -> 
A68: 0300.0064 | J68: =IF($B68="","",VLOOKUP($B68,Data!$B$318:$C$438,2,FALSE)) ->  | O68: =IF(B68="","",0.9*2^((IF(K68<>"",INDEX(Data!$C$256:$C$258,MATCH(K68,Data!$B$256:$B$258,FALSE)),1)+IF(L68<>"",INDEX(Data!$E$256:$E$260,MATCH(L68,Data!$D$256:$D$260,FALSE)),1)+IF(M68<>"",INDEX(Data!$G$256:$G$258,MATCH(M68,Data!$F$256:$F$258,FALSE)),1)+IF(N68<>"",INDEX(Data!$I$256:$I$259,MATCH(N68,Data!$H$256:$H$259,FALSE)),1)-4)*0.2895/27)) -> 
A69: 0300.0065 | J69: =IF($B69="","",VLOOKUP($B69,Data!$B$318:$C$438,2,FALSE)) ->  | O69: =IF(B69="","",0.9*2^((IF(K69<>"",INDEX(Data!$C$256:$C$258,MATCH(K69,Data!$B$256:$B$258,FALSE)),1)+IF(L69<>"",INDEX(Data!$E$256:$E$260,MATCH(L69,Data!$D$256:$D$260,FALSE)),1)+IF(M69<>"",INDEX(Data!$G$256:$G$258,MATCH(M69,Data!$F$256:$F$258,FALSE)),1)+IF(N69<>"",INDEX(Data!$I$256:$I$259,MATCH(N69,Data!$H$256:$H$259,FALSE)),1)-4)*0.2895/27)) -> 
A70: 0300.0066 | H70: =IF(B70="","",IF(G70>F70,ATAN((G70-F70)/D70),IF(G70<F70,PI()-ATAN((F70-G70)/D70),0))*180/PI()) ->  | J70: =IF($B70="","",VLOOKUP($B70,Data!$B$318:$C$438,2,FALSE)) ->  | O70: =IF(B70="","",0.9*2^((IF(K70<>"",INDEX(Data!$C$256:$C$258,MATCH(K70,Data!$B$256:$B$258,FALSE)),1)+IF(L70<>"",INDEX(Data!$E$256:$E$260,MATCH(L70,Data!$D$256:$D$260,FALSE)),1)+IF(M70<>"",INDEX(Data!$G$256:$G$258,MATCH(M70,Data!$F$256:$F$258,FALSE)),1)+IF(N70<>"",INDEX(Data!$I$256:$I$259,MATCH(N70,Data!$H$256:$H$259,FALSE)),1)-4)*0.2895/27)) ->  | P70: =IF(B70="","",1) -> 
A71: 0300.0067 | J71: =IF($B71="","",VLOOKUP($B71,Data!$B$318:$C$438,2,FALSE)) ->  | O71: =IF(B71="","",0.9*2^((IF(K71<>"",INDEX(Data!$C$256:$C$258,MATCH(K71,Data!$B$256:$B$258,FALSE)),1)+IF(L71<>"",INDEX(Data!$E$256:$E$260,MATCH(L71,Data!$D$256:$D$260,FALSE)),1)+IF(M71<>"",INDEX(Data!$G$256:$G$258,MATCH(M71,Data!$F$256:$F$258,FALSE)),1)+IF(N71<>"",INDEX(Data!$I$256:$I$259,MATCH(N71,Data!$H$256:$H$259,FALSE)),1)-4)*0.2895/27)) -> 
A72: 0300.0068 | J72: =IF($B72="","",VLOOKUP($B72,Data!$B$318:$C$438,2,FALSE)) ->  | O72: =IF(B72="","",0.9*2^((IF(K72<>"",INDEX(Data!$C$256:$C$258,MATCH(K72,Data!$B$256:$B$258,FALSE)),1)+IF(L72<>"",INDEX(Data!$E$256:$E$260,MATCH(L72,Data!$D$256:$D$260,FALSE)),1)+IF(M72<>"",INDEX(Data!$G$256:$G$258,MATCH(M72,Data!$F$256:$F$258,FALSE)),1)+IF(N72<>"",INDEX(Data!$I$256:$I$259,MATCH(N72,Data!$H$256:$H$259,FALSE)),1)-4)*0.2895/27)) -> 
A73: 0300.0069 | J73: =IF($B73="","",VLOOKUP($B73,Data!$B$318:$C$438,2,FALSE)) ->  | O73: =IF(B73="","",0.9*2^((IF(K73<>"",INDEX(Data!$C$256:$C$258,MATCH(K73,Data!$B$256:$B$258,FALSE)),1)+IF(L73<>"",INDEX(Data!$E$256:$E$260,MATCH(L73,Data!$D$256:$D$260,FALSE)),1)+IF(M73<>"",INDEX(Data!$G$256:$G$258,MATCH(M73,Data!$F$256:$F$258,FALSE)),1)+IF(N73<>"",INDEX(Data!$I$256:$I$259,MATCH(N73,Data!$H$256:$H$259,FALSE)),1)-4)*0.2895/27)) -> 
A74: 0300.0070 | J74: =IF($B74="","",VLOOKUP($B74,Data!$B$318:$C$438,2,FALSE)) ->  | O74: =IF(B74="","",0.9*2^((IF(K74<>"",INDEX(Data!$C$256:$C$258,MATCH(K74,Data!$B$256:$B$258,FALSE)),1)+IF(L74<>"",INDEX(Data!$E$256:$E$260,MATCH(L74,Data!$D$256:$D$260,FALSE)),1)+IF(M74<>"",INDEX(Data!$G$256:$G$258,MATCH(M74,Data!$F$256:$F$258,FALSE)),1)+IF(N74<>"",INDEX(Data!$I$256:$I$259,MATCH(N74,Data!$H$256:$H$259,FALSE)),1)-4)*0.2895/27)) -> 
A75: 0300.0071 | J75: =IF($B75="","",VLOOKUP($B75,Data!$B$318:$C$438,2,FALSE)) ->  | O75: =IF(B75="","",0.9*2^((IF(K75<>"",INDEX(Data!$C$256:$C$258,MATCH(K75,Data!$B$256:$B$258,FALSE)),1)+IF(L75<>"",INDEX(Data!$E$256:$E$260,MATCH(L75,Data!$D$256:$D$260,FALSE)),1)+IF(M75<>"",INDEX(Data!$G$256:$G$258,MATCH(M75,Data!$F$256:$F$258,FALSE)),1)+IF(N75<>"",INDEX(Data!$I$256:$I$259,MATCH(N75,Data!$H$256:$H$259,FALSE)),1)-4)*0.2895/27)) -> 
A76: 0300.0072 | J76: =IF($B76="","",VLOOKUP($B76,Data!$B$318:$C$438,2,FALSE)) ->  | O76: =IF(B76="","",0.9*2^((IF(K76<>"",INDEX(Data!$C$256:$C$258,MATCH(K76,Data!$B$256:$B$258,FALSE)),1)+IF(L76<>"",INDEX(Data!$E$256:$E$260,MATCH(L76,Data!$D$256:$D$260,FALSE)),1)+IF(M76<>"",INDEX(Data!$G$256:$G$258,MATCH(M76,Data!$F$256:$F$258,FALSE)),1)+IF(N76<>"",INDEX(Data!$I$256:$I$259,MATCH(N76,Data!$H$256:$H$259,FALSE)),1)-4)*0.2895/27)) -> 
A77: 0300.0073 | J77: =IF($B77="","",VLOOKUP($B77,Data!$B$318:$C$438,2,FALSE)) ->  | O77: =IF(B77="","",0.9*2^((IF(K77<>"",INDEX(Data!$C$256:$C$258,MATCH(K77,Data!$B$256:$B$258,FALSE)),1)+IF(L77<>"",INDEX(Data!$E$256:$E$260,MATCH(L77,Data!$D$256:$D$260,FALSE)),1)+IF(M77<>"",INDEX(Data!$G$256:$G$258,MATCH(M77,Data!$F$256:$F$258,FALSE)),1)+IF(N77<>"",INDEX(Data!$I$256:$I$259,MATCH(N77,Data!$H$256:$H$259,FALSE)),1)-4)*0.2895/27)) -> 
A78: 0300.0074 | J78: =IF($B78="","",VLOOKUP($B78,Data!$B$318:$C$438,2,FALSE)) ->  | O78: =IF(B78="","",0.9*2^((IF(K78<>"",INDEX(Data!$C$256:$C$258,MATCH(K78,Data!$B$256:$B$258,FALSE)),1)+IF(L78<>"",INDEX(Data!$E$256:$E$260,MATCH(L78,Data!$D$256:$D$260,FALSE)),1)+IF(M78<>"",INDEX(Data!$G$256:$G$258,MATCH(M78,Data!$F$256:$F$258,FALSE)),1)+IF(N78<>"",INDEX(Data!$I$256:$I$259,MATCH(N78,Data!$H$256:$H$259,FALSE)),1)-4)*0.2895/27)) -> 
A79: 0300.0075 | J79: =IF($B79="","",VLOOKUP($B79,Data!$B$318:$C$438,2,FALSE)) ->  | O79: =IF(B79="","",0.9*2^((IF(K79<>"",INDEX(Data!$C$256:$C$258,MATCH(K79,Data!$B$256:$B$258,FALSE)),1)+IF(L79<>"",INDEX(Data!$E$256:$E$260,MATCH(L79,Data!$D$256:$D$260,FALSE)),1)+IF(M79<>"",INDEX(Data!$G$256:$G$258,MATCH(M79,Data!$F$256:$F$258,FALSE)),1)+IF(N79<>"",INDEX(Data!$I$256:$I$259,MATCH(N79,Data!$H$256:$H$259,FALSE)),1)-4)*0.2895/27)) -> 
A80: 0300.0076 | J80: =IF($B80="","",VLOOKUP($B80,Data!$B$318:$C$438,2,FALSE)) ->  | O80: =IF(B80="","",0.9*2^((IF(K80<>"",INDEX(Data!$C$256:$C$258,MATCH(K80,Data!$B$256:$B$258,FALSE)),1)+IF(L80<>"",INDEX(Data!$E$256:$E$260,MATCH(L80,Data!$D$256:$D$260,FALSE)),1)+IF(M80<>"",INDEX(Data!$G$256:$G$258,MATCH(M80,Data!$F$256:$F$258,FALSE)),1)+IF(N80<>"",INDEX(Data!$I$256:$I$259,MATCH(N80,Data!$H$256:$H$259,FALSE)),1)-4)*0.2895/27)) -> 
A81: 0300.0077 | J81: =IF($B81="","",VLOOKUP($B81,Data!$B$318:$C$438,2,FALSE)) ->  | O81: =IF(B81="","",0.9*2^((IF(K81<>"",INDEX(Data!$C$256:$C$258,MATCH(K81,Data!$B$256:$B$258,FALSE)),1)+IF(L81<>"",INDEX(Data!$E$256:$E$260,MATCH(L81,Data!$D$256:$D$260,FALSE)),1)+IF(M81<>"",INDEX(Data!$G$256:$G$258,MATCH(M81,Data!$F$256:$F$258,FALSE)),1)+IF(N81<>"",INDEX(Data!$I$256:$I$259,MATCH(N81,Data!$H$256:$H$259,FALSE)),1)-4)*0.2895/27)) -> 
A82: 0300.0078 | J82: =IF($B82="","",VLOOKUP($B82,Data!$B$318:$C$438,2,FALSE)) ->  | O82: =IF(B82="","",0.9*2^((IF(K82<>"",INDEX(Data!$C$256:$C$258,MATCH(K82,Data!$B$256:$B$258,FALSE)),1)+IF(L82<>"",INDEX(Data!$E$256:$E$260,MATCH(L82,Data!$D$256:$D$260,FALSE)),1)+IF(M82<>"",INDEX(Data!$G$256:$G$258,MATCH(M82,Data!$F$256:$F$258,FALSE)),1)+IF(N82<>"",INDEX(Data!$I$256:$I$259,MATCH(N82,Data!$H$256:$H$259,FALSE)),1)-4)*0.2895/27)) -> 
A83: 0300.0079 | J83: =IF($B83="","",VLOOKUP($B83,Data!$B$318:$C$438,2,FALSE)) ->  | O83: =IF(B83="","",0.9*2^((IF(K83<>"",INDEX(Data!$C$256:$C$258,MATCH(K83,Data!$B$256:$B$258,FALSE)),1)+IF(L83<>"",INDEX(Data!$E$256:$E$260,MATCH(L83,Data!$D$256:$D$260,FALSE)),1)+IF(M83<>"",INDEX(Data!$G$256:$G$258,MATCH(M83,Data!$F$256:$F$258,FALSE)),1)+IF(N83<>"",INDEX(Data!$I$256:$I$259,MATCH(N83,Data!$H$256:$H$259,FALSE)),1)-4)*0.2895/27)) -> 
A84: 0300.0080 | J84: =IF($B84="","",VLOOKUP($B84,Data!$B$318:$C$438,2,FALSE)) ->  | O84: =IF(B84="","",0.9*2^((IF(K84<>"",INDEX(Data!$C$256:$C$258,MATCH(K84,Data!$B$256:$B$258,FALSE)),1)+IF(L84<>"",INDEX(Data!$E$256:$E$260,MATCH(L84,Data!$D$256:$D$260,FALSE)),1)+IF(M84<>"",INDEX(Data!$G$256:$G$258,MATCH(M84,Data!$F$256:$F$258,FALSE)),1)+IF(N84<>"",INDEX(Data!$I$256:$I$259,MATCH(N84,Data!$H$256:$H$259,FALSE)),1)-4)*0.2895/27)) -> 
A85: 0300.0081 | J85: =IF($B85="","",VLOOKUP($B85,Data!$B$318:$C$438,2,FALSE)) ->  | O85: =IF(B85="","",0.9*2^((IF(K85<>"",INDEX(Data!$C$256:$C$258,MATCH(K85,Data!$B$256:$B$258,FALSE)),1)+IF(L85<>"",INDEX(Data!$E$256:$E$260,MATCH(L85,Data!$D$256:$D$260,FALSE)),1)+IF(M85<>"",INDEX(Data!$G$256:$G$258,MATCH(M85,Data!$F$256:$F$258,FALSE)),1)+IF(N85<>"",INDEX(Data!$I$256:$I$259,MATCH(N85,Data!$H$256:$H$259,FALSE)),1)-4)*0.2895/27)) -> 
A86: 0300.0082 | J86: =IF($B86="","",VLOOKUP($B86,Data!$B$318:$C$438,2,FALSE)) ->  | O86: =IF(B86="","",0.9*2^((IF(K86<>"",INDEX(Data!$C$256:$C$258,MATCH(K86,Data!$B$256:$B$258,FALSE)),1)+IF(L86<>"",INDEX(Data!$E$256:$E$260,MATCH(L86,Data!$D$256:$D$260,FALSE)),1)+IF(M86<>"",INDEX(Data!$G$256:$G$258,MATCH(M86,Data!$F$256:$F$258,FALSE)),1)+IF(N86<>"",INDEX(Data!$I$256:$I$259,MATCH(N86,Data!$H$256:$H$259,FALSE)),1)-4)*0.2895/27)) -> 
A87: 0300.0083 | J87: =IF($B87="","",VLOOKUP($B87,Data!$B$318:$C$438,2,FALSE)) ->  | O87: =IF(B87="","",0.9*2^((IF(K87<>"",INDEX(Data!$C$256:$C$258,MATCH(K87,Data!$B$256:$B$258,FALSE)),1)+IF(L87<>"",INDEX(Data!$E$256:$E$260,MATCH(L87,Data!$D$256:$D$260,FALSE)),1)+IF(M87<>"",INDEX(Data!$G$256:$G$258,MATCH(M87,Data!$F$256:$F$258,FALSE)),1)+IF(N87<>"",INDEX(Data!$I$256:$I$259,MATCH(N87,Data!$H$256:$H$259,FALSE)),1)-4)*0.2895/27)) -> 
A88: 0300.0084 | J88: =IF($B88="","",VLOOKUP($B88,Data!$B$318:$C$438,2,FALSE)) ->  | O88: =IF(B88="","",0.9*2^((IF(K88<>"",INDEX(Data!$C$256:$C$258,MATCH(K88,Data!$B$256:$B$258,FALSE)),1)+IF(L88<>"",INDEX(Data!$E$256:$E$260,MATCH(L88,Data!$D$256:$D$260,FALSE)),1)+IF(M88<>"",INDEX(Data!$G$256:$G$258,MATCH(M88,Data!$F$256:$F$258,FALSE)),1)+IF(N88<>"",INDEX(Data!$I$256:$I$259,MATCH(N88,Data!$H$256:$H$259,FALSE)),1)-4)*0.2895/27)) -> 
A89: 0300.0085 | J89: =IF($B89="","",VLOOKUP($B89,Data!$B$318:$C$438,2,FALSE)) ->  | O89: =IF(B89="","",0.9*2^((IF(K89<>"",INDEX(Data!$C$256:$C$258,MATCH(K89,Data!$B$256:$B$258,FALSE)),1)+IF(L89<>"",INDEX(Data!$E$256:$E$260,MATCH(L89,Data!$D$256:$D$260,FALSE)),1)+IF(M89<>"",INDEX(Data!$G$256:$G$258,MATCH(M89,Data!$F$256:$F$258,FALSE)),1)+IF(N89<>"",INDEX(Data!$I$256:$I$259,MATCH(N89,Data!$H$256:$H$259,FALSE)),1)-4)*0.2895/27)) -> 
A90: 0300.0086 | J90: =IF($B90="","",VLOOKUP($B90,Data!$B$318:$C$438,2,FALSE)) ->  | O90: =IF(B90="","",0.9*2^((IF(K90<>"",INDEX(Data!$C$256:$C$258,MATCH(K90,Data!$B$256:$B$258,FALSE)),1)+IF(L90<>"",INDEX(Data!$E$256:$E$260,MATCH(L90,Data!$D$256:$D$260,FALSE)),1)+IF(M90<>"",INDEX(Data!$G$256:$G$258,MATCH(M90,Data!$F$256:$F$258,FALSE)),1)+IF(N90<>"",INDEX(Data!$I$256:$I$259,MATCH(N90,Data!$H$256:$H$259,FALSE)),1)-4)*0.2895/27)) -> 
A91: 0300.0087 | J91: =IF($B91="","",VLOOKUP($B91,Data!$B$318:$C$438,2,FALSE)) ->  | O91: =IF(B91="","",0.9*2^((IF(K91<>"",INDEX(Data!$C$256:$C$258,MATCH(K91,Data!$B$256:$B$258,FALSE)),1)+IF(L91<>"",INDEX(Data!$E$256:$E$260,MATCH(L91,Data!$D$256:$D$260,FALSE)),1)+IF(M91<>"",INDEX(Data!$G$256:$G$258,MATCH(M91,Data!$F$256:$F$258,FALSE)),1)+IF(N91<>"",INDEX(Data!$I$256:$I$259,MATCH(N91,Data!$H$256:$H$259,FALSE)),1)-4)*0.2895/27)) -> 
A92: 0300.0088 | J92: =IF($B92="","",VLOOKUP($B92,Data!$B$318:$C$438,2,FALSE)) ->  | O92: =IF(B92="","",0.9*2^((IF(K92<>"",INDEX(Data!$C$256:$C$258,MATCH(K92,Data!$B$256:$B$258,FALSE)),1)+IF(L92<>"",INDEX(Data!$E$256:$E$260,MATCH(L92,Data!$D$256:$D$260,FALSE)),1)+IF(M92<>"",INDEX(Data!$G$256:$G$258,MATCH(M92,Data!$F$256:$F$258,FALSE)),1)+IF(N92<>"",INDEX(Data!$I$256:$I$259,MATCH(N92,Data!$H$256:$H$259,FALSE)),1)-4)*0.2895/27)) -> 
A93: 0300.0089 | J93: =IF($B93="","",VLOOKUP($B93,Data!$B$318:$C$438,2,FALSE)) ->  | O93: =IF(B93="","",0.9*2^((IF(K93<>"",INDEX(Data!$C$256:$C$258,MATCH(K93,Data!$B$256:$B$258,FALSE)),1)+IF(L93<>"",INDEX(Data!$E$256:$E$260,MATCH(L93,Data!$D$256:$D$260,FALSE)),1)+IF(M93<>"",INDEX(Data!$G$256:$G$258,MATCH(M93,Data!$F$256:$F$258,FALSE)),1)+IF(N93<>"",INDEX(Data!$I$256:$I$259,MATCH(N93,Data!$H$256:$H$259,FALSE)),1)-4)*0.2895/27)) -> 
A94: 0300.0090 | J94: =IF($B94="","",VLOOKUP($B94,Data!$B$318:$C$438,2,FALSE)) ->  | O94: =IF(B94="","",0.9*2^((IF(K94<>"",INDEX(Data!$C$256:$C$258,MATCH(K94,Data!$B$256:$B$258,FALSE)),1)+IF(L94<>"",INDEX(Data!$E$256:$E$260,MATCH(L94,Data!$D$256:$D$260,FALSE)),1)+IF(M94<>"",INDEX(Data!$G$256:$G$258,MATCH(M94,Data!$F$256:$F$258,FALSE)),1)+IF(N94<>"",INDEX(Data!$I$256:$I$259,MATCH(N94,Data!$H$256:$H$259,FALSE)),1)-4)*0.2895/27)) -> 
A95: 0300.0091 | J95: =IF($B95="","",VLOOKUP($B95,Data!$B$318:$C$438,2,FALSE)) ->  | O95: =IF(B95="","",0.9*2^((IF(K95<>"",INDEX(Data!$C$256:$C$258,MATCH(K95,Data!$B$256:$B$258,FALSE)),1)+IF(L95<>"",INDEX(Data!$E$256:$E$260,MATCH(L95,Data!$D$256:$D$260,FALSE)),1)+IF(M95<>"",INDEX(Data!$G$256:$G$258,MATCH(M95,Data!$F$256:$F$258,FALSE)),1)+IF(N95<>"",INDEX(Data!$I$256:$I$259,MATCH(N95,Data!$H$256:$H$259,FALSE)),1)-4)*0.2895/27)) -> 
A96: 0300.0092 | J96: =IF($B96="","",VLOOKUP($B96,Data!$B$318:$C$438,2,FALSE)) ->  | O96: =IF(B96="","",0.9*2^((IF(K96<>"",INDEX(Data!$C$256:$C$258,MATCH(K96,Data!$B$256:$B$258,FALSE)),1)+IF(L96<>"",INDEX(Data!$E$256:$E$260,MATCH(L96,Data!$D$256:$D$260,FALSE)),1)+IF(M96<>"",INDEX(Data!$G$256:$G$258,MATCH(M96,Data!$F$256:$F$258,FALSE)),1)+IF(N96<>"",INDEX(Data!$I$256:$I$259,MATCH(N96,Data!$H$256:$H$259,FALSE)),1)-4)*0.2895/27)) -> 
A97: 0300.0093 | J97: =IF($B97="","",VLOOKUP($B97,Data!$B$318:$C$438,2,FALSE)) ->  | O97: =IF(B97="","",0.9*2^((IF(K97<>"",INDEX(Data!$C$256:$C$258,MATCH(K97,Data!$B$256:$B$258,FALSE)),1)+IF(L97<>"",INDEX(Data!$E$256:$E$260,MATCH(L97,Data!$D$256:$D$260,FALSE)),1)+IF(M97<>"",INDEX(Data!$G$256:$G$258,MATCH(M97,Data!$F$256:$F$258,FALSE)),1)+IF(N97<>"",INDEX(Data!$I$256:$I$259,MATCH(N97,Data!$H$256:$H$259,FALSE)),1)-4)*0.2895/27)) -> 
A98: 0300.0094 | J98: =IF($B98="","",VLOOKUP($B98,Data!$B$318:$C$438,2,FALSE)) ->  | O98: =IF(B98="","",0.9*2^((IF(K98<>"",INDEX(Data!$C$256:$C$258,MATCH(K98,Data!$B$256:$B$258,FALSE)),1)+IF(L98<>"",INDEX(Data!$E$256:$E$260,MATCH(L98,Data!$D$256:$D$260,FALSE)),1)+IF(M98<>"",INDEX(Data!$G$256:$G$258,MATCH(M98,Data!$F$256:$F$258,FALSE)),1)+IF(N98<>"",INDEX(Data!$I$256:$I$259,MATCH(N98,Data!$H$256:$H$259,FALSE)),1)-4)*0.2895/27)) -> 
A99: 0300.0095 | J99: =IF($B99="","",VLOOKUP($B99,Data!$B$318:$C$438,2,FALSE)) ->  | O99: =IF(B99="","",0.9*2^((IF(K99<>"",INDEX(Data!$C$256:$C$258,MATCH(K99,Data!$B$256:$B$258,FALSE)),1)+IF(L99<>"",INDEX(Data!$E$256:$E$260,MATCH(L99,Data!$D$256:$D$260,FALSE)),1)+IF(M99<>"",INDEX(Data!$G$256:$G$258,MATCH(M99,Data!$F$256:$F$258,FALSE)),1)+IF(N99<>"",INDEX(Data!$I$256:$I$259,MATCH(N99,Data!$H$256:$H$259,FALSE)),1)-4)*0.2895/27)) -> 
A100: 0300.0096 | J100: =IF($B100="","",VLOOKUP($B100,Data!$B$318:$C$438,2,FALSE)) ->  | O100: =IF(B100="","",0.9*2^((IF(K100<>"",INDEX(Data!$C$256:$C$258,MATCH(K100,Data!$B$256:$B$258,FALSE)),1)+IF(L100<>"",INDEX(Data!$E$256:$E$260,MATCH(L100,Data!$D$256:$D$260,FALSE)),1)+IF(M100<>"",INDEX(Data!$G$256:$G$258,MATCH(M100,Data!$F$256:$F$258,FALSE)),1)+IF(N100<>"",INDEX(Data!$I$256:$I$259,MATCH(N100,Data!$H$256:$H$259,FALSE)),1)-4)*0.2895/27)) -> 
A101: 0300.0097 | J101: =IF($B101="","",VLOOKUP($B101,Data!$B$318:$C$438,2,FALSE)) ->  | O101: =IF(B101="","",0.9*2^((IF(K101<>"",INDEX(Data!$C$256:$C$258,MATCH(K101,Data!$B$256:$B$258,FALSE)),1)+IF(L101<>"",INDEX(Data!$E$256:$E$260,MATCH(L101,Data!$D$256:$D$260,FALSE)),1)+IF(M101<>"",INDEX(Data!$G$256:$G$258,MATCH(M101,Data!$F$256:$F$258,FALSE)),1)+IF(N101<>"",INDEX(Data!$I$256:$I$259,MATCH(N101,Data!$H$256:$H$259,FALSE)),1)-4)*0.2895/27)) -> 
A102: 0300.0098 | J102: =IF($B102="","",VLOOKUP($B102,Data!$B$318:$C$438,2,FALSE)) ->  | O102: =IF(B102="","",0.9*2^((IF(K102<>"",INDEX(Data!$C$256:$C$258,MATCH(K102,Data!$B$256:$B$258,FALSE)),1)+IF(L102<>"",INDEX(Data!$E$256:$E$260,MATCH(L102,Data!$D$256:$D$260,FALSE)),1)+IF(M102<>"",INDEX(Data!$G$256:$G$258,MATCH(M102,Data!$F$256:$F$258,FALSE)),1)+IF(N102<>"",INDEX(Data!$I$256:$I$259,MATCH(N102,Data!$H$256:$H$259,FALSE)),1)-4)*0.2895/27)) -> 
A103: 0300.0099 | J103: =IF($B103="","",VLOOKUP($B103,Data!$B$318:$C$438,2,FALSE)) ->  | O103: =IF(B103="","",0.9*2^((IF(K103<>"",INDEX(Data!$C$256:$C$258,MATCH(K103,Data!$B$256:$B$258,FALSE)),1)+IF(L103<>"",INDEX(Data!$E$256:$E$260,MATCH(L103,Data!$D$256:$D$260,FALSE)),1)+IF(M103<>"",INDEX(Data!$G$256:$G$258,MATCH(M103,Data!$F$256:$F$258,FALSE)),1)+IF(N103<>"",INDEX(Data!$I$256:$I$259,MATCH(N103,Data!$H$256:$H$259,FALSE)),1)-4)*0.2895/27)) -> 
A104: 0300.0100 | J104: =IF($B104="","",VLOOKUP($B104,Data!$B$318:$C$438,2,FALSE)) ->  | O104: =IF(B104="","",0.9*2^((IF(K104<>"",INDEX(Data!$C$256:$C$258,MATCH(K104,Data!$B$256:$B$258,FALSE)),1)+IF(L104<>"",INDEX(Data!$E$256:$E$260,MATCH(L104,Data!$D$256:$D$260,FALSE)),1)+IF(M104<>"",INDEX(Data!$G$256:$G$258,MATCH(M104,Data!$F$256:$F$258,FALSE)),1)+IF(N104<>"",INDEX(Data!$I$256:$I$259,MATCH(N104,Data!$H$256:$H$259,FALSE)),1)-4)*0.2895/27)) -> 
A105: 0300.0101 | J105: =IF($B105="","",VLOOKUP($B105,Data!$B$318:$C$438,2,FALSE)) ->  | O105: =IF(B105="","",0.9*2^((IF(K105<>"",INDEX(Data!$C$256:$C$258,MATCH(K105,Data!$B$256:$B$258,FALSE)),1)+IF(L105<>"",INDEX(Data!$E$256:$E$260,MATCH(L105,Data!$D$256:$D$260,FALSE)),1)+IF(M105<>"",INDEX(Data!$G$256:$G$258,MATCH(M105,Data!$F$256:$F$258,FALSE)),1)+IF(N105<>"",INDEX(Data!$I$256:$I$259,MATCH(N105,Data!$H$256:$H$259,FALSE)),1)-4)*0.2895/27)) -> 

Sheet 500 Drainage
A1: These Drainage features have been identified as being present in Section.
C2: Verge assessed | D2: ='Basic (Common Details)'!C36 -> 0 | E2: Start Chainage of Section | F2: ='Basic (Common Details)'!C34 -> 0 | I2: End Chainage of Section | J2: ='Basic (Common Details)'!D34 -> 0
A3: Local Site Features
A4: ID Number | B4: Nature of Hazard | C4: Start chainage of hazard | D4: Length of hazard | E4: Width of hazard | F4: Offset of hazard from PSb | G4: Offset of hazard from Psb (End of Hazard) | H4: Angle of hazard to PSb (Degrees) | I4: Height / Depth of hazard | J4: Aggressiveness | K4: Local alignment (F2) | L4: Sleep - related Site (F3) | M4: Speed (F4) | N4: Other features (F6) | O4: Multiplicative factor for runoff rate | P4: Topography Factor
A5: 0500.0001 | H5: =IF(B5="","",IF(G5>F5,ATAN((G5-F5)/D5),IF(G5<F5,PI()-ATAN((F5-G5)/D5),0))*180/PI()) ->  | J5: =IF($B5="","",VLOOKUP($B5,Data!$B$318:$C$438,2,FALSE)) ->  | O5: =IF(B5="","",0.9*2^((IF(K5<>"",INDEX(Data!$C$256:$C$258,MATCH(K5,Data!$B$256:$B$258,FALSE)),1)+IF(L5<>"",INDEX(Data!$E$256:$E$260,MATCH(L5,Data!$D$256:$D$260,FALSE)),1)+IF(M5<>"",INDEX(Data!$G$256:$G$258,MATCH(M5,Data!$F$256:$F$258,FALSE)),1)+IF(N5<>"",INDEX(Data!$I$256:$I$259,MATCH(N5,Data!$H$256:$H$259,FALSE)),1)-4)*0.2895/27)) ->  | P5: =IF(B5="","",1) -> 
A6: 0500.0002 | H6: =IF(B6="","",IF(G6>F6,ATAN((G6-F6)/D6),IF(G6<F6,PI()-ATAN((F6-G6)/D6),0))*180/PI()) ->  | J6: =IF($B6="","",VLOOKUP($B6,Data!$B$318:$C$438,2,FALSE)) ->  | O6: =IF(B6="","",0.9*2^((IF(K6<>"",INDEX(Data!$C$256:$C$258,MATCH(K6,Data!$B$256:$B$258,FALSE)),1)+IF(L6<>"",INDEX(Data!$E$256:$E$260,MATCH(L6,Data!$D$256:$D$260,FALSE)),1)+IF(M6<>"",INDEX(Data!$G$256:$G$258,MATCH(M6,Data!$F$256:$F$258,FALSE)),1)+IF(N6<>"",INDEX(Data!$I$256:$I$259,MATCH(N6,Data!$H$256:$H$259,FALSE)),1)-4)*0.2895/27)) ->  | P6: =IF(B6="","",1) -> 
A7: 0500.0003 | J7: =IF($B7="","",VLOOKUP($B7,Data!$B$318:$C$438,2,FALSE)) ->  | O7: =IF(B7="","",0.9*2^((IF(K7<>"",INDEX(Data!$C$256:$C$258,MATCH(K7,Data!$B$256:$B$258,FALSE)),1)+IF(L7<>"",INDEX(Data!$E$256:$E$260,MATCH(L7,Data!$D$256:$D$260,FALSE)),1)+IF(M7<>"",INDEX(Data!$G$256:$G$258,MATCH(M7,Data!$F$256:$F$258,FALSE)),1)+IF(N7<>"",INDEX(Data!$I$256:$I$259,MATCH(N7,Data!$H$256:$H$259,FALSE)),1)-4)*0.2895/27)) -> 
A8: 0500.0004 | J8: =IF($B8="","",VLOOKUP($B8,Data!$B$318:$C$438,2,FALSE)) ->  | O8: =IF(B8="","",0.9*2^((IF(K8<>"",INDEX(Data!$C$256:$C$258,MATCH(K8,Data!$B$256:$B$258,FALSE)),1)+IF(L8<>"",INDEX(Data!$E$256:$E$260,MATCH(L8,Data!$D$256:$D$260,FALSE)),1)+IF(M8<>"",INDEX(Data!$G$256:$G$258,MATCH(M8,Data!$F$256:$F$258,FALSE)),1)+IF(N8<>"",INDEX(Data!$I$256:$I$259,MATCH(N8,Data!$H$256:$H$259,FALSE)),1)-4)*0.2895/27)) -> 
A9: 0500.0005 | J9: =IF($B9="","",VLOOKUP($B9,Data!$B$318:$C$438,2,FALSE)) ->  | O9: =IF(B9="","",0.9*2^((IF(K9<>"",INDEX(Data!$C$256:$C$258,MATCH(K9,Data!$B$256:$B$258,FALSE)),1)+IF(L9<>"",INDEX(Data!$E$256:$E$260,MATCH(L9,Data!$D$256:$D$260,FALSE)),1)+IF(M9<>"",INDEX(Data!$G$256:$G$258,MATCH(M9,Data!$F$256:$F$258,FALSE)),1)+IF(N9<>"",INDEX(Data!$I$256:$I$259,MATCH(N9,Data!$H$256:$H$259,FALSE)),1)-4)*0.2895/27)) -> 
A10: 0500.0006 | J10: =IF($B10="","",VLOOKUP($B10,Data!$B$318:$C$438,2,FALSE)) ->  | O10: =IF(B10="","",0.9*2^((IF(K10<>"",INDEX(Data!$C$256:$C$258,MATCH(K10,Data!$B$256:$B$258,FALSE)),1)+IF(L10<>"",INDEX(Data!$E$256:$E$260,MATCH(L10,Data!$D$256:$D$260,FALSE)),1)+IF(M10<>"",INDEX(Data!$G$256:$G$258,MATCH(M10,Data!$F$256:$F$258,FALSE)),1)+IF(N10<>"",INDEX(Data!$I$256:$I$259,MATCH(N10,Data!$H$256:$H$259,FALSE)),1)-4)*0.2895/27)) -> 
A11: 0500.0007 | J11: =IF($B11="","",VLOOKUP($B11,Data!$B$318:$C$438,2,FALSE)) ->  | O11: =IF(B11="","",0.9*2^((IF(K11<>"",INDEX(Data!$C$256:$C$258,MATCH(K11,Data!$B$256:$B$258,FALSE)),1)+IF(L11<>"",INDEX(Data!$E$256:$E$260,MATCH(L11,Data!$D$256:$D$260,FALSE)),1)+IF(M11<>"",INDEX(Data!$G$256:$G$258,MATCH(M11,Data!$F$256:$F$258,FALSE)),1)+IF(N11<>"",INDEX(Data!$I$256:$I$259,MATCH(N11,Data!$H$256:$H$259,FALSE)),1)-4)*0.2895/27)) -> 
A12: 0500.0008 | J12: =IF($B12="","",VLOOKUP($B12,Data!$B$318:$C$438,2,FALSE)) ->  | O12: =IF(B12="","",0.9*2^((IF(K12<>"",INDEX(Data!$C$256:$C$258,MATCH(K12,Data!$B$256:$B$258,FALSE)),1)+IF(L12<>"",INDEX(Data!$E$256:$E$260,MATCH(L12,Data!$D$256:$D$260,FALSE)),1)+IF(M12<>"",INDEX(Data!$G$256:$G$258,MATCH(M12,Data!$F$256:$F$258,FALSE)),1)+IF(N12<>"",INDEX(Data!$I$256:$I$259,MATCH(N12,Data!$H$256:$H$259,FALSE)),1)-4)*0.2895/27)) -> 
A13: 0500.0009 | J13: =IF($B13="","",VLOOKUP($B13,Data!$B$318:$C$438,2,FALSE)) ->  | O13: =IF(B13="","",0.9*2^((IF(K13<>"",INDEX(Data!$C$256:$C$258,MATCH(K13,Data!$B$256:$B$258,FALSE)),1)+IF(L13<>"",INDEX(Data!$E$256:$E$260,MATCH(L13,Data!$D$256:$D$260,FALSE)),1)+IF(M13<>"",INDEX(Data!$G$256:$G$258,MATCH(M13,Data!$F$256:$F$258,FALSE)),1)+IF(N13<>"",INDEX(Data!$I$256:$I$259,MATCH(N13,Data!$H$256:$H$259,FALSE)),1)-4)*0.2895/27)) -> 
A14: 0500.0010 | J14: =IF($B14="","",VLOOKUP($B14,Data!$B$318:$C$438,2,FALSE)) ->  | O14: =IF(B14="","",0.9*2^((IF(K14<>"",INDEX(Data!$C$256:$C$258,MATCH(K14,Data!$B$256:$B$258,FALSE)),1)+IF(L14<>"",INDEX(Data!$E$256:$E$260,MATCH(L14,Data!$D$256:$D$260,FALSE)),1)+IF(M14<>"",INDEX(Data!$G$256:$G$258,MATCH(M14,Data!$F$256:$F$258,FALSE)),1)+IF(N14<>"",INDEX(Data!$I$256:$I$259,MATCH(N14,Data!$H$256:$H$259,FALSE)),1)-4)*0.2895/27)) -> 
A15: 0500.0011 | J15: =IF($B15="","",VLOOKUP($B15,Data!$B$318:$C$438,2,FALSE)) ->  | O15: =IF(B15="","",0.9*2^((IF(K15<>"",INDEX(Data!$C$256:$C$258,MATCH(K15,Data!$B$256:$B$258,FALSE)),1)+IF(L15<>"",INDEX(Data!$E$256:$E$260,MATCH(L15,Data!$D$256:$D$260,FALSE)),1)+IF(M15<>"",INDEX(Data!$G$256:$G$258,MATCH(M15,Data!$F$256:$F$258,FALSE)),1)+IF(N15<>"",INDEX(Data!$I$256:$I$259,MATCH(N15,Data!$H$256:$H$259,FALSE)),1)-4)*0.2895/27)) -> 
A16: 0500.0012 | J16: =IF($B16="","",VLOOKUP($B16,Data!$B$318:$C$438,2,FALSE)) ->  | O16: =IF(B16="","",0.9*2^((IF(K16<>"",INDEX(Data!$C$256:$C$258,MATCH(K16,Data!$B$256:$B$258,FALSE)),1)+IF(L16<>"",INDEX(Data!$E$256:$E$260,MATCH(L16,Data!$D$256:$D$260,FALSE)),1)+IF(M16<>"",INDEX(Data!$G$256:$G$258,MATCH(M16,Data!$F$256:$F$258,FALSE)),1)+IF(N16<>"",INDEX(Data!$I$256:$I$259,MATCH(N16,Data!$H$256:$H$259,FALSE)),1)-4)*0.2895/27)) -> 
A17: 0500.0013 | J17: =IF($B17="","",VLOOKUP($B17,Data!$B$318:$C$438,2,FALSE)) ->  | O17: =IF(B17="","",0.9*2^((IF(K17<>"",INDEX(Data!$C$256:$C$258,MATCH(K17,Data!$B$256:$B$258,FALSE)),1)+IF(L17<>"",INDEX(Data!$E$256:$E$260,MATCH(L17,Data!$D$256:$D$260,FALSE)),1)+IF(M17<>"",INDEX(Data!$G$256:$G$258,MATCH(M17,Data!$F$256:$F$258,FALSE)),1)+IF(N17<>"",INDEX(Data!$I$256:$I$259,MATCH(N17,Data!$H$256:$H$259,FALSE)),1)-4)*0.2895/27)) -> 
A18: 0500.0014 | J18: =IF($B18="","",VLOOKUP($B18,Data!$B$318:$C$438,2,FALSE)) ->  | O18: =IF(B18="","",0.9*2^((IF(K18<>"",INDEX(Data!$C$256:$C$258,MATCH(K18,Data!$B$256:$B$258,FALSE)),1)+IF(L18<>"",INDEX(Data!$E$256:$E$260,MATCH(L18,Data!$D$256:$D$260,FALSE)),1)+IF(M18<>"",INDEX(Data!$G$256:$G$258,MATCH(M18,Data!$F$256:$F$258,FALSE)),1)+IF(N18<>"",INDEX(Data!$I$256:$I$259,MATCH(N18,Data!$H$256:$H$259,FALSE)),1)-4)*0.2895/27)) -> 
A19: 0500.0015 | J19: =IF($B19="","",VLOOKUP($B19,Data!$B$318:$C$438,2,FALSE)) ->  | O19: =IF(B19="","",0.9*2^((IF(K19<>"",INDEX(Data!$C$256:$C$258,MATCH(K19,Data!$B$256:$B$258,FALSE)),1)+IF(L19<>"",INDEX(Data!$E$256:$E$260,MATCH(L19,Data!$D$256:$D$260,FALSE)),1)+IF(M19<>"",INDEX(Data!$G$256:$G$258,MATCH(M19,Data!$F$256:$F$258,FALSE)),1)+IF(N19<>"",INDEX(Data!$I$256:$I$259,MATCH(N19,Data!$H$256:$H$259,FALSE)),1)-4)*0.2895/27)) -> 
A20: 0500.0016 | J20: =IF($B20="","",VLOOKUP($B20,Data!$B$318:$C$438,2,FALSE)) ->  | O20: =IF(B20="","",0.9*2^((IF(K20<>"",INDEX(Data!$C$256:$C$258,MATCH(K20,Data!$B$256:$B$258,FALSE)),1)+IF(L20<>"",INDEX(Data!$E$256:$E$260,MATCH(L20,Data!$D$256:$D$260,FALSE)),1)+IF(M20<>"",INDEX(Data!$G$256:$G$258,MATCH(M20,Data!$F$256:$F$258,FALSE)),1)+IF(N20<>"",INDEX(Data!$I$256:$I$259,MATCH(N20,Data!$H$256:$H$259,FALSE)),1)-4)*0.2895/27)) -> 
A21: 0500.0017 | J21: =IF($B21="","",VLOOKUP($B21,Data!$B$318:$C$438,2,FALSE)) ->  | O21: =IF(B21="","",0.9*2^((IF(K21<>"",INDEX(Data!$C$256:$C$258,MATCH(K21,Data!$B$256:$B$258,FALSE)),1)+IF(L21<>"",INDEX(Data!$E$256:$E$260,MATCH(L21,Data!$D$256:$D$260,FALSE)),1)+IF(M21<>"",INDEX(Data!$G$256:$G$258,MATCH(M21,Data!$F$256:$F$258,FALSE)),1)+IF(N21<>"",INDEX(Data!$I$256:$I$259,MATCH(N21,Data!$H$256:$H$259,FALSE)),1)-4)*0.2895/27)) -> 
A22: 0500.0018 | J22: =IF($B22="","",VLOOKUP($B22,Data!$B$318:$C$438,2,FALSE)) ->  | O22: =IF(B22="","",0.9*2^((IF(K22<>"",INDEX(Data!$C$256:$C$258,MATCH(K22,Data!$B$256:$B$258,FALSE)),1)+IF(L22<>"",INDEX(Data!$E$256:$E$260,MATCH(L22,Data!$D$256:$D$260,FALSE)),1)+IF(M22<>"",INDEX(Data!$G$256:$G$258,MATCH(M22,Data!$F$256:$F$258,FALSE)),1)+IF(N22<>"",INDEX(Data!$I$256:$I$259,MATCH(N22,Data!$H$256:$H$259,FALSE)),1)-4)*0.2895/27)) -> 
A23: 0500.0019 | J23: =IF($B23="","",VLOOKUP($B23,Data!$B$318:$C$438,2,FALSE)) ->  | O23: =IF(B23="","",0.9*2^((IF(K23<>"",INDEX(Data!$C$256:$C$258,MATCH(K23,Data!$B$256:$B$258,FALSE)),1)+IF(L23<>"",INDEX(Data!$E$256:$E$260,MATCH(L23,Data!$D$256:$D$260,FALSE)),1)+IF(M23<>"",INDEX(Data!$G$256:$G$258,MATCH(M23,Data!$F$256:$F$258,FALSE)),1)+IF(N23<>"",INDEX(Data!$I$256:$I$259,MATCH(N23,Data!$H$256:$H$259,FALSE)),1)-4)*0.2895/27)) -> 
A24: 0500.0020 | J24: =IF($B24="","",VLOOKUP($B24,Data!$B$318:$C$438,2,FALSE)) ->  | O24: =IF(B24="","",0.9*2^((IF(K24<>"",INDEX(Data!$C$256:$C$258,MATCH(K24,Data!$B$256:$B$258,FALSE)),1)+IF(L24<>"",INDEX(Data!$E$256:$E$260,MATCH(L24,Data!$D$256:$D$260,FALSE)),1)+IF(M24<>"",INDEX(Data!$G$256:$G$258,MATCH(M24,Data!$F$256:$F$258,FALSE)),1)+IF(N24<>"",INDEX(Data!$I$256:$I$259,MATCH(N24,Data!$H$256:$H$259,FALSE)),1)-4)*0.2895/27)) -> 
A25: 0500.0021 | J25: =IF($B25="","",VLOOKUP($B25,Data!$B$318:$C$438,2,FALSE)) ->  | O25: =IF(B25="","",0.9*2^((IF(K25<>"",INDEX(Data!$C$256:$C$258,MATCH(K25,Data!$B$256:$B$258,FALSE)),1)+IF(L25<>"",INDEX(Data!$E$256:$E$260,MATCH(L25,Data!$D$256:$D$260,FALSE)),1)+IF(M25<>"",INDEX(Data!$G$256:$G$258,MATCH(M25,Data!$F$256:$F$258,FALSE)),1)+IF(N25<>"",INDEX(Data!$I$256:$I$259,MATCH(N25,Data!$H$256:$H$259,FALSE)),1)-4)*0.2895/27)) -> 
A26: 0500.0022 | J26: =IF($B26="","",VLOOKUP($B26,Data!$B$318:$C$438,2,FALSE)) ->  | O26: =IF(B26="","",0.9*2^((IF(K26<>"",INDEX(Data!$C$256:$C$258,MATCH(K26,Data!$B$256:$B$258,FALSE)),1)+IF(L26<>"",INDEX(Data!$E$256:$E$260,MATCH(L26,Data!$D$256:$D$260,FALSE)),1)+IF(M26<>"",INDEX(Data!$G$256:$G$258,MATCH(M26,Data!$F$256:$F$258,FALSE)),1)+IF(N26<>"",INDEX(Data!$I$256:$I$259,MATCH(N26,Data!$H$256:$H$259,FALSE)),1)-4)*0.2895/27)) -> 
A27: 0500.0023 | J27: =IF($B27="","",VLOOKUP($B27,Data!$B$318:$C$438,2,FALSE)) ->  | O27: =IF(B27="","",0.9*2^((IF(K27<>"",INDEX(Data!$C$256:$C$258,MATCH(K27,Data!$B$256:$B$258,FALSE)),1)+IF(L27<>"",INDEX(Data!$E$256:$E$260,MATCH(L27,Data!$D$256:$D$260,FALSE)),1)+IF(M27<>"",INDEX(Data!$G$256:$G$258,MATCH(M27,Data!$F$256:$F$258,FALSE)),1)+IF(N27<>"",INDEX(Data!$I$256:$I$259,MATCH(N27,Data!$H$256:$H$259,FALSE)),1)-4)*0.2895/27)) -> 
A28: 0500.0024 | J28: =IF($B28="","",VLOOKUP($B28,Data!$B$318:$C$438,2,FALSE)) ->  | O28: =IF(B28="","",0.9*2^((IF(K28<>"",INDEX(Data!$C$256:$C$258,MATCH(K28,Data!$B$256:$B$258,FALSE)),1)+IF(L28<>"",INDEX(Data!$E$256:$E$260,MATCH(L28,Data!$D$256:$D$260,FALSE)),1)+IF(M28<>"",INDEX(Data!$G$256:$G$258,MATCH(M28,Data!$F$256:$F$258,FALSE)),1)+IF(N28<>"",INDEX(Data!$I$256:$I$259,MATCH(N28,Data!$H$256:$H$259,FALSE)),1)-4)*0.2895/27)) -> 
A29: 0500.0025 | J29: =IF($B29="","",VLOOKUP($B29,Data!$B$318:$C$438,2,FALSE)) ->  | O29: =IF(B29="","",0.9*2^((IF(K29<>"",INDEX(Data!$C$256:$C$258,MATCH(K29,Data!$B$256:$B$258,FALSE)),1)+IF(L29<>"",INDEX(Data!$E$256:$E$260,MATCH(L29,Data!$D$256:$D$260,FALSE)),1)+IF(M29<>"",INDEX(Data!$G$256:$G$258,MATCH(M29,Data!$F$256:$F$258,FALSE)),1)+IF(N29<>"",INDEX(Data!$I$256:$I$259,MATCH(N29,Data!$H$256:$H$259,FALSE)),1)-4)*0.2895/27)) -> 
A30: 0500.0026 | J30: =IF($B30="","",VLOOKUP($B30,Data!$B$318:$C$438,2,FALSE)) ->  | O30: =IF(B30="","",0.9*2^((IF(K30<>"",INDEX(Data!$C$256:$C$258,MATCH(K30,Data!$B$256:$B$258,FALSE)),1)+IF(L30<>"",INDEX(Data!$E$256:$E$260,MATCH(L30,Data!$D$256:$D$260,FALSE)),1)+IF(M30<>"",INDEX(Data!$G$256:$G$258,MATCH(M30,Data!$F$256:$F$258,FALSE)),1)+IF(N30<>"",INDEX(Data!$I$256:$I$259,MATCH(N30,Data!$H$256:$H$259,FALSE)),1)-4)*0.2895/27)) -> 
A31: 0500.0027 | J31: =IF($B31="","",VLOOKUP($B31,Data!$B$318:$C$438,2,FALSE)) ->  | O31: =IF(B31="","",0.9*2^((IF(K31<>"",INDEX(Data!$C$256:$C$258,MATCH(K31,Data!$B$256:$B$258,FALSE)),1)+IF(L31<>"",INDEX(Data!$E$256:$E$260,MATCH(L31,Data!$D$256:$D$260,FALSE)),1)+IF(M31<>"",INDEX(Data!$G$256:$G$258,MATCH(M31,Data!$F$256:$F$258,FALSE)),1)+IF(N31<>"",INDEX(Data!$I$256:$I$259,MATCH(N31,Data!$H$256:$H$259,FALSE)),1)-4)*0.2895/27)) -> 
A32: 0500.0028 | J32: =IF($B32="","",VLOOKUP($B32,Data!$B$318:$C$438,2,FALSE)) ->  | O32: =IF(B32="","",0.9*2^((IF(K32<>"",INDEX(Data!$C$256:$C$258,MATCH(K32,Data!$B$256:$B$258,FALSE)),1)+IF(L32<>"",INDEX(Data!$E$256:$E$260,MATCH(L32,Data!$D$256:$D$260,FALSE)),1)+IF(M32<>"",INDEX(Data!$G$256:$G$258,MATCH(M32,Data!$F$256:$F$258,FALSE)),1)+IF(N32<>"",INDEX(Data!$I$256:$I$259,MATCH(N32,Data!$H$256:$H$259,FALSE)),1)-4)*0.2895/27)) -> 
A33: 0500.0029 | J33: =IF($B33="","",VLOOKUP($B33,Data!$B$318:$C$438,2,FALSE)) ->  | O33: =IF(B33="","",0.9*2^((IF(K33<>"",INDEX(Data!$C$256:$C$258,MATCH(K33,Data!$B$256:$B$258,FALSE)),1)+IF(L33<>"",INDEX(Data!$E$256:$E$260,MATCH(L33,Data!$D$256:$D$260,FALSE)),1)+IF(M33<>"",INDEX(Data!$G$256:$G$258,MATCH(M33,Data!$F$256:$F$258,FALSE)),1)+IF(N33<>"",INDEX(Data!$I$256:$I$259,MATCH(N33,Data!$H$256:$H$259,FALSE)),1)-4)*0.2895/27)) -> 
A34: 0500.0030 | J34: =IF($B34="","",VLOOKUP($B34,Data!$B$318:$C$438,2,FALSE)) ->  | O34: =IF(B34="","",0.9*2^((IF(K34<>"",INDEX(Data!$C$256:$C$258,MATCH(K34,Data!$B$256:$B$258,FALSE)),1)+IF(L34<>"",INDEX(Data!$E$256:$E$260,MATCH(L34,Data!$D$256:$D$260,FALSE)),1)+IF(M34<>"",INDEX(Data!$G$256:$G$258,MATCH(M34,Data!$F$256:$F$258,FALSE)),1)+IF(N34<>"",INDEX(Data!$I$256:$I$259,MATCH(N34,Data!$H$256:$H$259,FALSE)),1)-4)*0.2895/27)) -> 
A35: 0500.0031 | J35: =IF($B35="","",VLOOKUP($B35,Data!$B$318:$C$438,2,FALSE)) ->  | O35: =IF(B35="","",0.9*2^((IF(K35<>"",INDEX(Data!$C$256:$C$258,MATCH(K35,Data!$B$256:$B$258,FALSE)),1)+IF(L35<>"",INDEX(Data!$E$256:$E$260,MATCH(L35,Data!$D$256:$D$260,FALSE)),1)+IF(M35<>"",INDEX(Data!$G$256:$G$258,MATCH(M35,Data!$F$256:$F$258,FALSE)),1)+IF(N35<>"",INDEX(Data!$I$256:$I$259,MATCH(N35,Data!$H$256:$H$259,FALSE)),1)-4)*0.2895/27)) -> 
A36: 0500.0032 | J36: =IF($B36="","",VLOOKUP($B36,Data!$B$318:$C$438,2,FALSE)) ->  | O36: =IF(B36="","",0.9*2^((IF(K36<>"",INDEX(Data!$C$256:$C$258,MATCH(K36,Data!$B$256:$B$258,FALSE)),1)+IF(L36<>"",INDEX(Data!$E$256:$E$260,MATCH(L36,Data!$D$256:$D$260,FALSE)),1)+IF(M36<>"",INDEX(Data!$G$256:$G$258,MATCH(M36,Data!$F$256:$F$258,FALSE)),1)+IF(N36<>"",INDEX(Data!$I$256:$I$259,MATCH(N36,Data!$H$256:$H$259,FALSE)),1)-4)*0.2895/27)) -> 
A37: 0500.0033 | J37: =IF($B37="","",VLOOKUP($B37,Data!$B$318:$C$438,2,FALSE)) ->  | O37: =IF(B37="","",0.9*2^((IF(K37<>"",INDEX(Data!$C$256:$C$258,MATCH(K37,Data!$B$256:$B$258,FALSE)),1)+IF(L37<>"",INDEX(Data!$E$256:$E$260,MATCH(L37,Data!$D$256:$D$260,FALSE)),1)+IF(M37<>"",INDEX(Data!$G$256:$G$258,MATCH(M37,Data!$F$256:$F$258,FALSE)),1)+IF(N37<>"",INDEX(Data!$I$256:$I$259,MATCH(N37,Data!$H$256:$H$259,FALSE)),1)-4)*0.2895/27)) -> 
A38: 0500.0034 | J38: =IF($B38="","",VLOOKUP($B38,Data!$B$318:$C$438,2,FALSE)) ->  | O38: =IF(B38="","",0.9*2^((IF(K38<>"",INDEX(Data!$C$256:$C$258,MATCH(K38,Data!$B$256:$B$258,FALSE)),1)+IF(L38<>"",INDEX(Data!$E$256:$E$260,MATCH(L38,Data!$D$256:$D$260,FALSE)),1)+IF(M38<>"",INDEX(Data!$G$256:$G$258,MATCH(M38,Data!$F$256:$F$258,FALSE)),1)+IF(N38<>"",INDEX(Data!$I$256:$I$259,MATCH(N38,Data!$H$256:$H$259,FALSE)),1)-4)*0.2895/27)) -> 
A39: 0500.0035 | J39: =IF($B39="","",VLOOKUP($B39,Data!$B$318:$C$438,2,FALSE)) ->  | O39: =IF(B39="","",0.9*2^((IF(K39<>"",INDEX(Data!$C$256:$C$258,MATCH(K39,Data!$B$256:$B$258,FALSE)),1)+IF(L39<>"",INDEX(Data!$E$256:$E$260,MATCH(L39,Data!$D$256:$D$260,FALSE)),1)+IF(M39<>"",INDEX(Data!$G$256:$G$258,MATCH(M39,Data!$F$256:$F$258,FALSE)),1)+IF(N39<>"",INDEX(Data!$I$256:$I$259,MATCH(N39,Data!$H$256:$H$259,FALSE)),1)-4)*0.2895/27)) -> 
A40: 0500.0036 | J40: =IF($B40="","",VLOOKUP($B40,Data!$B$318:$C$438,2,FALSE)) ->  | O40: =IF(B40="","",0.9*2^((IF(K40<>"",INDEX(Data!$C$256:$C$258,MATCH(K40,Data!$B$256:$B$258,FALSE)),1)+IF(L40<>"",INDEX(Data!$E$256:$E$260,MATCH(L40,Data!$D$256:$D$260,FALSE)),1)+IF(M40<>"",INDEX(Data!$G$256:$G$258,MATCH(M40,Data!$F$256:$F$258,FALSE)),1)+IF(N40<>"",INDEX(Data!$I$256:$I$259,MATCH(N40,Data!$H$256:$H$259,FALSE)),1)-4)*0.2895/27)) -> 
A41: 0500.0037 | J41: =IF($B41="","",VLOOKUP($B41,Data!$B$318:$C$438,2,FALSE)) ->  | O41: =IF(B41="","",0.9*2^((IF(K41<>"",INDEX(Data!$C$256:$C$258,MATCH(K41,Data!$B$256:$B$258,FALSE)),1)+IF(L41<>"",INDEX(Data!$E$256:$E$260,MATCH(L41,Data!$D$256:$D$260,FALSE)),1)+IF(M41<>"",INDEX(Data!$G$256:$G$258,MATCH(M41,Data!$F$256:$F$258,FALSE)),1)+IF(N41<>"",INDEX(Data!$I$256:$I$259,MATCH(N41,Data!$H$256:$H$259,FALSE)),1)-4)*0.2895/27)) -> 
A42: 0500.0038 | J42: =IF($B42="","",VLOOKUP($B42,Data!$B$318:$C$438,2,FALSE)) ->  | O42: =IF(B42="","",0.9*2^((IF(K42<>"",INDEX(Data!$C$256:$C$258,MATCH(K42,Data!$B$256:$B$258,FALSE)),1)+IF(L42<>"",INDEX(Data!$E$256:$E$260,MATCH(L42,Data!$D$256:$D$260,FALSE)),1)+IF(M42<>"",INDEX(Data!$G$256:$G$258,MATCH(M42,Data!$F$256:$F$258,FALSE)),1)+IF(N42<>"",INDEX(Data!$I$256:$I$259,MATCH(N42,Data!$H$256:$H$259,FALSE)),1)-4)*0.2895/27)) -> 
A43: 0500.0039 | J43: =IF($B43="","",VLOOKUP($B43,Data!$B$318:$C$438,2,FALSE)) ->  | O43: =IF(B43="","",0.9*2^((IF(K43<>"",INDEX(Data!$C$256:$C$258,MATCH(K43,Data!$B$256:$B$258,FALSE)),1)+IF(L43<>"",INDEX(Data!$E$256:$E$260,MATCH(L43,Data!$D$256:$D$260,FALSE)),1)+IF(M43<>"",INDEX(Data!$G$256:$G$258,MATCH(M43,Data!$F$256:$F$258,FALSE)),1)+IF(N43<>"",INDEX(Data!$I$256:$I$259,MATCH(N43,Data!$H$256:$H$259,FALSE)),1)-4)*0.2895/27)) -> 
A44: 0500.0040 | J44: =IF($B44="","",VLOOKUP($B44,Data!$B$318:$C$438,2,FALSE)) ->  | O44: =IF(B44="","",0.9*2^((IF(K44<>"",INDEX(Data!$C$256:$C$258,MATCH(K44,Data!$B$256:$B$258,FALSE)),1)+IF(L44<>"",INDEX(Data!$E$256:$E$260,MATCH(L44,Data!$D$256:$D$260,FALSE)),1)+IF(M44<>"",INDEX(Data!$G$256:$G$258,MATCH(M44,Data!$F$256:$F$258,FALSE)),1)+IF(N44<>"",INDEX(Data!$I$256:$I$259,MATCH(N44,Data!$H$256:$H$259,FALSE)),1)-4)*0.2895/27)) -> 
A45: 0500.0041 | J45: =IF($B45="","",VLOOKUP($B45,Data!$B$318:$C$438,2,FALSE)) ->  | O45: =IF(B45="","",0.9*2^((IF(K45<>"",INDEX(Data!$C$256:$C$258,MATCH(K45,Data!$B$256:$B$258,FALSE)),1)+IF(L45<>"",INDEX(Data!$E$256:$E$260,MATCH(L45,Data!$D$256:$D$260,FALSE)),1)+IF(M45<>"",INDEX(Data!$G$256:$G$258,MATCH(M45,Data!$F$256:$F$258,FALSE)),1)+IF(N45<>"",INDEX(Data!$I$256:$I$259,MATCH(N45,Data!$H$256:$H$259,FALSE)),1)-4)*0.2895/27)) -> 
A46: 0500.0042 | J46: =IF($B46="","",VLOOKUP($B46,Data!$B$318:$C$438,2,FALSE)) ->  | O46: =IF(B46="","",0.9*2^((IF(K46<>"",INDEX(Data!$C$256:$C$258,MATCH(K46,Data!$B$256:$B$258,FALSE)),1)+IF(L46<>"",INDEX(Data!$E$256:$E$260,MATCH(L46,Data!$D$256:$D$260,FALSE)),1)+IF(M46<>"",INDEX(Data!$G$256:$G$258,MATCH(M46,Data!$F$256:$F$258,FALSE)),1)+IF(N46<>"",INDEX(Data!$I$256:$I$259,MATCH(N46,Data!$H$256:$H$259,FALSE)),1)-4)*0.2895/27)) -> 
A47: 0500.0043 | J47: =IF($B47="","",VLOOKUP($B47,Data!$B$318:$C$438,2,FALSE)) ->  | O47: =IF(B47="","",0.9*2^((IF(K47<>"",INDEX(Data!$C$256:$C$258,MATCH(K47,Data!$B$256:$B$258,FALSE)),1)+IF(L47<>"",INDEX(Data!$E$256:$E$260,MATCH(L47,Data!$D$256:$D$260,FALSE)),1)+IF(M47<>"",INDEX(Data!$G$256:$G$258,MATCH(M47,Data!$F$256:$F$258,FALSE)),1)+IF(N47<>"",INDEX(Data!$I$256:$I$259,MATCH(N47,Data!$H$256:$H$259,FALSE)),1)-4)*0.2895/27)) -> 
A48: 0500.0044 | J48: =IF($B48="","",VLOOKUP($B48,Data!$B$318:$C$438,2,FALSE)) ->  | O48: =IF(B48="","",0.9*2^((IF(K48<>"",INDEX(Data!$C$256:$C$258,MATCH(K48,Data!$B$256:$B$258,FALSE)),1)+IF(L48<>"",INDEX(Data!$E$256:$E$260,MATCH(L48,Data!$D$256:$D$260,FALSE)),1)+IF(M48<>"",INDEX(Data!$G$256:$G$258,MATCH(M48,Data!$F$256:$F$258,FALSE)),1)+IF(N48<>"",INDEX(Data!$I$256:$I$259,MATCH(N48,Data!$H$256:$H$259,FALSE)),1)-4)*0.2895/27)) -> 
A49: 0500.0045 | J49: =IF($B49="","",VLOOKUP($B49,Data!$B$318:$C$438,2,FALSE)) ->  | O49: =IF(B49="","",0.9*2^((IF(K49<>"",INDEX(Data!$C$256:$C$258,MATCH(K49,Data!$B$256:$B$258,FALSE)),1)+IF(L49<>"",INDEX(Data!$E$256:$E$260,MATCH(L49,Data!$D$256:$D$260,FALSE)),1)+IF(M49<>"",INDEX(Data!$G$256:$G$258,MATCH(M49,Data!$F$256:$F$258,FALSE)),1)+IF(N49<>"",INDEX(Data!$I$256:$I$259,MATCH(N49,Data!$H$256:$H$259,FALSE)),1)-4)*0.2895/27)) -> 
A50: 0500.0046 | J50: =IF($B50="","",VLOOKUP($B50,Data!$B$318:$C$438,2,FALSE)) ->  | O50: =IF(B50="","",0.9*2^((IF(K50<>"",INDEX(Data!$C$256:$C$258,MATCH(K50,Data!$B$256:$B$258,FALSE)),1)+IF(L50<>"",INDEX(Data!$E$256:$E$260,MATCH(L50,Data!$D$256:$D$260,FALSE)),1)+IF(M50<>"",INDEX(Data!$G$256:$G$258,MATCH(M50,Data!$F$256:$F$258,FALSE)),1)+IF(N50<>"",INDEX(Data!$I$256:$I$259,MATCH(N50,Data!$H$256:$H$259,FALSE)),1)-4)*0.2895/27)) -> 
A51: 0500.0047 | J51: =IF($B51="","",VLOOKUP($B51,Data!$B$318:$C$438,2,FALSE)) ->  | O51: =IF(B51="","",0.9*2^((IF(K51<>"",INDEX(Data!$C$256:$C$258,MATCH(K51,Data!$B$256:$B$258,FALSE)),1)+IF(L51<>"",INDEX(Data!$E$256:$E$260,MATCH(L51,Data!$D$256:$D$260,FALSE)),1)+IF(M51<>"",INDEX(Data!$G$256:$G$258,MATCH(M51,Data!$F$256:$F$258,FALSE)),1)+IF(N51<>"",INDEX(Data!$I$256:$I$259,MATCH(N51,Data!$H$256:$H$259,FALSE)),1)-4)*0.2895/27)) -> 
A52: 0500.0048 | J52: =IF($B52="","",VLOOKUP($B52,Data!$B$318:$C$438,2,FALSE)) ->  | O52: =IF(B52="","",0.9*2^((IF(K52<>"",INDEX(Data!$C$256:$C$258,MATCH(K52,Data!$B$256:$B$258,FALSE)),1)+IF(L52<>"",INDEX(Data!$E$256:$E$260,MATCH(L52,Data!$D$256:$D$260,FALSE)),1)+IF(M52<>"",INDEX(Data!$G$256:$G$258,MATCH(M52,Data!$F$256:$F$258,FALSE)),1)+IF(N52<>"",INDEX(Data!$I$256:$I$259,MATCH(N52,Data!$H$256:$H$259,FALSE)),1)-4)*0.2895/27)) -> 
A53: 0500.0049 | J53: =IF($B53="","",VLOOKUP($B53,Data!$B$318:$C$438,2,FALSE)) ->  | O53: =IF(B53="","",0.9*2^((IF(K53<>"",INDEX(Data!$C$256:$C$258,MATCH(K53,Data!$B$256:$B$258,FALSE)),1)+IF(L53<>"",INDEX(Data!$E$256:$E$260,MATCH(L53,Data!$D$256:$D$260,FALSE)),1)+IF(M53<>"",INDEX(Data!$G$256:$G$258,MATCH(M53,Data!$F$256:$F$258,FALSE)),1)+IF(N53<>"",INDEX(Data!$I$256:$I$259,MATCH(N53,Data!$H$256:$H$259,FALSE)),1)-4)*0.2895/27)) -> 
A54: 0500.0050 | J54: =IF($B54="","",VLOOKUP($B54,Data!$B$318:$C$438,2,FALSE)) ->  | O54: =IF(B54="","",0.9*2^((IF(K54<>"",INDEX(Data!$C$256:$C$258,MATCH(K54,Data!$B$256:$B$258,FALSE)),1)+IF(L54<>"",INDEX(Data!$E$256:$E$260,MATCH(L54,Data!$D$256:$D$260,FALSE)),1)+IF(M54<>"",INDEX(Data!$G$256:$G$258,MATCH(M54,Data!$F$256:$F$258,FALSE)),1)+IF(N54<>"",INDEX(Data!$I$256:$I$259,MATCH(N54,Data!$H$256:$H$259,FALSE)),1)-4)*0.2895/27)) -> 
A55: 0500.0051 | J55: =IF($B55="","",VLOOKUP($B55,Data!$B$318:$C$438,2,FALSE)) ->  | O55: =IF(B55="","",0.9*2^((IF(K55<>"",INDEX(Data!$C$256:$C$258,MATCH(K55,Data!$B$256:$B$258,FALSE)),1)+IF(L55<>"",INDEX(Data!$E$256:$E$260,MATCH(L55,Data!$D$256:$D$260,FALSE)),1)+IF(M55<>"",INDEX(Data!$G$256:$G$258,MATCH(M55,Data!$F$256:$F$258,FALSE)),1)+IF(N55<>"",INDEX(Data!$I$256:$I$259,MATCH(N55,Data!$H$256:$H$259,FALSE)),1)-4)*0.2895/27)) -> 
A56: 0500.0052 | J56: =IF($B56="","",VLOOKUP($B56,Data!$B$318:$C$438,2,FALSE)) ->  | O56: =IF(B56="","",0.9*2^((IF(K56<>"",INDEX(Data!$C$256:$C$258,MATCH(K56,Data!$B$256:$B$258,FALSE)),1)+IF(L56<>"",INDEX(Data!$E$256:$E$260,MATCH(L56,Data!$D$256:$D$260,FALSE)),1)+IF(M56<>"",INDEX(Data!$G$256:$G$258,MATCH(M56,Data!$F$256:$F$258,FALSE)),1)+IF(N56<>"",INDEX(Data!$I$256:$I$259,MATCH(N56,Data!$H$256:$H$259,FALSE)),1)-4)*0.2895/27)) -> 
A57: 0500.0053 | J57: =IF($B57="","",VLOOKUP($B57,Data!$B$318:$C$438,2,FALSE)) ->  | O57: =IF(B57="","",0.9*2^((IF(K57<>"",INDEX(Data!$C$256:$C$258,MATCH(K57,Data!$B$256:$B$258,FALSE)),1)+IF(L57<>"",INDEX(Data!$E$256:$E$260,MATCH(L57,Data!$D$256:$D$260,FALSE)),1)+IF(M57<>"",INDEX(Data!$G$256:$G$258,MATCH(M57,Data!$F$256:$F$258,FALSE)),1)+IF(N57<>"",INDEX(Data!$I$256:$I$259,MATCH(N57,Data!$H$256:$H$259,FALSE)),1)-4)*0.2895/27)) -> 
A58: 0500.0054 | J58: =IF($B58="","",VLOOKUP($B58,Data!$B$318:$C$438,2,FALSE)) ->  | O58: =IF(B58="","",0.9*2^((IF(K58<>"",INDEX(Data!$C$256:$C$258,MATCH(K58,Data!$B$256:$B$258,FALSE)),1)+IF(L58<>"",INDEX(Data!$E$256:$E$260,MATCH(L58,Data!$D$256:$D$260,FALSE)),1)+IF(M58<>"",INDEX(Data!$G$256:$G$258,MATCH(M58,Data!$F$256:$F$258,FALSE)),1)+IF(N58<>"",INDEX(Data!$I$256:$I$259,MATCH(N58,Data!$H$256:$H$259,FALSE)),1)-4)*0.2895/27)) -> 
A59: 0500.0055 | J59: =IF($B59="","",VLOOKUP($B59,Data!$B$318:$C$438,2,FALSE)) ->  | O59: =IF(B59="","",0.9*2^((IF(K59<>"",INDEX(Data!$C$256:$C$258,MATCH(K59,Data!$B$256:$B$258,FALSE)),1)+IF(L59<>"",INDEX(Data!$E$256:$E$260,MATCH(L59,Data!$D$256:$D$260,FALSE)),1)+IF(M59<>"",INDEX(Data!$G$256:$G$258,MATCH(M59,Data!$F$256:$F$258,FALSE)),1)+IF(N59<>"",INDEX(Data!$I$256:$I$259,MATCH(N59,Data!$H$256:$H$259,FALSE)),1)-4)*0.2895/27)) -> 
A60: 0500.0056 | J60: =IF($B60="","",VLOOKUP($B60,Data!$B$318:$C$438,2,FALSE)) ->  | O60: =IF(B60="","",0.9*2^((IF(K60<>"",INDEX(Data!$C$256:$C$258,MATCH(K60,Data!$B$256:$B$258,FALSE)),1)+IF(L60<>"",INDEX(Data!$E$256:$E$260,MATCH(L60,Data!$D$256:$D$260,FALSE)),1)+IF(M60<>"",INDEX(Data!$G$256:$G$258,MATCH(M60,Data!$F$256:$F$258,FALSE)),1)+IF(N60<>"",INDEX(Data!$I$256:$I$259,MATCH(N60,Data!$H$256:$H$259,FALSE)),1)-4)*0.2895/27)) -> 
A61: 0500.0057 | J61: =IF($B61="","",VLOOKUP($B61,Data!$B$318:$C$438,2,FALSE)) ->  | O61: =IF(B61="","",0.9*2^((IF(K61<>"",INDEX(Data!$C$256:$C$258,MATCH(K61,Data!$B$256:$B$258,FALSE)),1)+IF(L61<>"",INDEX(Data!$E$256:$E$260,MATCH(L61,Data!$D$256:$D$260,FALSE)),1)+IF(M61<>"",INDEX(Data!$G$256:$G$258,MATCH(M61,Data!$F$256:$F$258,FALSE)),1)+IF(N61<>"",INDEX(Data!$I$256:$I$259,MATCH(N61,Data!$H$256:$H$259,FALSE)),1)-4)*0.2895/27)) -> 
A62: 0500.0058 | J62: =IF($B62="","",VLOOKUP($B62,Data!$B$318:$C$438,2,FALSE)) ->  | O62: =IF(B62="","",0.9*2^((IF(K62<>"",INDEX(Data!$C$256:$C$258,MATCH(K62,Data!$B$256:$B$258,FALSE)),1)+IF(L62<>"",INDEX(Data!$E$256:$E$260,MATCH(L62,Data!$D$256:$D$260,FALSE)),1)+IF(M62<>"",INDEX(Data!$G$256:$G$258,MATCH(M62,Data!$F$256:$F$258,FALSE)),1)+IF(N62<>"",INDEX(Data!$I$256:$I$259,MATCH(N62,Data!$H$256:$H$259,FALSE)),1)-4)*0.2895/27)) -> 
A63: 0500.0059 | J63: =IF($B63="","",VLOOKUP($B63,Data!$B$318:$C$438,2,FALSE)) ->  | O63: =IF(B63="","",0.9*2^((IF(K63<>"",INDEX(Data!$C$256:$C$258,MATCH(K63,Data!$B$256:$B$258,FALSE)),1)+IF(L63<>"",INDEX(Data!$E$256:$E$260,MATCH(L63,Data!$D$256:$D$260,FALSE)),1)+IF(M63<>"",INDEX(Data!$G$256:$G$258,MATCH(M63,Data!$F$256:$F$258,FALSE)),1)+IF(N63<>"",INDEX(Data!$I$256:$I$259,MATCH(N63,Data!$H$256:$H$259,FALSE)),1)-4)*0.2895/27)) -> 
A64: 0500.0060 | J64: =IF($B64="","",VLOOKUP($B64,Data!$B$318:$C$438,2,FALSE)) ->  | O64: =IF(B64="","",0.9*2^((IF(K64<>"",INDEX(Data!$C$256:$C$258,MATCH(K64,Data!$B$256:$B$258,FALSE)),1)+IF(L64<>"",INDEX(Data!$E$256:$E$260,MATCH(L64,Data!$D$256:$D$260,FALSE)),1)+IF(M64<>"",INDEX(Data!$G$256:$G$258,MATCH(M64,Data!$F$256:$F$258,FALSE)),1)+IF(N64<>"",INDEX(Data!$I$256:$I$259,MATCH(N64,Data!$H$256:$H$259,FALSE)),1)-4)*0.2895/27)) -> 
A65: 0500.0061 | J65: =IF($B65="","",VLOOKUP($B65,Data!$B$318:$C$438,2,FALSE)) ->  | O65: =IF(B65="","",0.9*2^((IF(K65<>"",INDEX(Data!$C$256:$C$258,MATCH(K65,Data!$B$256:$B$258,FALSE)),1)+IF(L65<>"",INDEX(Data!$E$256:$E$260,MATCH(L65,Data!$D$256:$D$260,FALSE)),1)+IF(M65<>"",INDEX(Data!$G$256:$G$258,MATCH(M65,Data!$F$256:$F$258,FALSE)),1)+IF(N65<>"",INDEX(Data!$I$256:$I$259,MATCH(N65,Data!$H$256:$H$259,FALSE)),1)-4)*0.2895/27)) -> 
A66: 0500.0062 | J66: =IF($B66="","",VLOOKUP($B66,Data!$B$318:$C$438,2,FALSE)) ->  | O66: =IF(B66="","",0.9*2^((IF(K66<>"",INDEX(Data!$C$256:$C$258,MATCH(K66,Data!$B$256:$B$258,FALSE)),1)+IF(L66<>"",INDEX(Data!$E$256:$E$260,MATCH(L66,Data!$D$256:$D$260,FALSE)),1)+IF(M66<>"",INDEX(Data!$G$256:$G$258,MATCH(M66,Data!$F$256:$F$258,FALSE)),1)+IF(N66<>"",INDEX(Data!$I$256:$I$259,MATCH(N66,Data!$H$256:$H$259,FALSE)),1)-4)*0.2895/27)) -> 
A67: 0500.0063 | J67: =IF($B67="","",VLOOKUP($B67,Data!$B$318:$C$438,2,FALSE)) ->  | O67: =IF(B67="","",0.9*2^((IF(K67<>"",INDEX(Data!$C$256:$C$258,MATCH(K67,Data!$B$256:$B$258,FALSE)),1)+IF(L67<>"",INDEX(Data!$E$256:$E$260,MATCH(L67,Data!$D$256:$D$260,FALSE)),1)+IF(M67<>"",INDEX(Data!$G$256:$G$258,MATCH(M67,Data!$F$256:$F$258,FALSE)),1)+IF(N67<>"",INDEX(Data!$I$256:$I$259,MATCH(N67,Data!$H$256:$H$259,FALSE)),1)-4)*0.2895/27)) -> 
A68: 0500.0064 | J68: =IF($B68="","",VLOOKUP($B68,Data!$B$318:$C$438,2,FALSE)) ->  | O68: =IF(B68="","",0.9*2^((IF(K68<>"",INDEX(Data!$C$256:$C$258,MATCH(K68,Data!$B$256:$B$258,FALSE)),1)+IF(L68<>"",INDEX(Data!$E$256:$E$260,MATCH(L68,Data!$D$256:$D$260,FALSE)),1)+IF(M68<>"",INDEX(Data!$G$256:$G$258,MATCH(M68,Data!$F$256:$F$258,FALSE)),1)+IF(N68<>"",INDEX(Data!$I$256:$I$259,MATCH(N68,Data!$H$256:$H$259,FALSE)),1)-4)*0.2895/27)) -> 
A69: 0500.0065 | J69: =IF($B69="","",VLOOKUP($B69,Data!$B$318:$C$438,2,FALSE)) ->  | O69: =IF(B69="","",0.9*2^((IF(K69<>"",INDEX(Data!$C$256:$C$258,MATCH(K69,Data!$B$256:$B$258,FALSE)),1)+IF(L69<>"",INDEX(Data!$E$256:$E$260,MATCH(L69,Data!$D$256:$D$260,FALSE)),1)+IF(M69<>"",INDEX(Data!$G$256:$G$258,MATCH(M69,Data!$F$256:$F$258,FALSE)),1)+IF(N69<>"",INDEX(Data!$I$256:$I$259,MATCH(N69,Data!$H$256:$H$259,FALSE)),1)-4)*0.2895/27)) -> 
A70: 0500.0066 | H70: =IF(B70="","",IF(G70>F70,ATAN((G70-F70)/D70),IF(G70<F70,PI()-ATAN((F70-G70)/D70),0))*180/PI()) ->  | J70: =IF($B70="","",VLOOKUP($B70,Data!$B$318:$C$438,2,FALSE)) ->  | O70: =IF(B70="","",0.9*2^((IF(K70<>"",INDEX(Data!$C$256:$C$258,MATCH(K70,Data!$B$256:$B$258,FALSE)),1)+IF(L70<>"",INDEX(Data!$E$256:$E$260,MATCH(L70,Data!$D$256:$D$260,FALSE)),1)+IF(M70<>"",INDEX(Data!$G$256:$G$258,MATCH(M70,Data!$F$256:$F$258,FALSE)),1)+IF(N70<>"",INDEX(Data!$I$256:$I$259,MATCH(N70,Data!$H$256:$H$259,FALSE)),1)-4)*0.2895/27)) ->  | P70: =IF(B70="","",1) -> 
A71: 0500.0067 | J71: =IF($B71="","",VLOOKUP($B71,Data!$B$318:$C$438,2,FALSE)) ->  | O71: =IF(B71="","",0.9*2^((IF(K71<>"",INDEX(Data!$C$256:$C$258,MATCH(K71,Data!$B$256:$B$258,FALSE)),1)+IF(L71<>"",INDEX(Data!$E$256:$E$260,MATCH(L71,Data!$D$256:$D$260,FALSE)),1)+IF(M71<>"",INDEX(Data!$G$256:$G$258,MATCH(M71,Data!$F$256:$F$258,FALSE)),1)+IF(N71<>"",INDEX(Data!$I$256:$I$259,MATCH(N71,Data!$H$256:$H$259,FALSE)),1)-4)*0.2895/27)) -> 
A72: 0500.0068 | J72: =IF($B72="","",VLOOKUP($B72,Data!$B$318:$C$438,2,FALSE)) ->  | O72: =IF(B72="","",0.9*2^((IF(K72<>"",INDEX(Data!$C$256:$C$258,MATCH(K72,Data!$B$256:$B$258,FALSE)),1)+IF(L72<>"",INDEX(Data!$E$256:$E$260,MATCH(L72,Data!$D$256:$D$260,FALSE)),1)+IF(M72<>"",INDEX(Data!$G$256:$G$258,MATCH(M72,Data!$F$256:$F$258,FALSE)),1)+IF(N72<>"",INDEX(Data!$I$256:$I$259,MATCH(N72,Data!$H$256:$H$259,FALSE)),1)-4)*0.2895/27)) -> 
A73: 0500.0069 | J73: =IF($B73="","",VLOOKUP($B73,Data!$B$318:$C$438,2,FALSE)) ->  | O73: =IF(B73="","",0.9*2^((IF(K73<>"",INDEX(Data!$C$256:$C$258,MATCH(K73,Data!$B$256:$B$258,FALSE)),1)+IF(L73<>"",INDEX(Data!$E$256:$E$260,MATCH(L73,Data!$D$256:$D$260,FALSE)),1)+IF(M73<>"",INDEX(Data!$G$256:$G$258,MATCH(M73,Data!$F$256:$F$258,FALSE)),1)+IF(N73<>"",INDEX(Data!$I$256:$I$259,MATCH(N73,Data!$H$256:$H$259,FALSE)),1)-4)*0.2895/27)) -> 
A74: 0500.0070 | J74: =IF($B74="","",VLOOKUP($B74,Data!$B$318:$C$438,2,FALSE)) ->  | O74: =IF(B74="","",0.9*2^((IF(K74<>"",INDEX(Data!$C$256:$C$258,MATCH(K74,Data!$B$256:$B$258,FALSE)),1)+IF(L74<>"",INDEX(Data!$E$256:$E$260,MATCH(L74,Data!$D$256:$D$260,FALSE)),1)+IF(M74<>"",INDEX(Data!$G$256:$G$258,MATCH(M74,Data!$F$256:$F$258,FALSE)),1)+IF(N74<>"",INDEX(Data!$I$256:$I$259,MATCH(N74,Data!$H$256:$H$259,FALSE)),1)-4)*0.2895/27)) -> 
A75: 0500.0071 | J75: =IF($B75="","",VLOOKUP($B75,Data!$B$318:$C$438,2,FALSE)) ->  | O75: =IF(B75="","",0.9*2^((IF(K75<>"",INDEX(Data!$C$256:$C$258,MATCH(K75,Data!$B$256:$B$258,FALSE)),1)+IF(L75<>"",INDEX(Data!$E$256:$E$260,MATCH(L75,Data!$D$256:$D$260,FALSE)),1)+IF(M75<>"",INDEX(Data!$G$256:$G$258,MATCH(M75,Data!$F$256:$F$258,FALSE)),1)+IF(N75<>"",INDEX(Data!$I$256:$I$259,MATCH(N75,Data!$H$256:$H$259,FALSE)),1)-4)*0.2895/27)) -> 
A76: 0500.0072 | J76: =IF($B76="","",VLOOKUP($B76,Data!$B$318:$C$438,2,FALSE)) ->  | O76: =IF(B76="","",0.9*2^((IF(K76<>"",INDEX(Data!$C$256:$C$258,MATCH(K76,Data!$B$256:$B$258,FALSE)),1)+IF(L76<>"",INDEX(Data!$E$256:$E$260,MATCH(L76,Data!$D$256:$D$260,FALSE)),1)+IF(M76<>"",INDEX(Data!$G$256:$G$258,MATCH(M76,Data!$F$256:$F$258,FALSE)),1)+IF(N76<>"",INDEX(Data!$I$256:$I$259,MATCH(N76,Data!$H$256:$H$259,FALSE)),1)-4)*0.2895/27)) -> 
A77: 0500.0073 | J77: =IF($B77="","",VLOOKUP($B77,Data!$B$318:$C$438,2,FALSE)) ->  | O77: =IF(B77="","",0.9*2^((IF(K77<>"",INDEX(Data!$C$256:$C$258,MATCH(K77,Data!$B$256:$B$258,FALSE)),1)+IF(L77<>"",INDEX(Data!$E$256:$E$260,MATCH(L77,Data!$D$256:$D$260,FALSE)),1)+IF(M77<>"",INDEX(Data!$G$256:$G$258,MATCH(M77,Data!$F$256:$F$258,FALSE)),1)+IF(N77<>"",INDEX(Data!$I$256:$I$259,MATCH(N77,Data!$H$256:$H$259,FALSE)),1)-4)*0.2895/27)) -> 
A78: 0500.0074 | J78: =IF($B78="","",VLOOKUP($B78,Data!$B$318:$C$438,2,FALSE)) ->  | O78: =IF(B78="","",0.9*2^((IF(K78<>"",INDEX(Data!$C$256:$C$258,MATCH(K78,Data!$B$256:$B$258,FALSE)),1)+IF(L78<>"",INDEX(Data!$E$256:$E$260,MATCH(L78,Data!$D$256:$D$260,FALSE)),1)+IF(M78<>"",INDEX(Data!$G$256:$G$258,MATCH(M78,Data!$F$256:$F$258,FALSE)),1)+IF(N78<>"",INDEX(Data!$I$256:$I$259,MATCH(N78,Data!$H$256:$H$259,FALSE)),1)-4)*0.2895/27)) -> 
A79: 0500.0075 | J79: =IF($B79="","",VLOOKUP($B79,Data!$B$318:$C$438,2,FALSE)) ->  | O79: =IF(B79="","",0.9*2^((IF(K79<>"",INDEX(Data!$C$256:$C$258,MATCH(K79,Data!$B$256:$B$258,FALSE)),1)+IF(L79<>"",INDEX(Data!$E$256:$E$260,MATCH(L79,Data!$D$256:$D$260,FALSE)),1)+IF(M79<>"",INDEX(Data!$G$256:$G$258,MATCH(M79,Data!$F$256:$F$258,FALSE)),1)+IF(N79<>"",INDEX(Data!$I$256:$I$259,MATCH(N79,Data!$H$256:$H$259,FALSE)),1)-4)*0.2895/27)) -> 
A80: 0500.0076 | J80: =IF($B80="","",VLOOKUP($B80,Data!$B$318:$C$438,2,FALSE)) ->  | O80: =IF(B80="","",0.9*2^((IF(K80<>"",INDEX(Data!$C$256:$C$258,MATCH(K80,Data!$B$256:$B$258,FALSE)),1)+IF(L80<>"",INDEX(Data!$E$256:$E$260,MATCH(L80,Data!$D$256:$D$260,FALSE)),1)+IF(M80<>"",INDEX(Data!$G$256:$G$258,MATCH(M80,Data!$F$256:$F$258,FALSE)),1)+IF(N80<>"",INDEX(Data!$I$256:$I$259,MATCH(N80,Data!$H$256:$H$259,FALSE)),1)-4)*0.2895/27)) -> 
A81: 0500.0077 | J81: =IF($B81="","",VLOOKUP($B81,Data!$B$318:$C$438,2,FALSE)) ->  | O81: =IF(B81="","",0.9*2^((IF(K81<>"",INDEX(Data!$C$256:$C$258,MATCH(K81,Data!$B$256:$B$258,FALSE)),1)+IF(L81<>"",INDEX(Data!$E$256:$E$260,MATCH(L81,Data!$D$256:$D$260,FALSE)),1)+IF(M81<>"",INDEX(Data!$G$256:$G$258,MATCH(M81,Data!$F$256:$F$258,FALSE)),1)+IF(N81<>"",INDEX(Data!$I$256:$I$259,MATCH(N81,Data!$H$256:$H$259,FALSE)),1)-4)*0.2895/27)) -> 
A82: 0500.0078 | J82: =IF($B82="","",VLOOKUP($B82,Data!$B$318:$C$438,2,FALSE)) ->  | O82: =IF(B82="","",0.9*2^((IF(K82<>"",INDEX(Data!$C$256:$C$258,MATCH(K82,Data!$B$256:$B$258,FALSE)),1)+IF(L82<>"",INDEX(Data!$E$256:$E$260,MATCH(L82,Data!$D$256:$D$260,FALSE)),1)+IF(M82<>"",INDEX(Data!$G$256:$G$258,MATCH(M82,Data!$F$256:$F$258,FALSE)),1)+IF(N82<>"",INDEX(Data!$I$256:$I$259,MATCH(N82,Data!$H$256:$H$259,FALSE)),1)-4)*0.2895/27)) -> 
A83: 0500.0079 | J83: =IF($B83="","",VLOOKUP($B83,Data!$B$318:$C$438,2,FALSE)) ->  | O83: =IF(B83="","",0.9*2^((IF(K83<>"",INDEX(Data!$C$256:$C$258,MATCH(K83,Data!$B$256:$B$258,FALSE)),1)+IF(L83<>"",INDEX(Data!$E$256:$E$260,MATCH(L83,Data!$D$256:$D$260,FALSE)),1)+IF(M83<>"",INDEX(Data!$G$256:$G$258,MATCH(M83,Data!$F$256:$F$258,FALSE)),1)+IF(N83<>"",INDEX(Data!$I$256:$I$259,MATCH(N83,Data!$H$256:$H$259,FALSE)),1)-4)*0.2895/27)) -> 
A84: 0500.0080 | J84: =IF($B84="","",VLOOKUP($B84,Data!$B$318:$C$438,2,FALSE)) ->  | O84: =IF(B84="","",0.9*2^((IF(K84<>"",INDEX(Data!$C$256:$C$258,MATCH(K84,Data!$B$256:$B$258,FALSE)),1)+IF(L84<>"",INDEX(Data!$E$256:$E$260,MATCH(L84,Data!$D$256:$D$260,FALSE)),1)+IF(M84<>"",INDEX(Data!$G$256:$G$258,MATCH(M84,Data!$F$256:$F$258,FALSE)),1)+IF(N84<>"",INDEX(Data!$I$256:$I$259,MATCH(N84,Data!$H$256:$H$259,FALSE)),1)-4)*0.2895/27)) -> 
A85: 0500.0081 | J85: =IF($B85="","",VLOOKUP($B85,Data!$B$318:$C$438,2,FALSE)) ->  | O85: =IF(B85="","",0.9*2^((IF(K85<>"",INDEX(Data!$C$256:$C$258,MATCH(K85,Data!$B$256:$B$258,FALSE)),1)+IF(L85<>"",INDEX(Data!$E$256:$E$260,MATCH(L85,Data!$D$256:$D$260,FALSE)),1)+IF(M85<>"",INDEX(Data!$G$256:$G$258,MATCH(M85,Data!$F$256:$F$258,FALSE)),1)+IF(N85<>"",INDEX(Data!$I$256:$I$259,MATCH(N85,Data!$H$256:$H$259,FALSE)),1)-4)*0.2895/27)) -> 
A86: 0500.0082 | J86: =IF($B86="","",VLOOKUP($B86,Data!$B$318:$C$438,2,FALSE)) ->  | O86: =IF(B86="","",0.9*2^((IF(K86<>"",INDEX(Data!$C$256:$C$258,MATCH(K86,Data!$B$256:$B$258,FALSE)),1)+IF(L86<>"",INDEX(Data!$E$256:$E$260,MATCH(L86,Data!$D$256:$D$260,FALSE)),1)+IF(M86<>"",INDEX(Data!$G$256:$G$258,MATCH(M86,Data!$F$256:$F$258,FALSE)),1)+IF(N86<>"",INDEX(Data!$I$256:$I$259,MATCH(N86,Data!$H$256:$H$259,FALSE)),1)-4)*0.2895/27)) -> 
A87: 0500.0083 | J87: =IF($B87="","",VLOOKUP($B87,Data!$B$318:$C$438,2,FALSE)) ->  | O87: =IF(B87="","",0.9*2^((IF(K87<>"",INDEX(Data!$C$256:$C$258,MATCH(K87,Data!$B$256:$B$258,FALSE)),1)+IF(L87<>"",INDEX(Data!$E$256:$E$260,MATCH(L87,Data!$D$256:$D$260,FALSE)),1)+IF(M87<>"",INDEX(Data!$G$256:$G$258,MATCH(M87,Data!$F$256:$F$258,FALSE)),1)+IF(N87<>"",INDEX(Data!$I$256:$I$259,MATCH(N87,Data!$H$256:$H$259,FALSE)),1)-4)*0.2895/27)) -> 
A88: 0500.0084 | J88: =IF($B88="","",VLOOKUP($B88,Data!$B$318:$C$438,2,FALSE)) ->  | O88: =IF(B88="","",0.9*2^((IF(K88<>"",INDEX(Data!$C$256:$C$258,MATCH(K88,Data!$B$256:$B$258,FALSE)),1)+IF(L88<>"",INDEX(Data!$E$256:$E$260,MATCH(L88,Data!$D$256:$D$260,FALSE)),1)+IF(M88<>"",INDEX(Data!$G$256:$G$258,MATCH(M88,Data!$F$256:$F$258,FALSE)),1)+IF(N88<>"",INDEX(Data!$I$256:$I$259,MATCH(N88,Data!$H$256:$H$259,FALSE)),1)-4)*0.2895/27)) -> 
A89: 0500.0085 | J89: =IF($B89="","",VLOOKUP($B89,Data!$B$318:$C$438,2,FALSE)) ->  | O89: =IF(B89="","",0.9*2^((IF(K89<>"",INDEX(Data!$C$256:$C$258,MATCH(K89,Data!$B$256:$B$258,FALSE)),1)+IF(L89<>"",INDEX(Data!$E$256:$E$260,MATCH(L89,Data!$D$256:$D$260,FALSE)),1)+IF(M89<>"",INDEX(Data!$G$256:$G$258,MATCH(M89,Data!$F$256:$F$258,FALSE)),1)+IF(N89<>"",INDEX(Data!$I$256:$I$259,MATCH(N89,Data!$H$256:$H$259,FALSE)),1)-4)*0.2895/27)) -> 
A90: 0500.0086 | J90: =IF($B90="","",VLOOKUP($B90,Data!$B$318:$C$438,2,FALSE)) ->  | O90: =IF(B90="","",0.9*2^((IF(K90<>"",INDEX(Data!$C$256:$C$258,MATCH(K90,Data!$B$256:$B$258,FALSE)),1)+IF(L90<>"",INDEX(Data!$E$256:$E$260,MATCH(L90,Data!$D$256:$D$260,FALSE)),1)+IF(M90<>"",INDEX(Data!$G$256:$G$258,MATCH(M90,Data!$F$256:$F$258,FALSE)),1)+IF(N90<>"",INDEX(Data!$I$256:$I$259,MATCH(N90,Data!$H$256:$H$259,FALSE)),1)-4)*0.2895/27)) -> 
A91: 0500.0087 | J91: =IF($B91="","",VLOOKUP($B91,Data!$B$318:$C$438,2,FALSE)) ->  | O91: =IF(B91="","",0.9*2^((IF(K91<>"",INDEX(Data!$C$256:$C$258,MATCH(K91,Data!$B$256:$B$258,FALSE)),1)+IF(L91<>"",INDEX(Data!$E$256:$E$260,MATCH(L91,Data!$D$256:$D$260,FALSE)),1)+IF(M91<>"",INDEX(Data!$G$256:$G$258,MATCH(M91,Data!$F$256:$F$258,FALSE)),1)+IF(N91<>"",INDEX(Data!$I$256:$I$259,MATCH(N91,Data!$H$256:$H$259,FALSE)),1)-4)*0.2895/27)) -> 
A92: 0500.0088 | J92: =IF($B92="","",VLOOKUP($B92,Data!$B$318:$C$438,2,FALSE)) ->  | O92: =IF(B92="","",0.9*2^((IF(K92<>"",INDEX(Data!$C$256:$C$258,MATCH(K92,Data!$B$256:$B$258,FALSE)),1)+IF(L92<>"",INDEX(Data!$E$256:$E$260,MATCH(L92,Data!$D$256:$D$260,FALSE)),1)+IF(M92<>"",INDEX(Data!$G$256:$G$258,MATCH(M92,Data!$F$256:$F$258,FALSE)),1)+IF(N92<>"",INDEX(Data!$I$256:$I$259,MATCH(N92,Data!$H$256:$H$259,FALSE)),1)-4)*0.2895/27)) -> 
A93: 0500.0089 | J93: =IF($B93="","",VLOOKUP($B93,Data!$B$318:$C$438,2,FALSE)) ->  | O93: =IF(B93="","",0.9*2^((IF(K93<>"",INDEX(Data!$C$256:$C$258,MATCH(K93,Data!$B$256:$B$258,FALSE)),1)+IF(L93<>"",INDEX(Data!$E$256:$E$260,MATCH(L93,Data!$D$256:$D$260,FALSE)),1)+IF(M93<>"",INDEX(Data!$G$256:$G$258,MATCH(M93,Data!$F$256:$F$258,FALSE)),1)+IF(N93<>"",INDEX(Data!$I$256:$I$259,MATCH(N93,Data!$H$256:$H$259,FALSE)),1)-4)*0.2895/27)) -> 
A94: 0500.0090 | J94: =IF($B94="","",VLOOKUP($B94,Data!$B$318:$C$438,2,FALSE)) ->  | O94: =IF(B94="","",0.9*2^((IF(K94<>"",INDEX(Data!$C$256:$C$258,MATCH(K94,Data!$B$256:$B$258,FALSE)),1)+IF(L94<>"",INDEX(Data!$E$256:$E$260,MATCH(L94,Data!$D$256:$D$260,FALSE)),1)+IF(M94<>"",INDEX(Data!$G$256:$G$258,MATCH(M94,Data!$F$256:$F$258,FALSE)),1)+IF(N94<>"",INDEX(Data!$I$256:$I$259,MATCH(N94,Data!$H$256:$H$259,FALSE)),1)-4)*0.2895/27)) -> 
A95: 0500.0091 | J95: =IF($B95="","",VLOOKUP($B95,Data!$B$318:$C$438,2,FALSE)) ->  | O95: =IF(B95="","",0.9*2^((IF(K95<>"",INDEX(Data!$C$256:$C$258,MATCH(K95,Data!$B$256:$B$258,FALSE)),1)+IF(L95<>"",INDEX(Data!$E$256:$E$260,MATCH(L95,Data!$D$256:$D$260,FALSE)),1)+IF(M95<>"",INDEX(Data!$G$256:$G$258,MATCH(M95,Data!$F$256:$F$258,FALSE)),1)+IF(N95<>"",INDEX(Data!$I$256:$I$259,MATCH(N95,Data!$H$256:$H$259,FALSE)),1)-4)*0.2895/27)) -> 
A96: 0500.0092 | J96: =IF($B96="","",VLOOKUP($B96,Data!$B$318:$C$438,2,FALSE)) ->  | O96: =IF(B96="","",0.9*2^((IF(K96<>"",INDEX(Data!$C$256:$C$258,MATCH(K96,Data!$B$256:$B$258,FALSE)),1)+IF(L96<>"",INDEX(Data!$E$256:$E$260,MATCH(L96,Data!$D$256:$D$260,FALSE)),1)+IF(M96<>"",INDEX(Data!$G$256:$G$258,MATCH(M96,Data!$F$256:$F$258,FALSE)),1)+IF(N96<>"",INDEX(Data!$I$256:$I$259,MATCH(N96,Data!$H$256:$H$259,FALSE)),1)-4)*0.2895/27)) -> 
A97: 0500.0093 | J97: =IF($B97="","",VLOOKUP($B97,Data!$B$318:$C$438,2,FALSE)) ->  | O97: =IF(B97="","",0.9*2^((IF(K97<>"",INDEX(Data!$C$256:$C$258,MATCH(K97,Data!$B$256:$B$258,FALSE)),1)+IF(L97<>"",INDEX(Data!$E$256:$E$260,MATCH(L97,Data!$D$256:$D$260,FALSE)),1)+IF(M97<>"",INDEX(Data!$G$256:$G$258,MATCH(M97,Data!$F$256:$F$258,FALSE)),1)+IF(N97<>"",INDEX(Data!$I$256:$I$259,MATCH(N97,Data!$H$256:$H$259,FALSE)),1)-4)*0.2895/27)) -> 
A98: 0500.0094 | J98: =IF($B98="","",VLOOKUP($B98,Data!$B$318:$C$438,2,FALSE)) ->  | O98: =IF(B98="","",0.9*2^((IF(K98<>"",INDEX(Data!$C$256:$C$258,MATCH(K98,Data!$B$256:$B$258,FALSE)),1)+IF(L98<>"",INDEX(Data!$E$256:$E$260,MATCH(L98,Data!$D$256:$D$260,FALSE)),1)+IF(M98<>"",INDEX(Data!$G$256:$G$258,MATCH(M98,Data!$F$256:$F$258,FALSE)),1)+IF(N98<>"",INDEX(Data!$I$256:$I$259,MATCH(N98,Data!$H$256:$H$259,FALSE)),1)-4)*0.2895/27)) -> 
A99: 0500.0095 | J99: =IF($B99="","",VLOOKUP($B99,Data!$B$318:$C$438,2,FALSE)) ->  | O99: =IF(B99="","",0.9*2^((IF(K99<>"",INDEX(Data!$C$256:$C$258,MATCH(K99,Data!$B$256:$B$258,FALSE)),1)+IF(L99<>"",INDEX(Data!$E$256:$E$260,MATCH(L99,Data!$D$256:$D$260,FALSE)),1)+IF(M99<>"",INDEX(Data!$G$256:$G$258,MATCH(M99,Data!$F$256:$F$258,FALSE)),1)+IF(N99<>"",INDEX(Data!$I$256:$I$259,MATCH(N99,Data!$H$256:$H$259,FALSE)),1)-4)*0.2895/27)) -> 
A100: 0500.0096 | J100: =IF($B100="","",VLOOKUP($B100,Data!$B$318:$C$438,2,FALSE)) ->  | O100: =IF(B100="","",0.9*2^((IF(K100<>"",INDEX(Data!$C$256:$C$258,MATCH(K100,Data!$B$256:$B$258,FALSE)),1)+IF(L100<>"",INDEX(Data!$E$256:$E$260,MATCH(L100,Data!$D$256:$D$260,FALSE)),1)+IF(M100<>"",INDEX(Data!$G$256:$G$258,MATCH(M100,Data!$F$256:$F$258,FALSE)),1)+IF(N100<>"",INDEX(Data!$I$256:$I$259,MATCH(N100,Data!$H$256:$H$259,FALSE)),1)-4)*0.2895/27)) -> 
A101: 0500.0097 | J101: =IF($B101="","",VLOOKUP($B101,Data!$B$318:$C$438,2,FALSE)) ->  | O101: =IF(B101="","",0.9*2^((IF(K101<>"",INDEX(Data!$C$256:$C$258,MATCH(K101,Data!$B$256:$B$258,FALSE)),1)+IF(L101<>"",INDEX(Data!$E$256:$E$260,MATCH(L101,Data!$D$256:$D$260,FALSE)),1)+IF(M101<>"",INDEX(Data!$G$256:$G$258,MATCH(M101,Data!$F$256:$F$258,FALSE)),1)+IF(N101<>"",INDEX(Data!$I$256:$I$259,MATCH(N101,Data!$H$256:$H$259,FALSE)),1)-4)*0.2895/27)) -> 
A102: 0500.0098 | J102: =IF($B102="","",VLOOKUP($B102,Data!$B$318:$C$438,2,FALSE)) ->  | O102: =IF(B102="","",0.9*2^((IF(K102<>"",INDEX(Data!$C$256:$C$258,MATCH(K102,Data!$B$256:$B$258,FALSE)),1)+IF(L102<>"",INDEX(Data!$E$256:$E$260,MATCH(L102,Data!$D$256:$D$260,FALSE)),1)+IF(M102<>"",INDEX(Data!$G$256:$G$258,MATCH(M102,Data!$F$256:$F$258,FALSE)),1)+IF(N102<>"",INDEX(Data!$I$256:$I$259,MATCH(N102,Data!$H$256:$H$259,FALSE)),1)-4)*0.2895/27)) -> 
A103: 0500.0099 | J103: =IF($B103="","",VLOOKUP($B103,Data!$B$318:$C$438,2,FALSE)) ->  | O103: =IF(B103="","",0.9*2^((IF(K103<>"",INDEX(Data!$C$256:$C$258,MATCH(K103,Data!$B$256:$B$258,FALSE)),1)+IF(L103<>"",INDEX(Data!$E$256:$E$260,MATCH(L103,Data!$D$256:$D$260,FALSE)),1)+IF(M103<>"",INDEX(Data!$G$256:$G$258,MATCH(M103,Data!$F$256:$F$258,FALSE)),1)+IF(N103<>"",INDEX(Data!$I$256:$I$259,MATCH(N103,Data!$H$256:$H$259,FALSE)),1)-4)*0.2895/27)) -> 
A104: 0500.0100 | J104: =IF($B104="","",VLOOKUP($B104,Data!$B$318:$C$438,2,FALSE)) ->  | O104: =IF(B104="","",0.9*2^((IF(K104<>"",INDEX(Data!$C$256:$C$258,MATCH(K104,Data!$B$256:$B$258,FALSE)),1)+IF(L104<>"",INDEX(Data!$E$256:$E$260,MATCH(L104,Data!$D$256:$D$260,FALSE)),1)+IF(M104<>"",INDEX(Data!$G$256:$G$258,MATCH(M104,Data!$F$256:$F$258,FALSE)),1)+IF(N104<>"",INDEX(Data!$I$256:$I$259,MATCH(N104,Data!$H$256:$H$259,FALSE)),1)-4)*0.2895/27)) -> 

Sheet 600 Earthworks
A1: These Earthworks features have been identified as being present in Section.
C2: Verge assessed | D2: ='Basic (Common Details)'!C36 -> 0 | E2: Start Chainage of Section | F2: ='Basic (Common Details)'!C34 -> 0 | G2: End Chainage of Section | H2: ='Basic (Common Details)'!D34 -> 0
A3: Local Site Features
A4: ID Number | B4: Nature of Hazard | C4: Start chainage of hazard | D4: Width of slope | E4: Offset of hazard from PSb | F4: Overall Height slope | G4: Overall width slope | H4: Ave gradient of Slope % (+ve for cut, -ve for fill) | I4: Local alignment (F2) | J4: Sleep - related Site (F3) | K4: Speed (F4) | L4: Other features (F6) | M4: Typical surface of slope | N4: Typical location of Highway Boundary | O4: Length of hazard | P4: Aggressiveness | Q4: Multiplicative factor for runoff rate | R4: Topography Factor | S4: Width of hazard
A5: 0600.0001 | G5: =IF(B5="","",D5) ->  | H5: =IF(B5="","",IF(AND(MID(B5,1,3) = "Ris",F5>0),F5/G5,IF(AND(MID(B5,1,3) = "Fal",F5<0),F5/G5,IF(AND(MID(B5,1,3) = "Nom",F5=0),0,IF(AND(LEFT(B5,7)="Exposed",F5>0),F5/G5,IF(AND(MID(B5,1,3) = "",F5=0),0,"Height of slope has incorrect sign")))))) ->  | O5: =IF(B5="","",C6-C5) ->  | P5: =IF($B5="","",IF(ABS($F5)>=VLOOKUP($B5,Data!$B$318:$E$437,4,FALSE),VLOOKUP($B5,Data!$B$318:$E$437,3,FALSE),VLOOKUP($B5,Data!$B$318:$E$437,2,FALSE))) ->  | Q5: =IF(B5="","",0.9*2^((IF(I5<>"",INDEX(Data!$C$256:$C$258,MATCH(I5,Data!$B$256:$B$258,FALSE)),1)+IF(J5<>"",INDEX(Data!$E$256:$E$260,MATCH(J5,Data!$D$256:$D$260,FALSE)),1)+IF(K5<>"",INDEX(Data!$G$256:$G$258,MATCH(K5,Data!$F$256:$F$258,FALSE)),1)+IF(L5<>"",INDEX(Data!$I$256:$I$259,MATCH(L5,Data!$H$256:$H$259,FALSE)),1)-4)*0.2895/27)) ->  | R5: =IF(B5="","",1) ->  | S5: =IF(B5="","",D5) -> 
A6: 0600.0002 | P6: =IF($B6="","",IF(ABS($F6)>=VLOOKUP($B6,Data!$B$318:$E$437,4,FALSE),VLOOKUP($B6,Data!$B$318:$E$437,3,FALSE),VLOOKUP($B6,Data!$B$318:$E$437,2,FALSE))) ->  | Q6: =IF(B6="","",0.9*2^((IF(I6<>"",INDEX(Data!$C$256:$C$258,MATCH(I6,Data!$B$256:$B$258,FALSE)),1)+IF(J6<>"",INDEX(Data!$E$256:$E$260,MATCH(J6,Data!$D$256:$D$260,FALSE)),1)+IF(K6<>"",INDEX(Data!$G$256:$G$258,MATCH(K6,Data!$F$256:$F$258,FALSE)),1)+IF(L6<>"",INDEX(Data!$I$256:$I$259,MATCH(L6,Data!$H$256:$H$259,FALSE)),1)-4)*0.2895/27)) ->  | S6: =IF(B6="","",D6) -> 
A7: 0600.0003 | P7: =IF($B7="","",IF(ABS($F7)>=VLOOKUP($B7,Data!$B$318:$E$437,4,FALSE),VLOOKUP($B7,Data!$B$318:$E$437,3,FALSE),VLOOKUP($B7,Data!$B$318:$E$437,2,FALSE))) ->  | Q7: =IF(B7="","",0.9*2^((IF(I7<>"",INDEX(Data!$C$256:$C$258,MATCH(I7,Data!$B$256:$B$258,FALSE)),1)+IF(J7<>"",INDEX(Data!$E$256:$E$260,MATCH(J7,Data!$D$256:$D$260,FALSE)),1)+IF(K7<>"",INDEX(Data!$G$256:$G$258,MATCH(K7,Data!$F$256:$F$258,FALSE)),1)+IF(L7<>"",INDEX(Data!$I$256:$I$259,MATCH(L7,Data!$H$256:$H$259,FALSE)),1)-4)*0.2895/27)) -> 
A8: 0600.0004 | P8: =IF($B8="","",IF(ABS($F8)>=VLOOKUP($B8,Data!$B$318:$E$437,4,FALSE),VLOOKUP($B8,Data!$B$318:$E$437,3,FALSE),VLOOKUP($B8,Data!$B$318:$E$437,2,FALSE))) ->  | Q8: =IF(B8="","",0.9*2^((IF(I8<>"",INDEX(Data!$C$256:$C$258,MATCH(I8,Data!$B$256:$B$258,FALSE)),1)+IF(J8<>"",INDEX(Data!$E$256:$E$260,MATCH(J8,Data!$D$256:$D$260,FALSE)),1)+IF(K8<>"",INDEX(Data!$G$256:$G$258,MATCH(K8,Data!$F$256:$F$258,FALSE)),1)+IF(L8<>"",INDEX(Data!$I$256:$I$259,MATCH(L8,Data!$H$256:$H$259,FALSE)),1)-4)*0.2895/27)) -> 
A9: 0600.0005 | P9: =IF($B9="","",IF(ABS($F9)>=VLOOKUP($B9,Data!$B$318:$E$437,4,FALSE),VLOOKUP($B9,Data!$B$318:$E$437,3,FALSE),VLOOKUP($B9,Data!$B$318:$E$437,2,FALSE))) ->  | Q9: =IF(B9="","",0.9*2^((IF(I9<>"",INDEX(Data!$C$256:$C$258,MATCH(I9,Data!$B$256:$B$258,FALSE)),1)+IF(J9<>"",INDEX(Data!$E$256:$E$260,MATCH(J9,Data!$D$256:$D$260,FALSE)),1)+IF(K9<>"",INDEX(Data!$G$256:$G$258,MATCH(K9,Data!$F$256:$F$258,FALSE)),1)+IF(L9<>"",INDEX(Data!$I$256:$I$259,MATCH(L9,Data!$H$256:$H$259,FALSE)),1)-4)*0.2895/27)) -> 
A10: 0600.0006 | P10: =IF($B10="","",IF(ABS($F10)>=VLOOKUP($B10,Data!$B$318:$E$437,4,FALSE),VLOOKUP($B10,Data!$B$318:$E$437,3,FALSE),VLOOKUP($B10,Data!$B$318:$E$437,2,FALSE))) ->  | Q10: =IF(B10="","",0.9*2^((IF(I10<>"",INDEX(Data!$C$256:$C$258,MATCH(I10,Data!$B$256:$B$258,FALSE)),1)+IF(J10<>"",INDEX(Data!$E$256:$E$260,MATCH(J10,Data!$D$256:$D$260,FALSE)),1)+IF(K10<>"",INDEX(Data!$G$256:$G$258,MATCH(K10,Data!$F$256:$F$258,FALSE)),1)+IF(L10<>"",INDEX(Data!$I$256:$I$259,MATCH(L10,Data!$H$256:$H$259,FALSE)),1)-4)*0.2895/27)) -> 
A11: 0600.0007 | P11: =IF($B11="","",IF(ABS($F11)>=VLOOKUP($B11,Data!$B$318:$E$437,4,FALSE),VLOOKUP($B11,Data!$B$318:$E$437,3,FALSE),VLOOKUP($B11,Data!$B$318:$E$437,2,FALSE))) ->  | Q11: =IF(B11="","",0.9*2^((IF(I11<>"",INDEX(Data!$C$256:$C$258,MATCH(I11,Data!$B$256:$B$258,FALSE)),1)+IF(J11<>"",INDEX(Data!$E$256:$E$260,MATCH(J11,Data!$D$256:$D$260,FALSE)),1)+IF(K11<>"",INDEX(Data!$G$256:$G$258,MATCH(K11,Data!$F$256:$F$258,FALSE)),1)+IF(L11<>"",INDEX(Data!$I$256:$I$259,MATCH(L11,Data!$H$256:$H$259,FALSE)),1)-4)*0.2895/27)) -> 
A12: 0600.0008 | P12: =IF($B12="","",IF(ABS($F12)>=VLOOKUP($B12,Data!$B$318:$E$437,4,FALSE),VLOOKUP($B12,Data!$B$318:$E$437,3,FALSE),VLOOKUP($B12,Data!$B$318:$E$437,2,FALSE))) ->  | Q12: =IF(B12="","",0.9*2^((IF(I12<>"",INDEX(Data!$C$256:$C$258,MATCH(I12,Data!$B$256:$B$258,FALSE)),1)+IF(J12<>"",INDEX(Data!$E$256:$E$260,MATCH(J12,Data!$D$256:$D$260,FALSE)),1)+IF(K12<>"",INDEX(Data!$G$256:$G$258,MATCH(K12,Data!$F$256:$F$258,FALSE)),1)+IF(L12<>"",INDEX(Data!$I$256:$I$259,MATCH(L12,Data!$H$256:$H$259,FALSE)),1)-4)*0.2895/27)) -> 
A13: 0600.0009 | P13: =IF($B13="","",IF(ABS($F13)>=VLOOKUP($B13,Data!$B$318:$E$437,4,FALSE),VLOOKUP($B13,Data!$B$318:$E$437,3,FALSE),VLOOKUP($B13,Data!$B$318:$E$437,2,FALSE))) ->  | Q13: =IF(B13="","",0.9*2^((IF(I13<>"",INDEX(Data!$C$256:$C$258,MATCH(I13,Data!$B$256:$B$258,FALSE)),1)+IF(J13<>"",INDEX(Data!$E$256:$E$260,MATCH(J13,Data!$D$256:$D$260,FALSE)),1)+IF(K13<>"",INDEX(Data!$G$256:$G$258,MATCH(K13,Data!$F$256:$F$258,FALSE)),1)+IF(L13<>"",INDEX(Data!$I$256:$I$259,MATCH(L13,Data!$H$256:$H$259,FALSE)),1)-4)*0.2895/27)) -> 
A14: 0600.0010 | P14: =IF($B14="","",IF(ABS($F14)>=VLOOKUP($B14,Data!$B$318:$E$437,4,FALSE),VLOOKUP($B14,Data!$B$318:$E$437,3,FALSE),VLOOKUP($B14,Data!$B$318:$E$437,2,FALSE))) ->  | Q14: =IF(B14="","",0.9*2^((IF(I14<>"",INDEX(Data!$C$256:$C$258,MATCH(I14,Data!$B$256:$B$258,FALSE)),1)+IF(J14<>"",INDEX(Data!$E$256:$E$260,MATCH(J14,Data!$D$256:$D$260,FALSE)),1)+IF(K14<>"",INDEX(Data!$G$256:$G$258,MATCH(K14,Data!$F$256:$F$258,FALSE)),1)+IF(L14<>"",INDEX(Data!$I$256:$I$259,MATCH(L14,Data!$H$256:$H$259,FALSE)),1)-4)*0.2895/27)) -> 
A15: 0600.0011 | P15: =IF($B15="","",IF(ABS($F15)>=VLOOKUP($B15,Data!$B$318:$E$437,4,FALSE),VLOOKUP($B15,Data!$B$318:$E$437,3,FALSE),VLOOKUP($B15,Data!$B$318:$E$437,2,FALSE))) ->  | Q15: =IF(B15="","",0.9*2^((IF(I15<>"",INDEX(Data!$C$256:$C$258,MATCH(I15,Data!$B$256:$B$258,FALSE)),1)+IF(J15<>"",INDEX(Data!$E$256:$E$260,MATCH(J15,Data!$D$256:$D$260,FALSE)),1)+IF(K15<>"",INDEX(Data!$G$256:$G$258,MATCH(K15,Data!$F$256:$F$258,FALSE)),1)+IF(L15<>"",INDEX(Data!$I$256:$I$259,MATCH(L15,Data!$H$256:$H$259,FALSE)),1)-4)*0.2895/27)) -> 
A16: 0600.0012 | P16: =IF($B16="","",IF(ABS($F16)>=VLOOKUP($B16,Data!$B$318:$E$437,4,FALSE),VLOOKUP($B16,Data!$B$318:$E$437,3,FALSE),VLOOKUP($B16,Data!$B$318:$E$437,2,FALSE))) ->  | Q16: =IF(B16="","",0.9*2^((IF(I16<>"",INDEX(Data!$C$256:$C$258,MATCH(I16,Data!$B$256:$B$258,FALSE)),1)+IF(J16<>"",INDEX(Data!$E$256:$E$260,MATCH(J16,Data!$D$256:$D$260,FALSE)),1)+IF(K16<>"",INDEX(Data!$G$256:$G$258,MATCH(K16,Data!$F$256:$F$258,FALSE)),1)+IF(L16<>"",INDEX(Data!$I$256:$I$259,MATCH(L16,Data!$H$256:$H$259,FALSE)),1)-4)*0.2895/27)) -> 
A17: 0600.0013 | P17: =IF($B17="","",IF(ABS($F17)>=VLOOKUP($B17,Data!$B$318:$E$437,4,FALSE),VLOOKUP($B17,Data!$B$318:$E$437,3,FALSE),VLOOKUP($B17,Data!$B$318:$E$437,2,FALSE))) ->  | Q17: =IF(B17="","",0.9*2^((IF(I17<>"",INDEX(Data!$C$256:$C$258,MATCH(I17,Data!$B$256:$B$258,FALSE)),1)+IF(J17<>"",INDEX(Data!$E$256:$E$260,MATCH(J17,Data!$D$256:$D$260,FALSE)),1)+IF(K17<>"",INDEX(Data!$G$256:$G$258,MATCH(K17,Data!$F$256:$F$258,FALSE)),1)+IF(L17<>"",INDEX(Data!$I$256:$I$259,MATCH(L17,Data!$H$256:$H$259,FALSE)),1)-4)*0.2895/27)) -> 
A18: 0600.0014 | P18: =IF($B18="","",IF(ABS($F18)>=VLOOKUP($B18,Data!$B$318:$E$437,4,FALSE),VLOOKUP($B18,Data!$B$318:$E$437,3,FALSE),VLOOKUP($B18,Data!$B$318:$E$437,2,FALSE))) ->  | Q18: =IF(B18="","",0.9*2^((IF(I18<>"",INDEX(Data!$C$256:$C$258,MATCH(I18,Data!$B$256:$B$258,FALSE)),1)+IF(J18<>"",INDEX(Data!$E$256:$E$260,MATCH(J18,Data!$D$256:$D$260,FALSE)),1)+IF(K18<>"",INDEX(Data!$G$256:$G$258,MATCH(K18,Data!$F$256:$F$258,FALSE)),1)+IF(L18<>"",INDEX(Data!$I$256:$I$259,MATCH(L18,Data!$H$256:$H$259,FALSE)),1)-4)*0.2895/27)) -> 
A19: 0600.0015 | P19: =IF($B19="","",IF(ABS($F19)>=VLOOKUP($B19,Data!$B$318:$E$437,4,FALSE),VLOOKUP($B19,Data!$B$318:$E$437,3,FALSE),VLOOKUP($B19,Data!$B$318:$E$437,2,FALSE))) ->  | Q19: =IF(B19="","",0.9*2^((IF(I19<>"",INDEX(Data!$C$256:$C$258,MATCH(I19,Data!$B$256:$B$258,FALSE)),1)+IF(J19<>"",INDEX(Data!$E$256:$E$260,MATCH(J19,Data!$D$256:$D$260,FALSE)),1)+IF(K19<>"",INDEX(Data!$G$256:$G$258,MATCH(K19,Data!$F$256:$F$258,FALSE)),1)+IF(L19<>"",INDEX(Data!$I$256:$I$259,MATCH(L19,Data!$H$256:$H$259,FALSE)),1)-4)*0.2895/27)) -> 
A20: 0600.0016 | P20: =IF($B20="","",IF(ABS($F20)>=VLOOKUP($B20,Data!$B$318:$E$437,4,FALSE),VLOOKUP($B20,Data!$B$318:$E$437,3,FALSE),VLOOKUP($B20,Data!$B$318:$E$437,2,FALSE))) ->  | Q20: =IF(B20="","",0.9*2^((IF(I20<>"",INDEX(Data!$C$256:$C$258,MATCH(I20,Data!$B$256:$B$258,FALSE)),1)+IF(J20<>"",INDEX(Data!$E$256:$E$260,MATCH(J20,Data!$D$256:$D$260,FALSE)),1)+IF(K20<>"",INDEX(Data!$G$256:$G$258,MATCH(K20,Data!$F$256:$F$258,FALSE)),1)+IF(L20<>"",INDEX(Data!$I$256:$I$259,MATCH(L20,Data!$H$256:$H$259,FALSE)),1)-4)*0.2895/27)) -> 
A21: 0600.0017 | P21: =IF($B21="","",IF(ABS($F21)>=VLOOKUP($B21,Data!$B$318:$E$437,4,FALSE),VLOOKUP($B21,Data!$B$318:$E$437,3,FALSE),VLOOKUP($B21,Data!$B$318:$E$437,2,FALSE))) ->  | Q21: =IF(B21="","",0.9*2^((IF(I21<>"",INDEX(Data!$C$256:$C$258,MATCH(I21,Data!$B$256:$B$258,FALSE)),1)+IF(J21<>"",INDEX(Data!$E$256:$E$260,MATCH(J21,Data!$D$256:$D$260,FALSE)),1)+IF(K21<>"",INDEX(Data!$G$256:$G$258,MATCH(K21,Data!$F$256:$F$258,FALSE)),1)+IF(L21<>"",INDEX(Data!$I$256:$I$259,MATCH(L21,Data!$H$256:$H$259,FALSE)),1)-4)*0.2895/27)) -> 
A22: 0600.0018 | P22: =IF($B22="","",IF(ABS($F22)>=VLOOKUP($B22,Data!$B$318:$E$437,4,FALSE),VLOOKUP($B22,Data!$B$318:$E$437,3,FALSE),VLOOKUP($B22,Data!$B$318:$E$437,2,FALSE))) ->  | Q22: =IF(B22="","",0.9*2^((IF(I22<>"",INDEX(Data!$C$256:$C$258,MATCH(I22,Data!$B$256:$B$258,FALSE)),1)+IF(J22<>"",INDEX(Data!$E$256:$E$260,MATCH(J22,Data!$D$256:$D$260,FALSE)),1)+IF(K22<>"",INDEX(Data!$G$256:$G$258,MATCH(K22,Data!$F$256:$F$258,FALSE)),1)+IF(L22<>"",INDEX(Data!$I$256:$I$259,MATCH(L22,Data!$H$256:$H$259,FALSE)),1)-4)*0.2895/27)) -> 
A23: 0600.0019 | P23: =IF($B23="","",IF(ABS($F23)>=VLOOKUP($B23,Data!$B$318:$E$437,4,FALSE),VLOOKUP($B23,Data!$B$318:$E$437,3,FALSE),VLOOKUP($B23,Data!$B$318:$E$437,2,FALSE))) ->  | Q23: =IF(B23="","",0.9*2^((IF(I23<>"",INDEX(Data!$C$256:$C$258,MATCH(I23,Data!$B$256:$B$258,FALSE)),1)+IF(J23<>"",INDEX(Data!$E$256:$E$260,MATCH(J23,Data!$D$256:$D$260,FALSE)),1)+IF(K23<>"",INDEX(Data!$G$256:$G$258,MATCH(K23,Data!$F$256:$F$258,FALSE)),1)+IF(L23<>"",INDEX(Data!$I$256:$I$259,MATCH(L23,Data!$H$256:$H$259,FALSE)),1)-4)*0.2895/27)) -> 
A24: 0600.0020 | P24: =IF($B24="","",IF(ABS($F24)>=VLOOKUP($B24,Data!$B$318:$E$437,4,FALSE),VLOOKUP($B24,Data!$B$318:$E$437,3,FALSE),VLOOKUP($B24,Data!$B$318:$E$437,2,FALSE))) ->  | Q24: =IF(B24="","",0.9*2^((IF(I24<>"",INDEX(Data!$C$256:$C$258,MATCH(I24,Data!$B$256:$B$258,FALSE)),1)+IF(J24<>"",INDEX(Data!$E$256:$E$260,MATCH(J24,Data!$D$256:$D$260,FALSE)),1)+IF(K24<>"",INDEX(Data!$G$256:$G$258,MATCH(K24,Data!$F$256:$F$258,FALSE)),1)+IF(L24<>"",INDEX(Data!$I$256:$I$259,MATCH(L24,Data!$H$256:$H$259,FALSE)),1)-4)*0.2895/27)) -> 
A25: 0600.0021 | P25: =IF($B25="","",IF(ABS($F25)>=VLOOKUP($B25,Data!$B$318:$E$437,4,FALSE),VLOOKUP($B25,Data!$B$318:$E$437,3,FALSE),VLOOKUP($B25,Data!$B$318:$E$437,2,FALSE))) ->  | Q25: =IF(B25="","",0.9*2^((IF(I25<>"",INDEX(Data!$C$256:$C$258,MATCH(I25,Data!$B$256:$B$258,FALSE)),1)+IF(J25<>"",INDEX(Data!$E$256:$E$260,MATCH(J25,Data!$D$256:$D$260,FALSE)),1)+IF(K25<>"",INDEX(Data!$G$256:$G$258,MATCH(K25,Data!$F$256:$F$258,FALSE)),1)+IF(L25<>"",INDEX(Data!$I$256:$I$259,MATCH(L25,Data!$H$256:$H$259,FALSE)),1)-4)*0.2895/27)) -> 
A26: 0600.0022 | P26: =IF($B26="","",IF(ABS($F26)>=VLOOKUP($B26,Data!$B$318:$E$437,4,FALSE),VLOOKUP($B26,Data!$B$318:$E$437,3,FALSE),VLOOKUP($B26,Data!$B$318:$E$437,2,FALSE))) ->  | Q26: =IF(B26="","",0.9*2^((IF(I26<>"",INDEX(Data!$C$256:$C$258,MATCH(I26,Data!$B$256:$B$258,FALSE)),1)+IF(J26<>"",INDEX(Data!$E$256:$E$260,MATCH(J26,Data!$D$256:$D$260,FALSE)),1)+IF(K26<>"",INDEX(Data!$G$256:$G$258,MATCH(K26,Data!$F$256:$F$258,FALSE)),1)+IF(L26<>"",INDEX(Data!$I$256:$I$259,MATCH(L26,Data!$H$256:$H$259,FALSE)),1)-4)*0.2895/27)) -> 
A27: 0600.0023 | P27: =IF($B27="","",IF(ABS($F27)>=VLOOKUP($B27,Data!$B$318:$E$437,4,FALSE),VLOOKUP($B27,Data!$B$318:$E$437,3,FALSE),VLOOKUP($B27,Data!$B$318:$E$437,2,FALSE))) ->  | Q27: =IF(B27="","",0.9*2^((IF(I27<>"",INDEX(Data!$C$256:$C$258,MATCH(I27,Data!$B$256:$B$258,FALSE)),1)+IF(J27<>"",INDEX(Data!$E$256:$E$260,MATCH(J27,Data!$D$256:$D$260,FALSE)),1)+IF(K27<>"",INDEX(Data!$G$256:$G$258,MATCH(K27,Data!$F$256:$F$258,FALSE)),1)+IF(L27<>"",INDEX(Data!$I$256:$I$259,MATCH(L27,Data!$H$256:$H$259,FALSE)),1)-4)*0.2895/27)) -> 
A28: 0600.0024 | P28: =IF($B28="","",IF(ABS($F28)>=VLOOKUP($B28,Data!$B$318:$E$437,4,FALSE),VLOOKUP($B28,Data!$B$318:$E$437,3,FALSE),VLOOKUP($B28,Data!$B$318:$E$437,2,FALSE))) ->  | Q28: =IF(B28="","",0.9*2^((IF(I28<>"",INDEX(Data!$C$256:$C$258,MATCH(I28,Data!$B$256:$B$258,FALSE)),1)+IF(J28<>"",INDEX(Data!$E$256:$E$260,MATCH(J28,Data!$D$256:$D$260,FALSE)),1)+IF(K28<>"",INDEX(Data!$G$256:$G$258,MATCH(K28,Data!$F$256:$F$258,FALSE)),1)+IF(L28<>"",INDEX(Data!$I$256:$I$259,MATCH(L28,Data!$H$256:$H$259,FALSE)),1)-4)*0.2895/27)) -> 
A29: 0600.0025 | P29: =IF($B29="","",IF(ABS($F29)>=VLOOKUP($B29,Data!$B$318:$E$437,4,FALSE),VLOOKUP($B29,Data!$B$318:$E$437,3,FALSE),VLOOKUP($B29,Data!$B$318:$E$437,2,FALSE))) ->  | Q29: =IF(B29="","",0.9*2^((IF(I29<>"",INDEX(Data!$C$256:$C$258,MATCH(I29,Data!$B$256:$B$258,FALSE)),1)+IF(J29<>"",INDEX(Data!$E$256:$E$260,MATCH(J29,Data!$D$256:$D$260,FALSE)),1)+IF(K29<>"",INDEX(Data!$G$256:$G$258,MATCH(K29,Data!$F$256:$F$258,FALSE)),1)+IF(L29<>"",INDEX(Data!$I$256:$I$259,MATCH(L29,Data!$H$256:$H$259,FALSE)),1)-4)*0.2895/27)) -> 
A30: 0600.0026 | P30: =IF($B30="","",IF(ABS($F30)>=VLOOKUP($B30,Data!$B$318:$E$437,4,FALSE),VLOOKUP($B30,Data!$B$318:$E$437,3,FALSE),VLOOKUP($B30,Data!$B$318:$E$437,2,FALSE))) ->  | Q30: =IF(B30="","",0.9*2^((IF(I30<>"",INDEX(Data!$C$256:$C$258,MATCH(I30,Data!$B$256:$B$258,FALSE)),1)+IF(J30<>"",INDEX(Data!$E$256:$E$260,MATCH(J30,Data!$D$256:$D$260,FALSE)),1)+IF(K30<>"",INDEX(Data!$G$256:$G$258,MATCH(K30,Data!$F$256:$F$258,FALSE)),1)+IF(L30<>"",INDEX(Data!$I$256:$I$259,MATCH(L30,Data!$H$256:$H$259,FALSE)),1)-4)*0.2895/27)) -> 
A31: 0600.0027 | P31: =IF($B31="","",IF(ABS($F31)>=VLOOKUP($B31,Data!$B$318:$E$437,4,FALSE),VLOOKUP($B31,Data!$B$318:$E$437,3,FALSE),VLOOKUP($B31,Data!$B$318:$E$437,2,FALSE))) ->  | Q31: =IF(B31="","",0.9*2^((IF(I31<>"",INDEX(Data!$C$256:$C$258,MATCH(I31,Data!$B$256:$B$258,FALSE)),1)+IF(J31<>"",INDEX(Data!$E$256:$E$260,MATCH(J31,Data!$D$256:$D$260,FALSE)),1)+IF(K31<>"",INDEX(Data!$G$256:$G$258,MATCH(K31,Data!$F$256:$F$258,FALSE)),1)+IF(L31<>"",INDEX(Data!$I$256:$I$259,MATCH(L31,Data!$H$256:$H$259,FALSE)),1)-4)*0.2895/27)) -> 
A32: 0600.0028 | P32: =IF($B32="","",IF(ABS($F32)>=VLOOKUP($B32,Data!$B$318:$E$437,4,FALSE),VLOOKUP($B32,Data!$B$318:$E$437,3,FALSE),VLOOKUP($B32,Data!$B$318:$E$437,2,FALSE))) ->  | Q32: =IF(B32="","",0.9*2^((IF(I32<>"",INDEX(Data!$C$256:$C$258,MATCH(I32,Data!$B$256:$B$258,FALSE)),1)+IF(J32<>"",INDEX(Data!$E$256:$E$260,MATCH(J32,Data!$D$256:$D$260,FALSE)),1)+IF(K32<>"",INDEX(Data!$G$256:$G$258,MATCH(K32,Data!$F$256:$F$258,FALSE)),1)+IF(L32<>"",INDEX(Data!$I$256:$I$259,MATCH(L32,Data!$H$256:$H$259,FALSE)),1)-4)*0.2895/27)) -> 
A33: 0600.0029 | O33: =IF(B33="","",C34-C33) ->  | P33: =IF($B33="","",IF(ABS($F33)>=VLOOKUP($B33,Data!$B$318:$E$437,4,FALSE),VLOOKUP($B33,Data!$B$318:$E$437,3,FALSE),VLOOKUP($B33,Data!$B$318:$E$437,2,FALSE))) ->  | Q33: =IF(B33="","",0.9*2^((IF(I33<>"",INDEX(Data!$C$256:$C$258,MATCH(I33,Data!$B$256:$B$258,FALSE)),1)+IF(J33<>"",INDEX(Data!$E$256:$E$260,MATCH(J33,Data!$D$256:$D$260,FALSE)),1)+IF(K33<>"",INDEX(Data!$G$256:$G$258,MATCH(K33,Data!$F$256:$F$258,FALSE)),1)+IF(L33<>"",INDEX(Data!$I$256:$I$259,MATCH(L33,Data!$H$256:$H$259,FALSE)),1)-4)*0.2895/27)) -> 
A34: 0600.0030 | G34: =IF(B34="","",D34) ->  | H34: =IF(B34="","",IF(AND(MID(B34,1,3) = "Ris",F34>0),F34/G34,IF(AND(MID(B34,1,3) = "Fal",F34<0),F34/G34,IF(AND(MID(B34,1,3) = "Nom",F34=0),0,IF(AND(LEFT(B34,7)="Exposed",F34>0),F34/G34,IF(AND(MID(B34,1,3) = "",F34=0),0,"Height of slope has incorrect sign")))))) ->  | O34: =IF(B34="","",C35-C34) ->  | P34: =IF($B34="","",IF(ABS($F34)>=VLOOKUP($B34,Data!$B$318:$E$437,4,FALSE),VLOOKUP($B34,Data!$B$318:$E$437,3,FALSE),VLOOKUP($B34,Data!$B$318:$E$437,2,FALSE))) ->  | Q34: =IF(B34="","",0.9*2^((IF(I34<>"",INDEX(Data!$C$256:$C$258,MATCH(I34,Data!$B$256:$B$258,FALSE)),1)+IF(J34<>"",INDEX(Data!$E$256:$E$260,MATCH(J34,Data!$D$256:$D$260,FALSE)),1)+IF(K34<>"",INDEX(Data!$G$256:$G$258,MATCH(K34,Data!$F$256:$F$258,FALSE)),1)+IF(L34<>"",INDEX(Data!$I$256:$I$259,MATCH(L34,Data!$H$256:$H$259,FALSE)),1)-4)*0.2895/27)) ->  | R34: =IF(B34="","",1) -> 
A35: 0600.0031 | G35: =IF(B35="","",D35) ->  | H35: =IF(B35="","",IF(AND(MID(B35,1,3) = "Ris",F35>0),F35/G35,IF(AND(MID(B35,1,3) = "Fal",F35<0),F35/G35,IF(AND(MID(B35,1,3) = "Nom",F35=0),0,IF(AND(LEFT(B35,7)="Exposed",F35>0),F35/G35,IF(AND(MID(B35,1,3) = "",F35=0),0,"Height of slope has incorrect sign")))))) ->  | P35: =IF($B35="","",IF(ABS($F35)>=VLOOKUP($B35,Data!$B$318:$E$437,4,FALSE),VLOOKUP($B35,Data!$B$318:$E$437,3,FALSE),VLOOKUP($B35,Data!$B$318:$E$437,2,FALSE))) ->  | Q35: =IF(B35="","",0.9*2^((IF(I35<>"",INDEX(Data!$C$256:$C$258,MATCH(I35,Data!$B$256:$B$258,FALSE)),1)+IF(J35<>"",INDEX(Data!$E$256:$E$260,MATCH(J35,Data!$D$256:$D$260,FALSE)),1)+IF(K35<>"",INDEX(Data!$G$256:$G$258,MATCH(K35,Data!$F$256:$F$258,FALSE)),1)+IF(L35<>"",INDEX(Data!$I$256:$I$259,MATCH(L35,Data!$H$256:$H$259,FALSE)),1)-4)*0.2895/27)) ->  | R35: =IF(B35="","",1) -> 
A36: 0600.0032 | P36: =IF($B36="","",IF(ABS($F36)>=VLOOKUP($B36,Data!$B$318:$E$437,4,FALSE),VLOOKUP($B36,Data!$B$318:$E$437,3,FALSE),VLOOKUP($B36,Data!$B$318:$E$437,2,FALSE))) ->  | Q36: =IF(B36="","",0.9*2^((IF(I36<>"",INDEX(Data!$C$256:$C$258,MATCH(I36,Data!$B$256:$B$258,FALSE)),1)+IF(J36<>"",INDEX(Data!$E$256:$E$260,MATCH(J36,Data!$D$256:$D$260,FALSE)),1)+IF(K36<>"",INDEX(Data!$G$256:$G$258,MATCH(K36,Data!$F$256:$F$258,FALSE)),1)+IF(L36<>"",INDEX(Data!$I$256:$I$259,MATCH(L36,Data!$H$256:$H$259,FALSE)),1)-4)*0.2895/27)) -> 
A37: 0600.0033 | P37: =IF($B37="","",IF(ABS($F37)>=VLOOKUP($B37,Data!$B$318:$E$437,4,FALSE),VLOOKUP($B37,Data!$B$318:$E$437,3,FALSE),VLOOKUP($B37,Data!$B$318:$E$437,2,FALSE))) ->  | Q37: =IF(B37="","",0.9*2^((IF(I37<>"",INDEX(Data!$C$256:$C$258,MATCH(I37,Data!$B$256:$B$258,FALSE)),1)+IF(J37<>"",INDEX(Data!$E$256:$E$260,MATCH(J37,Data!$D$256:$D$260,FALSE)),1)+IF(K37<>"",INDEX(Data!$G$256:$G$258,MATCH(K37,Data!$F$256:$F$258,FALSE)),1)+IF(L37<>"",INDEX(Data!$I$256:$I$259,MATCH(L37,Data!$H$256:$H$259,FALSE)),1)-4)*0.2895/27)) -> 
A38: 0600.0034 | P38: =IF($B38="","",IF(ABS($F38)>=VLOOKUP($B38,Data!$B$318:$E$437,4,FALSE),VLOOKUP($B38,Data!$B$318:$E$437,3,FALSE),VLOOKUP($B38,Data!$B$318:$E$437,2,FALSE))) ->  | Q38: =IF(B38="","",0.9*2^((IF(I38<>"",INDEX(Data!$C$256:$C$258,MATCH(I38,Data!$B$256:$B$258,FALSE)),1)+IF(J38<>"",INDEX(Data!$E$256:$E$260,MATCH(J38,Data!$D$256:$D$260,FALSE)),1)+IF(K38<>"",INDEX(Data!$G$256:$G$258,MATCH(K38,Data!$F$256:$F$258,FALSE)),1)+IF(L38<>"",INDEX(Data!$I$256:$I$259,MATCH(L38,Data!$H$256:$H$259,FALSE)),1)-4)*0.2895/27)) -> 
A39: 0600.0035 | P39: =IF($B39="","",IF(ABS($F39)>=VLOOKUP($B39,Data!$B$318:$E$437,4,FALSE),VLOOKUP($B39,Data!$B$318:$E$437,3,FALSE),VLOOKUP($B39,Data!$B$318:$E$437,2,FALSE))) ->  | Q39: =IF(B39="","",0.9*2^((IF(I39<>"",INDEX(Data!$C$256:$C$258,MATCH(I39,Data!$B$256:$B$258,FALSE)),1)+IF(J39<>"",INDEX(Data!$E$256:$E$260,MATCH(J39,Data!$D$256:$D$260,FALSE)),1)+IF(K39<>"",INDEX(Data!$G$256:$G$258,MATCH(K39,Data!$F$256:$F$258,FALSE)),1)+IF(L39<>"",INDEX(Data!$I$256:$I$259,MATCH(L39,Data!$H$256:$H$259,FALSE)),1)-4)*0.2895/27)) -> 
A40: 0600.0036 | P40: =IF($B40="","",IF(ABS($F40)>=VLOOKUP($B40,Data!$B$318:$E$437,4,FALSE),VLOOKUP($B40,Data!$B$318:$E$437,3,FALSE),VLOOKUP($B40,Data!$B$318:$E$437,2,FALSE))) ->  | Q40: =IF(B40="","",0.9*2^((IF(I40<>"",INDEX(Data!$C$256:$C$258,MATCH(I40,Data!$B$256:$B$258,FALSE)),1)+IF(J40<>"",INDEX(Data!$E$256:$E$260,MATCH(J40,Data!$D$256:$D$260,FALSE)),1)+IF(K40<>"",INDEX(Data!$G$256:$G$258,MATCH(K40,Data!$F$256:$F$258,FALSE)),1)+IF(L40<>"",INDEX(Data!$I$256:$I$259,MATCH(L40,Data!$H$256:$H$259,FALSE)),1)-4)*0.2895/27)) -> 
A41: 0600.0037 | P41: =IF($B41="","",IF(ABS($F41)>=VLOOKUP($B41,Data!$B$318:$E$437,4,FALSE),VLOOKUP($B41,Data!$B$318:$E$437,3,FALSE),VLOOKUP($B41,Data!$B$318:$E$437,2,FALSE))) ->  | Q41: =IF(B41="","",0.9*2^((IF(I41<>"",INDEX(Data!$C$256:$C$258,MATCH(I41,Data!$B$256:$B$258,FALSE)),1)+IF(J41<>"",INDEX(Data!$E$256:$E$260,MATCH(J41,Data!$D$256:$D$260,FALSE)),1)+IF(K41<>"",INDEX(Data!$G$256:$G$258,MATCH(K41,Data!$F$256:$F$258,FALSE)),1)+IF(L41<>"",INDEX(Data!$I$256:$I$259,MATCH(L41,Data!$H$256:$H$259,FALSE)),1)-4)*0.2895/27)) -> 
A42: 0600.0038 | P42: =IF($B42="","",IF(ABS($F42)>=VLOOKUP($B42,Data!$B$318:$E$437,4,FALSE),VLOOKUP($B42,Data!$B$318:$E$437,3,FALSE),VLOOKUP($B42,Data!$B$318:$E$437,2,FALSE))) ->  | Q42: =IF(B42="","",0.9*2^((IF(I42<>"",INDEX(Data!$C$256:$C$258,MATCH(I42,Data!$B$256:$B$258,FALSE)),1)+IF(J42<>"",INDEX(Data!$E$256:$E$260,MATCH(J42,Data!$D$256:$D$260,FALSE)),1)+IF(K42<>"",INDEX(Data!$G$256:$G$258,MATCH(K42,Data!$F$256:$F$258,FALSE)),1)+IF(L42<>"",INDEX(Data!$I$256:$I$259,MATCH(L42,Data!$H$256:$H$259,FALSE)),1)-4)*0.2895/27)) -> 
A43: 0600.0039 | P43: =IF($B43="","",IF(ABS($F43)>=VLOOKUP($B43,Data!$B$318:$E$437,4,FALSE),VLOOKUP($B43,Data!$B$318:$E$437,3,FALSE),VLOOKUP($B43,Data!$B$318:$E$437,2,FALSE))) ->  | Q43: =IF(B43="","",0.9*2^((IF(I43<>"",INDEX(Data!$C$256:$C$258,MATCH(I43,Data!$B$256:$B$258,FALSE)),1)+IF(J43<>"",INDEX(Data!$E$256:$E$260,MATCH(J43,Data!$D$256:$D$260,FALSE)),1)+IF(K43<>"",INDEX(Data!$G$256:$G$258,MATCH(K43,Data!$F$256:$F$258,FALSE)),1)+IF(L43<>"",INDEX(Data!$I$256:$I$259,MATCH(L43,Data!$H$256:$H$259,FALSE)),1)-4)*0.2895/27)) -> 
A44: 0600.0040 | P44: =IF($B44="","",IF(ABS($F44)>=VLOOKUP($B44,Data!$B$318:$E$437,4,FALSE),VLOOKUP($B44,Data!$B$318:$E$437,3,FALSE),VLOOKUP($B44,Data!$B$318:$E$437,2,FALSE))) ->  | Q44: =IF(B44="","",0.9*2^((IF(I44<>"",INDEX(Data!$C$256:$C$258,MATCH(I44,Data!$B$256:$B$258,FALSE)),1)+IF(J44<>"",INDEX(Data!$E$256:$E$260,MATCH(J44,Data!$D$256:$D$260,FALSE)),1)+IF(K44<>"",INDEX(Data!$G$256:$G$258,MATCH(K44,Data!$F$256:$F$258,FALSE)),1)+IF(L44<>"",INDEX(Data!$I$256:$I$259,MATCH(L44,Data!$H$256:$H$259,FALSE)),1)-4)*0.2895/27)) -> 
A45: 0600.0041 | P45: =IF($B45="","",IF(ABS($F45)>=VLOOKUP($B45,Data!$B$318:$E$437,4,FALSE),VLOOKUP($B45,Data!$B$318:$E$437,3,FALSE),VLOOKUP($B45,Data!$B$318:$E$437,2,FALSE))) ->  | Q45: =IF(B45="","",0.9*2^((IF(I45<>"",INDEX(Data!$C$256:$C$258,MATCH(I45,Data!$B$256:$B$258,FALSE)),1)+IF(J45<>"",INDEX(Data!$E$256:$E$260,MATCH(J45,Data!$D$256:$D$260,FALSE)),1)+IF(K45<>"",INDEX(Data!$G$256:$G$258,MATCH(K45,Data!$F$256:$F$258,FALSE)),1)+IF(L45<>"",INDEX(Data!$I$256:$I$259,MATCH(L45,Data!$H$256:$H$259,FALSE)),1)-4)*0.2895/27)) -> 
A46: 0600.0042 | P46: =IF($B46="","",IF(ABS($F46)>=VLOOKUP($B46,Data!$B$318:$E$437,4,FALSE),VLOOKUP($B46,Data!$B$318:$E$437,3,FALSE),VLOOKUP($B46,Data!$B$318:$E$437,2,FALSE))) ->  | Q46: =IF(B46="","",0.9*2^((IF(I46<>"",INDEX(Data!$C$256:$C$258,MATCH(I46,Data!$B$256:$B$258,FALSE)),1)+IF(J46<>"",INDEX(Data!$E$256:$E$260,MATCH(J46,Data!$D$256:$D$260,FALSE)),1)+IF(K46<>"",INDEX(Data!$G$256:$G$258,MATCH(K46,Data!$F$256:$F$258,FALSE)),1)+IF(L46<>"",INDEX(Data!$I$256:$I$259,MATCH(L46,Data!$H$256:$H$259,FALSE)),1)-4)*0.2895/27)) -> 
A47: 0600.0043 | O47: =IF(B47="","",C52-C47) ->  | P47: =IF($B47="","",IF(ABS($F47)>=VLOOKUP($B47,Data!$B$318:$E$437,4,FALSE),VLOOKUP($B47,Data!$B$318:$E$437,3,FALSE),VLOOKUP($B47,Data!$B$318:$E$437,2,FALSE))) ->  | Q47: =IF(B47="","",0.9*2^((IF(I47<>"",INDEX(Data!$C$256:$C$258,MATCH(I47,Data!$B$256:$B$258,FALSE)),1)+IF(J47<>"",INDEX(Data!$E$256:$E$260,MATCH(J47,Data!$D$256:$D$260,FALSE)),1)+IF(K47<>"",INDEX(Data!$G$256:$G$258,MATCH(K47,Data!$F$256:$F$258,FALSE)),1)+IF(L47<>"",INDEX(Data!$I$256:$I$259,MATCH(L47,Data!$H$256:$H$259,FALSE)),1)-4)*0.2895/27)) -> 
A48: 0600.0044 | O48: =IF(B48="","",C49-C48) ->  | P48: =IF($B48="","",IF(ABS($F48)>=VLOOKUP($B48,Data!$B$318:$E$437,4,FALSE),VLOOKUP($B48,Data!$B$318:$E$437,3,FALSE),VLOOKUP($B48,Data!$B$318:$E$437,2,FALSE))) ->  | Q48: =IF(B48="","",0.9*2^((IF(I48<>"",INDEX(Data!$C$256:$C$258,MATCH(I48,Data!$B$256:$B$258,FALSE)),1)+IF(J48<>"",INDEX(Data!$E$256:$E$260,MATCH(J48,Data!$D$256:$D$260,FALSE)),1)+IF(K48<>"",INDEX(Data!$G$256:$G$258,MATCH(K48,Data!$F$256:$F$258,FALSE)),1)+IF(L48<>"",INDEX(Data!$I$256:$I$259,MATCH(L48,Data!$H$256:$H$259,FALSE)),1)-4)*0.2895/27)) -> 
A49: 0600.0045 | P49: =IF($B49="","",IF(ABS($F49)>=VLOOKUP($B49,Data!$B$318:$E$437,4,FALSE),VLOOKUP($B49,Data!$B$318:$E$437,3,FALSE),VLOOKUP($B49,Data!$B$318:$E$437,2,FALSE))) ->  | Q49: =IF(B49="","",0.9*2^((IF(I49<>"",INDEX(Data!$C$256:$C$258,MATCH(I49,Data!$B$256:$B$258,FALSE)),1)+IF(J49<>"",INDEX(Data!$E$256:$E$260,MATCH(J49,Data!$D$256:$D$260,FALSE)),1)+IF(K49<>"",INDEX(Data!$G$256:$G$258,MATCH(K49,Data!$F$256:$F$258,FALSE)),1)+IF(L49<>"",INDEX(Data!$I$256:$I$259,MATCH(L49,Data!$H$256:$H$259,FALSE)),1)-4)*0.2895/27)) -> 
A50: 0600.0046 | P50: =IF($B50="","",IF(ABS($F50)>=VLOOKUP($B50,Data!$B$318:$E$437,4,FALSE),VLOOKUP($B50,Data!$B$318:$E$437,3,FALSE),VLOOKUP($B50,Data!$B$318:$E$437,2,FALSE))) ->  | Q50: =IF(B50="","",0.9*2^((IF(I50<>"",INDEX(Data!$C$256:$C$258,MATCH(I50,Data!$B$256:$B$258,FALSE)),1)+IF(J50<>"",INDEX(Data!$E$256:$E$260,MATCH(J50,Data!$D$256:$D$260,FALSE)),1)+IF(K50<>"",INDEX(Data!$G$256:$G$258,MATCH(K50,Data!$F$256:$F$258,FALSE)),1)+IF(L50<>"",INDEX(Data!$I$256:$I$259,MATCH(L50,Data!$H$256:$H$259,FALSE)),1)-4)*0.2895/27)) -> 
A51: 0600.0047 | P51: =IF($B51="","",IF(ABS($F51)>=VLOOKUP($B51,Data!$B$318:$E$437,4,FALSE),VLOOKUP($B51,Data!$B$318:$E$437,3,FALSE),VLOOKUP($B51,Data!$B$318:$E$437,2,FALSE))) ->  | Q51: =IF(B51="","",0.9*2^((IF(I51<>"",INDEX(Data!$C$256:$C$258,MATCH(I51,Data!$B$256:$B$258,FALSE)),1)+IF(J51<>"",INDEX(Data!$E$256:$E$260,MATCH(J51,Data!$D$256:$D$260,FALSE)),1)+IF(K51<>"",INDEX(Data!$G$256:$G$258,MATCH(K51,Data!$F$256:$F$258,FALSE)),1)+IF(L51<>"",INDEX(Data!$I$256:$I$259,MATCH(L51,Data!$H$256:$H$259,FALSE)),1)-4)*0.2895/27)) -> 
A52: 0600.0048 | P52: =IF($B52="","",IF(ABS($F52)>=VLOOKUP($B52,Data!$B$318:$E$437,4,FALSE),VLOOKUP($B52,Data!$B$318:$E$437,3,FALSE),VLOOKUP($B52,Data!$B$318:$E$437,2,FALSE))) ->  | Q52: =IF(B52="","",0.9*2^((IF(I52<>"",INDEX(Data!$C$256:$C$258,MATCH(I52,Data!$B$256:$B$258,FALSE)),1)+IF(J52<>"",INDEX(Data!$E$256:$E$260,MATCH(J52,Data!$D$256:$D$260,FALSE)),1)+IF(K52<>"",INDEX(Data!$G$256:$G$258,MATCH(K52,Data!$F$256:$F$258,FALSE)),1)+IF(L52<>"",INDEX(Data!$I$256:$I$259,MATCH(L52,Data!$H$256:$H$259,FALSE)),1)-4)*0.2895/27)) -> 
A53: 0600.0049 | P53: =IF($B53="","",IF(ABS($F53)>=VLOOKUP($B53,Data!$B$318:$E$437,4,FALSE),VLOOKUP($B53,Data!$B$318:$E$437,3,FALSE),VLOOKUP($B53,Data!$B$318:$E$437,2,FALSE))) ->  | Q53: =IF(B53="","",0.9*2^((IF(I53<>"",INDEX(Data!$C$256:$C$258,MATCH(I53,Data!$B$256:$B$258,FALSE)),1)+IF(J53<>"",INDEX(Data!$E$256:$E$260,MATCH(J53,Data!$D$256:$D$260,FALSE)),1)+IF(K53<>"",INDEX(Data!$G$256:$G$258,MATCH(K53,Data!$F$256:$F$258,FALSE)),1)+IF(L53<>"",INDEX(Data!$I$256:$I$259,MATCH(L53,Data!$H$256:$H$259,FALSE)),1)-4)*0.2895/27)) -> 
A54: 0600.0050 | P54: =IF($B54="","",IF(ABS($F54)>=VLOOKUP($B54,Data!$B$318:$E$437,4,FALSE),VLOOKUP($B54,Data!$B$318:$E$437,3,FALSE),VLOOKUP($B54,Data!$B$318:$E$437,2,FALSE))) ->  | Q54: =IF(B54="","",0.9*2^((IF(I54<>"",INDEX(Data!$C$256:$C$258,MATCH(I54,Data!$B$256:$B$258,FALSE)),1)+IF(J54<>"",INDEX(Data!$E$256:$E$260,MATCH(J54,Data!$D$256:$D$260,FALSE)),1)+IF(K54<>"",INDEX(Data!$G$256:$G$258,MATCH(K54,Data!$F$256:$F$258,FALSE)),1)+IF(L54<>"",INDEX(Data!$I$256:$I$259,MATCH(L54,Data!$H$256:$H$259,FALSE)),1)-4)*0.2895/27)) -> 
A55: 0600.0051 | P55: =IF($B55="","",IF(ABS($F55)>=VLOOKUP($B55,Data!$B$318:$E$437,4,FALSE),VLOOKUP($B55,Data!$B$318:$E$437,3,FALSE),VLOOKUP($B55,Data!$B$318:$E$437,2,FALSE))) ->  | Q55: =IF(B55="","",0.9*2^((IF(I55<>"",INDEX(Data!$C$256:$C$258,MATCH(I55,Data!$B$256:$B$258,FALSE)),1)+IF(J55<>"",INDEX(Data!$E$256:$E$260,MATCH(J55,Data!$D$256:$D$260,FALSE)),1)+IF(K55<>"",INDEX(Data!$G$256:$G$258,MATCH(K55,Data!$F$256:$F$258,FALSE)),1)+IF(L55<>"",INDEX(Data!$I$256:$I$259,MATCH(L55,Data!$H$256:$H$259,FALSE)),1)-4)*0.2895/27)) -> 
A56: 0600.0052 | P56: =IF($B56="","",IF(ABS($F56)>=VLOOKUP($B56,Data!$B$318:$E$437,4,FALSE),VLOOKUP($B56,Data!$B$318:$E$437,3,FALSE),VLOOKUP($B56,Data!$B$318:$E$437,2,FALSE))) ->  | Q56: =IF(B56="","",0.9*2^((IF(I56<>"",INDEX(Data!$C$256:$C$258,MATCH(I56,Data!$B$256:$B$258,FALSE)),1)+IF(J56<>"",INDEX(Data!$E$256:$E$260,MATCH(J56,Data!$D$256:$D$260,FALSE)),1)+IF(K56<>"",INDEX(Data!$G$256:$G$258,MATCH(K56,Data!$F$256:$F$258,FALSE)),1)+IF(L56<>"",INDEX(Data!$I$256:$I$259,MATCH(L56,Data!$H$256:$H$259,FALSE)),1)-4)*0.2895/27)) -> 
A57: 0600.0053 | P57: =IF($B57="","",IF(ABS($F57)>=VLOOKUP($B57,Data!$B$318:$E$437,4,FALSE),VLOOKUP($B57,Data!$B$318:$E$437,3,FALSE),VLOOKUP($B57,Data!$B$318:$E$437,2,FALSE))) ->  | Q57: =IF(B57="","",0.9*2^((IF(I57<>"",INDEX(Data!$C$256:$C$258,MATCH(I57,Data!$B$256:$B$258,FALSE)),1)+IF(J57<>"",INDEX(Data!$E$256:$E$260,MATCH(J57,Data!$D$256:$D$260,FALSE)),1)+IF(K57<>"",INDEX(Data!$G$256:$G$258,MATCH(K57,Data!$F$256:$F$258,FALSE)),1)+IF(L57<>"",INDEX(Data!$I$256:$I$259,MATCH(L57,Data!$H$256:$H$259,FALSE)),1)-4)*0.2895/27)) -> 
A58: 0600.0054 | P58: =IF($B58="","",IF(ABS($F58)>=VLOOKUP($B58,Data!$B$318:$E$437,4,FALSE),VLOOKUP($B58,Data!$B$318:$E$437,3,FALSE),VLOOKUP($B58,Data!$B$318:$E$437,2,FALSE))) ->  | Q58: =IF(B58="","",0.9*2^((IF(I58<>"",INDEX(Data!$C$256:$C$258,MATCH(I58,Data!$B$256:$B$258,FALSE)),1)+IF(J58<>"",INDEX(Data!$E$256:$E$260,MATCH(J58,Data!$D$256:$D$260,FALSE)),1)+IF(K58<>"",INDEX(Data!$G$256:$G$258,MATCH(K58,Data!$F$256:$F$258,FALSE)),1)+IF(L58<>"",INDEX(Data!$I$256:$I$259,MATCH(L58,Data!$H$256:$H$259,FALSE)),1)-4)*0.2895/27)) -> 
A59: 0600.0055 | P59: =IF($B59="","",IF(ABS($F59)>=VLOOKUP($B59,Data!$B$318:$E$437,4,FALSE),VLOOKUP($B59,Data!$B$318:$E$437,3,FALSE),VLOOKUP($B59,Data!$B$318:$E$437,2,FALSE))) ->  | Q59: =IF(B59="","",0.9*2^((IF(I59<>"",INDEX(Data!$C$256:$C$258,MATCH(I59,Data!$B$256:$B$258,FALSE)),1)+IF(J59<>"",INDEX(Data!$E$256:$E$260,MATCH(J59,Data!$D$256:$D$260,FALSE)),1)+IF(K59<>"",INDEX(Data!$G$256:$G$258,MATCH(K59,Data!$F$256:$F$258,FALSE)),1)+IF(L59<>"",INDEX(Data!$I$256:$I$259,MATCH(L59,Data!$H$256:$H$259,FALSE)),1)-4)*0.2895/27)) -> 
A60: 0600.0056 | P60: =IF($B60="","",IF(ABS($F60)>=VLOOKUP($B60,Data!$B$318:$E$437,4,FALSE),VLOOKUP($B60,Data!$B$318:$E$437,3,FALSE),VLOOKUP($B60,Data!$B$318:$E$437,2,FALSE))) ->  | Q60: =IF(B60="","",0.9*2^((IF(I60<>"",INDEX(Data!$C$256:$C$258,MATCH(I60,Data!$B$256:$B$258,FALSE)),1)+IF(J60<>"",INDEX(Data!$E$256:$E$260,MATCH(J60,Data!$D$256:$D$260,FALSE)),1)+IF(K60<>"",INDEX(Data!$G$256:$G$258,MATCH(K60,Data!$F$256:$F$258,FALSE)),1)+IF(L60<>"",INDEX(Data!$I$256:$I$259,MATCH(L60,Data!$H$256:$H$259,FALSE)),1)-4)*0.2895/27)) -> 
A61: 0600.0057 | O61: =IF(B61="","",C62-C61) ->  | P61: =IF($B61="","",IF(ABS($F61)>=VLOOKUP($B61,Data!$B$318:$E$437,4,FALSE),VLOOKUP($B61,Data!$B$318:$E$437,3,FALSE),VLOOKUP($B61,Data!$B$318:$E$437,2,FALSE))) ->  | Q61: =IF(B61="","",0.9*2^((IF(I61<>"",INDEX(Data!$C$256:$C$258,MATCH(I61,Data!$B$256:$B$258,FALSE)),1)+IF(J61<>"",INDEX(Data!$E$256:$E$260,MATCH(J61,Data!$D$256:$D$260,FALSE)),1)+IF(K61<>"",INDEX(Data!$G$256:$G$258,MATCH(K61,Data!$F$256:$F$258,FALSE)),1)+IF(L61<>"",INDEX(Data!$I$256:$I$259,MATCH(L61,Data!$H$256:$H$259,FALSE)),1)-4)*0.2895/27)) -> 
A62: 0600.0058 | G62: =IF(B62="","",D62) ->  | H62: =IF(B62="","",IF(AND(MID(B62,1,3) = "Ris",F62>0),F62/G62,IF(AND(MID(B62,1,3) = "Fal",F62<0),F62/G62,IF(AND(MID(B62,1,3) = "Nom",F62=0),0,IF(AND(LEFT(B62,7)="Exposed",F62>0),F62/G62,IF(AND(MID(B62,1,3) = "",F62=0),0,"Height of slope has incorrect sign")))))) ->  | O62: =IF(B62="","",C63-C62) ->  | P62: =IF($B62="","",IF(ABS($F62)>=VLOOKUP($B62,Data!$B$318:$E$437,4,FALSE),VLOOKUP($B62,Data!$B$318:$E$437,3,FALSE),VLOOKUP($B62,Data!$B$318:$E$437,2,FALSE))) ->  | Q62: =IF(B62="","",0.9*2^((IF(I62<>"",INDEX(Data!$C$256:$C$258,MATCH(I62,Data!$B$256:$B$258,FALSE)),1)+IF(J62<>"",INDEX(Data!$E$256:$E$260,MATCH(J62,Data!$D$256:$D$260,FALSE)),1)+IF(K62<>"",INDEX(Data!$G$256:$G$258,MATCH(K62,Data!$F$256:$F$258,FALSE)),1)+IF(L62<>"",INDEX(Data!$I$256:$I$259,MATCH(L62,Data!$H$256:$H$259,FALSE)),1)-4)*0.2895/27)) ->  | R62: =IF(B62="","",1) -> 
A63: 0600.0059 | P63: =IF($B63="","",IF(ABS($F63)>=VLOOKUP($B63,Data!$B$318:$E$437,4,FALSE),VLOOKUP($B63,Data!$B$318:$E$437,3,FALSE),VLOOKUP($B63,Data!$B$318:$E$437,2,FALSE))) ->  | Q63: =IF(B63="","",0.9*2^((IF(I63<>"",INDEX(Data!$C$256:$C$258,MATCH(I63,Data!$B$256:$B$258,FALSE)),1)+IF(J63<>"",INDEX(Data!$E$256:$E$260,MATCH(J63,Data!$D$256:$D$260,FALSE)),1)+IF(K63<>"",INDEX(Data!$G$256:$G$258,MATCH(K63,Data!$F$256:$F$258,FALSE)),1)+IF(L63<>"",INDEX(Data!$I$256:$I$259,MATCH(L63,Data!$H$256:$H$259,FALSE)),1)-4)*0.2895/27)) -> 
A64: 0600.0060 | P64: =IF($B64="","",IF(ABS($F64)>=VLOOKUP($B64,Data!$B$318:$E$437,4,FALSE),VLOOKUP($B64,Data!$B$318:$E$437,3,FALSE),VLOOKUP($B64,Data!$B$318:$E$437,2,FALSE))) ->  | Q64: =IF(B64="","",0.9*2^((IF(I64<>"",INDEX(Data!$C$256:$C$258,MATCH(I64,Data!$B$256:$B$258,FALSE)),1)+IF(J64<>"",INDEX(Data!$E$256:$E$260,MATCH(J64,Data!$D$256:$D$260,FALSE)),1)+IF(K64<>"",INDEX(Data!$G$256:$G$258,MATCH(K64,Data!$F$256:$F$258,FALSE)),1)+IF(L64<>"",INDEX(Data!$I$256:$I$259,MATCH(L64,Data!$H$256:$H$259,FALSE)),1)-4)*0.2895/27)) -> 
A65: 0600.0061 | P65: =IF($B65="","",IF(ABS($F65)>=VLOOKUP($B65,Data!$B$318:$E$437,4,FALSE),VLOOKUP($B65,Data!$B$318:$E$437,3,FALSE),VLOOKUP($B65,Data!$B$318:$E$437,2,FALSE))) ->  | Q65: =IF(B65="","",0.9*2^((IF(I65<>"",INDEX(Data!$C$256:$C$258,MATCH(I65,Data!$B$256:$B$258,FALSE)),1)+IF(J65<>"",INDEX(Data!$E$256:$E$260,MATCH(J65,Data!$D$256:$D$260,FALSE)),1)+IF(K65<>"",INDEX(Data!$G$256:$G$258,MATCH(K65,Data!$F$256:$F$258,FALSE)),1)+IF(L65<>"",INDEX(Data!$I$256:$I$259,MATCH(L65,Data!$H$256:$H$259,FALSE)),1)-4)*0.2895/27)) -> 
A66: 0600.0062 | P66: =IF($B66="","",IF(ABS($F66)>=VLOOKUP($B66,Data!$B$318:$E$437,4,FALSE),VLOOKUP($B66,Data!$B$318:$E$437,3,FALSE),VLOOKUP($B66,Data!$B$318:$E$437,2,FALSE))) ->  | Q66: =IF(B66="","",0.9*2^((IF(I66<>"",INDEX(Data!$C$256:$C$258,MATCH(I66,Data!$B$256:$B$258,FALSE)),1)+IF(J66<>"",INDEX(Data!$E$256:$E$260,MATCH(J66,Data!$D$256:$D$260,FALSE)),1)+IF(K66<>"",INDEX(Data!$G$256:$G$258,MATCH(K66,Data!$F$256:$F$258,FALSE)),1)+IF(L66<>"",INDEX(Data!$I$256:$I$259,MATCH(L66,Data!$H$256:$H$259,FALSE)),1)-4)*0.2895/27)) -> 
A67: 0600.0063 | P67: =IF($B67="","",IF(ABS($F67)>=VLOOKUP($B67,Data!$B$318:$E$437,4,FALSE),VLOOKUP($B67,Data!$B$318:$E$437,3,FALSE),VLOOKUP($B67,Data!$B$318:$E$437,2,FALSE))) ->  | Q67: =IF(B67="","",0.9*2^((IF(I67<>"",INDEX(Data!$C$256:$C$258,MATCH(I67,Data!$B$256:$B$258,FALSE)),1)+IF(J67<>"",INDEX(Data!$E$256:$E$260,MATCH(J67,Data!$D$256:$D$260,FALSE)),1)+IF(K67<>"",INDEX(Data!$G$256:$G$258,MATCH(K67,Data!$F$256:$F$258,FALSE)),1)+IF(L67<>"",INDEX(Data!$I$256:$I$259,MATCH(L67,Data!$H$256:$H$259,FALSE)),1)-4)*0.2895/27)) -> 
A68: 0600.0064 | P68: =IF($B68="","",IF(ABS($F68)>=VLOOKUP($B68,Data!$B$318:$E$437,4,FALSE),VLOOKUP($B68,Data!$B$318:$E$437,3,FALSE),VLOOKUP($B68,Data!$B$318:$E$437,2,FALSE))) ->  | Q68: =IF(B68="","",0.9*2^((IF(I68<>"",INDEX(Data!$C$256:$C$258,MATCH(I68,Data!$B$256:$B$258,FALSE)),1)+IF(J68<>"",INDEX(Data!$E$256:$E$260,MATCH(J68,Data!$D$256:$D$260,FALSE)),1)+IF(K68<>"",INDEX(Data!$G$256:$G$258,MATCH(K68,Data!$F$256:$F$258,FALSE)),1)+IF(L68<>"",INDEX(Data!$I$256:$I$259,MATCH(L68,Data!$H$256:$H$259,FALSE)),1)-4)*0.2895/27)) -> 
A69: 0600.0065 | P69: =IF($B69="","",IF(ABS($F69)>=VLOOKUP($B69,Data!$B$318:$E$437,4,FALSE),VLOOKUP($B69,Data!$B$318:$E$437,3,FALSE),VLOOKUP($B69,Data!$B$318:$E$437,2,FALSE))) ->  | Q69: =IF(B69="","",0.9*2^((IF(I69<>"",INDEX(Data!$C$256:$C$258,MATCH(I69,Data!$B$256:$B$258,FALSE)),1)+IF(J69<>"",INDEX(Data!$E$256:$E$260,MATCH(J69,Data!$D$256:$D$260,FALSE)),1)+IF(K69<>"",INDEX(Data!$G$256:$G$258,MATCH(K69,Data!$F$256:$F$258,FALSE)),1)+IF(L69<>"",INDEX(Data!$I$256:$I$259,MATCH(L69,Data!$H$256:$H$259,FALSE)),1)-4)*0.2895/27)) -> 
A70: 0600.0066 | P70: =IF($B70="","",IF(ABS($F70)>=VLOOKUP($B70,Data!$B$318:$E$437,4,FALSE),VLOOKUP($B70,Data!$B$318:$E$437,3,FALSE),VLOOKUP($B70,Data!$B$318:$E$437,2,FALSE))) ->  | Q70: =IF(B70="","",0.9*2^((IF(I70<>"",INDEX(Data!$C$256:$C$258,MATCH(I70,Data!$B$256:$B$258,FALSE)),1)+IF(J70<>"",INDEX(Data!$E$256:$E$260,MATCH(J70,Data!$D$256:$D$260,FALSE)),1)+IF(K70<>"",INDEX(Data!$G$256:$G$258,MATCH(K70,Data!$F$256:$F$258,FALSE)),1)+IF(L70<>"",INDEX(Data!$I$256:$I$259,MATCH(L70,Data!$H$256:$H$259,FALSE)),1)-4)*0.2895/27)) ->  | S70: =IF(B70="","",D70) -> 
A71: 0600.0067 | P71: =IF($B71="","",IF(ABS($F71)>=VLOOKUP($B71,Data!$B$318:$E$437,4,FALSE),VLOOKUP($B71,Data!$B$318:$E$437,3,FALSE),VLOOKUP($B71,Data!$B$318:$E$437,2,FALSE))) ->  | Q71: =IF(B71="","",0.9*2^((IF(I71<>"",INDEX(Data!$C$256:$C$258,MATCH(I71,Data!$B$256:$B$258,FALSE)),1)+IF(J71<>"",INDEX(Data!$E$256:$E$260,MATCH(J71,Data!$D$256:$D$260,FALSE)),1)+IF(K71<>"",INDEX(Data!$G$256:$G$258,MATCH(K71,Data!$F$256:$F$258,FALSE)),1)+IF(L71<>"",INDEX(Data!$I$256:$I$259,MATCH(L71,Data!$H$256:$H$259,FALSE)),1)-4)*0.2895/27)) -> 
A72: 0600.0068 | P72: =IF($B72="","",IF(ABS($F72)>=VLOOKUP($B72,Data!$B$318:$E$437,4,FALSE),VLOOKUP($B72,Data!$B$318:$E$437,3,FALSE),VLOOKUP($B72,Data!$B$318:$E$437,2,FALSE))) ->  | Q72: =IF(B72="","",0.9*2^((IF(I72<>"",INDEX(Data!$C$256:$C$258,MATCH(I72,Data!$B$256:$B$258,FALSE)),1)+IF(J72<>"",INDEX(Data!$E$256:$E$260,MATCH(J72,Data!$D$256:$D$260,FALSE)),1)+IF(K72<>"",INDEX(Data!$G$256:$G$258,MATCH(K72,Data!$F$256:$F$258,FALSE)),1)+IF(L72<>"",INDEX(Data!$I$256:$I$259,MATCH(L72,Data!$H$256:$H$259,FALSE)),1)-4)*0.2895/27)) -> 
A73: 0600.0069 | P73: =IF($B73="","",IF(ABS($F73)>=VLOOKUP($B73,Data!$B$318:$E$437,4,FALSE),VLOOKUP($B73,Data!$B$318:$E$437,3,FALSE),VLOOKUP($B73,Data!$B$318:$E$437,2,FALSE))) ->  | Q73: =IF(B73="","",0.9*2^((IF(I73<>"",INDEX(Data!$C$256:$C$258,MATCH(I73,Data!$B$256:$B$258,FALSE)),1)+IF(J73<>"",INDEX(Data!$E$256:$E$260,MATCH(J73,Data!$D$256:$D$260,FALSE)),1)+IF(K73<>"",INDEX(Data!$G$256:$G$258,MATCH(K73,Data!$F$256:$F$258,FALSE)),1)+IF(L73<>"",INDEX(Data!$I$256:$I$259,MATCH(L73,Data!$H$256:$H$259,FALSE)),1)-4)*0.2895/27)) -> 
A74: 0600.0070 | P74: =IF($B74="","",IF(ABS($F74)>=VLOOKUP($B74,Data!$B$318:$E$437,4,FALSE),VLOOKUP($B74,Data!$B$318:$E$437,3,FALSE),VLOOKUP($B74,Data!$B$318:$E$437,2,FALSE))) ->  | Q74: =IF(B74="","",0.9*2^((IF(I74<>"",INDEX(Data!$C$256:$C$258,MATCH(I74,Data!$B$256:$B$258,FALSE)),1)+IF(J74<>"",INDEX(Data!$E$256:$E$260,MATCH(J74,Data!$D$256:$D$260,FALSE)),1)+IF(K74<>"",INDEX(Data!$G$256:$G$258,MATCH(K74,Data!$F$256:$F$258,FALSE)),1)+IF(L74<>"",INDEX(Data!$I$256:$I$259,MATCH(L74,Data!$H$256:$H$259,FALSE)),1)-4)*0.2895/27)) -> 
A75: 0600.0071 | P75: =IF($B75="","",IF(ABS($F75)>=VLOOKUP($B75,Data!$B$318:$E$437,4,FALSE),VLOOKUP($B75,Data!$B$318:$E$437,3,FALSE),VLOOKUP($B75,Data!$B$318:$E$437,2,FALSE))) ->  | Q75: =IF(B75="","",0.9*2^((IF(I75<>"",INDEX(Data!$C$256:$C$258,MATCH(I75,Data!$B$256:$B$258,FALSE)),1)+IF(J75<>"",INDEX(Data!$E$256:$E$260,MATCH(J75,Data!$D$256:$D$260,FALSE)),1)+IF(K75<>"",INDEX(Data!$G$256:$G$258,MATCH(K75,Data!$F$256:$F$258,FALSE)),1)+IF(L75<>"",INDEX(Data!$I$256:$I$259,MATCH(L75,Data!$H$256:$H$259,FALSE)),1)-4)*0.2895/27)) -> 
A76: 0600.0072 | P76: =IF($B76="","",IF(ABS($F76)>=VLOOKUP($B76,Data!$B$318:$E$437,4,FALSE),VLOOKUP($B76,Data!$B$318:$E$437,3,FALSE),VLOOKUP($B76,Data!$B$318:$E$437,2,FALSE))) ->  | Q76: =IF(B76="","",0.9*2^((IF(I76<>"",INDEX(Data!$C$256:$C$258,MATCH(I76,Data!$B$256:$B$258,FALSE)),1)+IF(J76<>"",INDEX(Data!$E$256:$E$260,MATCH(J76,Data!$D$256:$D$260,FALSE)),1)+IF(K76<>"",INDEX(Data!$G$256:$G$258,MATCH(K76,Data!$F$256:$F$258,FALSE)),1)+IF(L76<>"",INDEX(Data!$I$256:$I$259,MATCH(L76,Data!$H$256:$H$259,FALSE)),1)-4)*0.2895/27)) -> 
A77: 0600.0073 | O77: =IF(B77="","",C78-C77) ->  | P77: =IF($B77="","",IF(ABS($F77)>=VLOOKUP($B77,Data!$B$318:$E$437,4,FALSE),VLOOKUP($B77,Data!$B$318:$E$437,3,FALSE),VLOOKUP($B77,Data!$B$318:$E$437,2,FALSE))) ->  | Q77: =IF(B77="","",0.9*2^((IF(I77<>"",INDEX(Data!$C$256:$C$258,MATCH(I77,Data!$B$256:$B$258,FALSE)),1)+IF(J77<>"",INDEX(Data!$E$256:$E$260,MATCH(J77,Data!$D$256:$D$260,FALSE)),1)+IF(K77<>"",INDEX(Data!$G$256:$G$258,MATCH(K77,Data!$F$256:$F$258,FALSE)),1)+IF(L77<>"",INDEX(Data!$I$256:$I$259,MATCH(L77,Data!$H$256:$H$259,FALSE)),1)-4)*0.2895/27)) -> 
A78: 0600.0074 | O78: =IF(B78="","",C79-C78) ->  | P78: =IF($B78="","",IF(ABS($F78)>=VLOOKUP($B78,Data!$B$318:$E$437,4,FALSE),VLOOKUP($B78,Data!$B$318:$E$437,3,FALSE),VLOOKUP($B78,Data!$B$318:$E$437,2,FALSE))) ->  | Q78: =IF(B78="","",0.9*2^((IF(I78<>"",INDEX(Data!$C$256:$C$258,MATCH(I78,Data!$B$256:$B$258,FALSE)),1)+IF(J78<>"",INDEX(Data!$E$256:$E$260,MATCH(J78,Data!$D$256:$D$260,FALSE)),1)+IF(K78<>"",INDEX(Data!$G$256:$G$258,MATCH(K78,Data!$F$256:$F$258,FALSE)),1)+IF(L78<>"",INDEX(Data!$I$256:$I$259,MATCH(L78,Data!$H$256:$H$259,FALSE)),1)-4)*0.2895/27)) -> 
A79: 0600.0075 | P79: =IF($B79="","",IF(ABS($F79)>=VLOOKUP($B79,Data!$B$318:$E$437,4,FALSE),VLOOKUP($B79,Data!$B$318:$E$437,3,FALSE),VLOOKUP($B79,Data!$B$318:$E$437,2,FALSE))) ->  | Q79: =IF(B79="","",0.9*2^((IF(I79<>"",INDEX(Data!$C$256:$C$258,MATCH(I79,Data!$B$256:$B$258,FALSE)),1)+IF(J79<>"",INDEX(Data!$E$256:$E$260,MATCH(J79,Data!$D$256:$D$260,FALSE)),1)+IF(K79<>"",INDEX(Data!$G$256:$G$258,MATCH(K79,Data!$F$256:$F$258,FALSE)),1)+IF(L79<>"",INDEX(Data!$I$256:$I$259,MATCH(L79,Data!$H$256:$H$259,FALSE)),1)-4)*0.2895/27)) -> 
A80: 0600.0076 | P80: =IF($B80="","",IF(ABS($F80)>=VLOOKUP($B80,Data!$B$318:$E$437,4,FALSE),VLOOKUP($B80,Data!$B$318:$E$437,3,FALSE),VLOOKUP($B80,Data!$B$318:$E$437,2,FALSE))) ->  | Q80: =IF(B80="","",0.9*2^((IF(I80<>"",INDEX(Data!$C$256:$C$258,MATCH(I80,Data!$B$256:$B$258,FALSE)),1)+IF(J80<>"",INDEX(Data!$E$256:$E$260,MATCH(J80,Data!$D$256:$D$260,FALSE)),1)+IF(K80<>"",INDEX(Data!$G$256:$G$258,MATCH(K80,Data!$F$256:$F$258,FALSE)),1)+IF(L80<>"",INDEX(Data!$I$256:$I$259,MATCH(L80,Data!$H$256:$H$259,FALSE)),1)-4)*0.2895/27)) -> 
A81: 0600.0077 | P81: =IF($B81="","",IF(ABS($F81)>=VLOOKUP($B81,Data!$B$318:$E$437,4,FALSE),VLOOKUP($B81,Data!$B$318:$E$437,3,FALSE),VLOOKUP($B81,Data!$B$318:$E$437,2,FALSE))) ->  | Q81: =IF(B81="","",0.9*2^((IF(I81<>"",INDEX(Data!$C$256:$C$258,MATCH(I81,Data!$B$256:$B$258,FALSE)),1)+IF(J81<>"",INDEX(Data!$E$256:$E$260,MATCH(J81,Data!$D$256:$D$260,FALSE)),1)+IF(K81<>"",INDEX(Data!$G$256:$G$258,MATCH(K81,Data!$F$256:$F$258,FALSE)),1)+IF(L81<>"",INDEX(Data!$I$256:$I$259,MATCH(L81,Data!$H$256:$H$259,FALSE)),1)-4)*0.2895/27)) -> 
A82: 0600.0078 | P82: =IF($B82="","",IF(ABS($F82)>=VLOOKUP($B82,Data!$B$318:$E$437,4,FALSE),VLOOKUP($B82,Data!$B$318:$E$437,3,FALSE),VLOOKUP($B82,Data!$B$318:$E$437,2,FALSE))) ->  | Q82: =IF(B82="","",0.9*2^((IF(I82<>"",INDEX(Data!$C$256:$C$258,MATCH(I82,Data!$B$256:$B$258,FALSE)),1)+IF(J82<>"",INDEX(Data!$E$256:$E$260,MATCH(J82,Data!$D$256:$D$260,FALSE)),1)+IF(K82<>"",INDEX(Data!$G$256:$G$258,MATCH(K82,Data!$F$256:$F$258,FALSE)),1)+IF(L82<>"",INDEX(Data!$I$256:$I$259,MATCH(L82,Data!$H$256:$H$259,FALSE)),1)-4)*0.2895/27)) -> 
A83: 0600.0079 | P83: =IF($B83="","",IF(ABS($F83)>=VLOOKUP($B83,Data!$B$318:$E$437,4,FALSE),VLOOKUP($B83,Data!$B$318:$E$437,3,FALSE),VLOOKUP($B83,Data!$B$318:$E$437,2,FALSE))) ->  | Q83: =IF(B83="","",0.9*2^((IF(I83<>"",INDEX(Data!$C$256:$C$258,MATCH(I83,Data!$B$256:$B$258,FALSE)),1)+IF(J83<>"",INDEX(Data!$E$256:$E$260,MATCH(J83,Data!$D$256:$D$260,FALSE)),1)+IF(K83<>"",INDEX(Data!$G$256:$G$258,MATCH(K83,Data!$F$256:$F$258,FALSE)),1)+IF(L83<>"",INDEX(Data!$I$256:$I$259,MATCH(L83,Data!$H$256:$H$259,FALSE)),1)-4)*0.2895/27)) -> 
A84: 0600.0080 | P84: =IF($B84="","",IF(ABS($F84)>=VLOOKUP($B84,Data!$B$318:$E$437,4,FALSE),VLOOKUP($B84,Data!$B$318:$E$437,3,FALSE),VLOOKUP($B84,Data!$B$318:$E$437,2,FALSE))) ->  | Q84: =IF(B84="","",0.9*2^((IF(I84<>"",INDEX(Data!$C$256:$C$258,MATCH(I84,Data!$B$256:$B$258,FALSE)),1)+IF(J84<>"",INDEX(Data!$E$256:$E$260,MATCH(J84,Data!$D$256:$D$260,FALSE)),1)+IF(K84<>"",INDEX(Data!$G$256:$G$258,MATCH(K84,Data!$F$256:$F$258,FALSE)),1)+IF(L84<>"",INDEX(Data!$I$256:$I$259,MATCH(L84,Data!$H$256:$H$259,FALSE)),1)-4)*0.2895/27)) -> 
A85: 0600.0081 | P85: =IF($B85="","",IF(ABS($F85)>=VLOOKUP($B85,Data!$B$318:$E$437,4,FALSE),VLOOKUP($B85,Data!$B$318:$E$437,3,FALSE),VLOOKUP($B85,Data!$B$318:$E$437,2,FALSE))) ->  | Q85: =IF(B85="","",0.9*2^((IF(I85<>"",INDEX(Data!$C$256:$C$258,MATCH(I85,Data!$B$256:$B$258,FALSE)),1)+IF(J85<>"",INDEX(Data!$E$256:$E$260,MATCH(J85,Data!$D$256:$D$260,FALSE)),1)+IF(K85<>"",INDEX(Data!$G$256:$G$258,MATCH(K85,Data!$F$256:$F$258,FALSE)),1)+IF(L85<>"",INDEX(Data!$I$256:$I$259,MATCH(L85,Data!$H$256:$H$259,FALSE)),1)-4)*0.2895/27)) -> 
A86: 0600.0082 | P86: =IF($B86="","",IF(ABS($F86)>=VLOOKUP($B86,Data!$B$318:$E$437,4,FALSE),VLOOKUP($B86,Data!$B$318:$E$437,3,FALSE),VLOOKUP($B86,Data!$B$318:$E$437,2,FALSE))) ->  | Q86: =IF(B86="","",0.9*2^((IF(I86<>"",INDEX(Data!$C$256:$C$258,MATCH(I86,Data!$B$256:$B$258,FALSE)),1)+IF(J86<>"",INDEX(Data!$E$256:$E$260,MATCH(J86,Data!$D$256:$D$260,FALSE)),1)+IF(K86<>"",INDEX(Data!$G$256:$G$258,MATCH(K86,Data!$F$256:$F$258,FALSE)),1)+IF(L86<>"",INDEX(Data!$I$256:$I$259,MATCH(L86,Data!$H$256:$H$259,FALSE)),1)-4)*0.2895/27)) -> 
A87: 0600.0083 | P87: =IF($B87="","",IF(ABS($F87)>=VLOOKUP($B87,Data!$B$318:$E$437,4,FALSE),VLOOKUP($B87,Data!$B$318:$E$437,3,FALSE),VLOOKUP($B87,Data!$B$318:$E$437,2,FALSE))) ->  | Q87: =IF(B87="","",0.9*2^((IF(I87<>"",INDEX(Data!$C$256:$C$258,MATCH(I87,Data!$B$256:$B$258,FALSE)),1)+IF(J87<>"",INDEX(Data!$E$256:$E$260,MATCH(J87,Data!$D$256:$D$260,FALSE)),1)+IF(K87<>"",INDEX(Data!$G$256:$G$258,MATCH(K87,Data!$F$256:$F$258,FALSE)),1)+IF(L87<>"",INDEX(Data!$I$256:$I$259,MATCH(L87,Data!$H$256:$H$259,FALSE)),1)-4)*0.2895/27)) -> 
A88: 0600.0084 | P88: =IF($B88="","",IF(ABS($F88)>=VLOOKUP($B88,Data!$B$318:$E$437,4,FALSE),VLOOKUP($B88,Data!$B$318:$E$437,3,FALSE),VLOOKUP($B88,Data!$B$318:$E$437,2,FALSE))) ->  | Q88: =IF(B88="","",0.9*2^((IF(I88<>"",INDEX(Data!$C$256:$C$258,MATCH(I88,Data!$B$256:$B$258,FALSE)),1)+IF(J88<>"",INDEX(Data!$E$256:$E$260,MATCH(J88,Data!$D$256:$D$260,FALSE)),1)+IF(K88<>"",INDEX(Data!$G$256:$G$258,MATCH(K88,Data!$F$256:$F$258,FALSE)),1)+IF(L88<>"",INDEX(Data!$I$256:$I$259,MATCH(L88,Data!$H$256:$H$259,FALSE)),1)-4)*0.2895/27)) -> 
A89: 0600.0085 | P89: =IF($B89="","",IF(ABS($F89)>=VLOOKUP($B89,Data!$B$318:$E$437,4,FALSE),VLOOKUP($B89,Data!$B$318:$E$437,3,FALSE),VLOOKUP($B89,Data!$B$318:$E$437,2,FALSE))) ->  | Q89: =IF(B89="","",0.9*2^((IF(I89<>"",INDEX(Data!$C$256:$C$258,MATCH(I89,Data!$B$256:$B$258,FALSE)),1)+IF(J89<>"",INDEX(Data!$E$256:$E$260,MATCH(J89,Data!$D$256:$D$260,FALSE)),1)+IF(K89<>"",INDEX(Data!$G$256:$G$258,MATCH(K89,Data!$F$256:$F$258,FALSE)),1)+IF(L89<>"",INDEX(Data!$I$256:$I$259,MATCH(L89,Data!$H$256:$H$259,FALSE)),1)-4)*0.2895/27)) -> 
A90: 0600.0086 | P90: =IF($B90="","",IF(ABS($F90)>=VLOOKUP($B90,Data!$B$318:$E$437,4,FALSE),VLOOKUP($B90,Data!$B$318:$E$437,3,FALSE),VLOOKUP($B90,Data!$B$318:$E$437,2,FALSE))) ->  | Q90: =IF(B90="","",0.9*2^((IF(I90<>"",INDEX(Data!$C$256:$C$258,MATCH(I90,Data!$B$256:$B$258,FALSE)),1)+IF(J90<>"",INDEX(Data!$E$256:$E$260,MATCH(J90,Data!$D$256:$D$260,FALSE)),1)+IF(K90<>"",INDEX(Data!$G$256:$G$258,MATCH(K90,Data!$F$256:$F$258,FALSE)),1)+IF(L90<>"",INDEX(Data!$I$256:$I$259,MATCH(L90,Data!$H$256:$H$259,FALSE)),1)-4)*0.2895/27)) -> 
A91: 0600.0087 | P91: =IF($B91="","",IF(ABS($F91)>=VLOOKUP($B91,Data!$B$318:$E$437,4,FALSE),VLOOKUP($B91,Data!$B$318:$E$437,3,FALSE),VLOOKUP($B91,Data!$B$318:$E$437,2,FALSE))) ->  | Q91: =IF(B91="","",0.9*2^((IF(I91<>"",INDEX(Data!$C$256:$C$258,MATCH(I91,Data!$B$256:$B$258,FALSE)),1)+IF(J91<>"",INDEX(Data!$E$256:$E$260,MATCH(J91,Data!$D$256:$D$260,FALSE)),1)+IF(K91<>"",INDEX(Data!$G$256:$G$258,MATCH(K91,Data!$F$256:$F$258,FALSE)),1)+IF(L91<>"",INDEX(Data!$I$256:$I$259,MATCH(L91,Data!$H$256:$H$259,FALSE)),1)-4)*0.2895/27)) -> 
A92: 0600.0088 | P92: =IF($B92="","",IF(ABS($F92)>=VLOOKUP($B92,Data!$B$318:$E$437,4,FALSE),VLOOKUP($B92,Data!$B$318:$E$437,3,FALSE),VLOOKUP($B92,Data!$B$318:$E$437,2,FALSE))) ->  | Q92: =IF(B92="","",0.9*2^((IF(I92<>"",INDEX(Data!$C$256:$C$258,MATCH(I92,Data!$B$256:$B$258,FALSE)),1)+IF(J92<>"",INDEX(Data!$E$256:$E$260,MATCH(J92,Data!$D$256:$D$260,FALSE)),1)+IF(K92<>"",INDEX(Data!$G$256:$G$258,MATCH(K92,Data!$F$256:$F$258,FALSE)),1)+IF(L92<>"",INDEX(Data!$I$256:$I$259,MATCH(L92,Data!$H$256:$H$259,FALSE)),1)-4)*0.2895/27)) -> 
A93: 0600.0089 | P93: =IF($B93="","",IF(ABS($F93)>=VLOOKUP($B93,Data!$B$318:$E$437,4,FALSE),VLOOKUP($B93,Data!$B$318:$E$437,3,FALSE),VLOOKUP($B93,Data!$B$318:$E$437,2,FALSE))) ->  | Q93: =IF(B93="","",0.9*2^((IF(I93<>"",INDEX(Data!$C$256:$C$258,MATCH(I93,Data!$B$256:$B$258,FALSE)),1)+IF(J93<>"",INDEX(Data!$E$256:$E$260,MATCH(J93,Data!$D$256:$D$260,FALSE)),1)+IF(K93<>"",INDEX(Data!$G$256:$G$258,MATCH(K93,Data!$F$256:$F$258,FALSE)),1)+IF(L93<>"",INDEX(Data!$I$256:$I$259,MATCH(L93,Data!$H$256:$H$259,FALSE)),1)-4)*0.2895/27)) -> 
A94: 0600.0090 | P94: =IF($B94="","",IF(ABS($F94)>=VLOOKUP($B94,Data!$B$318:$E$437,4,FALSE),VLOOKUP($B94,Data!$B$318:$E$437,3,FALSE),VLOOKUP($B94,Data!$B$318:$E$437,2,FALSE))) ->  | Q94: =IF(B94="","",0.9*2^((IF(I94<>"",INDEX(Data!$C$256:$C$258,MATCH(I94,Data!$B$256:$B$258,FALSE)),1)+IF(J94<>"",INDEX(Data!$E$256:$E$260,MATCH(J94,Data!$D$256:$D$260,FALSE)),1)+IF(K94<>"",INDEX(Data!$G$256:$G$258,MATCH(K94,Data!$F$256:$F$258,FALSE)),1)+IF(L94<>"",INDEX(Data!$I$256:$I$259,MATCH(L94,Data!$H$256:$H$259,FALSE)),1)-4)*0.2895/27)) -> 
A95: 0600.0091 | P95: =IF($B95="","",IF(ABS($F95)>=VLOOKUP($B95,Data!$B$318:$E$437,4,FALSE),VLOOKUP($B95,Data!$B$318:$E$437,3,FALSE),VLOOKUP($B95,Data!$B$318:$E$437,2,FALSE))) ->  | Q95: =IF(B95="","",0.9*2^((IF(I95<>"",INDEX(Data!$C$256:$C$258,MATCH(I95,Data!$B$256:$B$258,FALSE)),1)+IF(J95<>"",INDEX(Data!$E$256:$E$260,MATCH(J95,Data!$D$256:$D$260,FALSE)),1)+IF(K95<>"",INDEX(Data!$G$256:$G$258,MATCH(K95,Data!$F$256:$F$258,FALSE)),1)+IF(L95<>"",INDEX(Data!$I$256:$I$259,MATCH(L95,Data!$H$256:$H$259,FALSE)),1)-4)*0.2895/27)) -> 
A96: 0600.0092 | P96: =IF($B96="","",IF(ABS($F96)>=VLOOKUP($B96,Data!$B$318:$E$437,4,FALSE),VLOOKUP($B96,Data!$B$318:$E$437,3,FALSE),VLOOKUP($B96,Data!$B$318:$E$437,2,FALSE))) ->  | Q96: =IF(B96="","",0.9*2^((IF(I96<>"",INDEX(Data!$C$256:$C$258,MATCH(I96,Data!$B$256:$B$258,FALSE)),1)+IF(J96<>"",INDEX(Data!$E$256:$E$260,MATCH(J96,Data!$D$256:$D$260,FALSE)),1)+IF(K96<>"",INDEX(Data!$G$256:$G$258,MATCH(K96,Data!$F$256:$F$258,FALSE)),1)+IF(L96<>"",INDEX(Data!$I$256:$I$259,MATCH(L96,Data!$H$256:$H$259,FALSE)),1)-4)*0.2895/27)) -> 
A97: 0600.0093 | P97: =IF($B97="","",IF(ABS($F97)>=VLOOKUP($B97,Data!$B$318:$E$437,4,FALSE),VLOOKUP($B97,Data!$B$318:$E$437,3,FALSE),VLOOKUP($B97,Data!$B$318:$E$437,2,FALSE))) ->  | Q97: =IF(B97="","",0.9*2^((IF(I97<>"",INDEX(Data!$C$256:$C$258,MATCH(I97,Data!$B$256:$B$258,FALSE)),1)+IF(J97<>"",INDEX(Data!$E$256:$E$260,MATCH(J97,Data!$D$256:$D$260,FALSE)),1)+IF(K97<>"",INDEX(Data!$G$256:$G$258,MATCH(K97,Data!$F$256:$F$258,FALSE)),1)+IF(L97<>"",INDEX(Data!$I$256:$I$259,MATCH(L97,Data!$H$256:$H$259,FALSE)),1)-4)*0.2895/27)) -> 
A98: 0600.0094 | P98: =IF($B98="","",IF(ABS($F98)>=VLOOKUP($B98,Data!$B$318:$E$437,4,FALSE),VLOOKUP($B98,Data!$B$318:$E$437,3,FALSE),VLOOKUP($B98,Data!$B$318:$E$437,2,FALSE))) ->  | Q98: =IF(B98="","",0.9*2^((IF(I98<>"",INDEX(Data!$C$256:$C$258,MATCH(I98,Data!$B$256:$B$258,FALSE)),1)+IF(J98<>"",INDEX(Data!$E$256:$E$260,MATCH(J98,Data!$D$256:$D$260,FALSE)),1)+IF(K98<>"",INDEX(Data!$G$256:$G$258,MATCH(K98,Data!$F$256:$F$258,FALSE)),1)+IF(L98<>"",INDEX(Data!$I$256:$I$259,MATCH(L98,Data!$H$256:$H$259,FALSE)),1)-4)*0.2895/27)) -> 
A99: 0600.0095 | P99: =IF($B99="","",IF(ABS($F99)>=VLOOKUP($B99,Data!$B$318:$E$437,4,FALSE),VLOOKUP($B99,Data!$B$318:$E$437,3,FALSE),VLOOKUP($B99,Data!$B$318:$E$437,2,FALSE))) ->  | Q99: =IF(B99="","",0.9*2^((IF(I99<>"",INDEX(Data!$C$256:$C$258,MATCH(I99,Data!$B$256:$B$258,FALSE)),1)+IF(J99<>"",INDEX(Data!$E$256:$E$260,MATCH(J99,Data!$D$256:$D$260,FALSE)),1)+IF(K99<>"",INDEX(Data!$G$256:$G$258,MATCH(K99,Data!$F$256:$F$258,FALSE)),1)+IF(L99<>"",INDEX(Data!$I$256:$I$259,MATCH(L99,Data!$H$256:$H$259,FALSE)),1)-4)*0.2895/27)) -> 
A100: 0600.0096 | P100: =IF($B100="","",IF(ABS($F100)>=VLOOKUP($B100,Data!$B$318:$E$437,4,FALSE),VLOOKUP($B100,Data!$B$318:$E$437,3,FALSE),VLOOKUP($B100,Data!$B$318:$E$437,2,FALSE))) ->  | Q100: =IF(B100="","",0.9*2^((IF(I100<>"",INDEX(Data!$C$256:$C$258,MATCH(I100,Data!$B$256:$B$258,FALSE)),1)+IF(J100<>"",INDEX(Data!$E$256:$E$260,MATCH(J100,Data!$D$256:$D$260,FALSE)),1)+IF(K100<>"",INDEX(Data!$G$256:$G$258,MATCH(K100,Data!$F$256:$F$258,FALSE)),1)+IF(L100<>"",INDEX(Data!$I$256:$I$259,MATCH(L100,Data!$H$256:$H$259,FALSE)),1)-4)*0.2895/27)) -> 
A101: 0600.0097 | P101: =IF($B101="","",IF(ABS($F101)>=VLOOKUP($B101,Data!$B$318:$E$437,4,FALSE),VLOOKUP($B101,Data!$B$318:$E$437,3,FALSE),VLOOKUP($B101,Data!$B$318:$E$437,2,FALSE))) ->  | Q101: =IF(B101="","",0.9*2^((IF(I101<>"",INDEX(Data!$C$256:$C$258,MATCH(I101,Data!$B$256:$B$258,FALSE)),1)+IF(J101<>"",INDEX(Data!$E$256:$E$260,MATCH(J101,Data!$D$256:$D$260,FALSE)),1)+IF(K101<>"",INDEX(Data!$G$256:$G$258,MATCH(K101,Data!$F$256:$F$258,FALSE)),1)+IF(L101<>"",INDEX(Data!$I$256:$I$259,MATCH(L101,Data!$H$256:$H$259,FALSE)),1)-4)*0.2895/27)) -> 
A102: 0600.0098 | P102: =IF($B102="","",IF(ABS($F102)>=VLOOKUP($B102,Data!$B$318:$E$437,4,FALSE),VLOOKUP($B102,Data!$B$318:$E$437,3,FALSE),VLOOKUP($B102,Data!$B$318:$E$437,2,FALSE))) ->  | Q102: =IF(B102="","",0.9*2^((IF(I102<>"",INDEX(Data!$C$256:$C$258,MATCH(I102,Data!$B$256:$B$258,FALSE)),1)+IF(J102<>"",INDEX(Data!$E$256:$E$260,MATCH(J102,Data!$D$256:$D$260,FALSE)),1)+IF(K102<>"",INDEX(Data!$G$256:$G$258,MATCH(K102,Data!$F$256:$F$258,FALSE)),1)+IF(L102<>"",INDEX(Data!$I$256:$I$259,MATCH(L102,Data!$H$256:$H$259,FALSE)),1)-4)*0.2895/27)) -> 
A103: 0600.0099 | P103: =IF($B103="","",IF(ABS($F103)>=VLOOKUP($B103,Data!$B$318:$E$437,4,FALSE),VLOOKUP($B103,Data!$B$318:$E$437,3,FALSE),VLOOKUP($B103,Data!$B$318:$E$437,2,FALSE))) ->  | Q103: =IF(B103="","",0.9*2^((IF(I103<>"",INDEX(Data!$C$256:$C$258,MATCH(I103,Data!$B$256:$B$258,FALSE)),1)+IF(J103<>"",INDEX(Data!$E$256:$E$260,MATCH(J103,Data!$D$256:$D$260,FALSE)),1)+IF(K103<>"",INDEX(Data!$G$256:$G$258,MATCH(K103,Data!$F$256:$F$258,FALSE)),1)+IF(L103<>"",INDEX(Data!$I$256:$I$259,MATCH(L103,Data!$H$256:$H$259,FALSE)),1)-4)*0.2895/27)) -> 
A104: 0600.0100 | P104: =IF($B104="","",IF(ABS($F104)>=VLOOKUP($B104,Data!$B$318:$E$437,4,FALSE),VLOOKUP($B104,Data!$B$318:$E$437,3,FALSE),VLOOKUP($B104,Data!$B$318:$E$437,2,FALSE))) ->  | Q104: =IF(B104="","",0.9*2^((IF(I104<>"",INDEX(Data!$C$256:$C$258,MATCH(I104,Data!$B$256:$B$258,FALSE)),1)+IF(J104<>"",INDEX(Data!$E$256:$E$260,MATCH(J104,Data!$D$256:$D$260,FALSE)),1)+IF(K104<>"",INDEX(Data!$G$256:$G$258,MATCH(K104,Data!$F$256:$F$258,FALSE)),1)+IF(L104<>"",INDEX(Data!$I$256:$I$259,MATCH(L104,Data!$H$256:$H$259,FALSE)),1)-4)*0.2895/27)) -> 
A105: 0600.0101 | P105: =IF($B105="","",IF(ABS($F105)>=VLOOKUP($B105,Data!$B$318:$E$437,4,FALSE),VLOOKUP($B105,Data!$B$318:$E$437,3,FALSE),VLOOKUP($B105,Data!$B$318:$E$437,2,FALSE))) ->  | Q105: =IF(B105="","",0.9*2^((IF(I105<>"",INDEX(Data!$C$256:$C$258,MATCH(I105,Data!$B$256:$B$258,FALSE)),1)+IF(J105<>"",INDEX(Data!$E$256:$E$260,MATCH(J105,Data!$D$256:$D$260,FALSE)),1)+IF(K105<>"",INDEX(Data!$G$256:$G$258,MATCH(K105,Data!$F$256:$F$258,FALSE)),1)+IF(L105<>"",INDEX(Data!$I$256:$I$259,MATCH(L105,Data!$H$256:$H$259,FALSE)),1)-4)*0.2895/27)) -> 
A106: 0600.0102 | P106: =IF($B106="","",IF(ABS($F106)>=VLOOKUP($B106,Data!$B$318:$E$437,4,FALSE),VLOOKUP($B106,Data!$B$318:$E$437,3,FALSE),VLOOKUP($B106,Data!$B$318:$E$437,2,FALSE))) ->  | Q106: =IF(B106="","",0.9*2^((IF(I106<>"",INDEX(Data!$C$256:$C$258,MATCH(I106,Data!$B$256:$B$258,FALSE)),1)+IF(J106<>"",INDEX(Data!$E$256:$E$260,MATCH(J106,Data!$D$256:$D$260,FALSE)),1)+IF(K106<>"",INDEX(Data!$G$256:$G$258,MATCH(K106,Data!$F$256:$F$258,FALSE)),1)+IF(L106<>"",INDEX(Data!$I$256:$I$259,MATCH(L106,Data!$H$256:$H$259,FALSE)),1)-4)*0.2895/27)) -> 
A107: 0600.0103 | P107: =IF($B107="","",IF(ABS($F107)>=VLOOKUP($B107,Data!$B$318:$E$437,4,FALSE),VLOOKUP($B107,Data!$B$318:$E$437,3,FALSE),VLOOKUP($B107,Data!$B$318:$E$437,2,FALSE))) ->  | Q107: =IF(B107="","",0.9*2^((IF(I107<>"",INDEX(Data!$C$256:$C$258,MATCH(I107,Data!$B$256:$B$258,FALSE)),1)+IF(J107<>"",INDEX(Data!$E$256:$E$260,MATCH(J107,Data!$D$256:$D$260,FALSE)),1)+IF(K107<>"",INDEX(Data!$G$256:$G$258,MATCH(K107,Data!$F$256:$F$258,FALSE)),1)+IF(L107<>"",INDEX(Data!$I$256:$I$259,MATCH(L107,Data!$H$256:$H$259,FALSE)),1)-4)*0.2895/27)) -> 
A108: 0600.0104 | G108: =IF(B108="","",D108) ->  | H108: =IF(B108="","",IF(AND(MID(B108,1,3) = "Ris",F108>0),F108/G108,IF(AND(MID(B108,1,3) = "Fal",F108<0),F108/G108,IF(AND(MID(B108,1,3) = "Nom",F108=0),0,IF(AND(LEFT(B108,7)="Exposed",F108>0),F108/G108,IF(AND(MID(B108,1,3) = "",F108=0),0,"Height of slope has incorrect sign")))))) ->  | O108: =IF(B108="","",C109-C108) ->  | P108: =IF($B108="","",IF(ABS($F108)>=VLOOKUP($B108,Data!$B$318:$E$437,4,FALSE),VLOOKUP($B108,Data!$B$318:$E$437,3,FALSE),VLOOKUP($B108,Data!$B$318:$E$437,2,FALSE))) ->  | Q108: =IF(B108="","",0.9*2^((IF(I108<>"",INDEX(Data!$C$256:$C$258,MATCH(I108,Data!$B$256:$B$258,FALSE)),1)+IF(J108<>"",INDEX(Data!$E$256:$E$260,MATCH(J108,Data!$D$256:$D$260,FALSE)),1)+IF(K108<>"",INDEX(Data!$G$256:$G$258,MATCH(K108,Data!$F$256:$F$258,FALSE)),1)+IF(L108<>"",INDEX(Data!$I$256:$I$259,MATCH(L108,Data!$H$256:$H$259,FALSE)),1)-4)*0.2895/27)) ->  | R108: =IF(B108="","",1) -> 
A109: 0600.0105 | P109: =IF($B109="","",IF(ABS($F109)>=VLOOKUP($B109,Data!$B$318:$E$437,4,FALSE),VLOOKUP($B109,Data!$B$318:$E$437,3,FALSE),VLOOKUP($B109,Data!$B$318:$E$437,2,FALSE))) ->  | Q109: =IF(B109="","",0.9*2^((IF(I109<>"",INDEX(Data!$C$256:$C$258,MATCH(I109,Data!$B$256:$B$258,FALSE)),1)+IF(J109<>"",INDEX(Data!$E$256:$E$260,MATCH(J109,Data!$D$256:$D$260,FALSE)),1)+IF(K109<>"",INDEX(Data!$G$256:$G$258,MATCH(K109,Data!$F$256:$F$258,FALSE)),1)+IF(L109<>"",INDEX(Data!$I$256:$I$259,MATCH(L109,Data!$H$256:$H$259,FALSE)),1)-4)*0.2895/27)) -> 
A110: 0600.0106 | P110: =IF($B110="","",IF(ABS($F110)>=VLOOKUP($B110,Data!$B$318:$E$437,4,FALSE),VLOOKUP($B110,Data!$B$318:$E$437,3,FALSE),VLOOKUP($B110,Data!$B$318:$E$437,2,FALSE))) ->  | Q110: =IF(B110="","",0.9*2^((IF(I110<>"",INDEX(Data!$C$256:$C$258,MATCH(I110,Data!$B$256:$B$258,FALSE)),1)+IF(J110<>"",INDEX(Data!$E$256:$E$260,MATCH(J110,Data!$D$256:$D$260,FALSE)),1)+IF(K110<>"",INDEX(Data!$G$256:$G$258,MATCH(K110,Data!$F$256:$F$258,FALSE)),1)+IF(L110<>"",INDEX(Data!$I$256:$I$259,MATCH(L110,Data!$H$256:$H$259,FALSE)),1)-4)*0.2895/27)) -> 
A111: 0600.0107 | P111: =IF($B111="","",IF(ABS($F111)>=VLOOKUP($B111,Data!$B$318:$E$437,4,FALSE),VLOOKUP($B111,Data!$B$318:$E$437,3,FALSE),VLOOKUP($B111,Data!$B$318:$E$437,2,FALSE))) ->  | Q111: =IF(B111="","",0.9*2^((IF(I111<>"",INDEX(Data!$C$256:$C$258,MATCH(I111,Data!$B$256:$B$258,FALSE)),1)+IF(J111<>"",INDEX(Data!$E$256:$E$260,MATCH(J111,Data!$D$256:$D$260,FALSE)),1)+IF(K111<>"",INDEX(Data!$G$256:$G$258,MATCH(K111,Data!$F$256:$F$258,FALSE)),1)+IF(L111<>"",INDEX(Data!$I$256:$I$259,MATCH(L111,Data!$H$256:$H$259,FALSE)),1)-4)*0.2895/27)) -> 
A112: 0600.0108 | P112: =IF($B112="","",IF(ABS($F112)>=VLOOKUP($B112,Data!$B$318:$E$437,4,FALSE),VLOOKUP($B112,Data!$B$318:$E$437,3,FALSE),VLOOKUP($B112,Data!$B$318:$E$437,2,FALSE))) ->  | Q112: =IF(B112="","",0.9*2^((IF(I112<>"",INDEX(Data!$C$256:$C$258,MATCH(I112,Data!$B$256:$B$258,FALSE)),1)+IF(J112<>"",INDEX(Data!$E$256:$E$260,MATCH(J112,Data!$D$256:$D$260,FALSE)),1)+IF(K112<>"",INDEX(Data!$G$256:$G$258,MATCH(K112,Data!$F$256:$F$258,FALSE)),1)+IF(L112<>"",INDEX(Data!$I$256:$I$259,MATCH(L112,Data!$H$256:$H$259,FALSE)),1)-4)*0.2895/27)) -> 
A113: 0600.0109 | P113: =IF($B113="","",IF(ABS($F113)>=VLOOKUP($B113,Data!$B$318:$E$437,4,FALSE),VLOOKUP($B113,Data!$B$318:$E$437,3,FALSE),VLOOKUP($B113,Data!$B$318:$E$437,2,FALSE))) ->  | Q113: =IF(B113="","",0.9*2^((IF(I113<>"",INDEX(Data!$C$256:$C$258,MATCH(I113,Data!$B$256:$B$258,FALSE)),1)+IF(J113<>"",INDEX(Data!$E$256:$E$260,MATCH(J113,Data!$D$256:$D$260,FALSE)),1)+IF(K113<>"",INDEX(Data!$G$256:$G$258,MATCH(K113,Data!$F$256:$F$258,FALSE)),1)+IF(L113<>"",INDEX(Data!$I$256:$I$259,MATCH(L113,Data!$H$256:$H$259,FALSE)),1)-4)*0.2895/27)) -> 
A114: 0600.0110 | P114: =IF($B114="","",IF(ABS($F114)>=VLOOKUP($B114,Data!$B$318:$E$437,4,FALSE),VLOOKUP($B114,Data!$B$318:$E$437,3,FALSE),VLOOKUP($B114,Data!$B$318:$E$437,2,FALSE))) ->  | Q114: =IF(B114="","",0.9*2^((IF(I114<>"",INDEX(Data!$C$256:$C$258,MATCH(I114,Data!$B$256:$B$258,FALSE)),1)+IF(J114<>"",INDEX(Data!$E$256:$E$260,MATCH(J114,Data!$D$256:$D$260,FALSE)),1)+IF(K114<>"",INDEX(Data!$G$256:$G$258,MATCH(K114,Data!$F$256:$F$258,FALSE)),1)+IF(L114<>"",INDEX(Data!$I$256:$I$259,MATCH(L114,Data!$H$256:$H$259,FALSE)),1)-4)*0.2895/27)) -> 
A115: 0600.0111 | P115: =IF($B115="","",IF(ABS($F115)>=VLOOKUP($B115,Data!$B$318:$E$437,4,FALSE),VLOOKUP($B115,Data!$B$318:$E$437,3,FALSE),VLOOKUP($B115,Data!$B$318:$E$437,2,FALSE))) ->  | Q115: =IF(B115="","",0.9*2^((IF(I115<>"",INDEX(Data!$C$256:$C$258,MATCH(I115,Data!$B$256:$B$258,FALSE)),1)+IF(J115<>"",INDEX(Data!$E$256:$E$260,MATCH(J115,Data!$D$256:$D$260,FALSE)),1)+IF(K115<>"",INDEX(Data!$G$256:$G$258,MATCH(K115,Data!$F$256:$F$258,FALSE)),1)+IF(L115<>"",INDEX(Data!$I$256:$I$259,MATCH(L115,Data!$H$256:$H$259,FALSE)),1)-4)*0.2895/27)) -> 
A116: 0600.0112 | P116: =IF($B116="","",IF(ABS($F116)>=VLOOKUP($B116,Data!$B$318:$E$437,4,FALSE),VLOOKUP($B116,Data!$B$318:$E$437,3,FALSE),VLOOKUP($B116,Data!$B$318:$E$437,2,FALSE))) ->  | Q116: =IF(B116="","",0.9*2^((IF(I116<>"",INDEX(Data!$C$256:$C$258,MATCH(I116,Data!$B$256:$B$258,FALSE)),1)+IF(J116<>"",INDEX(Data!$E$256:$E$260,MATCH(J116,Data!$D$256:$D$260,FALSE)),1)+IF(K116<>"",INDEX(Data!$G$256:$G$258,MATCH(K116,Data!$F$256:$F$258,FALSE)),1)+IF(L116<>"",INDEX(Data!$I$256:$I$259,MATCH(L116,Data!$H$256:$H$259,FALSE)),1)-4)*0.2895/27)) -> 
A117: 0600.0113 | P117: =IF($B117="","",IF(ABS($F117)>=VLOOKUP($B117,Data!$B$318:$E$437,4,FALSE),VLOOKUP($B117,Data!$B$318:$E$437,3,FALSE),VLOOKUP($B117,Data!$B$318:$E$437,2,FALSE))) ->  | Q117: =IF(B117="","",0.9*2^((IF(I117<>"",INDEX(Data!$C$256:$C$258,MATCH(I117,Data!$B$256:$B$258,FALSE)),1)+IF(J117<>"",INDEX(Data!$E$256:$E$260,MATCH(J117,Data!$D$256:$D$260,FALSE)),1)+IF(K117<>"",INDEX(Data!$G$256:$G$258,MATCH(K117,Data!$F$256:$F$258,FALSE)),1)+IF(L117<>"",INDEX(Data!$I$256:$I$259,MATCH(L117,Data!$H$256:$H$259,FALSE)),1)-4)*0.2895/27)) -> 
A118: 0600.0114 | P118: =IF($B118="","",IF(ABS($F118)>=VLOOKUP($B118,Data!$B$318:$E$437,4,FALSE),VLOOKUP($B118,Data!$B$318:$E$437,3,FALSE),VLOOKUP($B118,Data!$B$318:$E$437,2,FALSE))) ->  | Q118: =IF(B118="","",0.9*2^((IF(I118<>"",INDEX(Data!$C$256:$C$258,MATCH(I118,Data!$B$256:$B$258,FALSE)),1)+IF(J118<>"",INDEX(Data!$E$256:$E$260,MATCH(J118,Data!$D$256:$D$260,FALSE)),1)+IF(K118<>"",INDEX(Data!$G$256:$G$258,MATCH(K118,Data!$F$256:$F$258,FALSE)),1)+IF(L118<>"",INDEX(Data!$I$256:$I$259,MATCH(L118,Data!$H$256:$H$259,FALSE)),1)-4)*0.2895/27)) -> 
A119: 0600.0115 | P119: =IF($B119="","",IF(ABS($F119)>=VLOOKUP($B119,Data!$B$318:$E$437,4,FALSE),VLOOKUP($B119,Data!$B$318:$E$437,3,FALSE),VLOOKUP($B119,Data!$B$318:$E$437,2,FALSE))) ->  | Q119: =IF(B119="","",0.9*2^((IF(I119<>"",INDEX(Data!$C$256:$C$258,MATCH(I119,Data!$B$256:$B$258,FALSE)),1)+IF(J119<>"",INDEX(Data!$E$256:$E$260,MATCH(J119,Data!$D$256:$D$260,FALSE)),1)+IF(K119<>"",INDEX(Data!$G$256:$G$258,MATCH(K119,Data!$F$256:$F$258,FALSE)),1)+IF(L119<>"",INDEX(Data!$I$256:$I$259,MATCH(L119,Data!$H$256:$H$259,FALSE)),1)-4)*0.2895/27)) -> 
A120: 0600.0116 | P120: =IF($B120="","",IF(ABS($F120)>=VLOOKUP($B120,Data!$B$318:$E$437,4,FALSE),VLOOKUP($B120,Data!$B$318:$E$437,3,FALSE),VLOOKUP($B120,Data!$B$318:$E$437,2,FALSE))) ->  | Q120: =IF(B120="","",0.9*2^((IF(I120<>"",INDEX(Data!$C$256:$C$258,MATCH(I120,Data!$B$256:$B$258,FALSE)),1)+IF(J120<>"",INDEX(Data!$E$256:$E$260,MATCH(J120,Data!$D$256:$D$260,FALSE)),1)+IF(K120<>"",INDEX(Data!$G$256:$G$258,MATCH(K120,Data!$F$256:$F$258,FALSE)),1)+IF(L120<>"",INDEX(Data!$I$256:$I$259,MATCH(L120,Data!$H$256:$H$259,FALSE)),1)-4)*0.2895/27)) -> 
A121: 0600.0117 | P121: =IF($B121="","",IF(ABS($F121)>=VLOOKUP($B121,Data!$B$318:$E$437,4,FALSE),VLOOKUP($B121,Data!$B$318:$E$437,3,FALSE),VLOOKUP($B121,Data!$B$318:$E$437,2,FALSE))) ->  | Q121: =IF(B121="","",0.9*2^((IF(I121<>"",INDEX(Data!$C$256:$C$258,MATCH(I121,Data!$B$256:$B$258,FALSE)),1)+IF(J121<>"",INDEX(Data!$E$256:$E$260,MATCH(J121,Data!$D$256:$D$260,FALSE)),1)+IF(K121<>"",INDEX(Data!$G$256:$G$258,MATCH(K121,Data!$F$256:$F$258,FALSE)),1)+IF(L121<>"",INDEX(Data!$I$256:$I$259,MATCH(L121,Data!$H$256:$H$259,FALSE)),1)-4)*0.2895/27)) -> 
A122: 0600.0118 | P122: =IF($B122="","",IF(ABS($F122)>=VLOOKUP($B122,Data!$B$318:$E$437,4,FALSE),VLOOKUP($B122,Data!$B$318:$E$437,3,FALSE),VLOOKUP($B122,Data!$B$318:$E$437,2,FALSE))) ->  | Q122: =IF(B122="","",0.9*2^((IF(I122<>"",INDEX(Data!$C$256:$C$258,MATCH(I122,Data!$B$256:$B$258,FALSE)),1)+IF(J122<>"",INDEX(Data!$E$256:$E$260,MATCH(J122,Data!$D$256:$D$260,FALSE)),1)+IF(K122<>"",INDEX(Data!$G$256:$G$258,MATCH(K122,Data!$F$256:$F$258,FALSE)),1)+IF(L122<>"",INDEX(Data!$I$256:$I$259,MATCH(L122,Data!$H$256:$H$259,FALSE)),1)-4)*0.2895/27)) -> 
A123: 0600.0119 | O123: =IF(B123="","",C124-C123) ->  | P123: =IF($B123="","",IF(ABS($F123)>=VLOOKUP($B123,Data!$B$318:$E$437,4,FALSE),VLOOKUP($B123,Data!$B$318:$E$437,3,FALSE),VLOOKUP($B123,Data!$B$318:$E$437,2,FALSE))) ->  | Q123: =IF(B123="","",0.9*2^((IF(I123<>"",INDEX(Data!$C$256:$C$258,MATCH(I123,Data!$B$256:$B$258,FALSE)),1)+IF(J123<>"",INDEX(Data!$E$256:$E$260,MATCH(J123,Data!$D$256:$D$260,FALSE)),1)+IF(K123<>"",INDEX(Data!$G$256:$G$258,MATCH(K123,Data!$F$256:$F$258,FALSE)),1)+IF(L123<>"",INDEX(Data!$I$256:$I$259,MATCH(L123,Data!$H$256:$H$259,FALSE)),1)-4)*0.2895/27)) -> 
A124: 0600.0120 | G124: =IF(B124="","",D124) ->  | H124: =IF(B124="","",IF(AND(MID(B124,1,3) = "Ris",F124>0),F124/G124,IF(AND(MID(B124,1,3) = "Fal",F124<0),F124/G124,IF(AND(MID(B124,1,3) = "Nom",F124=0),0,IF(AND(LEFT(B124,7)="Exposed",F124>0),F124/G124,IF(AND(MID(B124,1,3) = "",F124=0),0,"Height of slope has incorrect sign")))))) ->  | O124: =IF(B124="","",C125-C124) ->  | P124: =IF($B124="","",IF(ABS($F124)>=VLOOKUP($B124,Data!$B$318:$E$437,4,FALSE),VLOOKUP($B124,Data!$B$318:$E$437,3,FALSE),VLOOKUP($B124,Data!$B$318:$E$437,2,FALSE))) ->  | Q124: =IF(B124="","",0.9*2^((IF(I124<>"",INDEX(Data!$C$256:$C$258,MATCH(I124,Data!$B$256:$B$258,FALSE)),1)+IF(J124<>"",INDEX(Data!$E$256:$E$260,MATCH(J124,Data!$D$256:$D$260,FALSE)),1)+IF(K124<>"",INDEX(Data!$G$256:$G$258,MATCH(K124,Data!$F$256:$F$258,FALSE)),1)+IF(L124<>"",INDEX(Data!$I$256:$I$259,MATCH(L124,Data!$H$256:$H$259,FALSE)),1)-4)*0.2895/27)) ->  | R124: =IF(B124="","",1) -> 
A125: 0600.0121 | P125: =IF($B125="","",IF(ABS($F125)>=VLOOKUP($B125,Data!$B$318:$E$437,4,FALSE),VLOOKUP($B125,Data!$B$318:$E$437,3,FALSE),VLOOKUP($B125,Data!$B$318:$E$437,2,FALSE))) ->  | Q125: =IF(B125="","",0.9*2^((IF(I125<>"",INDEX(Data!$C$256:$C$258,MATCH(I125,Data!$B$256:$B$258,FALSE)),1)+IF(J125<>"",INDEX(Data!$E$256:$E$260,MATCH(J125,Data!$D$256:$D$260,FALSE)),1)+IF(K125<>"",INDEX(Data!$G$256:$G$258,MATCH(K125,Data!$F$256:$F$258,FALSE)),1)+IF(L125<>"",INDEX(Data!$I$256:$I$259,MATCH(L125,Data!$H$256:$H$259,FALSE)),1)-4)*0.2895/27)) -> 
A126: 0600.0122 | P126: =IF($B126="","",IF(ABS($F126)>=VLOOKUP($B126,Data!$B$318:$E$437,4,FALSE),VLOOKUP($B126,Data!$B$318:$E$437,3,FALSE),VLOOKUP($B126,Data!$B$318:$E$437,2,FALSE))) ->  | Q126: =IF(B126="","",0.9*2^((IF(I126<>"",INDEX(Data!$C$256:$C$258,MATCH(I126,Data!$B$256:$B$258,FALSE)),1)+IF(J126<>"",INDEX(Data!$E$256:$E$260,MATCH(J126,Data!$D$256:$D$260,FALSE)),1)+IF(K126<>"",INDEX(Data!$G$256:$G$258,MATCH(K126,Data!$F$256:$F$258,FALSE)),1)+IF(L126<>"",INDEX(Data!$I$256:$I$259,MATCH(L126,Data!$H$256:$H$259,FALSE)),1)-4)*0.2895/27)) -> 
A127: 0600.0123 | P127: =IF($B127="","",IF(ABS($F127)>=VLOOKUP($B127,Data!$B$318:$E$437,4,FALSE),VLOOKUP($B127,Data!$B$318:$E$437,3,FALSE),VLOOKUP($B127,Data!$B$318:$E$437,2,FALSE))) ->  | Q127: =IF(B127="","",0.9*2^((IF(I127<>"",INDEX(Data!$C$256:$C$258,MATCH(I127,Data!$B$256:$B$258,FALSE)),1)+IF(J127<>"",INDEX(Data!$E$256:$E$260,MATCH(J127,Data!$D$256:$D$260,FALSE)),1)+IF(K127<>"",INDEX(Data!$G$256:$G$258,MATCH(K127,Data!$F$256:$F$258,FALSE)),1)+IF(L127<>"",INDEX(Data!$I$256:$I$259,MATCH(L127,Data!$H$256:$H$259,FALSE)),1)-4)*0.2895/27)) -> 
A128: 0600.0124 | P128: =IF($B128="","",IF(ABS($F128)>=VLOOKUP($B128,Data!$B$318:$E$437,4,FALSE),VLOOKUP($B128,Data!$B$318:$E$437,3,FALSE),VLOOKUP($B128,Data!$B$318:$E$437,2,FALSE))) ->  | Q128: =IF(B128="","",0.9*2^((IF(I128<>"",INDEX(Data!$C$256:$C$258,MATCH(I128,Data!$B$256:$B$258,FALSE)),1)+IF(J128<>"",INDEX(Data!$E$256:$E$260,MATCH(J128,Data!$D$256:$D$260,FALSE)),1)+IF(K128<>"",INDEX(Data!$G$256:$G$258,MATCH(K128,Data!$F$256:$F$258,FALSE)),1)+IF(L128<>"",INDEX(Data!$I$256:$I$259,MATCH(L128,Data!$H$256:$H$259,FALSE)),1)-4)*0.2895/27)) -> 
A129: 0600.0125 | P129: =IF($B129="","",IF(ABS($F129)>=VLOOKUP($B129,Data!$B$318:$E$437,4,FALSE),VLOOKUP($B129,Data!$B$318:$E$437,3,FALSE),VLOOKUP($B129,Data!$B$318:$E$437,2,FALSE))) ->  | Q129: =IF(B129="","",0.9*2^((IF(I129<>"",INDEX(Data!$C$256:$C$258,MATCH(I129,Data!$B$256:$B$258,FALSE)),1)+IF(J129<>"",INDEX(Data!$E$256:$E$260,MATCH(J129,Data!$D$256:$D$260,FALSE)),1)+IF(K129<>"",INDEX(Data!$G$256:$G$258,MATCH(K129,Data!$F$256:$F$258,FALSE)),1)+IF(L129<>"",INDEX(Data!$I$256:$I$259,MATCH(L129,Data!$H$256:$H$259,FALSE)),1)-4)*0.2895/27)) -> 
A130: 0600.0126 | P130: =IF($B130="","",IF(ABS($F130)>=VLOOKUP($B130,Data!$B$318:$E$437,4,FALSE),VLOOKUP($B130,Data!$B$318:$E$437,3,FALSE),VLOOKUP($B130,Data!$B$318:$E$437,2,FALSE))) ->  | Q130: =IF(B130="","",0.9*2^((IF(I130<>"",INDEX(Data!$C$256:$C$258,MATCH(I130,Data!$B$256:$B$258,FALSE)),1)+IF(J130<>"",INDEX(Data!$E$256:$E$260,MATCH(J130,Data!$D$256:$D$260,FALSE)),1)+IF(K130<>"",INDEX(Data!$G$256:$G$258,MATCH(K130,Data!$F$256:$F$258,FALSE)),1)+IF(L130<>"",INDEX(Data!$I$256:$I$259,MATCH(L130,Data!$H$256:$H$259,FALSE)),1)-4)*0.2895/27)) -> 
A131: 0600.0127 | P131: =IF($B131="","",IF(ABS($F131)>=VLOOKUP($B131,Data!$B$318:$E$437,4,FALSE),VLOOKUP($B131,Data!$B$318:$E$437,3,FALSE),VLOOKUP($B131,Data!$B$318:$E$437,2,FALSE))) ->  | Q131: =IF(B131="","",0.9*2^((IF(I131<>"",INDEX(Data!$C$256:$C$258,MATCH(I131,Data!$B$256:$B$258,FALSE)),1)+IF(J131<>"",INDEX(Data!$E$256:$E$260,MATCH(J131,Data!$D$256:$D$260,FALSE)),1)+IF(K131<>"",INDEX(Data!$G$256:$G$258,MATCH(K131,Data!$F$256:$F$258,FALSE)),1)+IF(L131<>"",INDEX(Data!$I$256:$I$259,MATCH(L131,Data!$H$256:$H$259,FALSE)),1)-4)*0.2895/27)) -> 
A132: 0600.0128 | P132: =IF($B132="","",IF(ABS($F132)>=VLOOKUP($B132,Data!$B$318:$E$437,4,FALSE),VLOOKUP($B132,Data!$B$318:$E$437,3,FALSE),VLOOKUP($B132,Data!$B$318:$E$437,2,FALSE))) ->  | Q132: =IF(B132="","",0.9*2^((IF(I132<>"",INDEX(Data!$C$256:$C$258,MATCH(I132,Data!$B$256:$B$258,FALSE)),1)+IF(J132<>"",INDEX(Data!$E$256:$E$260,MATCH(J132,Data!$D$256:$D$260,FALSE)),1)+IF(K132<>"",INDEX(Data!$G$256:$G$258,MATCH(K132,Data!$F$256:$F$258,FALSE)),1)+IF(L132<>"",INDEX(Data!$I$256:$I$259,MATCH(L132,Data!$H$256:$H$259,FALSE)),1)-4)*0.2895/27)) -> 
A133: 0600.0129 | P133: =IF($B133="","",IF(ABS($F133)>=VLOOKUP($B133,Data!$B$318:$E$437,4,FALSE),VLOOKUP($B133,Data!$B$318:$E$437,3,FALSE),VLOOKUP($B133,Data!$B$318:$E$437,2,FALSE))) ->  | Q133: =IF(B133="","",0.9*2^((IF(I133<>"",INDEX(Data!$C$256:$C$258,MATCH(I133,Data!$B$256:$B$258,FALSE)),1)+IF(J133<>"",INDEX(Data!$E$256:$E$260,MATCH(J133,Data!$D$256:$D$260,FALSE)),1)+IF(K133<>"",INDEX(Data!$G$256:$G$258,MATCH(K133,Data!$F$256:$F$258,FALSE)),1)+IF(L133<>"",INDEX(Data!$I$256:$I$259,MATCH(L133,Data!$H$256:$H$259,FALSE)),1)-4)*0.2895/27)) -> 
A134: 0600.0130 | P134: =IF($B134="","",IF(ABS($F134)>=VLOOKUP($B134,Data!$B$318:$E$437,4,FALSE),VLOOKUP($B134,Data!$B$318:$E$437,3,FALSE),VLOOKUP($B134,Data!$B$318:$E$437,2,FALSE))) ->  | Q134: =IF(B134="","",0.9*2^((IF(I134<>"",INDEX(Data!$C$256:$C$258,MATCH(I134,Data!$B$256:$B$258,FALSE)),1)+IF(J134<>"",INDEX(Data!$E$256:$E$260,MATCH(J134,Data!$D$256:$D$260,FALSE)),1)+IF(K134<>"",INDEX(Data!$G$256:$G$258,MATCH(K134,Data!$F$256:$F$258,FALSE)),1)+IF(L134<>"",INDEX(Data!$I$256:$I$259,MATCH(L134,Data!$H$256:$H$259,FALSE)),1)-4)*0.2895/27)) ->  | S134: =IF(B134="","",D134) -> 
A135: 0600.0131 | P135: =IF($B135="","",IF(ABS($F135)>=VLOOKUP($B135,Data!$B$318:$E$437,4,FALSE),VLOOKUP($B135,Data!$B$318:$E$437,3,FALSE),VLOOKUP($B135,Data!$B$318:$E$437,2,FALSE))) ->  | Q135: =IF(B135="","",0.9*2^((IF(I135<>"",INDEX(Data!$C$256:$C$258,MATCH(I135,Data!$B$256:$B$258,FALSE)),1)+IF(J135<>"",INDEX(Data!$E$256:$E$260,MATCH(J135,Data!$D$256:$D$260,FALSE)),1)+IF(K135<>"",INDEX(Data!$G$256:$G$258,MATCH(K135,Data!$F$256:$F$258,FALSE)),1)+IF(L135<>"",INDEX(Data!$I$256:$I$259,MATCH(L135,Data!$H$256:$H$259,FALSE)),1)-4)*0.2895/27)) -> 
A136: 0600.0132 | P136: =IF($B136="","",IF(ABS($F136)>=VLOOKUP($B136,Data!$B$318:$E$437,4,FALSE),VLOOKUP($B136,Data!$B$318:$E$437,3,FALSE),VLOOKUP($B136,Data!$B$318:$E$437,2,FALSE))) ->  | Q136: =IF(B136="","",0.9*2^((IF(I136<>"",INDEX(Data!$C$256:$C$258,MATCH(I136,Data!$B$256:$B$258,FALSE)),1)+IF(J136<>"",INDEX(Data!$E$256:$E$260,MATCH(J136,Data!$D$256:$D$260,FALSE)),1)+IF(K136<>"",INDEX(Data!$G$256:$G$258,MATCH(K136,Data!$F$256:$F$258,FALSE)),1)+IF(L136<>"",INDEX(Data!$I$256:$I$259,MATCH(L136,Data!$H$256:$H$259,FALSE)),1)-4)*0.2895/27)) -> 
A137: 0600.0133 | P137: =IF($B137="","",IF(ABS($F137)>=VLOOKUP($B137,Data!$B$318:$E$437,4,FALSE),VLOOKUP($B137,Data!$B$318:$E$437,3,FALSE),VLOOKUP($B137,Data!$B$318:$E$437,2,FALSE))) ->  | Q137: =IF(B137="","",0.9*2^((IF(I137<>"",INDEX(Data!$C$256:$C$258,MATCH(I137,Data!$B$256:$B$258,FALSE)),1)+IF(J137<>"",INDEX(Data!$E$256:$E$260,MATCH(J137,Data!$D$256:$D$260,FALSE)),1)+IF(K137<>"",INDEX(Data!$G$256:$G$258,MATCH(K137,Data!$F$256:$F$258,FALSE)),1)+IF(L137<>"",INDEX(Data!$I$256:$I$259,MATCH(L137,Data!$H$256:$H$259,FALSE)),1)-4)*0.2895/27)) -> 
A138: 0600.0134 | P138: =IF($B138="","",IF(ABS($F138)>=VLOOKUP($B138,Data!$B$318:$E$437,4,FALSE),VLOOKUP($B138,Data!$B$318:$E$437,3,FALSE),VLOOKUP($B138,Data!$B$318:$E$437,2,FALSE))) ->  | Q138: =IF(B138="","",0.9*2^((IF(I138<>"",INDEX(Data!$C$256:$C$258,MATCH(I138,Data!$B$256:$B$258,FALSE)),1)+IF(J138<>"",INDEX(Data!$E$256:$E$260,MATCH(J138,Data!$D$256:$D$260,FALSE)),1)+IF(K138<>"",INDEX(Data!$G$256:$G$258,MATCH(K138,Data!$F$256:$F$258,FALSE)),1)+IF(L138<>"",INDEX(Data!$I$256:$I$259,MATCH(L138,Data!$H$256:$H$259,FALSE)),1)-4)*0.2895/27)) -> 
A139: 0600.0135 | P139: =IF($B139="","",IF(ABS($F139)>=VLOOKUP($B139,Data!$B$318:$E$437,4,FALSE),VLOOKUP($B139,Data!$B$318:$E$437,3,FALSE),VLOOKUP($B139,Data!$B$318:$E$437,2,FALSE))) ->  | Q139: =IF(B139="","",0.9*2^((IF(I139<>"",INDEX(Data!$C$256:$C$258,MATCH(I139,Data!$B$256:$B$258,FALSE)),1)+IF(J139<>"",INDEX(Data!$E$256:$E$260,MATCH(J139,Data!$D$256:$D$260,FALSE)),1)+IF(K139<>"",INDEX(Data!$G$256:$G$258,MATCH(K139,Data!$F$256:$F$258,FALSE)),1)+IF(L139<>"",INDEX(Data!$I$256:$I$259,MATCH(L139,Data!$H$256:$H$259,FALSE)),1)-4)*0.2895/27)) -> 
A140: 0600.0136 | P140: =IF($B140="","",IF(ABS($F140)>=VLOOKUP($B140,Data!$B$318:$E$437,4,FALSE),VLOOKUP($B140,Data!$B$318:$E$437,3,FALSE),VLOOKUP($B140,Data!$B$318:$E$437,2,FALSE))) ->  | Q140: =IF(B140="","",0.9*2^((IF(I140<>"",INDEX(Data!$C$256:$C$258,MATCH(I140,Data!$B$256:$B$258,FALSE)),1)+IF(J140<>"",INDEX(Data!$E$256:$E$260,MATCH(J140,Data!$D$256:$D$260,FALSE)),1)+IF(K140<>"",INDEX(Data!$G$256:$G$258,MATCH(K140,Data!$F$256:$F$258,FALSE)),1)+IF(L140<>"",INDEX(Data!$I$256:$I$259,MATCH(L140,Data!$H$256:$H$259,FALSE)),1)-4)*0.2895/27)) -> 
A141: 0600.0137 | P141: =IF($B141="","",IF(ABS($F141)>=VLOOKUP($B141,Data!$B$318:$E$437,4,FALSE),VLOOKUP($B141,Data!$B$318:$E$437,3,FALSE),VLOOKUP($B141,Data!$B$318:$E$437,2,FALSE))) ->  | Q141: =IF(B141="","",0.9*2^((IF(I141<>"",INDEX(Data!$C$256:$C$258,MATCH(I141,Data!$B$256:$B$258,FALSE)),1)+IF(J141<>"",INDEX(Data!$E$256:$E$260,MATCH(J141,Data!$D$256:$D$260,FALSE)),1)+IF(K141<>"",INDEX(Data!$G$256:$G$258,MATCH(K141,Data!$F$256:$F$258,FALSE)),1)+IF(L141<>"",INDEX(Data!$I$256:$I$259,MATCH(L141,Data!$H$256:$H$259,FALSE)),1)-4)*0.2895/27)) -> 
A142: 0600.0138 | P142: =IF($B142="","",IF(ABS($F142)>=VLOOKUP($B142,Data!$B$318:$E$437,4,FALSE),VLOOKUP($B142,Data!$B$318:$E$437,3,FALSE),VLOOKUP($B142,Data!$B$318:$E$437,2,FALSE))) ->  | Q142: =IF(B142="","",0.9*2^((IF(I142<>"",INDEX(Data!$C$256:$C$258,MATCH(I142,Data!$B$256:$B$258,FALSE)),1)+IF(J142<>"",INDEX(Data!$E$256:$E$260,MATCH(J142,Data!$D$256:$D$260,FALSE)),1)+IF(K142<>"",INDEX(Data!$G$256:$G$258,MATCH(K142,Data!$F$256:$F$258,FALSE)),1)+IF(L142<>"",INDEX(Data!$I$256:$I$259,MATCH(L142,Data!$H$256:$H$259,FALSE)),1)-4)*0.2895/27)) -> 
A143: 0600.0139 | P143: =IF($B143="","",IF(ABS($F143)>=VLOOKUP($B143,Data!$B$318:$E$437,4,FALSE),VLOOKUP($B143,Data!$B$318:$E$437,3,FALSE),VLOOKUP($B143,Data!$B$318:$E$437,2,FALSE))) ->  | Q143: =IF(B143="","",0.9*2^((IF(I143<>"",INDEX(Data!$C$256:$C$258,MATCH(I143,Data!$B$256:$B$258,FALSE)),1)+IF(J143<>"",INDEX(Data!$E$256:$E$260,MATCH(J143,Data!$D$256:$D$260,FALSE)),1)+IF(K143<>"",INDEX(Data!$G$256:$G$258,MATCH(K143,Data!$F$256:$F$258,FALSE)),1)+IF(L143<>"",INDEX(Data!$I$256:$I$259,MATCH(L143,Data!$H$256:$H$259,FALSE)),1)-4)*0.2895/27)) -> 
A144: 0600.0140 | P144: =IF($B144="","",IF(ABS($F144)>=VLOOKUP($B144,Data!$B$318:$E$437,4,FALSE),VLOOKUP($B144,Data!$B$318:$E$437,3,FALSE),VLOOKUP($B144,Data!$B$318:$E$437,2,FALSE))) ->  | Q144: =IF(B144="","",0.9*2^((IF(I144<>"",INDEX(Data!$C$256:$C$258,MATCH(I144,Data!$B$256:$B$258,FALSE)),1)+IF(J144<>"",INDEX(Data!$E$256:$E$260,MATCH(J144,Data!$D$256:$D$260,FALSE)),1)+IF(K144<>"",INDEX(Data!$G$256:$G$258,MATCH(K144,Data!$F$256:$F$258,FALSE)),1)+IF(L144<>"",INDEX(Data!$I$256:$I$259,MATCH(L144,Data!$H$256:$H$259,FALSE)),1)-4)*0.2895/27)) -> 
A145: 0600.0141 | P145: =IF($B145="","",IF(ABS($F145)>=VLOOKUP($B145,Data!$B$318:$E$437,4,FALSE),VLOOKUP($B145,Data!$B$318:$E$437,3,FALSE),VLOOKUP($B145,Data!$B$318:$E$437,2,FALSE))) ->  | Q145: =IF(B145="","",0.9*2^((IF(I145<>"",INDEX(Data!$C$256:$C$258,MATCH(I145,Data!$B$256:$B$258,FALSE)),1)+IF(J145<>"",INDEX(Data!$E$256:$E$260,MATCH(J145,Data!$D$256:$D$260,FALSE)),1)+IF(K145<>"",INDEX(Data!$G$256:$G$258,MATCH(K145,Data!$F$256:$F$258,FALSE)),1)+IF(L145<>"",INDEX(Data!$I$256:$I$259,MATCH(L145,Data!$H$256:$H$259,FALSE)),1)-4)*0.2895/27)) -> 
A146: 0600.0142 | P146: =IF($B146="","",IF(ABS($F146)>=VLOOKUP($B146,Data!$B$318:$E$437,4,FALSE),VLOOKUP($B146,Data!$B$318:$E$437,3,FALSE),VLOOKUP($B146,Data!$B$318:$E$437,2,FALSE))) ->  | Q146: =IF(B146="","",0.9*2^((IF(I146<>"",INDEX(Data!$C$256:$C$258,MATCH(I146,Data!$B$256:$B$258,FALSE)),1)+IF(J146<>"",INDEX(Data!$E$256:$E$260,MATCH(J146,Data!$D$256:$D$260,FALSE)),1)+IF(K146<>"",INDEX(Data!$G$256:$G$258,MATCH(K146,Data!$F$256:$F$258,FALSE)),1)+IF(L146<>"",INDEX(Data!$I$256:$I$259,MATCH(L146,Data!$H$256:$H$259,FALSE)),1)-4)*0.2895/27)) -> 
A147: 0600.0143 | P147: =IF($B147="","",IF(ABS($F147)>=VLOOKUP($B147,Data!$B$318:$E$437,4,FALSE),VLOOKUP($B147,Data!$B$318:$E$437,3,FALSE),VLOOKUP($B147,Data!$B$318:$E$437,2,FALSE))) ->  | Q147: =IF(B147="","",0.9*2^((IF(I147<>"",INDEX(Data!$C$256:$C$258,MATCH(I147,Data!$B$256:$B$258,FALSE)),1)+IF(J147<>"",INDEX(Data!$E$256:$E$260,MATCH(J147,Data!$D$256:$D$260,FALSE)),1)+IF(K147<>"",INDEX(Data!$G$256:$G$258,MATCH(K147,Data!$F$256:$F$258,FALSE)),1)+IF(L147<>"",INDEX(Data!$I$256:$I$259,MATCH(L147,Data!$H$256:$H$259,FALSE)),1)-4)*0.2895/27)) -> 
A148: 0600.0144 | P148: =IF($B148="","",IF(ABS($F148)>=VLOOKUP($B148,Data!$B$318:$E$437,4,FALSE),VLOOKUP($B148,Data!$B$318:$E$437,3,FALSE),VLOOKUP($B148,Data!$B$318:$E$437,2,FALSE))) ->  | Q148: =IF(B148="","",0.9*2^((IF(I148<>"",INDEX(Data!$C$256:$C$258,MATCH(I148,Data!$B$256:$B$258,FALSE)),1)+IF(J148<>"",INDEX(Data!$E$256:$E$260,MATCH(J148,Data!$D$256:$D$260,FALSE)),1)+IF(K148<>"",INDEX(Data!$G$256:$G$258,MATCH(K148,Data!$F$256:$F$258,FALSE)),1)+IF(L148<>"",INDEX(Data!$I$256:$I$259,MATCH(L148,Data!$H$256:$H$259,FALSE)),1)-4)*0.2895/27)) -> 
A149: 0600.0145 | P149: =IF($B149="","",IF(ABS($F149)>=VLOOKUP($B149,Data!$B$318:$E$437,4,FALSE),VLOOKUP($B149,Data!$B$318:$E$437,3,FALSE),VLOOKUP($B149,Data!$B$318:$E$437,2,FALSE))) ->  | Q149: =IF(B149="","",0.9*2^((IF(I149<>"",INDEX(Data!$C$256:$C$258,MATCH(I149,Data!$B$256:$B$258,FALSE)),1)+IF(J149<>"",INDEX(Data!$E$256:$E$260,MATCH(J149,Data!$D$256:$D$260,FALSE)),1)+IF(K149<>"",INDEX(Data!$G$256:$G$258,MATCH(K149,Data!$F$256:$F$258,FALSE)),1)+IF(L149<>"",INDEX(Data!$I$256:$I$259,MATCH(L149,Data!$H$256:$H$259,FALSE)),1)-4)*0.2895/27)) -> 
A150: 0600.0146 | P150: =IF($B150="","",IF(ABS($F150)>=VLOOKUP($B150,Data!$B$318:$E$437,4,FALSE),VLOOKUP($B150,Data!$B$318:$E$437,3,FALSE),VLOOKUP($B150,Data!$B$318:$E$437,2,FALSE))) ->  | Q150: =IF(B150="","",0.9*2^((IF(I150<>"",INDEX(Data!$C$256:$C$258,MATCH(I150,Data!$B$256:$B$258,FALSE)),1)+IF(J150<>"",INDEX(Data!$E$256:$E$260,MATCH(J150,Data!$D$256:$D$260,FALSE)),1)+IF(K150<>"",INDEX(Data!$G$256:$G$258,MATCH(K150,Data!$F$256:$F$258,FALSE)),1)+IF(L150<>"",INDEX(Data!$I$256:$I$259,MATCH(L150,Data!$H$256:$H$259,FALSE)),1)-4)*0.2895/27)) -> 
A151: 0600.0147 | P151: =IF($B151="","",IF(ABS($F151)>=VLOOKUP($B151,Data!$B$318:$E$437,4,FALSE),VLOOKUP($B151,Data!$B$318:$E$437,3,FALSE),VLOOKUP($B151,Data!$B$318:$E$437,2,FALSE))) ->  | Q151: =IF(B151="","",0.9*2^((IF(I151<>"",INDEX(Data!$C$256:$C$258,MATCH(I151,Data!$B$256:$B$258,FALSE)),1)+IF(J151<>"",INDEX(Data!$E$256:$E$260,MATCH(J151,Data!$D$256:$D$260,FALSE)),1)+IF(K151<>"",INDEX(Data!$G$256:$G$258,MATCH(K151,Data!$F$256:$F$258,FALSE)),1)+IF(L151<>"",INDEX(Data!$I$256:$I$259,MATCH(L151,Data!$H$256:$H$259,FALSE)),1)-4)*0.2895/27)) -> 
A152: 0600.0148 | P152: =IF($B152="","",IF(ABS($F152)>=VLOOKUP($B152,Data!$B$318:$E$437,4,FALSE),VLOOKUP($B152,Data!$B$318:$E$437,3,FALSE),VLOOKUP($B152,Data!$B$318:$E$437,2,FALSE))) ->  | Q152: =IF(B152="","",0.9*2^((IF(I152<>"",INDEX(Data!$C$256:$C$258,MATCH(I152,Data!$B$256:$B$258,FALSE)),1)+IF(J152<>"",INDEX(Data!$E$256:$E$260,MATCH(J152,Data!$D$256:$D$260,FALSE)),1)+IF(K152<>"",INDEX(Data!$G$256:$G$258,MATCH(K152,Data!$F$256:$F$258,FALSE)),1)+IF(L152<>"",INDEX(Data!$I$256:$I$259,MATCH(L152,Data!$H$256:$H$259,FALSE)),1)-4)*0.2895/27)) -> 
A153: 0600.0149 | P153: =IF($B153="","",IF(ABS($F153)>=VLOOKUP($B153,Data!$B$318:$E$437,4,FALSE),VLOOKUP($B153,Data!$B$318:$E$437,3,FALSE),VLOOKUP($B153,Data!$B$318:$E$437,2,FALSE))) ->  | Q153: =IF(B153="","",0.9*2^((IF(I153<>"",INDEX(Data!$C$256:$C$258,MATCH(I153,Data!$B$256:$B$258,FALSE)),1)+IF(J153<>"",INDEX(Data!$E$256:$E$260,MATCH(J153,Data!$D$256:$D$260,FALSE)),1)+IF(K153<>"",INDEX(Data!$G$256:$G$258,MATCH(K153,Data!$F$256:$F$258,FALSE)),1)+IF(L153<>"",INDEX(Data!$I$256:$I$259,MATCH(L153,Data!$H$256:$H$259,FALSE)),1)-4)*0.2895/27)) -> 
A154: 0600.0150 | G154: =IF(B154="","",D154) ->  | H154: =IF(B154="","",IF(AND(MID(B154,1,3) = "Ris",F154>0),F154/G154,IF(AND(MID(B154,1,3) = "Fal",F154<0),F154/G154,IF(AND(MID(B154,1,3) = "Nom",F154=0),0,IF(AND(LEFT(B154,7)="Exposed",F154>0),F154/G154,IF(AND(MID(B154,1,3) = "",F154=0),0,"Height of slope has incorrect sign")))))) ->  | O154: =IF(B154="","",C155-C154) ->  | P154: =IF($B154="","",IF(ABS($F154)>=VLOOKUP($B154,Data!$B$318:$E$437,4,FALSE),VLOOKUP($B154,Data!$B$318:$E$437,3,FALSE),VLOOKUP($B154,Data!$B$318:$E$437,2,FALSE))) ->  | Q154: =IF(B154="","",0.9*2^((IF(I154<>"",INDEX(Data!$C$256:$C$258,MATCH(I154,Data!$B$256:$B$258,FALSE)),1)+IF(J154<>"",INDEX(Data!$E$256:$E$260,MATCH(J154,Data!$D$256:$D$260,FALSE)),1)+IF(K154<>"",INDEX(Data!$G$256:$G$258,MATCH(K154,Data!$F$256:$F$258,FALSE)),1)+IF(L154<>"",INDEX(Data!$I$256:$I$259,MATCH(L154,Data!$H$256:$H$259,FALSE)),1)-4)*0.2895/27)) ->  | R154: =IF(B154="","",1) -> 

Sheet 1100 Kerbs
A1: These Kerbing features have been identified as being present in Section. - These should be input for complete section
C2: Verge assessed | D2: ='Basic (Common Details)'!C36 -> 0 | E2: Start Chainage of Section | F2: ='Basic (Common Details)'!C34 -> 0 | G2: End Chainage of Section | H2: ='Basic (Common Details)'!D34 -> 0
A3: Local Site Features
A4: ID Number | B4: Nature of Hazard | C4: Start chainage of hazard
A5: 1100.0001
A6: 1100.0002
A7: 1100.0003
A8: 1100.0004
A9: 1100.0005
A10: 1100.0006
A11: 1100.0007
A12: 1100.0008
A13: 1100.0009
A14: 1100.0010
A15: 1100.0011
A16: 1100.0012
A17: 1100.0013
A18: 1100.0014
A19: 1100.0015
A20: 1100.0016
A21: 1100.0017
A22: 1100.0018
A23: 1100.0019
A24: 1100.0020
A25: 1100.0021

Sheet 1200 Traffic Signs
A1: These Traffic Signs or Signals have been identified as being present in Section.
C2: Verge assessed | D2: ='Basic (Common Details)'!C36 -> 0 | E2: Start Chainage of Section | F2: ='Basic (Common Details)'!C34 -> 0 | G2: End Chainage of Section | H2: ='Basic (Common Details)'!D34 -> 0
A3: Local Site Features
A4: ID Number | B4: Nature of Hazard | C4: Start chainage of hazard | D4: Length of hazard | E4: Width of hazard | F4: Offset of hazard from PSb | G4: Cluster of hazards | H4: Height / Depth of hazard | I4: Mounting height | J4: Designed for collision loading? | K4: Width of sign face | L4: Aggressiveness | M4: Local alignment (F2) | N4: Sleep - related Site (F3) | O4: Speed (F4) | P4: Other features (F6) | Q4: Multiplicative factor for runoff rate | R4: Topography Factor
A5: 1200.0001 | L5: =IF($B5="","",VLOOKUP($B5,Data!$B$318:$C$438,2,FALSE)) ->  | Q5: =IF(B5="","",0.9*2^((IF(M5<>"",INDEX(Data!$C$256:$C$258,MATCH(M5,Data!$B$256:$B$258,FALSE)),1)+IF(N5<>"",INDEX(Data!$E$256:$E$260,MATCH(N5,Data!$D$256:$D$260,FALSE)),1)+IF(O5<>"",INDEX(Data!$G$256:$G$258,MATCH(O5,Data!$F$256:$F$258,FALSE)),1)+IF(P5<>"",INDEX(Data!$I$256:$I$259,MATCH(P5,Data!$H$256:$H$259,FALSE)),1)-4)*0.2895/27)) ->  | R5: =IF(B5="","",1) -> 
A6: 1200.0002 | L6: =IF($B6="","",VLOOKUP($B6,Data!$B$318:$C$438,2,FALSE)) ->  | Q6: =IF(B6="","",0.9*2^((IF(M6<>"",INDEX(Data!$C$256:$C$258,MATCH(M6,Data!$B$256:$B$258,FALSE)),1)+IF(N6<>"",INDEX(Data!$E$256:$E$260,MATCH(N6,Data!$D$256:$D$260,FALSE)),1)+IF(O6<>"",INDEX(Data!$G$256:$G$258,MATCH(O6,Data!$F$256:$F$258,FALSE)),1)+IF(P6<>"",INDEX(Data!$I$256:$I$259,MATCH(P6,Data!$H$256:$H$259,FALSE)),1)-4)*0.2895/27)) ->  | R6: =IF(B6="","",1) -> 
A7: 1200.0003 | L7: =IF($B7="","",VLOOKUP($B7,Data!$B$318:$C$438,2,FALSE)) ->  | Q7: =IF(B7="","",0.9*2^((IF(M7<>"",INDEX(Data!$C$256:$C$258,MATCH(M7,Data!$B$256:$B$258,FALSE)),1)+IF(N7<>"",INDEX(Data!$E$256:$E$260,MATCH(N7,Data!$D$256:$D$260,FALSE)),1)+IF(O7<>"",INDEX(Data!$G$256:$G$258,MATCH(O7,Data!$F$256:$F$258,FALSE)),1)+IF(P7<>"",INDEX(Data!$I$256:$I$259,MATCH(P7,Data!$H$256:$H$259,FALSE)),1)-4)*0.2895/27)) -> 
A8: 1200.0004 | L8: =IF($B8="","",VLOOKUP($B8,Data!$B$318:$C$438,2,FALSE)) ->  | Q8: =IF(B8="","",0.9*2^((IF(M8<>"",INDEX(Data!$C$256:$C$258,MATCH(M8,Data!$B$256:$B$258,FALSE)),1)+IF(N8<>"",INDEX(Data!$E$256:$E$260,MATCH(N8,Data!$D$256:$D$260,FALSE)),1)+IF(O8<>"",INDEX(Data!$G$256:$G$258,MATCH(O8,Data!$F$256:$F$258,FALSE)),1)+IF(P8<>"",INDEX(Data!$I$256:$I$259,MATCH(P8,Data!$H$256:$H$259,FALSE)),1)-4)*0.2895/27)) -> 
A9: 1200.0005 | L9: =IF($B9="","",VLOOKUP($B9,Data!$B$318:$C$438,2,FALSE)) ->  | Q9: =IF(B9="","",0.9*2^((IF(M9<>"",INDEX(Data!$C$256:$C$258,MATCH(M9,Data!$B$256:$B$258,FALSE)),1)+IF(N9<>"",INDEX(Data!$E$256:$E$260,MATCH(N9,Data!$D$256:$D$260,FALSE)),1)+IF(O9<>"",INDEX(Data!$G$256:$G$258,MATCH(O9,Data!$F$256:$F$258,FALSE)),1)+IF(P9<>"",INDEX(Data!$I$256:$I$259,MATCH(P9,Data!$H$256:$H$259,FALSE)),1)-4)*0.2895/27)) -> 
A10: 1200.0006 | L10: =IF($B10="","",VLOOKUP($B10,Data!$B$318:$C$438,2,FALSE)) ->  | Q10: =IF(B10="","",0.9*2^((IF(M10<>"",INDEX(Data!$C$256:$C$258,MATCH(M10,Data!$B$256:$B$258,FALSE)),1)+IF(N10<>"",INDEX(Data!$E$256:$E$260,MATCH(N10,Data!$D$256:$D$260,FALSE)),1)+IF(O10<>"",INDEX(Data!$G$256:$G$258,MATCH(O10,Data!$F$256:$F$258,FALSE)),1)+IF(P10<>"",INDEX(Data!$I$256:$I$259,MATCH(P10,Data!$H$256:$H$259,FALSE)),1)-4)*0.2895/27)) -> 
A11: 1200.0007 | L11: =IF($B11="","",VLOOKUP($B11,Data!$B$318:$C$438,2,FALSE)) ->  | Q11: =IF(B11="","",0.9*2^((IF(M11<>"",INDEX(Data!$C$256:$C$258,MATCH(M11,Data!$B$256:$B$258,FALSE)),1)+IF(N11<>"",INDEX(Data!$E$256:$E$260,MATCH(N11,Data!$D$256:$D$260,FALSE)),1)+IF(O11<>"",INDEX(Data!$G$256:$G$258,MATCH(O11,Data!$F$256:$F$258,FALSE)),1)+IF(P11<>"",INDEX(Data!$I$256:$I$259,MATCH(P11,Data!$H$256:$H$259,FALSE)),1)-4)*0.2895/27)) -> 
A12: 1200.0008 | L12: =IF($B12="","",VLOOKUP($B12,Data!$B$318:$C$438,2,FALSE)) ->  | Q12: =IF(B12="","",0.9*2^((IF(M12<>"",INDEX(Data!$C$256:$C$258,MATCH(M12,Data!$B$256:$B$258,FALSE)),1)+IF(N12<>"",INDEX(Data!$E$256:$E$260,MATCH(N12,Data!$D$256:$D$260,FALSE)),1)+IF(O12<>"",INDEX(Data!$G$256:$G$258,MATCH(O12,Data!$F$256:$F$258,FALSE)),1)+IF(P12<>"",INDEX(Data!$I$256:$I$259,MATCH(P12,Data!$H$256:$H$259,FALSE)),1)-4)*0.2895/27)) -> 
A13: 1200.0009 | L13: =IF($B13="","",VLOOKUP($B13,Data!$B$318:$C$438,2,FALSE)) ->  | Q13: =IF(B13="","",0.9*2^((IF(M13<>"",INDEX(Data!$C$256:$C$258,MATCH(M13,Data!$B$256:$B$258,FALSE)),1)+IF(N13<>"",INDEX(Data!$E$256:$E$260,MATCH(N13,Data!$D$256:$D$260,FALSE)),1)+IF(O13<>"",INDEX(Data!$G$256:$G$258,MATCH(O13,Data!$F$256:$F$258,FALSE)),1)+IF(P13<>"",INDEX(Data!$I$256:$I$259,MATCH(P13,Data!$H$256:$H$259,FALSE)),1)-4)*0.2895/27)) -> 
A14: 1200.0010 | L14: =IF($B14="","",VLOOKUP($B14,Data!$B$318:$C$438,2,FALSE)) ->  | Q14: =IF(B14="","",0.9*2^((IF(M14<>"",INDEX(Data!$C$256:$C$258,MATCH(M14,Data!$B$256:$B$258,FALSE)),1)+IF(N14<>"",INDEX(Data!$E$256:$E$260,MATCH(N14,Data!$D$256:$D$260,FALSE)),1)+IF(O14<>"",INDEX(Data!$G$256:$G$258,MATCH(O14,Data!$F$256:$F$258,FALSE)),1)+IF(P14<>"",INDEX(Data!$I$256:$I$259,MATCH(P14,Data!$H$256:$H$259,FALSE)),1)-4)*0.2895/27)) -> 
A15: 1200.0011 | L15: =IF($B15="","",VLOOKUP($B15,Data!$B$318:$C$438,2,FALSE)) ->  | Q15: =IF(B15="","",0.9*2^((IF(M15<>"",INDEX(Data!$C$256:$C$258,MATCH(M15,Data!$B$256:$B$258,FALSE)),1)+IF(N15<>"",INDEX(Data!$E$256:$E$260,MATCH(N15,Data!$D$256:$D$260,FALSE)),1)+IF(O15<>"",INDEX(Data!$G$256:$G$258,MATCH(O15,Data!$F$256:$F$258,FALSE)),1)+IF(P15<>"",INDEX(Data!$I$256:$I$259,MATCH(P15,Data!$H$256:$H$259,FALSE)),1)-4)*0.2895/27)) -> 
A16: 1200.0012 | L16: =IF($B16="","",VLOOKUP($B16,Data!$B$318:$C$438,2,FALSE)) ->  | Q16: =IF(B16="","",0.9*2^((IF(M16<>"",INDEX(Data!$C$256:$C$258,MATCH(M16,Data!$B$256:$B$258,FALSE)),1)+IF(N16<>"",INDEX(Data!$E$256:$E$260,MATCH(N16,Data!$D$256:$D$260,FALSE)),1)+IF(O16<>"",INDEX(Data!$G$256:$G$258,MATCH(O16,Data!$F$256:$F$258,FALSE)),1)+IF(P16<>"",INDEX(Data!$I$256:$I$259,MATCH(P16,Data!$H$256:$H$259,FALSE)),1)-4)*0.2895/27)) -> 
A17: 1200.0013 | L17: =IF($B17="","",VLOOKUP($B17,Data!$B$318:$C$438,2,FALSE)) ->  | Q17: =IF(B17="","",0.9*2^((IF(M17<>"",INDEX(Data!$C$256:$C$258,MATCH(M17,Data!$B$256:$B$258,FALSE)),1)+IF(N17<>"",INDEX(Data!$E$256:$E$260,MATCH(N17,Data!$D$256:$D$260,FALSE)),1)+IF(O17<>"",INDEX(Data!$G$256:$G$258,MATCH(O17,Data!$F$256:$F$258,FALSE)),1)+IF(P17<>"",INDEX(Data!$I$256:$I$259,MATCH(P17,Data!$H$256:$H$259,FALSE)),1)-4)*0.2895/27)) -> 
A18: 1200.0014 | L18: =IF($B18="","",VLOOKUP($B18,Data!$B$318:$C$438,2,FALSE)) ->  | Q18: =IF(B18="","",0.9*2^((IF(M18<>"",INDEX(Data!$C$256:$C$258,MATCH(M18,Data!$B$256:$B$258,FALSE)),1)+IF(N18<>"",INDEX(Data!$E$256:$E$260,MATCH(N18,Data!$D$256:$D$260,FALSE)),1)+IF(O18<>"",INDEX(Data!$G$256:$G$258,MATCH(O18,Data!$F$256:$F$258,FALSE)),1)+IF(P18<>"",INDEX(Data!$I$256:$I$259,MATCH(P18,Data!$H$256:$H$259,FALSE)),1)-4)*0.2895/27)) -> 
A19: 1200.0015 | L19: =IF($B19="","",VLOOKUP($B19,Data!$B$318:$C$438,2,FALSE)) ->  | Q19: =IF(B19="","",0.9*2^((IF(M19<>"",INDEX(Data!$C$256:$C$258,MATCH(M19,Data!$B$256:$B$258,FALSE)),1)+IF(N19<>"",INDEX(Data!$E$256:$E$260,MATCH(N19,Data!$D$256:$D$260,FALSE)),1)+IF(O19<>"",INDEX(Data!$G$256:$G$258,MATCH(O19,Data!$F$256:$F$258,FALSE)),1)+IF(P19<>"",INDEX(Data!$I$256:$I$259,MATCH(P19,Data!$H$256:$H$259,FALSE)),1)-4)*0.2895/27)) -> 
A20: 1200.0016 | L20: =IF($B20="","",VLOOKUP($B20,Data!$B$318:$C$438,2,FALSE)) ->  | Q20: =IF(B20="","",0.9*2^((IF(M20<>"",INDEX(Data!$C$256:$C$258,MATCH(M20,Data!$B$256:$B$258,FALSE)),1)+IF(N20<>"",INDEX(Data!$E$256:$E$260,MATCH(N20,Data!$D$256:$D$260,FALSE)),1)+IF(O20<>"",INDEX(Data!$G$256:$G$258,MATCH(O20,Data!$F$256:$F$258,FALSE)),1)+IF(P20<>"",INDEX(Data!$I$256:$I$259,MATCH(P20,Data!$H$256:$H$259,FALSE)),1)-4)*0.2895/27)) -> 
A21: 1200.0017 | L21: =IF($B21="","",VLOOKUP($B21,Data!$B$318:$C$438,2,FALSE)) ->  | Q21: =IF(B21="","",0.9*2^((IF(M21<>"",INDEX(Data!$C$256:$C$258,MATCH(M21,Data!$B$256:$B$258,FALSE)),1)+IF(N21<>"",INDEX(Data!$E$256:$E$260,MATCH(N21,Data!$D$256:$D$260,FALSE)),1)+IF(O21<>"",INDEX(Data!$G$256:$G$258,MATCH(O21,Data!$F$256:$F$258,FALSE)),1)+IF(P21<>"",INDEX(Data!$I$256:$I$259,MATCH(P21,Data!$H$256:$H$259,FALSE)),1)-4)*0.2895/27)) -> 
A22: 1200.0018 | L22: =IF($B22="","",VLOOKUP($B22,Data!$B$318:$C$438,2,FALSE)) ->  | Q22: =IF(B22="","",0.9*2^((IF(M22<>"",INDEX(Data!$C$256:$C$258,MATCH(M22,Data!$B$256:$B$258,FALSE)),1)+IF(N22<>"",INDEX(Data!$E$256:$E$260,MATCH(N22,Data!$D$256:$D$260,FALSE)),1)+IF(O22<>"",INDEX(Data!$G$256:$G$258,MATCH(O22,Data!$F$256:$F$258,FALSE)),1)+IF(P22<>"",INDEX(Data!$I$256:$I$259,MATCH(P22,Data!$H$256:$H$259,FALSE)),1)-4)*0.2895/27)) -> 
A23: 1200.0019 | L23: =IF($B23="","",VLOOKUP($B23,Data!$B$318:$C$438,2,FALSE)) ->  | Q23: =IF(B23="","",0.9*2^((IF(M23<>"",INDEX(Data!$C$256:$C$258,MATCH(M23,Data!$B$256:$B$258,FALSE)),1)+IF(N23<>"",INDEX(Data!$E$256:$E$260,MATCH(N23,Data!$D$256:$D$260,FALSE)),1)+IF(O23<>"",INDEX(Data!$G$256:$G$258,MATCH(O23,Data!$F$256:$F$258,FALSE)),1)+IF(P23<>"",INDEX(Data!$I$256:$I$259,MATCH(P23,Data!$H$256:$H$259,FALSE)),1)-4)*0.2895/27)) -> 
A24: 1200.0020 | L24: =IF($B24="","",VLOOKUP($B24,Data!$B$318:$C$438,2,FALSE)) ->  | Q24: =IF(B24="","",0.9*2^((IF(M24<>"",INDEX(Data!$C$256:$C$258,MATCH(M24,Data!$B$256:$B$258,FALSE)),1)+IF(N24<>"",INDEX(Data!$E$256:$E$260,MATCH(N24,Data!$D$256:$D$260,FALSE)),1)+IF(O24<>"",INDEX(Data!$G$256:$G$258,MATCH(O24,Data!$F$256:$F$258,FALSE)),1)+IF(P24<>"",INDEX(Data!$I$256:$I$259,MATCH(P24,Data!$H$256:$H$259,FALSE)),1)-4)*0.2895/27)) -> 
A25: 1200.0021 | L25: =IF($B25="","",VLOOKUP($B25,Data!$B$318:$C$438,2,FALSE)) ->  | Q25: =IF(B25="","",0.9*2^((IF(M25<>"",INDEX(Data!$C$256:$C$258,MATCH(M25,Data!$B$256:$B$258,FALSE)),1)+IF(N25<>"",INDEX(Data!$E$256:$E$260,MATCH(N25,Data!$D$256:$D$260,FALSE)),1)+IF(O25<>"",INDEX(Data!$G$256:$G$258,MATCH(O25,Data!$F$256:$F$258,FALSE)),1)+IF(P25<>"",INDEX(Data!$I$256:$I$259,MATCH(P25,Data!$H$256:$H$259,FALSE)),1)-4)*0.2895/27)) -> 
A26: 1200.0022 | L26: =IF($B26="","",VLOOKUP($B26,Data!$B$318:$C$438,2,FALSE)) ->  | Q26: =IF(B26="","",0.9*2^((IF(M26<>"",INDEX(Data!$C$256:$C$258,MATCH(M26,Data!$B$256:$B$258,FALSE)),1)+IF(N26<>"",INDEX(Data!$E$256:$E$260,MATCH(N26,Data!$D$256:$D$260,FALSE)),1)+IF(O26<>"",INDEX(Data!$G$256:$G$258,MATCH(O26,Data!$F$256:$F$258,FALSE)),1)+IF(P26<>"",INDEX(Data!$I$256:$I$259,MATCH(P26,Data!$H$256:$H$259,FALSE)),1)-4)*0.2895/27)) -> 
A27: 1200.0023 | L27: =IF($B27="","",VLOOKUP($B27,Data!$B$318:$C$438,2,FALSE)) ->  | Q27: =IF(B27="","",0.9*2^((IF(M27<>"",INDEX(Data!$C$256:$C$258,MATCH(M27,Data!$B$256:$B$258,FALSE)),1)+IF(N27<>"",INDEX(Data!$E$256:$E$260,MATCH(N27,Data!$D$256:$D$260,FALSE)),1)+IF(O27<>"",INDEX(Data!$G$256:$G$258,MATCH(O27,Data!$F$256:$F$258,FALSE)),1)+IF(P27<>"",INDEX(Data!$I$256:$I$259,MATCH(P27,Data!$H$256:$H$259,FALSE)),1)-4)*0.2895/27)) -> 
A28: 1200.0024 | L28: =IF($B28="","",VLOOKUP($B28,Data!$B$318:$C$438,2,FALSE)) ->  | Q28: =IF(B28="","",0.9*2^((IF(M28<>"",INDEX(Data!$C$256:$C$258,MATCH(M28,Data!$B$256:$B$258,FALSE)),1)+IF(N28<>"",INDEX(Data!$E$256:$E$260,MATCH(N28,Data!$D$256:$D$260,FALSE)),1)+IF(O28<>"",INDEX(Data!$G$256:$G$258,MATCH(O28,Data!$F$256:$F$258,FALSE)),1)+IF(P28<>"",INDEX(Data!$I$256:$I$259,MATCH(P28,Data!$H$256:$H$259,FALSE)),1)-4)*0.2895/27)) -> 
A29: 1200.0025 | L29: =IF($B29="","",VLOOKUP($B29,Data!$B$318:$C$438,2,FALSE)) ->  | Q29: =IF(B29="","",0.9*2^((IF(M29<>"",INDEX(Data!$C$256:$C$258,MATCH(M29,Data!$B$256:$B$258,FALSE)),1)+IF(N29<>"",INDEX(Data!$E$256:$E$260,MATCH(N29,Data!$D$256:$D$260,FALSE)),1)+IF(O29<>"",INDEX(Data!$G$256:$G$258,MATCH(O29,Data!$F$256:$F$258,FALSE)),1)+IF(P29<>"",INDEX(Data!$I$256:$I$259,MATCH(P29,Data!$H$256:$H$259,FALSE)),1)-4)*0.2895/27)) -> 
A30: 1200.0026 | L30: =IF($B30="","",VLOOKUP($B30,Data!$B$318:$C$438,2,FALSE)) ->  | Q30: =IF(B30="","",0.9*2^((IF(M30<>"",INDEX(Data!$C$256:$C$258,MATCH(M30,Data!$B$256:$B$258,FALSE)),1)+IF(N30<>"",INDEX(Data!$E$256:$E$260,MATCH(N30,Data!$D$256:$D$260,FALSE)),1)+IF(O30<>"",INDEX(Data!$G$256:$G$258,MATCH(O30,Data!$F$256:$F$258,FALSE)),1)+IF(P30<>"",INDEX(Data!$I$256:$I$259,MATCH(P30,Data!$H$256:$H$259,FALSE)),1)-4)*0.2895/27)) -> 
A31: 1200.0027 | L31: =IF($B31="","",VLOOKUP($B31,Data!$B$318:$C$438,2,FALSE)) ->  | Q31: =IF(B31="","",0.9*2^((IF(M31<>"",INDEX(Data!$C$256:$C$258,MATCH(M31,Data!$B$256:$B$258,FALSE)),1)+IF(N31<>"",INDEX(Data!$E$256:$E$260,MATCH(N31,Data!$D$256:$D$260,FALSE)),1)+IF(O31<>"",INDEX(Data!$G$256:$G$258,MATCH(O31,Data!$F$256:$F$258,FALSE)),1)+IF(P31<>"",INDEX(Data!$I$256:$I$259,MATCH(P31,Data!$H$256:$H$259,FALSE)),1)-4)*0.2895/27)) -> 
A32: 1200.0028 | L32: =IF($B32="","",VLOOKUP($B32,Data!$B$318:$C$438,2,FALSE)) ->  | Q32: =IF(B32="","",0.9*2^((IF(M32<>"",INDEX(Data!$C$256:$C$258,MATCH(M32,Data!$B$256:$B$258,FALSE)),1)+IF(N32<>"",INDEX(Data!$E$256:$E$260,MATCH(N32,Data!$D$256:$D$260,FALSE)),1)+IF(O32<>"",INDEX(Data!$G$256:$G$258,MATCH(O32,Data!$F$256:$F$258,FALSE)),1)+IF(P32<>"",INDEX(Data!$I$256:$I$259,MATCH(P32,Data!$H$256:$H$259,FALSE)),1)-4)*0.2895/27)) -> 
A33: 1200.0029 | L33: =IF($B33="","",VLOOKUP($B33,Data!$B$318:$C$438,2,FALSE)) ->  | Q33: =IF(B33="","",0.9*2^((IF(M33<>"",INDEX(Data!$C$256:$C$258,MATCH(M33,Data!$B$256:$B$258,FALSE)),1)+IF(N33<>"",INDEX(Data!$E$256:$E$260,MATCH(N33,Data!$D$256:$D$260,FALSE)),1)+IF(O33<>"",INDEX(Data!$G$256:$G$258,MATCH(O33,Data!$F$256:$F$258,FALSE)),1)+IF(P33<>"",INDEX(Data!$I$256:$I$259,MATCH(P33,Data!$H$256:$H$259,FALSE)),1)-4)*0.2895/27)) -> 
A34: 1200.0030 | L34: =IF($B34="","",VLOOKUP($B34,Data!$B$318:$C$438,2,FALSE)) ->  | Q34: =IF(B34="","",0.9*2^((IF(M34<>"",INDEX(Data!$C$256:$C$258,MATCH(M34,Data!$B$256:$B$258,FALSE)),1)+IF(N34<>"",INDEX(Data!$E$256:$E$260,MATCH(N34,Data!$D$256:$D$260,FALSE)),1)+IF(O34<>"",INDEX(Data!$G$256:$G$258,MATCH(O34,Data!$F$256:$F$258,FALSE)),1)+IF(P34<>"",INDEX(Data!$I$256:$I$259,MATCH(P34,Data!$H$256:$H$259,FALSE)),1)-4)*0.2895/27)) -> 
A35: 1200.0031 | L35: =IF($B35="","",VLOOKUP($B35,Data!$B$318:$C$438,2,FALSE)) ->  | Q35: =IF(B35="","",0.9*2^((IF(M35<>"",INDEX(Data!$C$256:$C$258,MATCH(M35,Data!$B$256:$B$258,FALSE)),1)+IF(N35<>"",INDEX(Data!$E$256:$E$260,MATCH(N35,Data!$D$256:$D$260,FALSE)),1)+IF(O35<>"",INDEX(Data!$G$256:$G$258,MATCH(O35,Data!$F$256:$F$258,FALSE)),1)+IF(P35<>"",INDEX(Data!$I$256:$I$259,MATCH(P35,Data!$H$256:$H$259,FALSE)),1)-4)*0.2895/27)) -> 
A36: 1200.0032 | L36: =IF($B36="","",VLOOKUP($B36,Data!$B$318:$C$438,2,FALSE)) ->  | Q36: =IF(B36="","",0.9*2^((IF(M36<>"",INDEX(Data!$C$256:$C$258,MATCH(M36,Data!$B$256:$B$258,FALSE)),1)+IF(N36<>"",INDEX(Data!$E$256:$E$260,MATCH(N36,Data!$D$256:$D$260,FALSE)),1)+IF(O36<>"",INDEX(Data!$G$256:$G$258,MATCH(O36,Data!$F$256:$F$258,FALSE)),1)+IF(P36<>"",INDEX(Data!$I$256:$I$259,MATCH(P36,Data!$H$256:$H$259,FALSE)),1)-4)*0.2895/27)) ->  | R36: =IF(B36="","",1) -> 
A37: 1200.0033 | L37: =IF($B37="","",VLOOKUP($B37,Data!$B$318:$C$438,2,FALSE)) ->  | Q37: =IF(B37="","",0.9*2^((IF(M37<>"",INDEX(Data!$C$256:$C$258,MATCH(M37,Data!$B$256:$B$258,FALSE)),1)+IF(N37<>"",INDEX(Data!$E$256:$E$260,MATCH(N37,Data!$D$256:$D$260,FALSE)),1)+IF(O37<>"",INDEX(Data!$G$256:$G$258,MATCH(O37,Data!$F$256:$F$258,FALSE)),1)+IF(P37<>"",INDEX(Data!$I$256:$I$259,MATCH(P37,Data!$H$256:$H$259,FALSE)),1)-4)*0.2895/27)) -> 
A38: 1200.0034 | L38: =IF($B38="","",VLOOKUP($B38,Data!$B$318:$C$438,2,FALSE)) ->  | Q38: =IF(B38="","",0.9*2^((IF(M38<>"",INDEX(Data!$C$256:$C$258,MATCH(M38,Data!$B$256:$B$258,FALSE)),1)+IF(N38<>"",INDEX(Data!$E$256:$E$260,MATCH(N38,Data!$D$256:$D$260,FALSE)),1)+IF(O38<>"",INDEX(Data!$G$256:$G$258,MATCH(O38,Data!$F$256:$F$258,FALSE)),1)+IF(P38<>"",INDEX(Data!$I$256:$I$259,MATCH(P38,Data!$H$256:$H$259,FALSE)),1)-4)*0.2895/27)) -> 
A39: 1200.0035 | L39: =IF($B39="","",VLOOKUP($B39,Data!$B$318:$C$438,2,FALSE)) ->  | Q39: =IF(B39="","",0.9*2^((IF(M39<>"",INDEX(Data!$C$256:$C$258,MATCH(M39,Data!$B$256:$B$258,FALSE)),1)+IF(N39<>"",INDEX(Data!$E$256:$E$260,MATCH(N39,Data!$D$256:$D$260,FALSE)),1)+IF(O39<>"",INDEX(Data!$G$256:$G$258,MATCH(O39,Data!$F$256:$F$258,FALSE)),1)+IF(P39<>"",INDEX(Data!$I$256:$I$259,MATCH(P39,Data!$H$256:$H$259,FALSE)),1)-4)*0.2895/27)) -> 
A40: 1200.0036 | L40: =IF($B40="","",VLOOKUP($B40,Data!$B$318:$C$438,2,FALSE)) ->  | Q40: =IF(B40="","",0.9*2^((IF(M40<>"",INDEX(Data!$C$256:$C$258,MATCH(M40,Data!$B$256:$B$258,FALSE)),1)+IF(N40<>"",INDEX(Data!$E$256:$E$260,MATCH(N40,Data!$D$256:$D$260,FALSE)),1)+IF(O40<>"",INDEX(Data!$G$256:$G$258,MATCH(O40,Data!$F$256:$F$258,FALSE)),1)+IF(P40<>"",INDEX(Data!$I$256:$I$259,MATCH(P40,Data!$H$256:$H$259,FALSE)),1)-4)*0.2895/27)) -> 
A41: 1200.0037 | L41: =IF($B41="","",VLOOKUP($B41,Data!$B$318:$C$438,2,FALSE)) ->  | Q41: =IF(B41="","",0.9*2^((IF(M41<>"",INDEX(Data!$C$256:$C$258,MATCH(M41,Data!$B$256:$B$258,FALSE)),1)+IF(N41<>"",INDEX(Data!$E$256:$E$260,MATCH(N41,Data!$D$256:$D$260,FALSE)),1)+IF(O41<>"",INDEX(Data!$G$256:$G$258,MATCH(O41,Data!$F$256:$F$258,FALSE)),1)+IF(P41<>"",INDEX(Data!$I$256:$I$259,MATCH(P41,Data!$H$256:$H$259,FALSE)),1)-4)*0.2895/27)) -> 
A42: 1200.0038 | L42: =IF($B42="","",VLOOKUP($B42,Data!$B$318:$C$438,2,FALSE)) ->  | Q42: =IF(B42="","",0.9*2^((IF(M42<>"",INDEX(Data!$C$256:$C$258,MATCH(M42,Data!$B$256:$B$258,FALSE)),1)+IF(N42<>"",INDEX(Data!$E$256:$E$260,MATCH(N42,Data!$D$256:$D$260,FALSE)),1)+IF(O42<>"",INDEX(Data!$G$256:$G$258,MATCH(O42,Data!$F$256:$F$258,FALSE)),1)+IF(P42<>"",INDEX(Data!$I$256:$I$259,MATCH(P42,Data!$H$256:$H$259,FALSE)),1)-4)*0.2895/27)) -> 
A43: 1200.0039 | L43: =IF($B43="","",VLOOKUP($B43,Data!$B$318:$C$438,2,FALSE)) ->  | Q43: =IF(B43="","",0.9*2^((IF(M43<>"",INDEX(Data!$C$256:$C$258,MATCH(M43,Data!$B$256:$B$258,FALSE)),1)+IF(N43<>"",INDEX(Data!$E$256:$E$260,MATCH(N43,Data!$D$256:$D$260,FALSE)),1)+IF(O43<>"",INDEX(Data!$G$256:$G$258,MATCH(O43,Data!$F$256:$F$258,FALSE)),1)+IF(P43<>"",INDEX(Data!$I$256:$I$259,MATCH(P43,Data!$H$256:$H$259,FALSE)),1)-4)*0.2895/27)) -> 
A44: 1200.0040 | L44: =IF($B44="","",VLOOKUP($B44,Data!$B$318:$C$438,2,FALSE)) ->  | Q44: =IF(B44="","",0.9*2^((IF(M44<>"",INDEX(Data!$C$256:$C$258,MATCH(M44,Data!$B$256:$B$258,FALSE)),1)+IF(N44<>"",INDEX(Data!$E$256:$E$260,MATCH(N44,Data!$D$256:$D$260,FALSE)),1)+IF(O44<>"",INDEX(Data!$G$256:$G$258,MATCH(O44,Data!$F$256:$F$258,FALSE)),1)+IF(P44<>"",INDEX(Data!$I$256:$I$259,MATCH(P44,Data!$H$256:$H$259,FALSE)),1)-4)*0.2895/27)) -> 
A45: 1200.0041 | L45: =IF($B45="","",VLOOKUP($B45,Data!$B$318:$C$438,2,FALSE)) ->  | Q45: =IF(B45="","",0.9*2^((IF(M45<>"",INDEX(Data!$C$256:$C$258,MATCH(M45,Data!$B$256:$B$258,FALSE)),1)+IF(N45<>"",INDEX(Data!$E$256:$E$260,MATCH(N45,Data!$D$256:$D$260,FALSE)),1)+IF(O45<>"",INDEX(Data!$G$256:$G$258,MATCH(O45,Data!$F$256:$F$258,FALSE)),1)+IF(P45<>"",INDEX(Data!$I$256:$I$259,MATCH(P45,Data!$H$256:$H$259,FALSE)),1)-4)*0.2895/27)) -> 
A46: 1200.0042 | L46: =IF($B46="","",VLOOKUP($B46,Data!$B$318:$C$438,2,FALSE)) ->  | Q46: =IF(B46="","",0.9*2^((IF(M46<>"",INDEX(Data!$C$256:$C$258,MATCH(M46,Data!$B$256:$B$258,FALSE)),1)+IF(N46<>"",INDEX(Data!$E$256:$E$260,MATCH(N46,Data!$D$256:$D$260,FALSE)),1)+IF(O46<>"",INDEX(Data!$G$256:$G$258,MATCH(O46,Data!$F$256:$F$258,FALSE)),1)+IF(P46<>"",INDEX(Data!$I$256:$I$259,MATCH(P46,Data!$H$256:$H$259,FALSE)),1)-4)*0.2895/27)) -> 
A47: 1200.0043 | L47: =IF($B47="","",VLOOKUP($B47,Data!$B$318:$C$438,2,FALSE)) ->  | Q47: =IF(B47="","",0.9*2^((IF(M47<>"",INDEX(Data!$C$256:$C$258,MATCH(M47,Data!$B$256:$B$258,FALSE)),1)+IF(N47<>"",INDEX(Data!$E$256:$E$260,MATCH(N47,Data!$D$256:$D$260,FALSE)),1)+IF(O47<>"",INDEX(Data!$G$256:$G$258,MATCH(O47,Data!$F$256:$F$258,FALSE)),1)+IF(P47<>"",INDEX(Data!$I$256:$I$259,MATCH(P47,Data!$H$256:$H$259,FALSE)),1)-4)*0.2895/27)) -> 
A48: 1200.0044 | L48: =IF($B48="","",VLOOKUP($B48,Data!$B$318:$C$438,2,FALSE)) ->  | Q48: =IF(B48="","",0.9*2^((IF(M48<>"",INDEX(Data!$C$256:$C$258,MATCH(M48,Data!$B$256:$B$258,FALSE)),1)+IF(N48<>"",INDEX(Data!$E$256:$E$260,MATCH(N48,Data!$D$256:$D$260,FALSE)),1)+IF(O48<>"",INDEX(Data!$G$256:$G$258,MATCH(O48,Data!$F$256:$F$258,FALSE)),1)+IF(P48<>"",INDEX(Data!$I$256:$I$259,MATCH(P48,Data!$H$256:$H$259,FALSE)),1)-4)*0.2895/27)) -> 
A49: 1200.0045 | L49: =IF($B49="","",VLOOKUP($B49,Data!$B$318:$C$438,2,FALSE)) ->  | Q49: =IF(B49="","",0.9*2^((IF(M49<>"",INDEX(Data!$C$256:$C$258,MATCH(M49,Data!$B$256:$B$258,FALSE)),1)+IF(N49<>"",INDEX(Data!$E$256:$E$260,MATCH(N49,Data!$D$256:$D$260,FALSE)),1)+IF(O49<>"",INDEX(Data!$G$256:$G$258,MATCH(O49,Data!$F$256:$F$258,FALSE)),1)+IF(P49<>"",INDEX(Data!$I$256:$I$259,MATCH(P49,Data!$H$256:$H$259,FALSE)),1)-4)*0.2895/27)) -> 
A50: 1200.0046 | L50: =IF($B50="","",VLOOKUP($B50,Data!$B$318:$C$438,2,FALSE)) ->  | Q50: =IF(B50="","",0.9*2^((IF(M50<>"",INDEX(Data!$C$256:$C$258,MATCH(M50,Data!$B$256:$B$258,FALSE)),1)+IF(N50<>"",INDEX(Data!$E$256:$E$260,MATCH(N50,Data!$D$256:$D$260,FALSE)),1)+IF(O50<>"",INDEX(Data!$G$256:$G$258,MATCH(O50,Data!$F$256:$F$258,FALSE)),1)+IF(P50<>"",INDEX(Data!$I$256:$I$259,MATCH(P50,Data!$H$256:$H$259,FALSE)),1)-4)*0.2895/27)) -> 
A51: 1200.0047 | L51: =IF($B51="","",VLOOKUP($B51,Data!$B$318:$C$438,2,FALSE)) ->  | Q51: =IF(B51="","",0.9*2^((IF(M51<>"",INDEX(Data!$C$256:$C$258,MATCH(M51,Data!$B$256:$B$258,FALSE)),1)+IF(N51<>"",INDEX(Data!$E$256:$E$260,MATCH(N51,Data!$D$256:$D$260,FALSE)),1)+IF(O51<>"",INDEX(Data!$G$256:$G$258,MATCH(O51,Data!$F$256:$F$258,FALSE)),1)+IF(P51<>"",INDEX(Data!$I$256:$I$259,MATCH(P51,Data!$H$256:$H$259,FALSE)),1)-4)*0.2895/27)) -> 
A52: 1200.0048 | L52: =IF($B52="","",VLOOKUP($B52,Data!$B$318:$C$438,2,FALSE)) ->  | Q52: =IF(B52="","",0.9*2^((IF(M52<>"",INDEX(Data!$C$256:$C$258,MATCH(M52,Data!$B$256:$B$258,FALSE)),1)+IF(N52<>"",INDEX(Data!$E$256:$E$260,MATCH(N52,Data!$D$256:$D$260,FALSE)),1)+IF(O52<>"",INDEX(Data!$G$256:$G$258,MATCH(O52,Data!$F$256:$F$258,FALSE)),1)+IF(P52<>"",INDEX(Data!$I$256:$I$259,MATCH(P52,Data!$H$256:$H$259,FALSE)),1)-4)*0.2895/27)) -> 
A53: 1200.0049 | L53: =IF($B53="","",VLOOKUP($B53,Data!$B$318:$C$438,2,FALSE)) ->  | Q53: =IF(B53="","",0.9*2^((IF(M53<>"",INDEX(Data!$C$256:$C$258,MATCH(M53,Data!$B$256:$B$258,FALSE)),1)+IF(N53<>"",INDEX(Data!$E$256:$E$260,MATCH(N53,Data!$D$256:$D$260,FALSE)),1)+IF(O53<>"",INDEX(Data!$G$256:$G$258,MATCH(O53,Data!$F$256:$F$258,FALSE)),1)+IF(P53<>"",INDEX(Data!$I$256:$I$259,MATCH(P53,Data!$H$256:$H$259,FALSE)),1)-4)*0.2895/27)) -> 
A54: 1200.0050 | L54: =IF($B54="","",VLOOKUP($B54,Data!$B$318:$C$438,2,FALSE)) ->  | Q54: =IF(B54="","",0.9*2^((IF(M54<>"",INDEX(Data!$C$256:$C$258,MATCH(M54,Data!$B$256:$B$258,FALSE)),1)+IF(N54<>"",INDEX(Data!$E$256:$E$260,MATCH(N54,Data!$D$256:$D$260,FALSE)),1)+IF(O54<>"",INDEX(Data!$G$256:$G$258,MATCH(O54,Data!$F$256:$F$258,FALSE)),1)+IF(P54<>"",INDEX(Data!$I$256:$I$259,MATCH(P54,Data!$H$256:$H$259,FALSE)),1)-4)*0.2895/27)) -> 
A55: 1200.0051 | L55: =IF($B55="","",VLOOKUP($B55,Data!$B$318:$C$438,2,FALSE)) ->  | Q55: =IF(B55="","",0.9*2^((IF(M55<>"",INDEX(Data!$C$256:$C$258,MATCH(M55,Data!$B$256:$B$258,FALSE)),1)+IF(N55<>"",INDEX(Data!$E$256:$E$260,MATCH(N55,Data!$D$256:$D$260,FALSE)),1)+IF(O55<>"",INDEX(Data!$G$256:$G$258,MATCH(O55,Data!$F$256:$F$258,FALSE)),1)+IF(P55<>"",INDEX(Data!$I$256:$I$259,MATCH(P55,Data!$H$256:$H$259,FALSE)),1)-4)*0.2895/27)) -> 
A56: 1200.0052 | L56: =IF($B56="","",VLOOKUP($B56,Data!$B$318:$C$438,2,FALSE)) ->  | Q56: =IF(B56="","",0.9*2^((IF(M56<>"",INDEX(Data!$C$256:$C$258,MATCH(M56,Data!$B$256:$B$258,FALSE)),1)+IF(N56<>"",INDEX(Data!$E$256:$E$260,MATCH(N56,Data!$D$256:$D$260,FALSE)),1)+IF(O56<>"",INDEX(Data!$G$256:$G$258,MATCH(O56,Data!$F$256:$F$258,FALSE)),1)+IF(P56<>"",INDEX(Data!$I$256:$I$259,MATCH(P56,Data!$H$256:$H$259,FALSE)),1)-4)*0.2895/27)) -> 
A57: 1200.0053 | L57: =IF($B57="","",VLOOKUP($B57,Data!$B$318:$C$438,2,FALSE)) ->  | Q57: =IF(B57="","",0.9*2^((IF(M57<>"",INDEX(Data!$C$256:$C$258,MATCH(M57,Data!$B$256:$B$258,FALSE)),1)+IF(N57<>"",INDEX(Data!$E$256:$E$260,MATCH(N57,Data!$D$256:$D$260,FALSE)),1)+IF(O57<>"",INDEX(Data!$G$256:$G$258,MATCH(O57,Data!$F$256:$F$258,FALSE)),1)+IF(P57<>"",INDEX(Data!$I$256:$I$259,MATCH(P57,Data!$H$256:$H$259,FALSE)),1)-4)*0.2895/27)) -> 
A58: 1200.0054 | L58: =IF($B58="","",VLOOKUP($B58,Data!$B$318:$C$438,2,FALSE)) ->  | Q58: =IF(B58="","",0.9*2^((IF(M58<>"",INDEX(Data!$C$256:$C$258,MATCH(M58,Data!$B$256:$B$258,FALSE)),1)+IF(N58<>"",INDEX(Data!$E$256:$E$260,MATCH(N58,Data!$D$256:$D$260,FALSE)),1)+IF(O58<>"",INDEX(Data!$G$256:$G$258,MATCH(O58,Data!$F$256:$F$258,FALSE)),1)+IF(P58<>"",INDEX(Data!$I$256:$I$259,MATCH(P58,Data!$H$256:$H$259,FALSE)),1)-4)*0.2895/27)) -> 
A59: 1200.0055 | L59: =IF($B59="","",VLOOKUP($B59,Data!$B$318:$C$438,2,FALSE)) ->  | Q59: =IF(B59="","",0.9*2^((IF(M59<>"",INDEX(Data!$C$256:$C$258,MATCH(M59,Data!$B$256:$B$258,FALSE)),1)+IF(N59<>"",INDEX(Data!$E$256:$E$260,MATCH(N59,Data!$D$256:$D$260,FALSE)),1)+IF(O59<>"",INDEX(Data!$G$256:$G$258,MATCH(O59,Data!$F$256:$F$258,FALSE)),1)+IF(P59<>"",INDEX(Data!$I$256:$I$259,MATCH(P59,Data!$H$256:$H$259,FALSE)),1)-4)*0.2895/27)) -> 
A60: 1200.0056 | L60: =IF($B60="","",VLOOKUP($B60,Data!$B$318:$C$438,2,FALSE)) ->  | Q60: =IF(B60="","",0.9*2^((IF(M60<>"",INDEX(Data!$C$256:$C$258,MATCH(M60,Data!$B$256:$B$258,FALSE)),1)+IF(N60<>"",INDEX(Data!$E$256:$E$260,MATCH(N60,Data!$D$256:$D$260,FALSE)),1)+IF(O60<>"",INDEX(Data!$G$256:$G$258,MATCH(O60,Data!$F$256:$F$258,FALSE)),1)+IF(P60<>"",INDEX(Data!$I$256:$I$259,MATCH(P60,Data!$H$256:$H$259,FALSE)),1)-4)*0.2895/27)) -> 
A61: 1200.0057 | L61: =IF($B61="","",VLOOKUP($B61,Data!$B$318:$C$438,2,FALSE)) ->  | Q61: =IF(B61="","",0.9*2^((IF(M61<>"",INDEX(Data!$C$256:$C$258,MATCH(M61,Data!$B$256:$B$258,FALSE)),1)+IF(N61<>"",INDEX(Data!$E$256:$E$260,MATCH(N61,Data!$D$256:$D$260,FALSE)),1)+IF(O61<>"",INDEX(Data!$G$256:$G$258,MATCH(O61,Data!$F$256:$F$258,FALSE)),1)+IF(P61<>"",INDEX(Data!$I$256:$I$259,MATCH(P61,Data!$H$256:$H$259,FALSE)),1)-4)*0.2895/27)) -> 
A62: 1200.0058 | L62: =IF($B62="","",VLOOKUP($B62,Data!$B$318:$C$438,2,FALSE)) ->  | Q62: =IF(B62="","",0.9*2^((IF(M62<>"",INDEX(Data!$C$256:$C$258,MATCH(M62,Data!$B$256:$B$258,FALSE)),1)+IF(N62<>"",INDEX(Data!$E$256:$E$260,MATCH(N62,Data!$D$256:$D$260,FALSE)),1)+IF(O62<>"",INDEX(Data!$G$256:$G$258,MATCH(O62,Data!$F$256:$F$258,FALSE)),1)+IF(P62<>"",INDEX(Data!$I$256:$I$259,MATCH(P62,Data!$H$256:$H$259,FALSE)),1)-4)*0.2895/27)) -> 
A63: 1200.0059 | L63: =IF($B63="","",VLOOKUP($B63,Data!$B$318:$C$438,2,FALSE)) ->  | Q63: =IF(B63="","",0.9*2^((IF(M63<>"",INDEX(Data!$C$256:$C$258,MATCH(M63,Data!$B$256:$B$258,FALSE)),1)+IF(N63<>"",INDEX(Data!$E$256:$E$260,MATCH(N63,Data!$D$256:$D$260,FALSE)),1)+IF(O63<>"",INDEX(Data!$G$256:$G$258,MATCH(O63,Data!$F$256:$F$258,FALSE)),1)+IF(P63<>"",INDEX(Data!$I$256:$I$259,MATCH(P63,Data!$H$256:$H$259,FALSE)),1)-4)*0.2895/27)) -> 
A64: 1200.0060 | L64: =IF($B64="","",VLOOKUP($B64,Data!$B$318:$C$438,2,FALSE)) ->  | Q64: =IF(B64="","",0.9*2^((IF(M64<>"",INDEX(Data!$C$256:$C$258,MATCH(M64,Data!$B$256:$B$258,FALSE)),1)+IF(N64<>"",INDEX(Data!$E$256:$E$260,MATCH(N64,Data!$D$256:$D$260,FALSE)),1)+IF(O64<>"",INDEX(Data!$G$256:$G$258,MATCH(O64,Data!$F$256:$F$258,FALSE)),1)+IF(P64<>"",INDEX(Data!$I$256:$I$259,MATCH(P64,Data!$H$256:$H$259,FALSE)),1)-4)*0.2895/27)) -> 
A65: 1200.0061 | L65: =IF($B65="","",VLOOKUP($B65,Data!$B$318:$C$438,2,FALSE)) ->  | Q65: =IF(B65="","",0.9*2^((IF(M65<>"",INDEX(Data!$C$256:$C$258,MATCH(M65,Data!$B$256:$B$258,FALSE)),1)+IF(N65<>"",INDEX(Data!$E$256:$E$260,MATCH(N65,Data!$D$256:$D$260,FALSE)),1)+IF(O65<>"",INDEX(Data!$G$256:$G$258,MATCH(O65,Data!$F$256:$F$258,FALSE)),1)+IF(P65<>"",INDEX(Data!$I$256:$I$259,MATCH(P65,Data!$H$256:$H$259,FALSE)),1)-4)*0.2895/27)) -> 
A66: 1200.0062 | L66: =IF($B66="","",VLOOKUP($B66,Data!$B$318:$C$438,2,FALSE)) ->  | Q66: =IF(B66="","",0.9*2^((IF(M66<>"",INDEX(Data!$C$256:$C$258,MATCH(M66,Data!$B$256:$B$258,FALSE)),1)+IF(N66<>"",INDEX(Data!$E$256:$E$260,MATCH(N66,Data!$D$256:$D$260,FALSE)),1)+IF(O66<>"",INDEX(Data!$G$256:$G$258,MATCH(O66,Data!$F$256:$F$258,FALSE)),1)+IF(P66<>"",INDEX(Data!$I$256:$I$259,MATCH(P66,Data!$H$256:$H$259,FALSE)),1)-4)*0.2895/27)) -> 
A67: 1200.0063 | L67: =IF($B67="","",VLOOKUP($B67,Data!$B$318:$C$438,2,FALSE)) ->  | Q67: =IF(B67="","",0.9*2^((IF(M67<>"",INDEX(Data!$C$256:$C$258,MATCH(M67,Data!$B$256:$B$258,FALSE)),1)+IF(N67<>"",INDEX(Data!$E$256:$E$260,MATCH(N67,Data!$D$256:$D$260,FALSE)),1)+IF(O67<>"",INDEX(Data!$G$256:$G$258,MATCH(O67,Data!$F$256:$F$258,FALSE)),1)+IF(P67<>"",INDEX(Data!$I$256:$I$259,MATCH(P67,Data!$H$256:$H$259,FALSE)),1)-4)*0.2895/27)) -> 
A68: 1200.0064 | L68: =IF($B68="","",VLOOKUP($B68,Data!$B$318:$C$438,2,FALSE)) ->  | Q68: =IF(B68="","",0.9*2^((IF(M68<>"",INDEX(Data!$C$256:$C$258,MATCH(M68,Data!$B$256:$B$258,FALSE)),1)+IF(N68<>"",INDEX(Data!$E$256:$E$260,MATCH(N68,Data!$D$256:$D$260,FALSE)),1)+IF(O68<>"",INDEX(Data!$G$256:$G$258,MATCH(O68,Data!$F$256:$F$258,FALSE)),1)+IF(P68<>"",INDEX(Data!$I$256:$I$259,MATCH(P68,Data!$H$256:$H$259,FALSE)),1)-4)*0.2895/27)) -> 
